Workbook

Sheet شعبة التسزيق
B1: بسم الله الرحمن الرحيم | W1: شيت كنترول للعام الدراسى 2017 / 2018 | X1: شيت كنترول للعام الدراسى 2018/ 2019
C2: ادارة التعليمية | W2: الصف الثانى - شعبة تسويق
C3: مدرسة التجارية
A5: مسلسل | B5: رقم جلوس | C5: الاســــــــــــــم | D5: الفصــــــــــل | E5: الحالــــــــة | F5: السرى | G5: لغة عربية | K5: لغة انجليزية | O5: لغة فرنسية | S5: محاسبة مالية | W5: تسويق | AA5: رياضة مالية | AE5: اقتصاد | AI5: اعمال وساطة | AM5: سكرتارية اجنبية | AQ5: دعاية واعلان | AU5: سوق اوراق مالية | AY5: حاسب آلى | BH5: مجموع كلى | BI5: مواطنة وحقوق انسان | BM5: تربية دينية | BQ5: نتيجة | BR5: مواد الرسوب | BS5: عدد المواد | BX5: عربى | BY5: انجليزى | BZ5: فرنسى | CA5: محاسبة | CB5: احصاء | CC5: رياضة مالية | CD5: اقتصاد | CE5: سكرتارية . ع | CF5: سكرتارية . ف | CG5: مشروعات | CH5: مخازن | CI5: حاسب | CJ5: مواطنة | CK5: دين | CL5: مجموع | CN5: مجموع نصف العام
G6: اعمال السنة | H6: نصف العام | I6: آخر العام | J6: المجموع | K6: اعمال السنة | L6: نصف العام | M6: آخر العام | N6: المجموع | O6: اعمال السنة | P6: نصف العام | Q6: آخر العام | R6: المجموع | S6: اعمال السنة | T6: نصف العام | U6: آخر العام | V6: المجموع | W6: اعمال السنة | X6: نصف العام | Y6: آخر العام | Z6: المجموع | AA6: اعمال السنة | AB6: نصف العام | AC6: آخر العام | AD6: المجموع | AE6: اعمال السنة | AF6: نصف العام | AG6: آخر العام | AH6: المجموع | AI6: اعمال السنة | AJ6: نصف العام | AK6: آخر العام | AL6: المجموع | AM6: اعمال السنة | AN6: نصف العام | AO6: آخر العام | AP6: المجموع | AQ6: اعمال السنة | AR6: نصف العام | AS6: آخر العام | AT6: المجموع | AU6: اعمال السنة | AV6: نصف العام | AW6: آخر العام | AX6: المجموع | AY6: اعمال السنة | BA6: نصف العام | BC6: آخر العام | BE6: مجموع عملى | BF6: مجموع تحريرى | BG6: مجموع حاسب | BI6: اعمال السنة | BJ6: نصف العام | BK6: آخر العام | BL6: المجموع | BM6: اعمال السنة | BN6: نصف العام | BO6: نصف العام | BP6: المجموع
AY7: عملى | AZ7: تحريرى | BA7: عملى | BB7: تحريرى | BC7: عملى | BD7: تحريرى
F8: عظمى | G8: 10 | H8: 20 | I8: 20 | J8: 50 | K8: 10 | L8: 20 | M8: 20 | N8: 50 | O8: 6 | P8: 12 | Q8: 12 | R8: 30 | S8: 10 | T8: 20 | U8: 20 | V8: 50 | W8: 10 | X8: 20 | Y8: 20 | Z8: 50 | AA8: 10 | AB8: 20 | AC8: 20 | AD8: 50 | AE8: 10 | AF8: 20 | AG8: 20 | AH8: 50 | AI8: 10 | AJ8: 20 | AK8: 20 | AL8: 50 | AM8: 10 | AN8: 20 | AO8: 20 | AP8: 50 | AQ8: 10 | AR8: 20 | AS8: 20 | AT8: 50 | AU8: 10 | AV8: 20 | AW8: 20 | AX8: 50 | AY8: 4 | AZ8: 6 | BA8: 8 | BB8: 12 | BC8: 8 | BD8: 12 | BE8: 20 | BF8: 30 | BG8: 50 | BH8: 580 | BI8: 4 | BJ8: 8 | BK8: 8 | BL8: 20 | BM8: 4 | BN8: 8 | BO8: 8 | BP8: 20
F9: صغرى | G9: 0 | H9: 0 | I9: 5 | J9: 25 | K9: 0 | L9: 0 | M9: 5 | N9: 20 | O9: 0 | P9: 0 | Q9: 3 | R9: 9 | S9: 0 | T9: 0 | U9: 5 | V9: 25 | W9: 0 | X9: 0 | Y9: 5 | Z9: 25 | AA9: 0 | AB9: 0 | AC9: 5 | AD9: 25 | AE9: 0 | AF9: 0 | AG9: 5 | AH9: 25 | AI9: 0 | AJ9: 0 | AK9: 5 | AL9: 25 | AM9: 0 | AN9: 0 | AO9: 5 | AP9: 20 | AQ9: 0 | AR9: 0 | AS9: 5 | AT9: 25 | AU9: 0 | AV9: 0 | AW9: 5 | AX9: 25 | AY9: 0 | AZ9: 0 | BA9: 0 | BB9: 0 | BC9: 2 | BD9: 3 | BE9: 10 | BF9: 15 | BG9: 25 | BH9: 290 | BI9: 0 | BJ9: 0 | BK9: 2 | BL9: 10 | BM9: 0 | BN9: 0 | BO9: 0 | BP9: 10
A10: 1 | B10: 501 | C10: طالبة تسويق 1 | D10: 1/2 | E10: مستجدة | F10: 625 | G10: 8 | H10: 10.5 | I10: غ | J10: =SUM(G10:I10) -> 18.5 | K10: 8.5 | L10: 8.4 | M10: غ | N10: =SUM(K10:M10) -> 16.9 | O10: 4.5 | P10: 6.8 | Q10: 6.8 | R10: =SUM(O10:Q10) -> 18.1 | S10: 9 | T10: 8 | U10: 12 | V10: =SUM(S10:U10) -> 29 | W10: 8.5 | X10: 17 | Y10: 15 | Z10: =SUM(W10:Y10) -> 40.5 | AA10: ='[1]شعبة التسزيق'!AJ10 -> 16 | AB10: ='[1]شعبة التسزيق'!AK10 -> 13.5 | AC10: ='[1]شعبة التسزيق'!AL10 -> 38.5 | AD10: =SUM(AA10:AC10) -> 68 | AE10: 8.5 | AF10: 13 | AG10: 15 | AH10: =SUM(AE10:AG10) -> 36.5 | AI10: 9 | AJ10: 15 | AK10: 11.5 | AL10: =SUM(AI10:AK10) -> 35.5 | AM10: 8.5 | AN10: 13.5 | AO10: 10.5 | AP10: =SUM(AM10:AO10) -> 32.5 | AQ10: 9 | AR10: 15 | AS10: 8 | AT10: =SUM(AQ10:AS10) -> 32 | AU10: 9 | AV10: 8 | AW10: 12 | AX10: =SUM(AU10:AW10) -> 29 | AY10: 3 | AZ10: 4 | BA10: 6 | BB10: 7 | BC10: 5 | BD10: 8 | BE10: =IF($C10="","",SUM(AY10,BA10,BC10)) -> 14 | BF10: 19 | BG10: =IF($C10="","",SUM(BE10,BF10)) -> 33 | BH10: =IF($C10="","",SUM(J10,N10,R10,V10,Z10,AD10,AH10,AL10,AP10,AT10,AX10,BG10)) -> 389.5 | BI10: ='[1]شعبة التسزيق'!BS10 -> 8 | BJ10: 0 | BK10: غ | BL10: =SUM(BI10:BK10) -> 8 | BM10: 5 | BN10: 5 | BO10: غ | BP10: =SUM(BM10:BO10) -> 10 | BQ10: =IF($C10="","",IF(BS10=0,"ناجحة",IF(BS10<=2,"دورثان","راسبة"))) -> راسبة | BR10: =IF($C10="","",IF(BS10=0,"ومنقولة للصف الثالث",IF(BS10>0,"فى : "&CONCATENATE(BX10,BY10,BZ10,CA10,CB10,CC10,CD10,CE10,CF10,CG10,CH10,CI10,CJ10,CK10,CL10),CONCATENATE(BX10,BY10,BZ10,CA10,CB10,CC10,CD10,CE10,CF10,CG10,CH10,CI10,CJ10,CK10,CL10)))) -> فى : عربى - انجليزى - مواطنة - دين - | BS10: =IF($C10="","",COUNTA($BX10:$CL10)-COUNTBLANK($BX10:$CL10)) -> 4 | BX10: =IF($C10="","",IF(OR(I10<$I$9,I10="غ",J10<$J$9),$BX$5&" - ","")) -> عربى - | BY10: =IF($C10="","",IF(OR(M10<$M$9,M10="غ",N10<$N$9),$BY$5&" - ","")) -> انجليزى - | BZ10: =IF($C10="","",IF(OR(Q10<$Q$9,Q10="غ",R10<$R$9),BZ$5&" - ","")) ->  | CA10: =IF($C10="","",IF(OR(U10<$U$9,U10="غ",V10<$V$9),CA$5&" - ","")) ->  | CB10: =IF($C10="","",IF(OR(Y10<$Y$9,Y10="غ",Z10<$Z$9),CB$5&" - ","")) ->  | CC10: =IF($C10="","",IF(OR(AC10<$AC$9,AC10="غ",AD10<$AD$9),CC$5&" - ","")) ->  | CD10: =IF($C10="","",IF(OR(AG10<$AG$9,AG10="غ",AH10<$AH$9),CD$5&" - ","")) ->  | CE10: =IF($C10="","",IF(OR(AK10<$AK$9,AK10="غ",AL10<$AL$9),CE$5&" - ","")) ->  | CF10: =IF($C10="","",IF(OR(AO10<$AO$9,AO10="غ",AP10<$AP$9),CF$5&" - ","")) ->  | CG10: =IF($C10="","",IF(OR(AS10<$AS$9,AS10="غ",AT10<$AT$9),CG$5&" - ","")) ->  | CH10: =IF($C10="","",IF(OR(AW10<$AW$9,AW10="غ",AX10<$AX$9),CH$5&" - ","")) ->  | CI10: =IF($C10="","",IF(OR(BE10<$BE$9,BE10="غ",BF10<$BF$9,BF10="غ",BG10<$BG$9),CI$5&" - ","")) ->  | CJ10: =IF($C10="","",IF(OR(BK10<$BK$9,BK10="غ",BL10<$BL$9),CJ$5&" - ","")) -> مواطنة - | CK10: =IF($C10="","",IF(OR(BO10<$BO$9,BO10="غ",BP10<$BP$9),CK$5&" - ","")) -> دين - | CL10: =IF($C10="","",IF(BH10<$BH$9,CL$5,"")) ->  | CN10: =IF($C10="","",SUM(H10,L10,P10,T10,X10,AB10,AF10,AJ10,AN10,AR10,AV10,BA10,BB10)) -> 141.7
A11: 2 | B11: 502 | C11: طالبة تسويق 2 | D11: 1/2 | E11: مستجدة | F11: 626 | G11: 8 | H11: 13 | I11: 10 | J11: =SUM(G11:I11) -> 31 | K11: 8.5 | L11: 10.4 | M11: 12.8 | N11: 31.7 | O11: 5 | P11: 9.2 | Q11: 7.6 | R11: 21.8 | S11: 9 | T11: 16 | U11: 14.5 | V11: 39.5 | W11: 9.5 | X11: 12.5 | Y11: 14 | Z11: 36 | AA11: ='[1]شعبة التسزيق'!AJ11 -> 15 | AB11: ='[1]شعبة التسزيق'!AK11 -> 14.5 | AC11: ='[1]شعبة التسزيق'!AL11 -> 38.5 | AD11: 68 | AE11: 8.5 | AF11: 17 | AG11: 17 | AH11: 42.5 | AI11: 9 | AJ11: 18 | AK11: 15.5 | AL11: 42.5 | AM11: 9 | AN11: 15.5 | AO11: 15.5 | AP11: 40 | AQ11: 9 | AR11: 16 | AS11: 12 | AT11: 37 | AU11: 9 | AV11: 12 | AW11: 12 | AX11: 33 | AY11: 3 | AZ11: 4 | BA11: 6 | BB11: 7 | BC11: 5 | BD11: 8 | BE11: 14 | BF11: 19 | BG11: 33 | BH11: 456 | BI11: ='[1]شعبة التسزيق'!BS11 -> 7 | BJ11: 5 | BK11: غ | BL11: 12 | BM11: 5 | BN11: 5 | BO11: غ | BP11: 10 | BQ11: دورثان | BR11: فى : مواطنة - دين - | BS11: 2 | CJ11: مواطنة - | CK11: دين - | CN11: 167.1
A12: 3 | B12: 503 | C12: طالبة تسويق 3 | D12: 1/2 | E12: مستجدة | F12: 627 | G12: 8 | H12: 13 | I12: 9.5 | J12: 30.5 | K12: 8 | L12: 10.4 | M12: 14 | N12: 32.4 | O12: 5 | P12: 8.8 | Q12: 8 | R12: 21.8 | S12: 9 | T12: 13.5 | U12: 11.5 | V12: 34 | W12: 9.5 | X12: 12.5 | Y12: 15 | Z12: 37 | AA12: ='[1]شعبة التسزيق'!AJ12 -> 14 | AB12: ='[1]شعبة التسزيق'!AK12 -> 13 | AC12: ='[1]شعبة التسزيق'!AL12 -> 36 | AD12: 63 | AE12: 8.5 | AF12: 11 | AG12: 17 | AH12: 36.5 | AI12: 9 | AJ12: 14 | AK12: 16 | AL12: 39 | AM12: 8.5 | AN12: 15.5 | AO12: 12 | AP12: 36 | AQ12: 9 | AR12: 15 | AS12: 13 | AT12: 37 | AU12: 9 | AV12: 9 | AW12: 13 | AX12: 31 | AY12: 3 | AZ12: 4 | BA12: 6 | BB12: 6 | BC12: 5 | BD12: 8 | BE12: 14 | BF12: 18 | BG12: 32 | BH12: 430.2 | BI12: ='[1]شعبة التسزيق'!BS12 -> 9 | BJ12: 5 | BK12: 5 | BL12: 19 | BM12: 5 | BN12: 5 | BO12: 5 | BP12: 15 | BQ12: ناجحة | BR12: ومنقولة للصف الثالث | BS12: 0 | CN12: 147.7
A13: 4 | B13: 504 | C13: طالبة تسويق 4 | D13: 1/2 | E13: مستجدة | F13: 628 | G13: 8 | H13: 11 | I13: 9 | J13: 28 | K13: 8.5 | L13: 5.6 | M13: 12 | N13: 26.1 | O13: 4.5 | P13: 8 | Q13: 8 | R13: 20.5 | S13: 9 | T13: 15.5 | U13: 13.5 | V13: 38 | W13: 9.5 | X13: 8 | Y13: 14 | Z13: 31.5 | AA13: ='[1]شعبة التسزيق'!AJ13 -> 12 | AB13: ='[1]شعبة التسزيق'!AK13 -> 12 | AC13: ='[1]شعبة التسزيق'!AL13 -> 33 | AD13: 57 | AE13: 8.5 | AF13: 12 | AG13: 16 | AH13: 36.5 | AI13: 9 | AJ13: 11 | AK13: 14 | AL13: 34 | AM13: 8.5 | AN13: 10 | AO13: 8.5 | AP13: 27 | AQ13: 9.5 | AR13: 17 | AS13: 11 | AT13: 37.5 | AU13: 9 | AV13: 4 | AW13: 12 | AX13: 25 | AY13: 3 | AZ13: 4 | BA13: 6 | BB13: 5.5 | BC13: 6 | BD13: 8 | BE13: 15 | BF13: 17.5 | BG13: 32.5 | BH13: 393.6 | BI13: ='[1]شعبة التسزيق'!BS13 -> 9 | BJ13: 5 | BK13: 5 | BL13: 19 | BM13: 5 | BN13: 5 | BO13: 5 | BP13: 15 | BQ13: ناجحة | BR13: ومنقولة للصف الثالث | BS13: 0 | CN13: 125.6
A14: 5 | B14: 505 | C14: طالبة تسويق 5 | D14: 1/2 | E14: مستجدة | F14: 629 | G14: 8 | H14: 11 | I14: 13 | J14: 32 | K14: 8.5 | L14: 7.2 | M14: 12.4 | N14: 28.1 | O14: 4.5 | P14: 7.6 | Q14: 8.4 | R14: 20.5 | S14: 9 | T14: 13 | U14: 12 | V14: 34 | W14: 8.5 | X14: 15 | Y14: 14 | Z14: 37.5 | AA14: ='[1]شعبة التسزيق'!AJ14 -> 16 | AB14: ='[1]شعبة التسزيق'!AK14 -> 11.5 | AC14: ='[1]شعبة التسزيق'!AL14 -> 36.5 | AD14: 64 | AE14: 8.5 | AF14: 13 | AG14: 18 | AH14: 39.5 | AI14: 9 | AJ14: 16 | AK14: 13.5 | AL14: 38.5 | AM14: 8.5 | AN14: 9.5 | AO14: 13.5 | AP14: 31.5 | AQ14: 8.5 | AR14: 13 | AS14: 13 | AT14: 34.5 | AU14: 9 | AV14: 5 | AW14: 11 | AX14: 25 | AY14: 3 | AZ14: 4 | BA14: 6 | BB14: 7 | BC14: 6 | BD14: 7 | BE14: 15 | BF14: 18 | BG14: 33 | BH14: 418.1 | BI14: ='[1]شعبة التسزيق'!BS14 -> 9 | BJ14: 5 | BK14: 5 | BL14: 19 | BM14: 5 | BN14: 5 | BO14: 5 | BP14: 15 | BQ14: ناجحة | BR14: ومنقولة للصف الثالث | BS14: 0 | CN14: 134.8
A15: 6 | B15: 506 | C15: طالبة تسويق 6 | D15: 1/2 | E15: مستجدة | F15: 630 | G15: 8 | H15: 13 | I15: 12 | J15: 33 | K15: 8.5 | L15: 10.8 | M15: 14 | N15: 33.3 | O15: 5 | P15: 8 | Q15: 8.8 | R15: 21.8 | S15: 9 | T15: 15 | U15: 14 | V15: 38 | W15: 9 | X15: 20 | Y15: 17 | Z15: 46 | AA15: ='[1]شعبة التسزيق'!AJ15 -> 15.5 | AB15: ='[1]شعبة التسزيق'!AK15 -> 12.5 | AC15: ='[1]شعبة التسزيق'!AL15 -> 37.5 | AD15: 65.5 | AE15: 8.5 | AF15: 16 | AG15: 15 | AH15: 39.5 | AI15: 9 | AJ15: 15 | AK15: 14.5 | AL15: 38.5 | AM15: 9 | AN15: 12 | AO15: 13.5 | AP15: 34.5 | AQ15: 9.5 | AR15: 16 | AS15: 13 | AT15: 38.5 | AU15: 9 | AV15: 11 | AW15: 10 | AX15: 30 | AY15: 3 | AZ15: 4 | BA15: 6 | BB15: 10 | BC15: 5 | BD15: 8 | BE15: 14 | BF15: 22 | BG15: 36 | BH15: 454.6 | BI15: ='[1]شعبة التسزيق'!BS15 -> 14 | BJ15: 5 | BK15: 5 | BL15: 24 | BM15: 5 | BN15: 5 | BO15: 5 | BP15: 15 | BQ15: ناجحة | BR15: ومنقولة للصف الثالث | BS15: 0 | CN15: 165.3
A16: 7 | B16: 507 | C16: طالبة تسويق 7 | D16: 1/2 | E16: مستجدة | F16: 631 | G16: 8 | H16: 11.5 | I16: 10 | J16: 29.5 | K16: 8 | L16: 8 | M16: 14 | N16: 30 | O16: 4.5 | P16: 8.4 | Q16: 8 | R16: 20.9 | S16: 9 | T16: 11.5 | U16: 13.5 | V16: 34 | W16: 9.5 | X16: 12 | Y16: 15 | Z16: 36.5 | AA16: ='[1]شعبة التسزيق'!AJ16 -> 17 | AB16: ='[1]شعبة التسزيق'!AK16 -> 13.5 | AC16: ='[1]شعبة التسزيق'!AL16 -> 40 | AD16: 70.5 | AE16: 8.5 | AF16: 11 | AG16: 14 | AH16: 33.5 | AI16: 9 | AJ16: 14 | AK16: 13 | AL16: 36 | AM16: 8.5 | AN16: 9 | AO16: 13 | AP16: 30.5 | AQ16: 9.5 | AR16: 16 | AS16: 5 | AT16: 30.5 | AU16: 9 | AV16: 4 | AW16: 13 | AX16: 26 | AY16: 3 | AZ16: 4 | BA16: 5 | BB16: 7 | BC16: 6 | BD16: 7 | BE16: 14 | BF16: 18 | BG16: 32 | BH16: 409.9 | BI16: ='[1]شعبة التسزيق'!BS16 -> 9 | BJ16: 5 | BK16: 5 | BL16: 19 | BM16: 5 | BN16: 5 | BO16: 5 | BP16: 15 | BQ16: ناجحة | BR16: ومنقولة للصف الثالث | BS16: 0 | CN16: 130.9
A17: 8 | B17: 508 | C17: طالبة تسويق 8 | D17: 1/2 | E17: مستجدة | F17: 632 | G17: 8 | H17: 12.5 | I17: 13.5 | J17: 34 | K17: 8.5 | L17: 8 | M17: 12.4 | N17: 28.9 | O17: 5 | P17: 8 | Q17: 8.4 | R17: 21.4 | S17: 9 | T17: 14.5 | U17: 14 | V17: 37.5 | W17: 9 | X17: 13 | Y17: 14 | Z17: 36 | AA17: ='[1]شعبة التسزيق'!AJ17 -> 16 | AB17: ='[1]شعبة التسزيق'!AK17 -> 13 | AC17: ='[1]شعبة التسزيق'!AL17 -> 38.5 | AD17: 67.5 | AE17: 8.5 | AF17: 15 | AG17: 14 | AH17: 37.5 | AI17: 9 | AJ17: 12 | AK17: 12 | AL17: 33 | AM17: 8.5 | AN17: 10.5 | AO17: 10 | AP17: 29 | AQ17: 9.5 | AR17: 16 | AS17: 5 | AT17: 30.5 | AU17: 9 | AV17: 4 | AW17: 13 | AX17: 26 | AY17: 3 | AZ17: 4 | BA17: 6 | BB17: 5 | BC17: 5 | BD17: 7 | BE17: 14 | BF17: 16 | BG17: 30 | BH17: 411.3 | BI17: ='[1]شعبة التسزيق'!BS17 -> 9 | BJ17: 5 | BK17: 5 | BL17: 19 | BM17: 5 | BN17: 5 | BO17: 5 | BP17: 15 | BQ17: ناجحة | BR17: ومنقولة للصف الثالث | BS17: 0 | CN17: 137.5
A18: 9 | B18: 509 | C18: طالبة تسويق 9 | D18: 1/2 | E18: مستجدة | F18: 633 | G18: 8 | H18: 12.5 | I18: 12.5 | J18: 33 | K18: 8.5 | L18: 11.6 | M18: 15.2 | N18: 35.3 | O18: 5 | P18: 7.6 | Q18: 8 | R18: 20.6 | S18: 9 | T18: 16 | U18: 13.5 | V18: 38.5 | W18: 9.5 | X18: 15 | Y18: 11 | Z18: 35.5 | AA18: ='[1]شعبة التسزيق'!AJ18 -> 17 | AB18: ='[1]شعبة التسزيق'!AK18 -> 14.5 | AC18: ='[1]شعبة التسزيق'!AL18 -> 40.5 | AD18: 72 | AE18: 8.5 | AF18: 11 | AG18: 13 | AH18: 32.5 | AI18: 9 | AJ18: 16 | AK18: 11.5 | AL18: 36.5 | AM18: 8.5 | AN18: 14 | AO18: 14.5 | AP18: 37 | AQ18: 9.5 | AR18: 16 | AS18: 8 | AT18: 33.5 | AU18: 9 | AV18: 6 | AW18: 13 | AX18: 28 | AY18: 3 | AZ18: 4 | BA18: 5 | BB18: 6 | BC18: 6 | BD18: 9 | BE18: 14 | BF18: 19 | BG18: 33 | BH18: 435.4 | BI18: ='[1]شعبة التسزيق'!BS18 -> 9 | BJ18: 5 | BK18: 5 | BL18: 19 | BM18: 5 | BN18: 5 | BO18: 5 | BP18: 15 | BQ18: ناجحة | BR18: ومنقولة للصف الثالث | BS18: 0 | CN18: 151.2
A19: 10 | B19: 510 | C19: طالبة تسويق 10 | D19: 1/2 | E19: مستجدة | F19: 634 | G19: 8 | H19: 9 | I19: 9 | J19: 26 | K19: 8.5 | L19: 6 | M19: 13.6 | N19: 28.1 | O19: 5 | P19: 6.4 | Q19: 8 | R19: 19.4 | S19: 9 | T19: 10 | U19: 14.5 | V19: 33.5 | W19: 9 | X19: 11 | Y19: 13 | Z19: 33 | AA19: ='[1]شعبة التسزيق'!AJ19 -> 18 | AB19: ='[1]شعبة التسزيق'!AK19 -> 14.5 | AC19: ='[1]شعبة التسزيق'!AL19 -> 42 | AD19: 74.5 | AE19: 8.5 | AF19: 9 | AG19: 14 | AH19: 31.5 | AI19: 9.5 | AJ19: 15.5 | AK19: 12.5 | AL19: 37.5 | AM19: 9 | AN19: 2.5 | AO19: 10 | AP19: 21.5 | AQ19: 9 | AR19: 16 | AS19: 11 | AT19: 36 | AU19: 9 | AV19: 5 | AW19: 11 | AX19: 25 | AY19: 3 | AZ19: 4 | BA19: 6 | BB19: 4.5 | BC19: 5 | BD19: 8 | BE19: 14 | BF19: 16.5 | BG19: 30.5 | BH19: 396.5 | BI19: ='[1]شعبة التسزيق'!BS19 -> 12 | BJ19: 5 | BK19: 5 | BL19: 22 | BM19: 5 | BN19: 5 | BO19: 5 | BP19: 15 | BQ19: ناجحة | BR19: ومنقولة للصف الثالث | BS19: 0 | CN19: 115.4
A20: 11 | B20: 511 | C20: طالبة تسويق 11 | D20: 1/2 | E20: مستجدة | F20: 635 | G20: 8 | H20: 13.5 | I20: 13.5 | J20: 35 | K20: 8.5 | L20: 12 | M20: 13.6 | N20: 34.1 | O20: 5 | P20: 8.4 | Q20: 8 | R20: 21.4 | S20: 9 | T20: 14.5 | U20: 14.5 | V20: 38 | W20: 9 | X20: 12 | Y20: 14 | Z20: 35 | AA20: ='[1]شعبة التسزيق'!AJ20 -> 19 | AB20: ='[1]شعبة التسزيق'!AK20 -> 12.5 | AC20: ='[1]شعبة التسزيق'!AL20 -> 40.5 | AD20: 72 | AE20: 8.5 | AF20: 10 | AG20: 14 | AH20: 32.5 | AI20: 9.5 | AJ20: 17 | AK20: 13.5 | AL20: 40 | AM20: 9 | AN20: 5 | AO20: 14 | AP20: 28 | AQ20: 9 | AR20: 15 | AS20: 7 | AT20: 31 | AU20: 9 | AV20: 9 | AW20: 11 | AX20: 29 | AY20: 3 | AZ20: 4 | BA20: 6 | BB20: 6.5 | BC20: 5 | BD20: 8 | BE20: 14 | BF20: 18.5 | BG20: 32.5 | BH20: 428.5 | BI20: ='[1]شعبة التسزيق'!BS20 -> 9 | BJ20: 5 | BK20: 5 | BL20: 19 | BM20: 5 | BN20: 5 | BO20: 5 | BP20: 15 | BQ20: ناجحة | BR20: ومنقولة للصف الثالث | BS20: 0 | CN20: 141.4
A21: 12 | B21: 512 | C21: طالبة تسويق 12 | D21: 1/2 | E21: مستجدة | F21: 636 | G21: 8 | H21: 13 | I21: 13.5 | J21: 34.5 | K21: 8.5 | L21: 11.2 | M21: 13.6 | N21: 33.3 | O21: 4.5 | P21: 7.6 | Q21: 8 | R21: 20.1 | S21: 9 | T21: 16 | U21: 15 | V21: 40 | W21: 9.5 | X21: 12 | Y21: 14 | Z21: 35.5 | AA21: ='[1]شعبة التسزيق'!AJ21 -> 16 | AB21: ='[1]شعبة التسزيق'!AK21 -> 13 | AC21: ='[1]شعبة التسزيق'!AL21 -> 38 | AD21: 67 | AE21: 8.5 | AF21: 14 | AG21: 14 | AH21: 36.5 | AI21: 9.5 | AJ21: 16 | AK21: 13 | AL21: 38.5 | AM21: 9 | AN21: 11.5 | AO21: 13.5 | AP21: 34 | AQ21: 9.5 | AR21: 15 | AS21: 9 | AT21: 33.5 | AU21: 9 | AV21: 8 | AW21: 14 | AX21: 31 | AY21: 3 | AZ21: 4 | BA21: 5 | BB21: 6.5 | BC21: 5 | BD21: 8 | BE21: 13 | BF21: 18.5 | BG21: 31.5 | BH21: 435.4 | BI21: ='[1]شعبة التسزيق'!BS21 -> 9 | BJ21: 5 | BK21: 5 | BL21: 19 | BM21: 5 | BN21: 5 | BO21: 5 | BP21: 15 | BQ21: ناجحة | BR21: ومنقولة للصف الثالث | BS21: 0 | CN21: 148.8
A22: 13 | B22: 513 | C22: طالبة تسويق 13 | D22: 1/2 | E22: مستجدة | F22: 637 | G22: 8 | H22: 11.5 | I22: 9 | J22: 28.5 | K22: 8 | L22: 7.2 | M22: 13.6 | N22: 28.8 | O22: 5 | P22: 7.6 | Q22: 7.2 | R22: 19.8 | S22: 9 | T22: 12.5 | U22: 13.5 | V22: 35 | W22: 8 | X22: 17 | Y22: 14 | Z22: 39 | AA22: ='[1]شعبة التسزيق'!AJ22 -> 19 | AB22: ='[1]شعبة التسزيق'!AK22 -> 13 | AC22: ='[1]شعبة التسزيق'!AL22 -> 41 | AD22: 73 | AE22: 8.5 | AF22: 11 | AG22: 14 | AH22: 33.5 | AI22: 9 | AJ22: 17 | AK22: 14.5 | AL22: 40.5 | AM22: 9 | AN22: 10.5 | AO22: 8.5 | AP22: 28 | AQ22: 9 | AR22: 11 | AS22: 5 | AT22: 25 | AU22: 9 | AV22: 6 | AW22: 14 | AX22: 29 | AY22: 3 | AZ22: 4 | BA22: 6 | BB22: 7.5 | BC22: 5 | BD22: 9 | BE22: 14 | BF22: 20.5 | BG22: 34.5 | BH22: 414.6 | BI22: ='[1]شعبة التسزيق'!BS22 -> 9 | BJ22: 5 | BK22: 5 | BL22: 19 | BM22: 5 | BN22: 5 | BO22: 5 | BP22: 15 | BQ22: ناجحة | BR22: ومنقولة للصف الثالث | BS22: 0 | CN22: 137.8
A23: 14 | B23: 514 | C23: طالبة تسويق 14 | D23: 1/2 | E23: مستجدة | F23: 638 | G23: 8 | H23: 12.5 | I23: 10.5 | J23: 31 | K23: 8.5 | L23: 8.4 | M23: 10.4 | N23: 27.3 | O23: 4.5 | P23: 8.8 | Q23: 7.2 | R23: 20.5 | S23: 9 | T23: 11 | U23: 11 | V23: 31 | W23: 9 | X23: 18 | Y23: 15 | Z23: 42 | AA23: ='[1]شعبة التسزيق'!AJ23 -> 20 | AB23: ='[1]شعبة التسزيق'!AK23 -> 11.5 | AC23: ='[1]شعبة التسزيق'!AL23 -> 40.5 | AD23: 72 | AE23: 8.5 | AF23: 11 | AG23: 14 | AH23: 33.5 | AI23: 9.5 | AJ23: 18 | AK23: 14.5 | AL23: 42 | AM23: 9 | AN23: 10 | AO23: 5 | AP23: 24 | AQ23: 9 | AR23: 15 | AS23: 7 | AT23: 31 | AU23: 9 | AV23: 7 | AW23: 9 | AX23: 25 | AY23: 3 | AZ23: 4 | BA23: 5 | BB23: 6.5 | BC23: 6 | BD23: 9 | BE23: 14 | BF23: 19.5 | BG23: 33.5 | BH23: 412.8 | BI23: ='[1]شعبة التسزيق'!BS23 -> 10 | BJ23: 5 | BK23: 5 | BL23: 20 | BM23: 5 | BN23: 5 | BO23: 5 | BP23: 15 | BQ23: ناجحة | BR23: ومنقولة للصف الثالث | BS23: 0 | CN23: 142.7
A24: 15 | B24: 515 | C24: طالبة تسويق 15 | D24: 1/2 | E24: مستجدة | F24: 639 | G24: 8 | H24: 13.5 | I24: 17 | J24: 38.5 | K24: 9 | L24: 6 | M24: 14.8 | N24: 29.8 | O24: 4.5 | P24: 6 | Q24: 8 | R24: 18.5 | S24: 9 | T24: 13.5 | U24: 16 | V24: 38.5 | W24: 9 | X24: 15 | Y24: 15 | Z24: 39 | AA24: ='[1]شعبة التسزيق'!AJ24 -> 17 | AB24: ='[1]شعبة التسزيق'!AK24 -> 11 | AC24: ='[1]شعبة التسزيق'!AL24 -> 37 | AD24: 65 | AE24: 8.5 | AF24: 15 | AG24: 14 | AH24: 37.5 | AI24: 9 | AJ24: 19 | AK24: 12.5 | AL24: 40.5 | AM24: 9 | AN24: 12.5 | AO24: 15 | AP24: 36.5 | AQ24: 9.5 | AR24: 12 | AS24: 10 | AT24: 31.5 | AU24: 9 | AV24: 14 | AW24: 19 | AX24: 42 | AY24: 3 | AZ24: 4 | BA24: 5 | BB24: 11 | BC24: 5 | BD24: 9 | BE24: 13 | BF24: 24 | BG24: 37 | BH24: 454.3 | BI24: ='[1]شعبة التسزيق'!BS24 -> 8 | BJ24: 5 | BK24: 5 | BL24: 18 | BM24: 5 | BN24: 5 | BO24: ='[1]شعبة التسزيق'!BY24 ->  | BP24: 10 | BQ24: ناجحة | BR24: ومنقولة للصف الثالث | BS24: 0 | CN24: 153.5
A25: 16 | B25: 516 | C25: طالبة تسويق 16 | D25: 1/2 | E25: مستجدة | F25: 640 | G25: 8 | H25: 13 | I25: 15 | J25: 36 | K25: 8.5 | L25: 8 | M25: 15.6 | N25: 32.1 | O25: 5 | P25: 7.2 | Q25: 7.6 | R25: 19.8 | S25: 9 | T25: 17.5 | U25: 15.5 | V25: 42 | W25: 9 | X25: 17 | Y25: 16 | Z25: 42 | AA25: ='[1]شعبة التسزيق'!AJ25 -> 16 | AB25: ='[1]شعبة التسزيق'!AK25 -> 11 | AC25: ='[1]شعبة التسزيق'!AL25 -> 36 | AD25: 63 | AE25: 8.5 | AF25: 15 | AG25: 15 | AH25: 38.5 | AI25: 9 | AJ25: 16 | AK25: 13 | AL25: 38 | AM25: 9 | AN25: 13.5 | AO25: 14 | AP25: 36.5 | AQ25: 8.5 | AR25: 14 | AS25: 12 | AT25: 34.5 | AU25: 9 | AV25: 15 | AW25: 17 | AX25: 41 | AY25: 3 | AZ25: 4 | BA25: 6 | BB25: 11 | BC25: 5 | BD25: 9 | BE25: 14 | BF25: 24 | BG25: 38 | BH25: 461.4 | BI25: ='[1]شعبة التسزيق'!BS25 -> 8 | BJ25: 5 | BK25: 5 | BL25: 18 | BM25: 5 | BN25: 5 | BO25: ='[1]شعبة التسزيق'!BY25 ->  | BP25: 10 | BQ25: ناجحة | BR25: ومنقولة للصف الثالث | BS25: 0 | CN25: 164.2
A26: 17 | B26: 517 | C26: طالبة تسويق 17 | D26: 1/2 | E26: مستجدة | F26: 641 | G26: 8 | H26: 16 | I26: 12.5 | J26: 36.5 | K26: 8.5 | L26: 7.6 | M26: 14 | N26: 30.1 | O26: 5 | P26: 6.4 | Q26: 8.4 | R26: 19.8 | S26: 9 | T26: 10 | U26: 11.5 | V26: 30.5 | W26: 9.5 | X26: 17 | Y26: 16 | Z26: 42.5 | AA26: ='[1]شعبة التسزيق'!AJ26 -> 16 | AB26: ='[1]شعبة التسزيق'!AK26 -> 10.5 | AC26: ='[1]شعبة التسزيق'!AL26 -> 35.5 | AD26: 62 | AE26: 8.5 | AF26: 19 | AG26: 17 | AH26: 44.5 | AI26: 9 | AJ26: 19 | AK26: 13 | AL26: 41 | AM26: 9 | AN26: 12.5 | AO26: 11 | AP26: 32.5 | AQ26: 9.5 | AR26: 15 | AS26: 14 | AT26: 38.5 | AU26: 9 | AV26: 13 | AW26: 10 | AX26: 32 | AY26: 3 | AZ26: 4 | BA26: 5 | BB26: 6 | BC26: 5 | BD26: 8 | BE26: 13 | BF26: 18 | BG26: 31 | BH26: 440.9 | BI26: ='[1]شعبة التسزيق'!BS26 -> 8 | BJ26: 5 | BK26: 5 | BL26: 18 | BM26: 5 | BN26: 5 | BO26: ='[1]شعبة التسزيق'!BY26 ->  | BP26: 10 | BQ26: ناجحة | BR26: ومنقولة للصف الثالث | BS26: 0 | CN26: 157
A27: 18 | B27: 518 | C27: طالبة تسويق 18 | D27: 1/2 | E27: مستجدة | F27: 642 | G27: 8 | H27: 12 | I27: 13 | J27: 33 | K27: 9 | L27: 6.4 | M27: 14 | N27: 29.4 | O27: 4.5 | P27: 6 | Q27: 8 | R27: 18.5 | S27: 9 | T27: 9.5 | U27: 12.5 | V27: 31 | W27: 9.5 | X27: 16 | Y27: 15 | Z27: 40.5 | AA27: ='[1]شعبة التسزيق'!AJ27 -> 16 | AB27: ='[1]شعبة التسزيق'!AK27 -> 7 | AC27: ='[1]شعبة التسزيق'!AL27 -> 32 | AD27: 55 | AE27: 8.5 | AF27: 17 | AG27: 18 | AH27: 43.5 | AI27: 9 | AJ27: 20 | AK27: 11.5 | AL27: 40.5 | AM27: 8.5 | AN27: 13 | AO27: 8 | AP27: 29.5 | AQ27: 9 | AR27: 15 | AS27: 17 | AT27: 41 | AU27: 9 | AV27: 11 | AW27: 10 | AX27: 30 | AY27: 3 | AZ27: 4 | BA27: 5 | BB27: 7 | BC27: 6 | BD27: 8 | BE27: 14 | BF27: 19 | BG27: 33 | BH27: 424.9 | BI27: ='[1]شعبة التسزيق'!BS27 -> 8 | BJ27: 5 | BK27: 5 | BL27: 18 | BM27: 5 | BN27: 5 | BO27: ='[1]شعبة التسزيق'!BY27 ->  | BP27: 10 | BQ27: ناجحة | BR27: ومنقولة للصف الثالث | BS27: 0 | CN27: 144.9
A28: 19 | B28: 519 | C28: طالبة تسويق 19 | D28: 1/2 | E28: مستجدة | F28: 643 | G28: 8 | H28: 11 | I28: 15.5 | J28: 34.5 | K28: 8.5 | L28: 5.2 | M28: 13.6 | N28: 27.3 | O28: 5 | P28: 6.8 | Q28: 8.4 | R28: 20.2 | S28: 9 | T28: 11.5 | U28: 11 | V28: 31.5 | W28: 9.5 | X28: 13 | Y28: 16 | Z28: 38.5 | AA28: ='[1]شعبة التسزيق'!AJ28 -> 17 | AB28: ='[1]شعبة التسزيق'!AK28 -> 7.5 | AC28: ='[1]شعبة التسزيق'!AL28 -> 33.5 | AD28: 58 | AE28: 8.5 | AF28: 15 | AG28: 17 | AH28: 40.5 | AI28: 9 | AJ28: 17 | AK28: 11 | AL28: 37 | AM28: 9 | AN28: 13.5 | AO28: 10 | AP28: 32.5 | AQ28: 9 | AR28: 14 | AS28: 17 | AT28: 40 | AU28: 9 | AV28: 15 | AW28: 17 | AX28: 41 | AY28: 3 | AZ28: 4 | BA28: 5 | BB28: 9 | BC28: 6 | BD28: 8 | BE28: 14 | BF28: 21 | BG28: 35 | BH28: 436 | BI28: ='[1]شعبة التسزيق'!BS28 -> 8 | BJ28: 5 | BK28: 5 | BL28: 18 | BM28: 5 | BN28: 5 | BO28: ='[1]شعبة التسزيق'!BY28 -> - | BP28: 10 | BQ28: ناجحة | BR28: ومنقولة للصف الثالث | BS28: 0 | CN28: 143.5
A29: 20 | B29: 520 | C29: طالبة تسويق 20 | D29: 1/2 | E29: مستجدة | F29: 644 | G29: 8 | H29: 10.5 | I29: 12.5 | J29: 31 | K29: 8.5 | L29: 10 | M29: 13.2 | N29: 31.7 | O29: 4.5 | P29: 6.4 | Q29: 8.4 | R29: 19.3 | S29: 9.5 | T29: 17 | U29: 14.5 | V29: 41 | W29: 9 | X29: 16 | Y29: 15 | Z29: 40 | AA29: ='[1]شعبة التسزيق'!AJ29 -> 17 | AB29: ='[1]شعبة التسزيق'!AK29 -> 9.5 | AC29: ='[1]شعبة التسزيق'!AL29 -> 35 | AD29: 61.5 | AE29: 8.5 | AF29: 16 | AG29: 15 | AH29: 39.5 | AI29: 9 | AJ29: 16 | AK29: 11 | AL29: 36 | AM29: 8.5 | AN29: 13 | AO29: 15 | AP29: 36.5 | AQ29: 9 | AR29: 14 | AS29: 18 | AT29: 41 | AU29: 9 | AV29: 9 | AW29: 19 | AX29: 37 | AY29: 3 | AZ29: 4 | BA29: 5 | BB29: 8.5 | BC29: 5 | BD29: 8 | BE29: 13 | BF29: 20.5 | BG29: 33.5 | BH29: 448 | BI29: ='[1]شعبة التسزيق'!BS29 -> 12 | BJ29: 5 | BK29: 5 | BL29: 22 | BM29: 5 | BN29: 5 | BO29: ='[1]شعبة التسزيق'!BY29 -> - | BP29: 10 | BQ29: ناجحة | BR29: ومنقولة للصف الثالث | BS29: 0 | CN29: 150.9
A30: 21 | B30: 521 | C30: طالبة تسويق 21 | D30: 1/2 | E30: مستجدة | F30: 645 | G30: 8 | H30: 14.5 | I30: 16 | J30: 38.5 | K30: 8.5 | L30: 8.4 | M30: 13.2 | N30: 30.1 | O30: 5 | P30: 6.4 | Q30: 8.4 | R30: 19.8 | S30: 9 | T30: 13.5 | U30: 14.5 | V30: 37 | W30: 9.5 | X30: 18 | Y30: 19 | Z30: 46.5 | AA30: ='[1]شعبة التسزيق'!AJ30 -> 20 | AB30: ='[1]شعبة التسزيق'!AK30 -> 12 | AC30: ='[1]شعبة التسزيق'!AL30 -> 41 | AD30: 73 | AE30: 8.5 | AF30: 14 | AG30: 16 | AH30: 38.5 | AI30: 9 | AJ30: 16 | AK30: 10.5 | AL30: 35.5 | AM30: 8.5 | AN30: 14.5 | AO30: 12 | AP30: 35 | AQ30: 9.5 | AR30: 16 | AS30: 19 | AT30: 44.5 | AU30: 9 | AV30: 17 | AW30: 19 | AX30: 45 | AY30: 3 | AZ30: 4 | BA30: 6 | BB30: 8 | BC30: 5 | BD30: 8 | BE30: 14 | BF30: 20 | BG30: 34 | BH30: 477.4 | BI30: ='[1]شعبة التسزيق'!BS30 -> 7 | BJ30: 5 | BK30: 5 | BL30: 17 | BM30: ='[1]شعبة التسزيق'!BW30 ->  | BN30: ='[1]شعبة التسزيق'!BX30 ->  | BO30: ='[1]شعبة التسزيق'!BY30 ->  | BQ30: دورثان | BS30: 1 | CN30: 164.3
A31: 22 | B31: 522 | C31: طالبة تسويق 22 | D31: 1/2 | E31: مستجدة | F31: 646 | G31: 8 | H31: 14 | I31: 13.5 | J31: 35.5 | K31: 8.5 | L31: 9.6 | M31: 14.4 | N31: 32.5 | O31: 5 | P31: 5.6 | Q31: 8 | R31: 18.6 | S31: 9 | T31: 15 | U31: 8 | V31: 32 | W31: 9 | X31: 18 | Y31: 16 | Z31: 43 | AA31: ='[1]شعبة التسزيق'!AJ31 -> 20 | AB31: ='[1]شعبة التسزيق'!AK31 -> 12.5 | AC31: ='[1]شعبة التسزيق'!AL31 -> 42 | AD31: 74.5 | AE31: 8.5 | AF31: 14 | AG31: 17 | AH31: 39.5 | AI31: 9 | AJ31: 16 | AK31: 7 | AL31: 32 | AM31: 9 | AN31: 14 | AO31: 9.5 | AP31: 32.5 | AQ31: 9 | AR31: 18 | AS31: 16 | AT31: 43 | AU31: 9 | AV31: 13 | AW31: 18 | AX31: 40 | AY31: 3 | AZ31: 4 | BA31: 5 | BB31: 8 | BC31: 6 | BD31: 8 | BE31: 14 | BF31: 20 | BG31: 34 | BH31: 457.1 | BI31: ='[1]شعبة التسزيق'!BS31 -> 8 | BJ31: 5 | BK31: 5 | BL31: 18 | BM31: ='[1]شعبة التسزيق'!BW31 ->  | BN31: ='[1]شعبة التسزيق'!BX31 ->  | BO31: ='[1]شعبة التسزيق'!BY31 ->  | BQ31: دورثان | BS31: 1 | CN31: 162.7
A32: 23 | B32: 523 | C32: طالبة تسويق 23 | D32: 1/2 | E32: مستجدة | F32: 647 | G32: 8 | H32: 15 | I32: 11.5 | J32: 34.5 | K32: 8 | L32: 4 | M32: 12.8 | N32: 24.8 | O32: 5 | P32: 7.2 | Q32: 8.4 | R32: 20.6 | S32: 9 | T32: 15.5 | U32: 11.5 | V32: 36 | W32: 8.5 | X32: 18 | Y32: 18 | Z32: 44.5 | AA32: ='[1]شعبة التسزيق'!AJ32 -> 19 | AB32: ='[1]شعبة التسزيق'!AK32 -> 11 | AC32: ='[1]شعبة التسزيق'!AL32 -> 39.5 | AD32: 69.5 | AE32: 8.5 | AF32: 14 | AG32: 15 | AH32: 37.5 | AI32: 9 | AJ32: 17 | AK32: 7.5 | AL32: 33.5 | AM32: 9 | AN32: 10 | AO32: 9 | AP32: 28 | AQ32: 9 | AR32: 17 | AS32: 19 | AT32: 45 | AU32: 9 | AV32: 15 | AW32: 19 | AX32: 43 | AY32: 3 | AZ32: 4 | BA32: 6 | BB32: 9 | BC32: 6 | BD32: 8 | BE32: 15 | BF32: 21 | BG32: 36 | BH32: 452.9 | BI32: ='[1]شعبة التسزيق'!BS32 -> 9 | BJ32: 5 | BK32: 5 | BL32: 19 | BM32: ='[1]شعبة التسزيق'!BW32 ->  | BN32: ='[1]شعبة التسزيق'!BX32 ->  | BO32: ='[1]شعبة التسزيق'!BY32 ->  | BQ32: دورثان | BS32: 1 | CN32: 158.7
A33: 24 | B33: 524 | C33: طالبة تسويق 24 | D33: 1/2 | E33: مستجدة | F33: 648 | G33: 7.5 | H33: 7.5 | I33: 11 | J33: 26 | K33: 8.5 | L33: 4.8 | M33: 9.6 | N33: 22.9 | O33: 4.5 | P33: 6.4 | Q33: 8.4 | R33: 19.3 | S33: 9 | T33: 12 | U33: 7.5 | V33: 28.5 | W33: 8.5 | X33: 14 | Y33: 13 | Z33: 35.5 | AA33: ='[1]شعبة التسزيق'!AJ33 -> 14 | AB33: ='[1]شعبة التسزيق'!AK33 -> 12 | AC33: ='[1]شعبة التسزيق'!AL33 -> 35 | AD33: 61 | AE33: 8.5 | AF33: 14 | AG33: 16 | AH33: 38.5 | AI33: 8.5 | AJ33: 17 | AK33: 9.5 | AL33: 35 | AM33: 9 | AN33: 4.5 | AO33: 6.5 | AP33: 20 | AQ33: 9 | AR33: 15 | AS33: 19 | AT33: 43 | AU33: 9 | AV33: 7 | AW33: 17 | AX33: 33 | AY33: 3 | AZ33: 4 | BA33: 5 | BB33: 8 | BC33: 5 | BD33: 8 | BE33: 13 | BF33: 20 | BG33: 33 | BH33: 395.7 | BI33: ='[1]شعبة التسزيق'!BS33 -> 10 | BJ33: 5 | BK33: 5 | BL33: 20 | BM33: ='[1]شعبة التسزيق'!BW33 ->  | BN33: ='[1]شعبة التسزيق'!BX33 ->  | BO33: ='[1]شعبة التسزيق'!BY33 ->  | BQ33: دورثان | BS33: 1 | CN33: 127.2
A34: 25 | B34: 525 | C34: طالبة تسويق 25 | D34: 1/2 | E34: مستجدة | F34: 649 | G34: 8.5 | H34: 12.5 | I34: 15.5 | J34: 36.5 | K34: 8.5 | L34: 8 | M34: 14.8 | N34: 31.3 | O34: 4.5 | P34: 6 | Q34: 8 | R34: 18.5 | S34: 9 | T34: 18.5 | U34: 8 | V34: 35.5 | W34: 9.5 | X34: 17 | Y34: 15 | Z34: 41.5 | AA34: ='[1]شعبة التسزيق'!AJ34 -> 14 | AB34: ='[1]شعبة التسزيق'!AK34 -> 13 | AC34: ='[1]شعبة التسزيق'!AL34 -> 36.5 | AD34: 63.5 | AE34: 8.5 | AF34: 17 | AG34: 16 | AH34: 41.5 | AI34: 9 | AJ34: 20 | AK34: 12 | AL34: 41 | AM34: 9 | AN34: 12.5 | AO34: 10 | AP34: 31.5 | AQ34: 9 | AR34: 14 | AS34: 16 | AT34: 39 | AU34: 9 | AV34: 16 | AW34: 19 | AX34: 44 | AY34: 3 | AZ34: 4 | BA34: 6 | BB34: 10 | BC34: 6 | BD34: 8 | BE34: 15 | BF34: 22 | BG34: 37 | BH34: 460.8 | BI34: ='[1]شعبة التسزيق'!BS34 -> 10 | BJ34: 5 | BK34: 5 | BL34: 20 | BM34: ='[1]شعبة التسزيق'!BW34 ->  | BN34: ='[1]شعبة التسزيق'!BX34 ->  | BO34: ='[1]شعبة التسزيق'!BY34 -> - | BQ34: دورثان | BS34: 1 | CN34: 170.5
A35: 26 | B35: 526 | C35: طالبة تسويق 26 | D35: 1/2 | E35: مستجدة | F35: 650 | G35: 8 | H35: 15 | I35: 16.5 | J35: 39.5 | K35: 8.5 | L35: 7.6 | M35: 14.4 | N35: 30.5 | O35: 4.5 | P35: 6 | Q35: 6.8 | R35: 17.3 | S35: 9 | T35: 19 | U35: 15 | V35: 43 | W35: 9 | X35: 19 | Y35: 16 | Z35: 44 | AA35: ='[1]شعبة التسزيق'!AJ35 -> 8.5 | AB35: ='[1]شعبة التسزيق'!AK35 -> 13 | AC35: ='[1]شعبة التسزيق'!AL35 -> 30.5 | AD35: 52 | AE35: 8.5 | AF35: 19 | AG35: 14 | AH35: 41.5 | AI35: 9.5 | AJ35: 20 | AK35: 12.5 | AL35: 42 | AM35: 9 | AN35: 15 | AO35: 17.5 | AP35: 41.5 | AQ35: 9.5 | AR35: 16 | AS35: 14 | AT35: 39.5 | AU35: 9 | AV35: 15 | AW35: 18 | AX35: 42 | AY35: 3 | AZ35: 4 | BA35: 5 | BB35: 10 | BC35: 5 | BD35: 8 | BE35: 13 | BF35: 22 | BG35: 35 | BH35: 467.8 | BI35: ='[1]شعبة التسزيق'!BS35 -> 14 | BJ35: 5 | BK35: 5 | BL35: 24 | BM35: ='[1]شعبة التسزيق'!BW35 ->  | BN35: ='[1]شعبة التسزيق'!BX35 -> - | BO35: ='[1]شعبة التسزيق'!BY35 -> - | BQ35: دورثان | BS35: 1 | CN35: 179.6
A36: 27 | B36: 527 | C36: طالبة تسويق 27 | D36: 1/2 | E36: مستجدة | F36: 651 | G36: 8 | H36: 14.5 | I36: 15 | J36: 37.5 | K36: 8.5 | L36: 6.4 | M36: 13.2 | N36: 28.1 | O36: 5 | P36: 5.6 | Q36: 6.4 | R36: 17 | S36: 9 | T36: 19 | U36: 15.5 | V36: 43.5 | W36: 9 | X36: 16 | Y36: 16 | Z36: 41 | AA36: ='[1]شعبة التسزيق'!AJ36 -> 14 | AB36: ='[1]شعبة التسزيق'!AK36 -> 16.5 | AC36: ='[1]شعبة التسزيق'!AL36 -> 40 | AD36: 70.5 | AE36: 8.5 | AF36: 17 | AG36: 15 | AH36: 40.5 | AI36: 9.5 | AJ36: 19 | AK36: 11 | AL36: 39.5 | AM36: 9 | AN36: 13.5 | AO36: 14.5 | AP36: 37 | AQ36: 9 | AR36: 14 | AS36: 12 | AT36: 35 | AU36: 9 | AV36: 15 | AW36: 18 | AX36: 42 | AY36: 3 | AZ36: 4 | BA36: 5 | BB36: 11 | BC36: 5 | BD36: 9 | BE36: 13 | BF36: 24 | BG36: 37 | BH36: 468.6 | BI36: ='[1]شعبة التسزيق'!BS36 -> 6 | BJ36: 5 | BK36: 5 | BL36: 16 | BM36: ='[1]شعبة التسزيق'!BW36 ->  | BN36: ='[1]شعبة التسزيق'!BX36 ->  | BO36: ='[1]شعبة التسزيق'!BY36 ->  | BQ36: دورثان | BS36: 1 | CN36: 172.5
A37: 28 | B37: 528 | C37: طالبة تسويق 28 | D37: 1/2 | E37: مستجدة | F37: 652 | G37: 8 | H37: 7.5 | I37: 14 | J37: 29.5 | K37: 9 | L37: 6.4 | M37: 13.2 | N37: 28.6 | O37: 5 | P37: 4.8 | Q37: 7.6 | R37: 17.4 | S37: 9 | T37: 7.5 | U37: 8.5 | V37: 25 | W37: 8.5 | X37: 13 | Y37: 18 | Z37: 39.5 | AA37: ='[1]شعبة التسزيق'!AJ37 -> 10.5 | AB37: ='[1]شعبة التسزيق'!AK37 -> غ | AC37: ='[1]شعبة التسزيق'!AL37 -> 19.5 | AD37: 30 | AE37: 8.5 | AF37: 15 | AG37: 13 | AH37: 36.5 | AI37: 9 | AJ37: 14 | AK37: 12 | AL37: 35 | AM37: 9 | AN37: 8 | AO37: 10.5 | AP37: 27.5 | AQ37: 9 | AR37: 15 | AS37: 13 | AT37: 37 | AU37: 9 | AV37: 13 | AW37: 12 | AX37: 34 | AY37: 3 | AZ37: 4 | BA37: 5 | BB37: 11 | BC37: 5 | BD37: 7 | BE37: 13 | BF37: 22 | BG37: 35 | BH37: 375 | BI37: ='[1]شعبة التسزيق'!BS37 -> 15 | BJ37: 5 | BK37: 5 | BL37: 25 | BM37: ='[1]شعبة التسزيق'!BW37 ->  | BN37: ='[1]شعبة التسزيق'!BX37 -> - | BO37: ='[1]شعبة التسزيق'!BY37 -> - | BQ37: دورثان | BS37: 1 | CN37: 120.2
A38: 29 | B38: 529 | C38: طالبة تسويق 29 | D38: 1/2 | E38: مستجدة | F38: 653 | G38: 8.5 | H38: 11 | I38: 13.5 | J38: 33 | K38: 9 | L38: 10 | M38: 10.8 | N38: 29.8 | O38: 5 | P38: 7.2 | Q38: 7.6 | R38: 19.8 | S38: 9 | T38: 14 | U38: 16.5 | V38: 39.5 | W38: 9 | X38: 17 | Y38: 17 | Z38: 43 | AA38: ='[1]شعبة التسزيق'!AJ38 -> 13.5 | AB38: ='[1]شعبة التسزيق'!AK38 -> 14 | AC38: ='[1]شعبة التسزيق'!AL38 -> 36.5 | AD38: 64 | AE38: 8.5 | AF38: 11 | AG38: 18 | AH38: 37.5 | AI38: 9.5 | AJ38: 14 | AK38: 13 | AL38: 36.5 | AM38: 9 | AN38: 9.5 | AO38: 13.5 | AP38: 32 | AQ38: 9.5 | AR38: 10 | AS38: 10 | AT38: 29.5 | AU38: 9 | AV38: 15 | AW38: 9 | AX38: 33 | AY38: 3 | AZ38: 4 | BA38: 5 | BB38: 10 | BC38: 6 | BD38: 8 | BE38: 14 | BF38: 22 | BG38: 36 | BH38: 433.6 | BI38: ='[1]شعبة التسزيق'!BS38 -> 9 | BJ38: ='[1]شعبة التسزيق'!BT38 ->  | BK38: ='[1]شعبة التسزيق'!BU38 -> 0 | BM38: ='[1]شعبة التسزيق'!BW38 ->  | BN38: ='[1]شعبة التسزيق'!BX38 ->  | BO38: ='[1]شعبة التسزيق'!BY38 ->  | BQ38: دورثان | BS38: 2 | CN38: 147.7
A39: 30 | B39: 530 | C39: طالبة تسويق 30 | D39: 1/2 | E39: مستجدة | F39: 654 | G39: 8 | H39: 7 | I39: 10 | J39: 25 | K39: 8.5 | L39: 4.8 | M39: 11.6 | N39: 24.9 | O39: 5 | P39: 6 | Q39: 7.6 | R39: 18.6 | S39: 9 | T39: 8 | U39: 4.5 | V39: 21.5 | W39: 9 | X39: 16 | Y39: 16 | Z39: 41 | AA39: ='[1]شعبة التسزيق'!AJ39 -> 13 | AB39: ='[1]شعبة التسزيق'!AK39 -> 13 | AC39: ='[1]شعبة التسزيق'!AL39 -> 35 | AD39: 61 | AE39: 8.5 | AF39: 9 | AG39: 16 | AH39: 33.5 | AI39: 9 | AJ39: 8.5 | AK39: 13 | AL39: 30.5 | AM39: 9 | AN39: 7 | AO39: 8 | AP39: 24 | AQ39: 9 | AR39: 9 | AS39: 12 | AT39: 30 | AU39: 9 | AV39: 15 | AW39: 8 | AX39: 32 | AY39: 3 | AZ39: 4 | BA39: 5 | BB39: 10 | BC39: 6 | BD39: 8 | BE39: 14 | BF39: 22 | BG39: 36 | BH39: 378 | BI39: ='[1]شعبة التسزيق'!BS39 -> 11 | BJ39: ='[1]شعبة التسزيق'!BT39 ->  | BK39: ='[1]شعبة التسزيق'!BU39 -> 0 | BM39: ='[1]شعبة التسزيق'!BW39 ->  | BN39: ='[1]شعبة التسزيق'!BX39 ->  | BO39: ='[1]شعبة التسزيق'!BY39 ->  | BQ39: راسبة | BS39: 3 | CA39: محاسبة - | CN39: 118.3
A40: 31 | B40: 531 | C40: طالبة تسويق 31 | D40: 1/2 | E40: مستجدة | F40: 655 | G40: 8 | H40: 16 | I40: 15 | J40: 39 | K40: 9 | L40: 8.4 | M40: 13.6 | N40: 31 | O40: 5 | P40: 8.8 | Q40: 8 | R40: 21.8 | S40: 9.5 | T40: 19 | U40: 17.5 | V40: 46 | W40: 9 | X40: 18 | Y40: 18 | Z40: 45 | AA40: ='[1]شعبة التسزيق'!AJ40 -> 16 | AB40: ='[1]شعبة التسزيق'!AK40 -> 13 | AC40: ='[1]شعبة التسزيق'!AL40 -> 38 | AD40: 67 | AE40: 8.5 | AF40: 12 | AG40: 17 | AH40: 37.5 | AI40: 9.5 | AJ40: 14 | AK40: 16.5 | AL40: 40 | AM40: 9 | AN40: 15.5 | AO40: 13 | AP40: 37.5 | AQ40: 9.5 | AR40: 16 | AS40: 14 | AT40: 39.5 | AU40: 9 | AV40: 18 | AW40: 8 | AX40: 35 | AY40: 3 | AZ40: 4 | BA40: 5 | BB40: 11 | BC40: 6 | BD40: 9 | BE40: 14 | BF40: 24 | BG40: 38 | BH40: 477.3 | BI40: ='[1]شعبة التسزيق'!BS40 -> 9 | BJ40: ='[1]شعبة التسزيق'!BT40 ->  | BK40: ='[1]شعبة التسزيق'!BU40 -> 0 | BM40: ='[1]شعبة التسزيق'!BW40 ->  | BN40: ='[1]شعبة التسزيق'!BX40 ->  | BO40: ='[1]شعبة التسزيق'!BY40 -> - | BQ40: دورثان | BS40: 2 | CN40: 174.7
A41: 32 | B41: 532 | C41: طالبة تسويق 32 | D41: 1/2 | E41: مستجدة | F41: 656 | G41: 8 | H41: 13 | I41: غ | J41: 21 | K41: 8.5 | L41: 8.4 | M41: غ | N41: 16.9 | O41: 4.5 | P41: 6.4 | Q41: غ | R41: 10.9 | S41: 9 | T41: 12.5 | U41: غ | V41: 21.5 | W41: 8.5 | X41: 18 | Y41: غ | Z41: 26.5 | AA41: ='[1]شعبة التسزيق'!AJ41 -> 10 | AB41: ='[1]شعبة التسزيق'!AK41 -> 12.5 | AC41: ='[1]شعبة التسزيق'!AL41 -> 32 | AD41: 54.5 | AE41: 8.5 | AF41: 4 | AG41: غ | AH41: 12.5 | AI41: 9 | AJ41: 10.5 | AK41: غ | AL41: 19.5 | AM41: 8.5 | AN41: 2.5 | AO41: غ | AP41: 11 | AQ41: 9 | AR41: 19 | AS41: غ | AT41: 28 | AU41: 9 | AV41: 16 | AW41: غ | AX41: 25 | AY41: 3 | AZ41: 4 | BA41: 5 | BB41: 11 | BC41: غ | BD41: غ | BE41: 8 | BF41: 15 | BG41: 23 | BH41: 270.3 | BI41: ='[1]شعبة التسزيق'!BS41 -> 11 | BJ41: ='[1]شعبة التسزيق'!BT41 ->  | BK41: ='[1]شعبة التسزيق'!BU41 -> 0 | BM41: ='[1]شعبة التسزيق'!BW41 ->  | BN41: ='[1]شعبة التسزيق'!BX41 ->  | BO41: ='[1]شعبة التسزيق'!BY41 ->  | BQ41: راسبة | BS41: 14 | BX41: عربى - | BY41: انجليزى - | BZ41: فرنسى - | CA41: محاسبة - | CB41: احصاء - | CD41: اقتصاد - | CE41: سكرتارية . ع - | CF41: سكرتارية . ف - | CG41: مشروعات - | CH41: مخازن - | CI41: حاسب - | CL41: مجموع | CN41: 138.8
A42: 33 | B42: 533 | C42: طالبة تسويق 33 | D42: 1/2 | E42: مستجدة | F42: 657 | G42: 8 | H42: 13 | I42: 13.5 | J42: 34.5 | K42: 9 | L42: 9.6 | M42: 14.4 | N42: 33 | O42: 5 | P42: 8.4 | Q42: 6.8 | R42: 20.2 | S42: 9 | T42: 18.5 | U42: 14.5 | V42: 42 | W42: 9 | X42: 17 | Y42: 11 | Z42: 37 | AA42: ='[1]شعبة التسزيق'!AJ42 -> 14 | AB42: ='[1]شعبة التسزيق'!AK42 -> 11.5 | AC42: ='[1]شعبة التسزيق'!AL42 -> 34.5 | AD42: 60 | AE42: 8.5 | AF42: 10 | AG42: 17 | AH42: 35.5 | AI42: 9 | AJ42: 13.5 | AK42: 14 | AL42: 36.5 | AM42: 8.5 | AN42: 16.5 | AO42: 17 | AP42: 42 | AQ42: 9 | AR42: 17 | AS42: 12 | AT42: 38 | AU42: 9 | AV42: 18 | AW42: 8 | AX42: 35 | AY42: 3 | AZ42: 4 | BA42: 6 | BB42: 10 | BC42: 5 | BD42: 8 | BE42: =IF($C42="","",SUM(AY42,BA42,BC42)) -> 14 | BF42: 22 | BG42: 36 | BH42: 449.7 | BI42: ='[1]شعبة التسزيق'!BS42 -> 11 | BJ42: ='[1]شعبة التسزيق'!BT42 ->  | BK42: ='[1]شعبة التسزيق'!BU42 -> 0 | BM42: ='[1]شعبة التسزيق'!BW42 ->  | BN42: ='[1]شعبة التسزيق'!BX42 ->  | BO42: ='[1]شعبة التسزيق'!BY42 -> - | BQ42: دورثان | BS42: 2 | CN42: 169
A43: 34 | B43: 534 | C43: طالبة تسويق 34 | D43: 1/2 | E43: مستجدة | F43: 658 | G43: 8 | H43: 13 | I43: 13.5 | J43: 34.5 | K43: 8.5 | L43: 9.6 | M43: 13.2 | N43: 31.3 | O43: 4 | P43: 8.4 | Q43: 7.6 | R43: 20 | S43: 9 | T43: 18.5 | U43: 10.5 | V43: 38 | W43: 9.5 | X43: 17 | Y43: 11 | Z43: 37.5 | AA43: ='[1]شعبة التسزيق'!AJ43 -> 5 | AB43: ='[1]شعبة التسزيق'!AK43 -> 13 | AC43: ='[1]شعبة التسزيق'!AL43 -> 27.5 | AD43: 45.5 | AE43: 8.5 | AF43: 15 | AG43: 14 | AH43: 37.5 | AI43: 9 | AJ43: 13 | AK43: 13 | AL43: 35 | AM43: 9 | AN43: 12.5 | AO43: 14.5 | AP43: 36 | AQ43: 9.5 | AR43: 17 | AS43: 13 | AT43: 39.5 | AU43: 9 | AV43: 17 | AW43: 9 | AX43: 35 | AY43: 3 | AZ43: 4 | BA43: 6 | BB43: 10 | BC43: 5 | BD43: 8 | BE43: 14 | BF43: 22 | BG43: 36 | BH43: 425.8 | BI43: ='[1]شعبة التسزيق'!BS43 -> 11 | BJ43: ='[1]شعبة التسزيق'!BT43 ->  | BK43: ='[1]شعبة التسزيق'!BU43 -> 0 | BM43: ='[1]شعبة التسزيق'!BW43 ->  | BN43: ='[1]شعبة التسزيق'!BX43 ->  | BO43: ='[1]شعبة التسزيق'!BY43 -> - | BQ43: دورثان | BS43: 2 | CN43: 170
A44: 35 | B44: 535 | C44: طالبة تسويق 35 | D44: 1/2 | E44: مستجدة | F44: 659 | G44: 8 | H44: 16 | I44: 16 | J44: 40 | K44: 8.5 | L44: 10.4 | M44: 11.6 | N44: 30.5 | O44: 5 | P44: 8 | Q44: 8 | R44: 21 | S44: 9 | T44: 16.5 | U44: 16 | V44: 41.5 | W44: 9.5 | X44: 17 | Y44: 10 | Z44: 36.5 | AA44: ='[1]شعبة التسزيق'!AJ44 -> 17 | AB44: ='[1]شعبة التسزيق'!AK44 -> 13.5 | AC44: ='[1]شعبة التسزيق'!AL44 -> 40 | AD44: 70.5 | AE44: 8.5 | AF44: 15 | AG44: 16 | AH44: 39.5 | AI44: 9 | AJ44: 16 | AK44: 13 | AL44: 38 | AM44: 9 | AN44: 13.5 | AO44: 11 | AP44: 33.5 | AQ44: 9.5 | AR44: 15 | AS44: 14 | AT44: 38.5 | AU44: 9 | AV44: 14 | AW44: 5 | AX44: 28 | AY44: 3 | AZ44: 4 | BA44: 5 | BB44: 10 | BC44: 5 | BD44: 8 | BE44: 13 | BF44: 22 | BG44: 35 | BH44: 452.5 | BI44: ='[1]شعبة التسزيق'!BS44 -> 11 | BJ44: ='[1]شعبة التسزيق'!BT44 ->  | BK44: ='[1]شعبة التسزيق'!BU44 -> 0 | BM44: ='[1]شعبة التسزيق'!BW44 ->  | BN44: ='[1]شعبة التسزيق'!BX44 ->  | BO44: ='[1]شعبة التسزيق'!BY44 ->  | BQ44: دورثان | BS44: 2 | CN44: 169.9
A45: 36 | B45: 536 | C45: طالبة تسويق 36 | D45: 1/2 | E45: مستجدة | F45: 660 | G45: 8 | H45: 12.5 | I45: 12.5 | J45: 33 | K45: 8.5 | L45: 8.4 | M45: 13.6 | N45: 30.5 | O45: 5 | P45: 8 | Q45: 7.2 | R45: 20.2 | S45: 9 | T45: 12 | U45: 11 | V45: 32 | W45: 9 | X45: 17 | Y45: 9 | Z45: 35 | AA45: ='[1]شعبة التسزيق'!AJ45 -> 10 | AB45: ='[1]شعبة التسزيق'!AK45 -> 12 | AC45: ='[1]شعبة التسزيق'!AL45 -> 31 | AD45: 53 | AE45: 8.5 | AF45: 6 | AG45: 10.5 | AH45: 25 | AI45: 9.5 | AJ45: 10 | AK45: 12.5 | AL45: 32 | AM45: 9 | AN45: 9.5 | AO45: 13 | AP45: 31.5 | AQ45: 9.5 | AR45: 15 | AS45: 14 | AT45: 38.5 | AU45: 9 | AV45: 12 | AW45: 8 | AX45: 29 | AY45: 3 | AZ45: 4 | BA45: 5 | BB45: 9 | BC45: 6 | BD45: 8 | BE45: 14 | BF45: 21 | BG45: 35 | BH45: 394.7 | BI45: ='[1]شعبة التسزيق'!BS45 -> 12 | BJ45: ='[1]شعبة التسزيق'!BT45 ->  | BK45: ='[1]شعبة التسزيق'!BU45 -> 0 | BM45: ='[1]شعبة التسزيق'!BW45 ->  | BN45: ='[1]شعبة التسزيق'!BX45 ->  | BO45: ='[1]شعبة التسزيق'!BY45 ->  | BQ45: دورثان | BS45: 2 | CN45: 136.4
A46: 37 | B46: 537 | C46: طالبة تسويق 37 | D46: 1/2 | E46: مستجدة | F46: 661 | G46: 8.5 | H46: 10.5 | I46: 13.5 | J46: 32.5 | K46: 8.5 | L46: 8 | M46: 10.8 | N46: 27.3 | O46: 4.5 | P46: 6.4 | Q46: 7.6 | R46: 18.5 | S46: 9 | T46: 14.5 | U46: 5 | V46: 28.5 | W46: 9.5 | X46: 14 | Y46: 15 | Z46: 38.5 | AA46: ='[1]شعبة التسزيق'!AJ46 -> 10 | AB46: ='[1]شعبة التسزيق'!AK46 -> 13 | AC46: ='[1]شعبة التسزيق'!AL46 -> 32 | AD46: 55 | AE46: 8.5 | AF46: 7 | AG46: 16 | AH46: 31.5 | AI46: 9 | AJ46: 14 | AK46: 11.5 | AL46: 34.5 | AM46: 9 | AN46: 15.5 | AO46: 8.5 | AP46: 33 | AQ46: 9.5 | AR46: 17 | AS46: 13 | AT46: 39.5 | AU46: 9 | AV46: 14 | AW46: 9 | AX46: 32 | AY46: 3 | AZ46: 4 | BA46: 5 | BB46: 10 | BC46: 6 | BD46: 8 | BE46: 14 | BF46: 22 | BG46: 36 | BH46: 406.8 | BI46: ='[1]شعبة التسزيق'!BS46 -> 10 | BJ46: ='[1]شعبة التسزيق'!BT46 ->  | BK46: ='[1]شعبة التسزيق'!BU46 -> 0 | BM46: ='[1]شعبة التسزيق'!BW46 ->  | BN46: ='[1]شعبة التسزيق'!BX46 ->  | BO46: ='[1]شعبة التسزيق'!BY46 ->  | BQ46: دورثان | BS46: 2 | CN46: 148.9
A47: 38 | B47: 538 | C47: طالبة تسويق 38 | D47: 1/2 | E47: مستجدة | F47: 662 | G47: 8 | H47: 13.5 | I47: 15 | J47: 36.5 | K47: 8.5 | L47: 9.6 | M47: 11.2 | N47: 29.3 | O47: 5 | P47: 7.2 | Q47: 6.8 | R47: 19 | S47: 9 | T47: 18.5 | U47: 5 | V47: 32.5 | W47: 9.5 | X47: 15 | Y47: 18 | Z47: 42.5 | AA47: ='[1]شعبة التسزيق'!AJ47 -> 10 | AB47: ='[1]شعبة التسزيق'!AK47 -> 12 | AC47: ='[1]شعبة التسزيق'!AL47 -> 31 | AD47: 53 | AE47: 8.5 | AF47: 9 | AG47: 14 | AH47: 31.5 | AI47: 9.5 | AJ47: 5 | AK47: 13 | AL47: 27.5 | AM47: 8.5 | AN47: 13.5 | AO47: 9 | AP47: 31 | AQ47: 9.5 | AR47: 15 | AS47: 12 | AT47: 36.5 | AU47: 9 | AV47: 15 | AW47: 9 | AX47: 33 | AY47: 3 | AZ47: 4 | BA47: 6 | BB47: 11 | BC47: 6 | BD47: 8 | BE47: 15 | BF47: 23 | BG47: 38 | BH47: 410.3 | BI47: ='[1]شعبة التسزيق'!BS47 -> 11 | BJ47: ='[1]شعبة التسزيق'!BT47 ->  | BK47: ='[1]شعبة التسزيق'!BU47 -> 0 | BM47: ='[1]شعبة التسزيق'!BW47 ->  | BN47: ='[1]شعبة التسزيق'!BX47 ->  | BO47: ='[1]شعبة التسزيق'!BY47 ->  | BQ47: دورثان | BS47: 2 | CN47: 150.3
A48: 39 | B48: 539 | C48: طالبة تسويق 39 | D48: 1/2 | E48: مستجدة | F48: 663 | G48: 8 | H48: 14 | I48: 14.5 | J48: 36.5 | K48: 8 | L48: 9.2 | M48: 13.2 | N48: 30.4 | O48: 4.5 | P48: 7.6 | Q48: 6.8 | R48: 18.9 | S48: 9 | T48: 19 | U48: 5 | V48: 33 | W48: 9 | X48: 11 | Y48: 19 | Z48: 39 | AA48: ='[1]شعبة التسزيق'!AJ48 -> 17 | AB48: ='[1]شعبة التسزيق'!AK48 -> 12 | AC48: ='[1]شعبة التسزيق'!AL48 -> 38 | AD48: 67 | AE48: 8.5 | AF48: 12 | AG48: 15 | AH48: 35.5 | AI48: 9.5 | AJ48: 17 | AK48: 13.5 | AL48: 40 | AM48: 9 | AN48: 15 | AO48: 9.5 | AP48: 33.5 | AQ48: 8.5 | AR48: 15 | AS48: 12 | AT48: 35.5 | AU48: 9 | AV48: 14 | AW48: 9 | AX48: 32 | AY48: 3 | AZ48: 4 | BA48: 5 | BB48: 11 | BC48: 5 | BD48: 8 | BE48: 13 | BF48: 23 | BG48: 36 | BH48: 437.3 | BI48: ='[1]شعبة التسزيق'!BS48 -> 12 | BJ48: ='[1]شعبة التسزيق'!BT48 ->  | BK48: ='[1]شعبة التسزيق'!BU48 -> 0 | BM48: ='[1]شعبة التسزيق'!BW48 ->  | BN48: ='[1]شعبة التسزيق'!BX48 ->  | BO48: ='[1]شعبة التسزيق'!BY48 ->  | BQ48: دورثان | BS48: 2 | CN48: 161.8
A49: 40 | B49: 540 | C49: طالبة تسويق 40 | D49: 1/2 | E49: مستجدة | F49: 664 | G49: 8 | H49: 9 | I49: 12 | J49: 29 | K49: 8.5 | L49: 6 | M49: 13.6 | N49: 28.1 | O49: 4.5 | P49: 8 | Q49: 7.2 | R49: 19.7 | S49: 9.5 | T49: 5 | U49: 3 | V49: 17.5 | W49: 9 | X49: 13 | Y49: 19 | Z49: 41 | AA49: ='[1]شعبة التسزيق'!AJ49 -> 18 | AB49: ='[1]شعبة التسزيق'!AK49 -> 13.5 | AC49: ='[1]شعبة التسزيق'!AL49 -> 41 | AD49: 72.5 | AE49: 8.5 | AF49: 4 | AG49: 16 | AH49: 28.5 | AI49: 9 | AJ49: 10 | AK49: 12 | AL49: 31 | AM49: 9 | AN49: 8 | AO49: 6.5 | AP49: 23.5 | AQ49: 9.5 | AR49: 12 | AS49: 12 | AT49: 33.5 | AU49: 9 | AV49: 14 | AW49: 8 | AX49: 31 | AY49: 3 | AZ49: 4 | BA49: 4 | BB49: 10.5 | BC49: 5 | BD49: 8 | BE49: 12 | BF49: 22.5 | BG49: 34.5 | BH49: 389.8 | BI49: ='[1]شعبة التسزيق'!BS49 -> 7 | BJ49: ='[1]شعبة التسزيق'!BT49 ->  | BK49: ='[1]شعبة التسزيق'!BU49 -> 0 | BM49: ='[1]شعبة التسزيق'!BW49 ->  | BN49: ='[1]شعبة التسزيق'!BX49 ->  | BO49: ='[1]شعبة التسزيق'!BY49 ->  | BQ49: راسبة | BS49: 3 | CA49: محاسبة - | CN49: 117
A50: 41 | B50: 541 | C50: طالبة تسويق 41 | D50: 1/2 | E50: مستجدة | F50: 665 | G50: 8 | H50: 9.5 | I50: 14.5 | J50: 32 | K50: 8.5 | L50: 9.2 | M50: 13.6 | N50: 31.3 | O50: 4.5 | P50: 8 | Q50: 8 | R50: 20.5 | S50: 9 | T50: 16 | U50: 11 | V50: 36 | W50: 9 | X50: 14 | Y50: 19 | Z50: 42 | AA50: ='[1]شعبة التسزيق'!AJ50 -> 16 | AB50: ='[1]شعبة التسزيق'!AK50 -> 13.5 | AC50: ='[1]شعبة التسزيق'!AL50 -> 39 | AD50: 68.5 | AE50: 8.5 | AF50: 9 | AG50: 15 | AH50: 32.5 | AI50: 9 | AJ50: 10 | AK50: 13 | AL50: 32 | AM50: 9 | AN50: 10.5 | AO50: 9.5 | AP50: 29 | AQ50: 9 | AR50: 13 | AS50: 13 | AT50: 35 | AU50: 9 | AV50: 15 | AW50: 8 | AX50: 32 | AY50: 3 | AZ50: 4 | BA50: 6 | BB50: 10 | BC50: 5 | BD50: 8 | BE50: 14 | BF50: 22 | BG50: 36 | BH50: 426.8 | BI50: ='[1]شعبة التسزيق'!BS50 -> 10 | BJ50: ='[1]شعبة التسزيق'!BT50 ->  | BK50: ='[1]شعبة التسزيق'!BU50 -> 0 | BM50: ='[1]شعبة التسزيق'!BW50 ->  | BN50: ='[1]شعبة التسزيق'!BX50 ->  | BO50: ='[1]شعبة التسزيق'!BY50 ->  | BQ50: دورثان | BS50: 2 | CN50: 143.7
A51: 42 | B51: 542 | C51: طالبة تسويق 42 | D51: 1/2 | E51: مستجدة | F51: 666 | G51: 8 | H51: 11 | I51: 14.5 | J51: 33.5 | K51: 8 | L51: 6.4 | M51: 13.2 | N51: 27.6 | O51: 5 | P51: 7.2 | Q51: 6.8 | R51: 19 | S51: 9.5 | T51: 16.5 | U51: 5 | V51: 31 | W51: 8.5 | X51: 16 | Y51: 19 | Z51: 43.5 | AA51: ='[1]شعبة التسزيق'!AJ51 -> 15 | AB51: ='[1]شعبة التسزيق'!AK51 -> 13 | AC51: ='[1]شعبة التسزيق'!AL51 -> 37 | AD51: 65 | AE51: 8.5 | AF51: 8 | AG51: 16 | AH51: 32.5 | AI51: 9 | AJ51: 10 | AK51: 12 | AL51: 31 | AM51: 9 | AN51: 11.5 | AO51: 10.5 | AP51: 31 | AQ51: 9 | AR51: 14 | AS51: 12 | AT51: 35 | AU51: 9 | AV51: 13 | AW51: 9 | AX51: 31 | AY51: 3 | AZ51: 4 | BA51: 5 | BB51: 10.5 | BC51: 5 | BD51: 8 | BE51: 13 | BF51: 22.5 | BG51: 35.5 | BH51: 415.6 | BI51: ='[1]شعبة التسزيق'!BS51 -> 8 | BJ51: ='[1]شعبة التسزيق'!BT51 ->  | BK51: ='[1]شعبة التسزيق'!BU51 -> 0 | BM51: ='[1]شعبة التسزيق'!BW51 ->  | BN51: ='[1]شعبة التسزيق'!BX51 ->  | BO51: ='[1]شعبة التسزيق'!BY51 ->  | BQ51: دورثان | BS51: 2 | CN51: 142.1
A52: 43 | B52: 543 | C52: طالبة تسويق 43 | D52: 1/2 | E52: مستجدة | F52: 667 | G52: 8 | H52: 11 | I52: 9 | J52: 28 | K52: 8 | L52: 6.4 | M52: 16.8 | N52: 31.2 | O52: 4.5 | P52: 7.2 | Q52: 8 | R52: 19.7 | S52: 9 | T52: 0 | U52: 4 | V52: 13 | W52: 8 | X52: 19 | Y52: غ | Z52: 27 | AA52: ='[1]شعبة التسزيق'!AJ52 -> 13 | AB52: ='[1]شعبة التسزيق'!AK52 -> 12 | AC52: ='[1]شعبة التسزيق'!AL52 -> 34.5 | AD52: 59.5 | AE52: 8.5 | AF52: 10 | AG52: 14 | AH52: 32.5 | AI52: 9 | AJ52: 17 | AK52: 12 | AL52: 38 | AM52: 9 | AN52: 0.5 | AO52: 0 | AP52: 9.5 | AQ52: 9 | AR52: 13 | AS52: 8 | AT52: 30 | AU52: 9 | AV52: 8 | AW52: 14 | AX52: 31 | AY52: 3 | AZ52: 4 | BA52: 5 | BB52: 4 | BC52: 6 | BD52: 10 | BE52: 14 | BF52: 18 | BG52: 32 | BH52: 351.4 | BI52: ='[1]شعبة التسزيق'!BS52 -> 14 | BJ52: ='[1]شعبة التسزيق'!BT52 ->  | BK52: ='[1]شعبة التسزيق'!BU52 -> 0 | BM52: ='[1]شعبة التسزيق'!BW52 ->  | BN52: ='[1]شعبة التسزيق'!BX52 -> - | BO52: ='[1]شعبة التسزيق'!BY52 ->  | BQ52: راسبة | BS52: 5 | CA52: محاسبة - | CB52: احصاء - | CF52: سكرتارية . ف - | CN52: 113.1
A53: 44 | B53: 544 | C53: طالبة تسويق 44 | D53: 1/2 | E53: مستجدة | F53: 668 | G53: 8 | H53: 13.5 | I53: 12.5 | J53: 34 | K53: 8 | L53: 13.2 | M53: 17.2 | N53: 38.4 | O53: 5 | P53: 7.6 | Q53: 8 | R53: 20.6 | S53: 9 | T53: 17 | U53: 15 | V53: 41 | W53: 9.5 | X53: 19 | Y53: 16 | Z53: 44.5 | AA53: ='[1]شعبة التسزيق'!AJ53 -> 14 | AB53: ='[1]شعبة التسزيق'!AK53 -> 14 | AC53: ='[1]شعبة التسزيق'!AL53 -> 37 | AD53: 65 | AE53: 8.5 | AF53: 13 | AG53: 17 | AH53: 38.5 | AI53: 9.5 | AJ53: 18 | AK53: 13.5 | AL53: 41 | AM53: 9 | AN53: 12.5 | AO53: 11.5 | AP53: 33 | AQ53: 9 | AR53: 12 | AS53: 16 | AT53: 37 | AU53: 9 | AV53: 10 | AW53: 14 | AX53: 33 | AY53: 3 | AZ53: 4 | BA53: 6 | BB53: 4 | BC53: 5 | BD53: 10 | BE53: 14 | BF53: 18 | BG53: 32 | BH53: 458 | BI53: ='[1]شعبة التسزيق'!BS53 -> 8 | BJ53: ='[1]شعبة التسزيق'!BT53 ->  | BK53: ='[1]شعبة التسزيق'!BU53 -> 0 | BM53: ='[1]شعبة التسزيق'!BW53 ->  | BN53: ='[1]شعبة التسزيق'!BX53 ->  | BO53: ='[1]شعبة التسزيق'!BY53 ->  | BQ53: دورثان | BS53: 2 | CN53: 159.8
A54: 45 | B54: 545 | C54: طالبة تسويق 45 | D54: 1/2 | E54: مستجدة | F54: 669 | G54: 8 | H54: 11 | I54: 10.5 | J54: 29.5 | K54: 8.5 | L54: 10.8 | M54: 18 | N54: 37.3 | O54: 4.5 | P54: 6.8 | Q54: 8.4 | R54: 19.7 | S54: 9 | T54: 8 | U54: 8.5 | V54: 25.5 | W54: 8.5 | X54: 17 | Y54: 15 | Z54: 40.5 | AA54: ='[1]شعبة التسزيق'!AJ54 -> 17 | AB54: ='[1]شعبة التسزيق'!AK54 -> 14.5 | AC54: ='[1]شعبة التسزيق'!AL54 -> 41 | AD54: 72.5 | AE54: 8.5 | AF54: 11 | AG54: 14 | AH54: 33.5 | AI54: 9.5 | AJ54: 16 | AK54: 13.5 | AL54: 39 | AM54: 9 | AN54: 10 | AO54: 5.5 | AP54: 24.5 | AQ54: 8 | AR54: 13 | AS54: 8 | AT54: 29 | AU54: 9 | AV54: 9 | AW54: 13 | AX54: 31 | AY54: 3 | AZ54: 4 | BA54: 6 | BB54: 4 | BC54: 6 | BD54: 10 | BE54: 15 | BF54: 18 | BG54: 33 | BH54: 415 | BI54: ='[1]شعبة التسزيق'!BS54 -> 7 | BJ54: ='[1]شعبة التسزيق'!BT54 ->  | BK54: ='[1]شعبة التسزيق'!BU54 -> 0 | BM54: ='[1]شعبة التسزيق'!BW54 ->  | BN54: ='[1]شعبة التسزيق'!BX54 ->  | BO54: ='[1]شعبة التسزيق'!BY54 ->  | BQ54: دورثان | BS54: 2 | CN54: 137.1
A55: 46 | B55: 546 | C55: طالبة تسويق 46 | D55: 1/2 | E55: مستجدة | F55: 670 | G55: 8 | H55: 14 | I55: 11.5 | J55: 33.5 | K55: 8 | L55: 13.6 | M55: 16.8 | N55: 38.4 | O55: 5 | P55: 7.2 | Q55: 7.2 | R55: 19.4 | S55: 9 | T55: 14.5 | U55: 14.5 | V55: 38 | W55: 8.5 | X55: 19 | Y55: 14 | Z55: 41.5 | AA55: ='[1]شعبة التسزيق'!AJ55 ->  | AB55: ='[1]شعبة التسزيق'!AK55 ->  | AC55: ='[1]شعبة التسزيق'!AL55 ->  | AE55: 8.5 | AF55: 15 | AG55: 12 | AH55: 35.5 | AI55: 9 | AJ55: 15 | AK55: 13 | AL55: 37 | AM55: 9 | AN55: 13.5 | AO55: 8.5 | AP55: 31 | AQ55: 9 | AR55: 13 | AS55: 17 | AT55: 39 | AU55: 9 | AV55: 12 | AW55: 16 | AX55: 37 | AY55: 3 | AZ55: 4 | BA55: 6 | BB55: 5 | BC55: 6 | BD55: 8 | BE55: 15 | BF55: 17 | BG55: 32 | BI55: ='[1]شعبة التسزيق'!BS55 ->  | BJ55: ='[1]شعبة التسزيق'!BT55 ->  | BK55: ='[1]شعبة التسزيق'!BU55 ->  | BM55: ='[1]شعبة التسزيق'!BW55 ->  | BN55: ='[1]شعبة التسزيق'!BX55 ->  | BO55: ='[1]شعبة التسزيق'!BY55 ->  | BQ55: =IF($C55="","",IF(BS55=0,"ناجحة",IF(BS55<=2,"دورثان","راسبة"))) -> راسبة | BR55: =IF($C55="","",IF(BS55=0,"ومنقولة للصف الثالث",IF(BS55>0,"فى : "&CONCATENATE(BX55,BY55,BZ55,CA55,CB55,CC55,CD55,CE55,CF55,CG55,CH55,CI55,CJ55,CK55,CL55),CONCATENATE(BX55,BY55,BZ55,CA55,CB55,CC55,CD55,CE55,CF55,CG55,CH55,CI55,CJ55,CK55,CL55)))) ->  | BS55: 4
A56: 47 | B56: 547 | C56: طالبة تسويق 47 | D56: 1/2 | E56: مستجدة | F56: 671 | G56: 8 | H56: 9 | I56: 8 | J56: 25 | K56: 8 | L56: 8.4 | M56: 14.8 | N56: 31.2 | O56: 4.5 | P56: 6.4 | Q56: 7.6 | R56: 18.5 | S56: 9.5 | T56: 10.5 | U56: 5.5 | V56: 25.5 | W56: 9.5 | X56: 19 | Y56: 5 | Z56: 33.5 | AA56: ='[1]شعبة التسزيق'!AJ56 ->  | AB56: ='[1]شعبة التسزيق'!AK56 ->  | AC56: ='[1]شعبة التسزيق'!AL56 ->  | AE56: 8.5 | AF56: 16 | AG56: 9 | AH56: 33.5 | AI56: 9.5 | AJ56: 13 | AK56: 12 | AL56: 34.5 | AM56: 9 | AN56: 4 | AO56: 4.5 | AP56: 17.5 | AQ56: 9.5 | AR56: 14 | AS56: 5 | AT56: 28.5 | AU56: 9 | AV56: 9 | AW56: 10 | AX56: 28 | AY56: 3 | AZ56: 4 | BA56: 5 | BB56: 5 | BC56: 5 | BD56: 8 | BE56: 13 | BF56: 17 | BG56: 30 | BI56: ='[1]شعبة التسزيق'!BS56 ->  | BJ56: ='[1]شعبة التسزيق'!BT56 ->  | BK56: ='[1]شعبة التسزيق'!BU56 ->  | BM56: ='[1]شعبة التسزيق'!BW56 ->  | BN56: ='[1]شعبة التسزيق'!BX56 ->  | BO56: ='[1]شعبة التسزيق'!BY56 ->  | BQ56: راسبة | BS56: 5 | CF56: سكرتارية . ف -
A57: 48 | B57: 548 | C57: طالبة تسويق 48 | D57: 1/2 | E57: مستجدة | F57: 672 | G57: 8 | H57: 14 | I57: 13 | J57: 35 | K57: 8 | L57: 12.4 | M57: 18 | N57: 38.4 | O57: 5 | P57: 8.4 | Q57: 6.4 | R57: 19.8 | S57: 9 | T57: 18.5 | U57: 16 | V57: 43.5 | W57: 9 | X57: 19 | Y57: 12 | Z57: 40 | AA57: ='[1]شعبة التسزيق'!AJ57 ->  | AB57: ='[1]شعبة التسزيق'!AK57 ->  | AC57: ='[1]شعبة التسزيق'!AL57 ->  | AE57: 8.5 | AF57: 14 | AG57: 18 | AH57: 40.5 | AI57: 9 | AJ57: 14 | AK57: 14 | AL57: 37 | AM57: 9 | AN57: 14.5 | AO57: 15 | AP57: 38.5 | AQ57: 9 | AR57: 14 | AS57: 13 | AT57: 36 | AU57: 9 | AV57: 11 | AW57: 15 | AX57: 35 | AY57: 3 | AZ57: 4 | BA57: 5 | BB57: 8 | BC57: 6 | BD57: 9 | BE57: 14 | BF57: 21 | BG57: 35 | BI57: ='[1]شعبة التسزيق'!BS57 ->  | BJ57: ='[1]شعبة التسزيق'!BT57 ->  | BK57: ='[1]شعبة التسزيق'!BU57 ->  | BM57: ='[1]شعبة التسزيق'!BW57 ->  | BN57: ='[1]شعبة التسزيق'!BX57 ->  | BO57: ='[1]شعبة التسزيق'!BY57 ->  | BQ57: راسبة | BS57: 4
A58: 49 | B58: 549 | C58: طالبة تسويق 49 | D58: 1/2 | E58: مستجدة | F58: 673 | G58: 8 | H58: 11.5 | I58: 11.5 | J58: 31 | K58: 8.5 | L58: 13.2 | M58: 18.4 | N58: 40.1 | O58: 5 | P58: 8.4 | Q58: 6.8 | R58: 20.2 | S58: 9.5 | T58: 15 | U58: 16 | V58: 40.5 | W58: 9.5 | X58: 19 | Y58: 13 | Z58: 41.5 | AA58: ='[1]شعبة التسزيق'!AJ58 ->  | AB58: ='[1]شعبة التسزيق'!AK58 ->  | AC58: ='[1]شعبة التسزيق'!AL58 ->  | AE58: 8.5 | AF58: 15 | AG58: 18 | AH58: 41.5 | AI58: 9.5 | AJ58: 17 | AK58: 14.5 | AL58: 41 | AM58: 9 | AN58: 14.5 | AO58: 10 | AP58: 33.5 | AQ58: 9.5 | AR58: 16 | AS58: 16 | AT58: 41.5 | AU58: 9 | AV58: 11 | AW58: 16 | AX58: 36 | AY58: 3 | AZ58: 4 | BA58: 6 | BB58: 4 | BC58: 5 | BD58: 9 | BE58: 14 | BF58: 17 | BG58: 31 | BI58: ='[1]شعبة التسزيق'!BS58 ->  | BJ58: ='[1]شعبة التسزيق'!BT58 ->  | BK58: ='[1]شعبة التسزيق'!BU58 ->  | BM58: ='[1]شعبة التسزيق'!BW58 ->  | BN58: ='[1]شعبة التسزيق'!BX58 ->  | BO58: ='[1]شعبة التسزيق'!BY58 ->  | BQ58: راسبة | BS58: 4
A59: 50 | B59: 550 | C59: طالبة تسويق 50 | D59: 1/2 | E59: مستجدة | F59: 674 | G59: 8.5 | H59: 15.5 | I59: 12 | J59: 36 | K59: 9 | L59: 12 | M59: 18.4 | N59: 39.4 | O59: 4.5 | P59: 8.4 | Q59: 6.8 | R59: 19.7 | S59: 9.5 | T59: 17 | U59: 14.5 | V59: 41 | W59: 9 | X59: 19 | Y59: 17 | Z59: 45 | AA59: ='[1]شعبة التسزيق'!AJ59 ->  | AB59: ='[1]شعبة التسزيق'!AK59 ->  | AC59: ='[1]شعبة التسزيق'!AL59 ->  | AE59: 8.5 | AF59: 14 | AG59: 18 | AH59: 40.5 | AI59: 9 | AJ59: 15 | AK59: 10.5 | AL59: 34.5 | AM59: 9 | AN59: 14 | AO59: 15 | AP59: 38 | AQ59: 9 | AR59: 15 | AS59: 14 | AT59: 38 | AU59: 9 | AV59: 7 | AW59: 18 | AX59: 34 | AY59: 3 | AZ59: 4 | BA59: 5 | BB59: 8 | BC59: 6 | BD59: 10 | BE59: 14 | BF59: 22 | BG59: 36 | BI59: ='[1]شعبة التسزيق'!BS59 ->  | BJ59: ='[1]شعبة التسزيق'!BT59 ->  | BK59: ='[1]شعبة التسزيق'!BU59 ->  | BM59: ='[1]شعبة التسزيق'!BW59 ->  | BN59: ='[1]شعبة التسزيق'!BX59 ->  | BO59: ='[1]شعبة التسزيق'!BY59 ->  | BQ59: راسبة | BS59: 4
A60: 51 | B60: 551 | C60: طالبة تسويق 51 | D60: 1/2 | E60: مستجدة | F60: 675 | G60: 8.5 | H60: 15 | I60: 16 | J60: 39.5 | K60: 9 | L60: 14 | M60: 18.4 | N60: 41.4 | O60: 5 | P60: 8.8 | Q60: 7.6 | R60: 21.4 | S60: 9.5 | T60: 19 | U60: 18 | V60: 46.5 | W60: 9 | X60: 19 | Y60: 13 | Z60: 41 | AA60: ='[1]شعبة التسزيق'!AJ60 ->  | AB60: ='[1]شعبة التسزيق'!AK60 ->  | AC60: ='[1]شعبة التسزيق'!AL60 ->  | AE60: 8.5 | AF60: 14 | AG60: 18 | AH60: 40.5 | AI60: 9 | AJ60: 16 | AK60: 13.5 | AL60: 38.5 | AM60: 9.5 | AN60: 18.5 | AO60: 18.5 | AP60: 46.5 | AQ60: 9 | AR60: 13 | AS60: 16 | AT60: 38 | AU60: 9 | AV60: 9 | AW60: 18 | AX60: 36 | AY60: 3 | AZ60: 4 | BA60: 6 | BB60: 9 | BC60: 6 | BD60: 10 | BE60: 15 | BF60: 23 | BG60: 38 | BI60: ='[1]شعبة التسزيق'!BS60 ->  | BJ60: ='[1]شعبة التسزيق'!BT60 ->  | BK60: ='[1]شعبة التسزيق'!BU60 ->  | BM60: ='[1]شعبة التسزيق'!BW60 ->  | BN60: ='[1]شعبة التسزيق'!BX60 ->  | BO60: ='[1]شعبة التسزيق'!BY60 ->  | BQ60: راسبة | BS60: 4
A61: 52 | B61: 552 | C61: طالبة تسويق 52 | D61: 2/2 | E61: مستجدة | F61: 676 | G61: 8 | H61: 14.5 | I61: 14.5 | J61: 37 | K61: 8.5 | L61: 14.8 | M61: 18.4 | N61: 41.7 | O61: 4.5 | P61: 9.2 | Q61: 8.4 | R61: 22.1 | S61: 8.5 | T61: 13 | U61: 13 | V61: 34.5 | W61: 9 | X61: 19 | Y61: 14 | Z61: 42 | AA61: ='[1]شعبة التسزيق'!AJ61 ->  | AB61: ='[1]شعبة التسزيق'!AK61 ->  | AC61: ='[1]شعبة التسزيق'!AL61 ->  | AE61: 8.5 | AF61: 17 | AG61: 18 | AH61: 43.5 | AI61: 9 | AJ61: 18 | AK61: 15.5 | AL61: 42.5 | AM61: 9 | AN61: 14.5 | AO61: 16 | AP61: 39.5 | AQ61: 9.5 | AR61: 16 | AS61: 17 | AT61: 42.5 | AU61: 9 | AV61: 15 | AW61: 17 | AX61: 41 | AY61: 3 | AZ61: 4.5 | BA61: 5 | BB61: 9 | BC61: 5 | BD61: 10 | BE61: 13 | BF61: 23.5 | BG61: 36.5 | BI61: ='[1]شعبة التسزيق'!BS61 ->  | BJ61: ='[1]شعبة التسزيق'!BT61 ->  | BK61: ='[1]شعبة التسزيق'!BU61 ->  | BM61: ='[1]شعبة التسزيق'!BW61 ->  | BN61: ='[1]شعبة التسزيق'!BX61 ->  | BO61: ='[1]شعبة التسزيق'!BY61 ->  | BQ61: راسبة | BS61: 4
A62: 53 | B62: 553 | C62: طالبة تسويق 53 | D62: 2/2 | E62: مستجدة | F62: 677 | G62: 8 | H62: 15.5 | I62: 16 | J62: 39.5 | K62: 8 | L62: 12.8 | M62: 18.8 | N62: 39.6 | O62: 4.5 | P62: 8.4 | Q62: 6.8 | R62: 19.7 | S62: 9 | T62: 4.5 | U62: 11.5 | V62: 25 | W62: 9 | X62: 19 | Y62: 15 | Z62: 43 | AA62: ='[1]شعبة التسزيق'!AJ62 ->  | AB62: ='[1]شعبة التسزيق'!AK62 ->  | AC62: ='[1]شعبة التسزيق'!AL62 ->  | AE62: 8.5 | AF62: 16 | AG62: 17 | AH62: 41.5 | AI62: 9 | AJ62: 17 | AK62: 14.5 | AL62: 40.5 | AM62: 9 | AN62: 12.5 | AO62: 8 | AP62: 29.5 | AQ62: 9.5 | AR62: 11 | AS62: 13 | AT62: 33.5 | AU62: 9 | AV62: 14 | AW62: 13 | AX62: 36 | AY62: 2.5 | AZ62: 4.5 | BA62: 5 | BB62: 9 | BC62: 6 | BD62: 10 | BE62: 13.5 | BF62: 23.5 | BG62: 37 | BI62: ='[1]شعبة التسزيق'!BS62 ->  | BJ62: ='[1]شعبة التسزيق'!BT62 ->  | BK62: ='[1]شعبة التسزيق'!BU62 ->  | BM62: ='[1]شعبة التسزيق'!BW62 ->  | BN62: ='[1]شعبة التسزيق'!BX62 ->  | BO62: ='[1]شعبة التسزيق'!BY62 ->  | BQ62: راسبة | BS62: 4
A63: 54 | B63: 554 | C63: طالبة تسويق 54 | D63: 2/2 | E63: مستجدة | F63: 678 | G63: 8.5 | H63: 13 | I63: 14 | J63: 35.5 | K63: 9 | L63: 12 | M63: 17.6 | N63: 38.6 | O63: 4.5 | P63: 8.4 | Q63: 7.2 | R63: 20.1 | S63: 9 | T63: 17.5 | U63: 14.5 | V63: 41 | W63: 8 | X63: 19 | Y63: 16 | Z63: 43 | AA63: ='[1]شعبة التسزيق'!AJ63 ->  | AB63: ='[1]شعبة التسزيق'!AK63 ->  | AC63: ='[1]شعبة التسزيق'!AL63 ->  | AE63: 8.5 | AF63: 12 | AG63: 16 | AH63: 36.5 | AI63: 9 | AJ63: 19 | AK63: 14.5 | AL63: 42.5 | AM63: 9 | AN63: 15 | AO63: 11 | AP63: 35 | AQ63: 9 | AR63: 11 | AS63: 18 | AT63: 38 | AU63: 9 | AV63: 10 | AW63: 11 | AX63: 30 | AY63: 3 | AZ63: 4.5 | BA63: 5 | BB63: 6 | BC63: 6 | BD63: 10 | BE63: 14 | BF63: 20.5 | BG63: 34.5 | BI63: ='[1]شعبة التسزيق'!BS63 ->  | BJ63: ='[1]شعبة التسزيق'!BT63 ->  | BK63: ='[1]شعبة التسزيق'!BU63 ->  | BM63: ='[1]شعبة التسزيق'!BW63 ->  | BN63: ='[1]شعبة التسزيق'!BX63 ->  | BO63: ='[1]شعبة التسزيق'!BY63 ->  | BQ63: راسبة | BS63: 4
A64: 55 | B64: 555 | C64: طالبة تسويق 55 | D64: 2/2 | E64: مستجدة | F64: 679 | G64: 8.5 | H64: 13 | I64: 15.5 | J64: 37 | K64: 9 | L64: 14 | M64: 19.2 | N64: 42.2 | O64: 4.5 | P64: 9.2 | Q64: 8.4 | R64: 22.1 | S64: 9 | T64: 18.5 | U64: 16 | V64: 43.5 | W64: 9.5 | X64: 18 | Y64: 20 | Z64: 47.5 | AA64: ='[1]شعبة التسزيق'!AJ64 ->  | AB64: ='[1]شعبة التسزيق'!AK64 ->  | AC64: ='[1]شعبة التسزيق'!AL64 ->  | AE64: 8.5 | AF64: 11 | AG64: 16 | AH64: 35.5 | AI64: 9 | AJ64: 17 | AK64: 16.5 | AL64: 42.5 | AM64: 9 | AN64: 20 | AO64: 17.5 | AP64: 46.5 | AQ64: 9.5 | AR64: 14 | AS64: 17 | AT64: 40.5 | AU64: 9 | AV64: 11 | AW64: 15 | AX64: 35 | AY64: 3 | AZ64: 4.5 | BA64: 6 | BB64: 5 | BC64: 6 | BD64: 10 | BE64: 15 | BF64: 19.5 | BG64: 34.5 | BI64: ='[1]شعبة التسزيق'!BS64 ->  | BJ64: ='[1]شعبة التسزيق'!BT64 ->  | BK64: ='[1]شعبة التسزيق'!BU64 ->  | BM64: ='[1]شعبة التسزيق'!BW64 ->  | BN64: ='[1]شعبة التسزيق'!BX64 ->  | BO64: ='[1]شعبة التسزيق'!BY64 ->  | BQ64: راسبة | BS64: 4
A65: 56 | B65: 556 | C65: طالبة تسويق 56 | D65: 2/2 | E65: مستجدة | F65: 680 | G65: 8 | H65: 13.5 | I65: 15 | J65: 36.5 | K65: 8 | L65: 12 | M65: 18 | N65: 38 | O65: 4.5 | P65: 8.4 | Q65: 7.6 | R65: 20.5 | S65: 8.5 | T65: 14 | U65: 12 | V65: 34.5 | W65: 8.5 | X65: 19 | Y65: 11 | Z65: 38.5 | AA65: ='[1]شعبة التسزيق'!AJ65 ->  | AB65: ='[1]شعبة التسزيق'!AK65 ->  | AC65: ='[1]شعبة التسزيق'!AL65 ->  | AE65: 8.5 | AF65: 16 | AG65: 15 | AH65: 39.5 | AI65: 9 | AJ65: 14 | AK65: 14 | AL65: 37 | AM65: 9 | AN65: 10.5 | AO65: 5 | AP65: 24.5 | AQ65: 9 | AR65: 5 | AS65: 17 | AT65: 31 | AU65: 9 | AV65: 7 | AW65: 12 | AX65: 28 | AY65: 3 | AZ65: 4.5 | BA65: 5 | BB65: 9 | BC65: 6 | BD65: 10 | BE65: 14 | BF65: 23.5 | BG65: 37.5 | BI65: ='[1]شعبة التسزيق'!BS65 ->  | BJ65: ='[1]شعبة التسزيق'!BT65 ->  | BK65: ='[1]شعبة التسزيق'!BU65 ->  | BM65: ='[1]شعبة التسزيق'!BW65 ->  | BN65: ='[1]شعبة التسزيق'!BX65 ->  | BO65: ='[1]شعبة التسزيق'!BY65 ->  | BQ65: راسبة | BS65: 4
A66: 57 | B66: 557 | C66: طالبة تسويق 57 | D66: 2/2 | E66: مستجدة | F66: 681 | G66: 8 | H66: 14.5 | I66: 12.5 | J66: 35 | K66: 8 | L66: 7.6 | M66: 17.6 | N66: 33.2 | O66: 4.5 | P66: 4.8 | Q66: 7.2 | R66: 16.5 | S66: 8.5 | T66: 17.5 | U66: 16 | V66: 42 | W66: 9.5 | X66: 19 | Y66: 19 | Z66: 47.5 | AA66: ='[1]شعبة التسزيق'!AJ66 ->  | AB66: ='[1]شعبة التسزيق'!AK66 ->  | AC66: ='[1]شعبة التسزيق'!AL66 ->  | AE66: 8.5 | AF66: 17 | AG66: 17 | AH66: 42.5 | AI66: 9 | AJ66: 18 | AK66: 12 | AL66: 39 | AM66: 9 | AN66: 15 | AO66: 10 | AP66: 34 | AQ66: 9.5 | AR66: 17 | AS66: 17 | AT66: 43.5 | AU66: 9 | AV66: 16 | AW66: 17 | AX66: 42 | AY66: 2.5 | AZ66: 4.5 | BA66: 5 | BB66: 10 | BC66: 5 | BD66: 7 | BE66: 12.5 | BF66: 21.5 | BG66: 34 | BI66: ='[1]شعبة التسزيق'!BS66 ->  | BJ66: ='[1]شعبة التسزيق'!BT66 ->  | BK66: ='[1]شعبة التسزيق'!BU66 ->  | BM66: ='[1]شعبة التسزيق'!BW66 ->  | BN66: ='[1]شعبة التسزيق'!BX66 ->  | BO66: ='[1]شعبة التسزيق'!BY66 ->  | BQ66: راسبة | BS66: 4
A67: 58 | B67: 558 | C67: طالبة تسويق 58 | D67: 2/2 | E67: مستجدة | F67: 682 | G67: 8 | H67: 10 | I67: 12 | J67: 30 | K67: 8 | L67: 6.8 | M67: 16.8 | N67: 31.6 | O67: 4.5 | P67: 6 | Q67: 6.4 | R67: 16.9 | S67: 9 | T67: 17 | U67: 15 | V67: 41 | W67: 9.5 | X67: 19 | Y67: 18 | Z67: 46.5 | AA67: ='[1]شعبة التسزيق'!AJ67 ->  | AB67: ='[1]شعبة التسزيق'!AK67 ->  | AC67: ='[1]شعبة التسزيق'!AL67 ->  | AE67: 8.5 | AF67: 17 | AG67: 17 | AH67: 42.5 | AI67: 9 | AJ67: 17 | AK67: 12 | AL67: 38 | AM67: 9 | AN67: 13.5 | AO67: 8 | AP67: 30.5 | AQ67: 9.5 | AR67: 17 | AS67: 17 | AT67: 43.5 | AU67: 9 | AV67: 17 | AW67: 17 | AX67: 43 | AY67: 2.5 | AZ67: 4.5 | BA67: 5 | BB67: 10 | BC67: 5 | BD67: 7 | BE67: 12.5 | BF67: 21.5 | BG67: 34 | BI67: ='[1]شعبة التسزيق'!BS67 ->  | BJ67: ='[1]شعبة التسزيق'!BT67 ->  | BK67: ='[1]شعبة التسزيق'!BU67 ->  | BM67: ='[1]شعبة التسزيق'!BW67 ->  | BN67: ='[1]شعبة التسزيق'!BX67 ->  | BO67: ='[1]شعبة التسزيق'!BY67 ->  | BQ67: راسبة | BS67: 4
A68: 59 | B68: 559 | C68: طالبة تسويق 59 | D68: 2/2 | E68: مستجدة | F68: 683 | G68: 8 | H68: 11 | I68: 13 | J68: 32 | K68: 7 | L68: 9.6 | M68: 16.8 | N68: 33.4 | O68: 4.5 | P68: 7.2 | Q68: 6.8 | R68: 18.5 | S68: 9 | T68: 16 | U68: 15.5 | V68: 40.5 | W68: 8.5 | X68: 19 | Y68: 16 | Z68: 43.5 | AA68: ='[1]شعبة التسزيق'!AJ68 ->  | AB68: ='[1]شعبة التسزيق'!AK68 ->  | AC68: ='[1]شعبة التسزيق'!AL68 ->  | AE68: 9 | AF68: 18 | AG68: 17 | AH68: 44 | AI68: 9 | AJ68: 16 | AK68: 13.5 | AL68: 38.5 | AM68: 9 | AN68: 12.5 | AO68: 8 | AP68: 29.5 | AQ68: 9 | AR68: 16 | AS68: 17 | AT68: 42 | AU68: 9 | AV68: 16 | AW68: 17 | AX68: 42 | AY68: 2.5 | AZ68: 4.5 | BA68: 6 | BB68: 10 | BC68: 5 | BD68: 6 | BE68: 13.5 | BF68: 20.5 | BG68: 34 | BI68: ='[1]شعبة التسزيق'!BS68 ->  | BJ68: ='[1]شعبة التسزيق'!BT68 ->  | BK68: ='[1]شعبة التسزيق'!BU68 ->  | BM68: ='[1]شعبة التسزيق'!BW68 ->  | BN68: ='[1]شعبة التسزيق'!BX68 ->  | BO68: ='[1]شعبة التسزيق'!BY68 ->  | BQ68: راسبة | BS68: 4
A69: 60 | B69: 560 | C69: طالبة تسويق 60 | D69: 2/2 | E69: مستجدة | F69: 684 | G69: 8 | H69: 11.5 | I69: 11.5 | J69: 31 | K69: 7.5 | L69: 8.8 | M69: 12 | N69: 28.3 | O69: 4.5 | P69: 6 | Q69: 6.8 | R69: 17.3 | S69: 8.5 | T69: 13.5 | U69: 13 | V69: 35 | W69: 8.5 | X69: 14 | Y69: 14 | Z69: 36.5 | AA69: ='[1]شعبة التسزيق'!AJ69 ->  | AB69: ='[1]شعبة التسزيق'!AK69 ->  | AC69: ='[1]شعبة التسزيق'!AL69 ->  | AE69: 8.5 | AF69: 17 | AG69: 16 | AH69: 41.5 | AI69: 9 | AJ69: 16 | AK69: 11.5 | AL69: 36.5 | AM69: 9 | AN69: 12.5 | AO69: 9.5 | AP69: 31 | AQ69: 9 | AR69: 18 | AS69: 17 | AT69: 44 | AU69: 9 | AV69: 15 | AW69: 16 | AX69: 40 | AY69: 2.5 | AZ69: 4.5 | BA69: 6 | BB69: 10 | BC69: 6 | BD69: 6 | BE69: 14.5 | BF69: 20.5 | BG69: 35 | BI69: ='[1]شعبة التسزيق'!BS69 ->  | BJ69: ='[1]شعبة التسزيق'!BT69 ->  | BK69: ='[1]شعبة التسزيق'!BU69 ->  | BM69: ='[1]شعبة التسزيق'!BW69 ->  | BN69: ='[1]شعبة التسزيق'!BX69 ->  | BO69: ='[1]شعبة التسزيق'!BY69 ->  | BQ69: راسبة | BS69: 4
A70: 61 | B70: 561 | C70: طالبة تسويق 61 | D70: 2/2 | E70: مستجدة | F70: 685 | G70: 8.5 | H70: 13 | I70: 13.5 | J70: 35 | K70: 9 | L70: 8.8 | M70: 18.8 | N70: 36.6 | O70: 4.5 | P70: 7.2 | Q70: 6.8 | R70: 18.5 | S70: 8.5 | T70: 20 | U70: 15.5 | V70: 44 | W70: 9.5 | X70: 19 | Y70: 13 | Z70: 41.5 | AA70: ='[1]شعبة التسزيق'!AJ70 ->  | AB70: ='[1]شعبة التسزيق'!AK70 ->  | AC70: ='[1]شعبة التسزيق'!AL70 ->  | AE70: 8.5 | AF70: 15 | AG70: 16 | AH70: 39.5 | AI70: 9 | AJ70: 18 | AK70: 14.5 | AL70: 41.5 | AM70: 9 | AN70: 17.5 | AO70: 17 | AP70: 43.5 | AQ70: 9.5 | AR70: 19 | AS70: 17 | AT70: 45.5 | AU70: 9 | AV70: 16 | AW70: 18 | AX70: 43 | AY70: 3 | AZ70: 4.5 | BA70: 6 | BB70: 10 | BC70: 6 | BD70: 8 | BE70: 15 | BF70: 22.5 | BG70: 37.5 | BI70: ='[1]شعبة التسزيق'!BS70 ->  | BJ70: ='[1]شعبة التسزيق'!BT70 ->  | BK70: ='[1]شعبة التسزيق'!BU70 ->  | BM70: ='[1]شعبة التسزيق'!BW70 ->  | BN70: ='[1]شعبة التسزيق'!BX70 ->  | BO70: ='[1]شعبة التسزيق'!BY70 ->  | BQ70: راسبة | BS70: 4
A71: 62 | B71: 562 | C71: طالبة تسويق 62 | D71: 2/2 | E71: مستجدة | F71: 686 | G71: 8.5 | H71: 15 | I71: 16 | J71: 39.5 | K71: 9 | L71: 7.2 | M71: 18.4 | N71: 34.6 | O71: 5 | P71: 7.6 | Q71: 7.5 | R71: 20.1 | S71: 8.5 | T71: 20 | U71: 17 | V71: 45.5 | W71: 9.5 | X71: 19 | Y71: 13 | Z71: 41.5 | AA71: ='[1]شعبة التسزيق'!AJ71 ->  | AB71: ='[1]شعبة التسزيق'!AK71 ->  | AC71: ='[1]شعبة التسزيق'!AL71 ->  | AE71: 8.5 | AF71: 17 | AG71: 16 | AH71: 41.5 | AI71: 9 | AJ71: 19 | AK71: 15 | AL71: 43 | AM71: 9 | AN71: 20 | AO71: 17 | AP71: 46 | AQ71: 9 | AR71: 19 | AS71: 18 | AT71: 46 | AU71: 9 | AV71: 13 | AW71: 17 | AX71: 39 | AY71: 3 | AZ71: 4.5 | BA71: 6 | BB71: 10 | BC71: 6 | BD71: 8 | BE71: 15 | BF71: 22.5 | BG71: 37.5 | BI71: ='[1]شعبة التسزيق'!BS71 ->  | BJ71: ='[1]شعبة التسزيق'!BT71 ->  | BK71: ='[1]شعبة التسزيق'!BU71 ->  | BM71: ='[1]شعبة التسزيق'!BW71 ->  | BN71: ='[1]شعبة التسزيق'!BX71 ->  | BO71: ='[1]شعبة التسزيق'!BY71 ->  | BQ71: راسبة | BS71: 4
A72: 63 | B72: 563 | C72: طالبة تسويق 63 | D72: 2/2 | E72: مستجدة | F72: 687 | G72: 8 | H72: 11.5 | I72: 12.5 | J72: 32 | K72: 8 | L72: 9.2 | M72: 16.4 | N72: 33.6 | O72: 4.5 | P72: 8 | Q72: 6.4 | R72: 18.9 | S72: 8.5 | T72: 15 | U72: 13.5 | V72: 37 | W72: 9 | X72: 17 | Y72: 10 | Z72: 36 | AA72: ='[1]شعبة التسزيق'!AJ72 ->  | AB72: ='[1]شعبة التسزيق'!AK72 ->  | AC72: ='[1]شعبة التسزيق'!AL72 ->  | AE72: 9 | AF72: 17 | AG72: 17 | AH72: 43 | AI72: 9 | AJ72: 20 | AK72: 13.5 | AL72: 42.5 | AM72: 9 | AN72: 13.5 | AO72: 11.5 | AP72: 34 | AQ72: 9 | AR72: 13 | AS72: 17 | AT72: 39 | AU72: 9 | AV72: 16 | AW72: 12 | AX72: 37 | AY72: 3 | AZ72: 4.5 | BA72: 5 | BB72: 8 | BC72: 6 | BD72: 7 | BE72: 14 | BF72: 19.5 | BG72: 33.5 | BI72: ='[1]شعبة التسزيق'!BS72 ->  | BJ72: ='[1]شعبة التسزيق'!BT72 ->  | BK72: ='[1]شعبة التسزيق'!BU72 ->  | BM72: ='[1]شعبة التسزيق'!BW72 ->  | BN72: ='[1]شعبة التسزيق'!BX72 ->  | BO72: ='[1]شعبة التسزيق'!BY72 ->  | BQ72: راسبة | BS72: 4
A73: 64 | B73: 564 | C73: طالبة تسويق 64 | D73: 2/2 | E73: مستجدة | F73: 688 | G73: 8 | H73: 10 | I73: 10.5 | J73: 28.5 | K73: 7.5 | L73: 6.4 | M73: 15.6 | N73: 29.5 | O73: 4.5 | P73: 6.4 | Q73: 6.8 | R73: 17.7 | S73: 8.5 | T73: 14 | U73: 14 | V73: 36.5 | W73: 9 | X73: 17 | Y73: 12 | Z73: 38 | AA73: ='[1]شعبة التسزيق'!AJ73 ->  | AB73: ='[1]شعبة التسزيق'!AK73 ->  | AC73: ='[1]شعبة التسزيق'!AL73 ->  | AE73: 8.5 | AF73: 14 | AG73: 17 | AH73: 39.5 | AI73: 9 | AJ73: 15 | AK73: 12 | AL73: 36 | AM73: 9 | AN73: 10.5 | AO73: 5 | AP73: 24.5 | AQ73: 8.5 | AR73: 12 | AS73: 17 | AT73: 37.5 | AU73: 9 | AV73: 15 | AW73: 14 | AX73: 38 | AY73: 3 | AZ73: 4.5 | BA73: 5 | BB73: 8 | BC73: 5 | BD73: 6 | BE73: 13 | BF73: 18.5 | BG73: 31.5 | BI73: ='[1]شعبة التسزيق'!BS73 ->  | BJ73: ='[1]شعبة التسزيق'!BT73 ->  | BK73: ='[1]شعبة التسزيق'!BU73 ->  | BM73: ='[1]شعبة التسزيق'!BW73 ->  | BN73: ='[1]شعبة التسزيق'!BX73 ->  | BO73: ='[1]شعبة التسزيق'!BY73 ->  | BQ73: راسبة | BS73: 4
A74: 65 | B74: 565 | C74: طالبة تسويق 65 | D74: 2/2 | E74: مستجدة | F74: 689 | G74: 8 | H74: 7.5 | I74: 9.5 | J74: 25 | K74: 8 | L74: 10.8 | M74: 16.8 | N74: =SUM(K74:M74) -> 35.6 | O74: 4.5 | P74: 6 | Q74: 6.4 | R74: =SUM(O74:Q74) -> 16.9 | S74: 8.5 | T74: 17 | U74: 15.5 | V74: =SUM(S74:U74) -> 41 | W74: 9 | X74: 19 | Y74: 16 | Z74: =SUM(W74:Y74) -> 44 | AA74: ='[1]شعبة التسزيق'!AJ74 ->  | AB74: ='[1]شعبة التسزيق'!AK74 ->  | AC74: ='[1]شعبة التسزيق'!AL74 ->  | AD74: =SUM(AA74:AC74) ->  | AE74: 8.5 | AF74: 14 | AG74: 14 | AH74: =SUM(AE74:AG74) -> 36.5 | AI74: 9 | AJ74: 17 | AK74: 14.5 | AL74: =SUM(AI74:AK74) -> 40.5 | AM74: 9 | AN74: 15 | AO74: 12 | AP74: =SUM(AM74:AO74) -> 36 | AQ74: 9.5 | AR74: 17 | AS74: 16 | AT74: =SUM(AQ74:AS74) -> 42.5 | AU74: 9 | AV74: 12 | AW74: 16 | AX74: =SUM(AU74:AW74) -> 37 | AY74: 3 | AZ74: 4.5 | BA74: 5 | BB74: 10 | BC74: 5 | BD74: 6 | BE74: =IF($C74="","",SUM(AY74,BA74,BC74)) -> 13 | BF74: 20.5 | BG74: =IF($C74="","",SUM(BE74,BF74)) -> 33.5 | BH74: =IF($C74="","",SUM(J74,N74,R74,V74,Z74,AD74,AH74,AL74,AP74,AT74,AX74,BG74)) ->  | BI74: ='[1]شعبة التسزيق'!BS74 ->  | BJ74: ='[1]شعبة التسزيق'!BT74 ->  | BK74: ='[1]شعبة التسزيق'!BU74 ->  | BL74: =SUM(BI74:BK74) ->  | BM74: ='[1]شعبة التسزيق'!BW74 ->  | BN74: ='[1]شعبة التسزيق'!BX74 ->  | BO74: ='[1]شعبة التسزيق'!BY74 ->  | BP74: =SUM(BM74:BO74) ->  | BQ74: راسبة | BS74: =IF($C74="","",COUNTA($BX74:$CL74)-COUNTBLANK($BX74:$CL74)) -> 4 | BX74: =IF($C74="","",IF(OR(I74<$I$9,I74="غ",J74<$J$9),$BX$5&" - ","")) ->  | BY74: =IF($C74="","",IF(OR(M74<$M$9,M74="غ",N74<$N$9),$BY$5&" - ","")) ->  | BZ74: =IF($C74="","",IF(OR(Q74<$Q$9,Q74="غ",R74<$R$9),BZ$5&" - ","")) ->  | CA74: =IF($C74="","",IF(OR(U74<$U$9,U74="غ",V74<$V$9),CA$5&" - ","")) ->  | CB74: =IF($C74="","",IF(OR(Y74<$Y$9,Y74="غ",Z74<$Z$9),CB$5&" - ","")) ->  | CC74: =IF($C74="","",IF(OR(AC74<$AC$9,AC74="غ",AD74<$AD$9),CC$5&" - ","")) ->  | CD74: =IF($C74="","",IF(OR(AG74<$AG$9,AG74="غ",AH74<$AH$9),CD$5&" - ","")) ->  | CE74: =IF($C74="","",IF(OR(AK74<$AK$9,AK74="غ",AL74<$AL$9),CE$5&" - ","")) ->  | CF74: =IF($C74="","",IF(OR(AO74<$AO$9,AO74="غ",AP74<$AP$9),CF$5&" - ","")) ->  | CG74: =IF($C74="","",IF(OR(AS74<$AS$9,AS74="غ",AT74<$AT$9),CG$5&" - ","")) ->  | CH74: =IF($C74="","",IF(OR(AW74<$AW$9,AW74="غ",AX74<$AX$9),CH$5&" - ","")) ->  | CI74: =IF($C74="","",IF(OR(BE74<$BE$9,BE74="غ",BF74<$BF$9,BF74="غ",BG74<$BG$9),CI$5&" - ","")) ->  | CJ74: =IF($C74="","",IF(OR(BK74<$BK$9,BK74="غ",BL74<$BL$9),CJ$5&" - ","")) ->  | CK74: =IF($C74="","",IF(OR(BO74<$BO$9,BO74="غ",BP74<$BP$9),CK$5&" - ","")) ->  | CL74: =IF($C74="","",IF(BH74<$BH$9,CL$5,"")) ->  | CN74: =IF($C74="","",SUM(H74,L74,P74,T74,X74,AB74,AF74,AJ74,AN74,AR74,AV74,BA74,BB74)) -> 
A75: 66 | B75: 566 | C75: طالبة تسويق 66 | D75: 2/2 | E75: مستجدة | F75: 690 | G75: 8 | H75: 14.5 | I75: 17 | J75: =SUM(G75:I75) -> 39.5 | K75: 9 | L75: 13.2 | M75: 18.8 | N75: 41 | O75: 4.5 | P75: 6.8 | Q75: 6.8 | R75: 18.1 | S75: 8.5 | T75: 19.5 | U75: 16.5 | V75: 44.5 | W75: 9.5 | X75: 19 | Y75: 17 | Z75: 45.5 | AA75: ='[1]شعبة التسزيق'!AJ75 ->  | AB75: ='[1]شعبة التسزيق'!AK75 ->  | AC75: ='[1]شعبة التسزيق'!AL75 ->  | AE75: 8.5 | AF75: 17 | AG75: 15 | AH75: 40.5 | AI75: 9 | AJ75: 20 | AK75: 16 | AL75: 45 | AM75: 9 | AN75: 19 | AO75: 16.5 | AP75: 44.5 | AQ75: 9.5 | AR75: 19 | AS75: 16 | AT75: 44.5 | AU75: 9 | AV75: 15 | AW75: 18 | AX75: 42 | AY75: 3 | AZ75: 4.5 | BA75: 5 | BB75: 10 | BC75: 6 | BD75: 8 | BE75: 14 | BF75: 22.5 | BG75: 36.5 | BI75: ='[1]شعبة التسزيق'!BS75 ->  | BJ75: ='[1]شعبة التسزيق'!BT75 ->  | BK75: ='[1]شعبة التسزيق'!BU75 ->  | BM75: ='[1]شعبة التسزيق'!BW75 ->  | BN75: ='[1]شعبة التسزيق'!BX75 ->  | BO75: ='[1]شعبة التسزيق'!BY75 ->  | BQ75: راسبة | BS75: 4
A76: 67 | B76: 567 | C76: طالبة تسويق 67 | D76: 2/2 | E76: مستجدة | F76: 691 | G76: 8 | H76: 11.5 | I76: 11.5 | J76: 31 | K76: 9 | L76: 8.8 | M76: 17.2 | N76: 35 | O76: 4.5 | P76: 6.8 | Q76: 6.8 | R76: 18.1 | S76: 8.5 | T76: 16 | U76: 16.5 | V76: 41 | W76: 9 | X76: 19 | Y76: 16 | Z76: 44 | AA76: ='[1]شعبة التسزيق'!AJ76 ->  | AB76: ='[1]شعبة التسزيق'!AK76 ->  | AC76: ='[1]شعبة التسزيق'!AL76 ->  | AE76: 8.5 | AF76: 17 | AG76: 16 | AH76: 41.5 | AI76: 9 | AJ76: 18 | AK76: 14.5 | AL76: 41.5 | AM76: 9 | AN76: 13 | AO76: 12 | AP76: 34 | AQ76: 9.5 | AR76: 16 | AS76: 17 | AT76: 42.5 | AU76: 9 | AV76: 15 | AW76: 17 | AX76: 41 | AY76: 3 | AZ76: 4.5 | BA76: 5 | BB76: 10 | BC76: 5 | BD76: 7 | BE76: 13 | BF76: 21.5 | BG76: 34.5 | BI76: ='[1]شعبة التسزيق'!BS76 ->  | BJ76: ='[1]شعبة التسزيق'!BT76 ->  | BK76: ='[1]شعبة التسزيق'!BU76 ->  | BM76: ='[1]شعبة التسزيق'!BW76 ->  | BN76: ='[1]شعبة التسزيق'!BX76 ->  | BO76: ='[1]شعبة التسزيق'!BY76 ->  | BQ76: راسبة | BS76: 4
A77: 68 | B77: 568 | C77: طالبة تسويق 68 | D77: 2/2 | E77: مستجدة | F77: 692 | G77: 8 | H77: 9.5 | I77: 13 | J77: 30.5 | K77: 8 | L77: 9.2 | M77: 17.2 | N77: 34.4 | O77: 4.5 | P77: 6.8 | Q77: 7.2 | R77: 18.5 | S77: 8.5 | T77: 16.5 | U77: 16.5 | V77: 41.5 | W77: 9.5 | X77: 19 | Y77: 18 | Z77: 46.5 | AA77: ='[1]شعبة التسزيق'!AJ77 ->  | AB77: ='[1]شعبة التسزيق'!AK77 ->  | AC77: ='[1]شعبة التسزيق'!AL77 ->  | AE77: 8.5 | AF77: 17 | AG77: 16 | AH77: 41.5 | AI77: 9 | AJ77: 19 | AK77: 13.5 | AL77: 41.5 | AM77: 9 | AN77: 14 | AO77: 11 | AP77: 34 | AQ77: 9.5 | AR77: 17 | AS77: 18 | AT77: 44.5 | AU77: 9 | AV77: 17 | AW77: 16 | AX77: 42 | AY77: 3 | AZ77: 4.5 | BA77: 5 | BB77: 10 | BC77: 6 | BD77: 7 | BE77: 14 | BF77: 21.5 | BG77: 35.5 | BI77: ='[1]شعبة التسزيق'!BS77 ->  | BJ77: ='[1]شعبة التسزيق'!BT77 ->  | BK77: ='[1]شعبة التسزيق'!BU77 ->  | BM77: ='[1]شعبة التسزيق'!BW77 ->  | BN77: ='[1]شعبة التسزيق'!BX77 ->  | BO77: ='[1]شعبة التسزيق'!BY77 ->  | BQ77: راسبة | BS77: 4
A78: 69 | B78: 569 | C78: طالبة تسويق 69 | D78: 2/2 | E78: مستجدة | F78: 693 | G78: 8 | H78: 11 | I78: 13 | J78: 32 | K78: 8 | L78: 9.6 | M78: 17.2 | N78: 34.8 | O78: 4.5 | P78: 6 | Q78: 7.2 | R78: 17.7 | S78: 9 | T78: 12 | U78: 15 | V78: 36 | W78: 9.5 | X78: 17 | Y78: 19 | Z78: 45.5 | AA78: ='[1]شعبة التسزيق'!AJ78 ->  | AB78: ='[1]شعبة التسزيق'!AK78 ->  | AC78: ='[1]شعبة التسزيق'!AL78 ->  | AE78: 8.5 | AF78: 17 | AG78: 17 | AH78: 42.5 | AI78: 9 | AJ78: 20 | AK78: 15 | AL78: 44 | AM78: 9 | AN78: 14.5 | AO78: 12 | AP78: 35.5 | AQ78: 9.5 | AR78: 17 | AS78: 18 | AT78: 44.5 | AU78: 9 | AV78: 16 | AW78: 17 | AX78: 42 | AY78: 3 | AZ78: 4.5 | BA78: 6 | BB78: 10 | BC78: 6 | BD78: 7 | BE78: 15 | BF78: 21.5 | BG78: 36.5 | BI78: ='[1]شعبة التسزيق'!BS78 ->  | BJ78: ='[1]شعبة التسزيق'!BT78 ->  | BK78: ='[1]شعبة التسزيق'!BU78 ->  | BM78: ='[1]شعبة التسزيق'!BW78 ->  | BN78: ='[1]شعبة التسزيق'!BX78 ->  | BO78: ='[1]شعبة التسزيق'!BY78 ->  | BQ78: راسبة | BS78: 4
A79: 70 | B79: 570 | C79: طالبة تسويق 70 | D79: 2/2 | E79: مستجدة | F79: 694 | G79: 8 | H79: 11 | I79: 13 | J79: 32 | K79: 8 | L79: 9.6 | M79: 16.8 | N79: 34.4 | O79: 4.5 | P79: 5.2 | Q79: 7.6 | R79: 17.3 | S79: 8.5 | T79: 16 | U79: 14.5 | V79: 39 | W79: 9.5 | X79: 16 | Y79: 18 | Z79: 43.5 | AA79: ='[1]شعبة التسزيق'!AJ79 ->  | AB79: ='[1]شعبة التسزيق'!AK79 ->  | AC79: ='[1]شعبة التسزيق'!AL79 ->  | AE79: 8.5 | AF79: 17 | AG79: 17 | AH79: 42.5 | AI79: 9 | AJ79: 18 | AK79: 12.5 | AL79: 39.5 | AM79: 9 | AN79: 16.5 | AO79: 11 | AP79: 36.5 | AQ79: 9.5 | AR79: 17 | AS79: 18 | AT79: 44.5 | AU79: 9 | AV79: 16 | AW79: 8 | AX79: 33 | AY79: 3 | AZ79: 4.5 | BA79: 6 | BB79: 10 | BC79: 6 | BD79: 6 | BE79: 15 | BF79: 20.5 | BG79: 35.5 | BI79: ='[1]شعبة التسزيق'!BS79 ->  | BJ79: ='[1]شعبة التسزيق'!BT79 ->  | BK79: ='[1]شعبة التسزيق'!BU79 ->  | BM79: ='[1]شعبة التسزيق'!BW79 ->  | BN79: ='[1]شعبة التسزيق'!BX79 ->  | BO79: ='[1]شعبة التسزيق'!BY79 ->  | BQ79: راسبة | BS79: 4
A80: 71 | B80: 571 | C80: طالبة تسويق 71 | D80: 2/2 | E80: مستجدة | F80: 695 | G80: 8 | H80: 13 | I80: 7 | J80: 28 | K80: 7 | L80: 8 | M80: 15.2 | N80: 30.2 | O80: 4.5 | P80: 8 | Q80: 8.8 | R80: 21.3 | S80: 9 | T80: 17.5 | U80: 5.5 | V80: 32 | W80: 8.5 | X80: 19 | Y80: 16 | Z80: 43.5 | AA80: ='[1]شعبة التسزيق'!AJ80 ->  | AB80: ='[1]شعبة التسزيق'!AK80 ->  | AC80: ='[1]شعبة التسزيق'!AL80 ->  | AE80: 8.5 | AF80: 17 | AG80: 11 | AH80: 36.5 | AI80: 9 | AJ80: 19 | AK80: 10.5 | AL80: 38.5 | AM80: 9 | AN80: 16 | AO80: 7 | AP80: 32 | AQ80: 8.5 | AR80: 18 | AS80: 14 | AT80: 40.5 | AU80: 9 | AV80: 15 | AW80: 13 | AX80: 37 | AY80: 2.5 | AZ80: 4 | BA80: 5 | BB80: 11 | BC80: 5 | BD80: 11 | BE80: 12.5 | BF80: 26 | BG80: 38.5 | BI80: ='[1]شعبة التسزيق'!BS80 ->  | BJ80: ='[1]شعبة التسزيق'!BT80 ->  | BK80: ='[1]شعبة التسزيق'!BU80 ->  | BM80: ='[1]شعبة التسزيق'!BW80 ->  | BN80: ='[1]شعبة التسزيق'!BX80 ->  | BO80: ='[1]شعبة التسزيق'!BY80 ->  | BQ80: راسبة | BS80: 4
A81: 72 | B81: 572 | C81: طالبة تسويق 72 | D81: 2/2 | E81: مستجدة | F81: 696 | G81: 8 | H81: 14.5 | I81: 14 | J81: 36.5 | K81: 7 | L81: 7.6 | M81: 17.2 | N81: 31.8 | O81: 4.5 | P81: 8.4 | Q81: 8.4 | R81: 21.3 | S81: 8.5 | T81: 17.5 | U81: 6.5 | V81: 32.5 | W81: 9 | X81: 19 | Y81: 16 | Z81: 44 | AA81: ='[1]شعبة التسزيق'!AJ81 ->  | AB81: ='[1]شعبة التسزيق'!AK81 ->  | AC81: ='[1]شعبة التسزيق'!AL81 ->  | AE81: 8.5 | AF81: 17 | AG81: 13 | AH81: 38.5 | AI81: 9 | AJ81: 19 | AK81: 12.5 | AL81: 40.5 | AM81: 9 | AN81: 17 | AO81: 12.5 | AP81: 38.5 | AQ81: 9 | AR81: 18 | AS81: 19 | AT81: 46 | AU81: 9 | AV81: 15 | AW81: 15 | AX81: 39 | AY81: 2.5 | AZ81: 4.5 | BA81: 6 | BB81: 10.5 | BC81: 5 | BD81: 10 | BE81: 13.5 | BF81: 25 | BG81: 38.5 | BI81: ='[1]شعبة التسزيق'!BS81 ->  | BJ81: ='[1]شعبة التسزيق'!BT81 ->  | BK81: ='[1]شعبة التسزيق'!BU81 ->  | BM81: ='[1]شعبة التسزيق'!BW81 ->  | BN81: ='[1]شعبة التسزيق'!BX81 ->  | BO81: ='[1]شعبة التسزيق'!BY81 ->  | BQ81: راسبة | BS81: 4
A82: 73 | B82: 573 | C82: طالبة تسويق 73 | D82: 2/2 | E82: مستجدة | F82: 697 | G82: 8 | H82: 13 | I82: 12.5 | J82: 33.5 | K82: 7 | L82: 8.4 | M82: 17.6 | N82: 33 | O82: 4.5 | P82: 8.8 | Q82: 8.4 | R82: 21.7 | S82: 8.5 | T82: 17.5 | U82: 5 | V82: 31 | W82: 9.5 | X82: 19 | Y82: 17 | Z82: 45.5 | AA82: ='[1]شعبة التسزيق'!AJ82 ->  | AB82: ='[1]شعبة التسزيق'!AK82 ->  | AC82: ='[1]شعبة التسزيق'!AL82 ->  | AE82: 8.5 | AF82: 16 | AG82: 7 | AH82: 31.5 | AI82: 9 | AJ82: 19 | AK82: 11 | AL82: 39 | AM82: 9 | AN82: 15 | AO82: 8 | AP82: 32 | AQ82: 9.5 | AR82: 18 | AS82: 19 | AT82: 46.5 | AU82: 9 | AV82: 14 | AW82: 14 | AX82: 37 | AY82: 2.5 | AZ82: 4.5 | BA82: 5 | BB82: 10.5 | BC82: 7 | BD82: 10 | BE82: 14.5 | BF82: 25 | BG82: 39.5 | BI82: ='[1]شعبة التسزيق'!BS82 ->  | BJ82: ='[1]شعبة التسزيق'!BT82 ->  | BK82: ='[1]شعبة التسزيق'!BU82 ->  | BM82: ='[1]شعبة التسزيق'!BW82 ->  | BN82: ='[1]شعبة التسزيق'!BX82 ->  | BO82: ='[1]شعبة التسزيق'!BY82 ->  | BQ82: راسبة | BS82: 4
A83: 74 | B83: 574 | C83: طالبة تسويق 74 | D83: 2/2 | E83: مستجدة | F83: 698 | G83: 8 | H83: 13.5 | I83: 12.5 | J83: 34 | K83: 8 | L83: 8.4 | M83: 16.8 | N83: 33.2 | O83: 4.5 | P83: 6.4 | Q83: 7.6 | R83: 18.5 | S83: 8.5 | T83: 16.5 | U83: 5 | V83: 30 | W83: 9.5 | X83: 19 | Y83: 16 | Z83: 44.5 | AA83: ='[1]شعبة التسزيق'!AJ83 ->  | AB83: ='[1]شعبة التسزيق'!AK83 ->  | AC83: ='[1]شعبة التسزيق'!AL83 ->  | AE83: 8.5 | AF83: 17 | AG83: 8 | AH83: 33.5 | AI83: 9 | AJ83: 17 | AK83: 7.5 | AL83: 33.5 | AM83: 9 | AN83: 17 | AO83: 8.5 | AP83: 34.5 | AQ83: 9 | AR83: 14 | AS83: 19 | AT83: 42 | AU83: 9 | AV83: 13 | AW83: 13 | AX83: 35 | AY83: 2.5 | AZ83: 4.5 | BA83: 5 | BB83: 11 | BC83: 7 | BD83: 11 | BE83: 14.5 | BF83: 26.5 | BG83: 41 | BI83: ='[1]شعبة التسزيق'!BS83 ->  | BJ83: ='[1]شعبة التسزيق'!BT83 ->  | BK83: ='[1]شعبة التسزيق'!BU83 ->  | BM83: ='[1]شعبة التسزيق'!BW83 ->  | BN83: ='[1]شعبة التسزيق'!BX83 ->  | BO83: ='[1]شعبة التسزيق'!BY83 ->  | BQ83: راسبة | BS83: 4
A84: 75 | B84: 575 | C84: طالبة تسويق 75 | D84: 2/2 | E84: مستجدة | F84: 699 | G84: 8 | H84: 15 | I84: 11 | J84: 34 | K84: 8 | L84: 6.8 | M84: 17.6 | N84: 32.4 | O84: 4.5 | P84: 7.6 | Q84: 6 | R84: 18.1 | S84: 8.5 | T84: 15 | U84: 9 | V84: 32.5 | W84: 9 | X84: 18 | Y84: 18 | Z84: 45 | AA84: ='[1]شعبة التسزيق'!AJ84 ->  | AB84: ='[1]شعبة التسزيق'!AK84 ->  | AC84: ='[1]شعبة التسزيق'!AL84 ->  | AE84: 8.5 | AF84: 17 | AG84: 9 | AH84: 34.5 | AI84: 9 | AJ84: 17 | AK84: 13 | AL84: 39 | AM84: 9 | AN84: 14 | AO84: 10 | AP84: 33 | AQ84: 9 | AR84: 15 | AS84: 19 | AT84: 43 | AU84: 9 | AV84: 15 | AW84: 15 | AX84: 39 | AY84: 3 | AZ84: 4.5 | BA84: 6 | BB84: 11 | BC84: 8 | BD84: 11 | BE84: 17 | BF84: 26.5 | BG84: 43.5 | BI84: ='[1]شعبة التسزيق'!BS84 ->  | BJ84: ='[1]شعبة التسزيق'!BT84 ->  | BK84: ='[1]شعبة التسزيق'!BU84 ->  | BM84: ='[1]شعبة التسزيق'!BW84 ->  | BN84: ='[1]شعبة التسزيق'!BX84 ->  | BO84: ='[1]شعبة التسزيق'!BY84 ->  | BQ84: راسبة | BS84: 4
A85: 76 | B85: 576 | C85: طالبة تسويق 76 | D85: 2/2 | E85: مستجدة | F85: 700 | G85: 8 | H85: 13 | I85: 14.5 | J85: 35.5 | K85: 8 | L85: 9.2 | M85: 16 | N85: 33.2 | O85: 4.5 | P85: 7.2 | Q85: 8 | R85: 19.7 | S85: 9 | T85: 18.5 | U85: 16.5 | V85: 44 | W85: 9.5 | X85: 19 | Y85: 14 | Z85: 42.5 | AA85: ='[1]شعبة التسزيق'!AJ85 ->  | AB85: ='[1]شعبة التسزيق'!AK85 ->  | AC85: ='[1]شعبة التسزيق'!AL85 ->  | AE85: 8.5 | AF85: 17 | AG85: 8 | AH85: 33.5 | AI85: 9 | AJ85: 20 | AK85: 12 | AL85: 41 | AM85: 9 | AN85: 16.5 | AO85: 14.5 | AP85: 40 | AQ85: 9.5 | AR85: 17 | AS85: 14 | AT85: 40.5 | AU85: 9 | AV85: 16 | AW85: 16 | AX85: 41 | AY85: 3 | AZ85: 4.5 | BA85: 5 | BB85: 11 | BC85: 7 | BD85: 11 | BE85: 15 | BF85: 26.5 | BG85: 41.5 | BI85: ='[1]شعبة التسزيق'!BS85 ->  | BJ85: ='[1]شعبة التسزيق'!BT85 ->  | BK85: ='[1]شعبة التسزيق'!BU85 ->  | BM85: ='[1]شعبة التسزيق'!BW85 ->  | BN85: ='[1]شعبة التسزيق'!BX85 ->  | BO85: ='[1]شعبة التسزيق'!BY85 ->  | BQ85: راسبة | BS85: 4
A86: 77 | B86: 577 | C86: طالبة تسويق 77 | D86: 2/2 | E86: مستجدة | F86: 701 | G86: 8 | H86: 14.5 | I86: 15 | J86: 37.5 | K86: 8.5 | L86: 10.8 | M86: 18.8 | N86: 38.1 | O86: 5 | P86: 8.4 | Q86: 7.2 | R86: 20.6 | S86: 9 | T86: 18.5 | U86: 13 | V86: 40.5 | W86: 9 | X86: 19 | Y86: 17 | Z86: 45 | AA86: ='[1]شعبة التسزيق'!AJ86 ->  | AB86: ='[1]شعبة التسزيق'!AK86 ->  | AC86: ='[1]شعبة التسزيق'!AL86 ->  | AE86: 8.5 | AF86: 17 | AG86: 14 | AH86: 39.5 | AI86: 9 | AJ86: 20 | AK86: 17 | AL86: 46 | AM86: 9 | AN86: 16 | AO86: 17.5 | AP86: 42.5 | AQ86: 9 | AR86: 19 | AS86: 18 | AT86: 46 | AU86: 9 | AV86: 19 | AW86: 17 | AX86: 45 | AY86: 3 | AZ86: 4.5 | BA86: 6 | BB86: 11 | BC86: 7 | BD86: 11 | BE86: 16 | BF86: 26.5 | BG86: 42.5 | BI86: ='[1]شعبة التسزيق'!BS86 ->  | BJ86: ='[1]شعبة التسزيق'!BT86 ->  | BK86: ='[1]شعبة التسزيق'!BU86 ->  | BM86: ='[1]شعبة التسزيق'!BW86 ->  | BN86: ='[1]شعبة التسزيق'!BX86 ->  | BO86: ='[1]شعبة التسزيق'!BY86 ->  | BQ86: راسبة | BS86: 4
A87: 78 | B87: 578 | C87: طالبة تسويق 78 | D87: 2/2 | E87: مستجدة | F87: 702 | G87: 8 | H87: 16.5 | I87: 15 | J87: 39.5 | K87: 8.5 | L87: 9.6 | M87: 18.4 | N87: 36.5 | O87: 4.5 | P87: 8 | Q87: 7.6 | R87: 20.1 | S87: 8.5 | T87: 17.5 | U87: 16.5 | V87: 42.5 | W87: 9 | X87: 18 | Y87: 17 | Z87: 44 | AA87: ='[1]شعبة التسزيق'!AJ87 ->  | AB87: ='[1]شعبة التسزيق'!AK87 ->  | AC87: ='[1]شعبة التسزيق'!AL87 ->  | AE87: 8.5 | AF87: 17 | AG87: 8 | AH87: 33.5 | AI87: 9 | AJ87: 16 | AK87: 13 | AL87: 38 | AM87: 9 | AN87: 16.5 | AO87: 11 | AP87: 36.5 | AQ87: 9.5 | AR87: 17 | AS87: 17 | AT87: 43.5 | AU87: 9 | AV87: 15 | AW87: 16 | AX87: 40 | AY87: 2.5 | AZ87: 4.5 | BA87: 5 | BB87: 11 | BC87: 7 | BD87: 10 | BE87: 14.5 | BF87: 25.5 | BG87: 40 | BI87: ='[1]شعبة التسزيق'!BS87 ->  | BJ87: ='[1]شعبة التسزيق'!BT87 ->  | BK87: ='[1]شعبة التسزيق'!BU87 ->  | BM87: ='[1]شعبة التسزيق'!BW87 ->  | BN87: ='[1]شعبة التسزيق'!BX87 ->  | BO87: ='[1]شعبة التسزيق'!BY87 ->  | BQ87: راسبة | BS87: 4
A88: 79 | B88: 579 | C88: طالبة تسويق 79 | D88: 2/2 | E88: مستجدة | F88: 703 | G88: 8 | H88: 13.5 | I88: 13.5 | J88: 35 | K88: 7.5 | L88: 9.2 | M88: 17.2 | N88: 33.9 | O88: 4.5 | P88: 7.2 | Q88: 7.6 | R88: 19.3 | S88: 8.5 | T88: 16 | U88: 5 | V88: 29.5 | W88: 8.5 | X88: 19 | Y88: 18 | Z88: 45.5 | AA88: ='[1]شعبة التسزيق'!AJ88 ->  | AB88: ='[1]شعبة التسزيق'!AK88 ->  | AC88: ='[1]شعبة التسزيق'!AL88 ->  | AE88: 8.5 | AF88: 17 | AG88: 11 | AH88: 36.5 | AI88: 9 | AJ88: 16 | AK88: 12 | AL88: 37 | AM88: 9 | AN88: 16 | AO88: 12 | AP88: 37 | AQ88: 9 | AR88: 17 | AS88: 16 | AT88: 42 | AU88: 9 | AV88: 14 | AW88: 15 | AX88: 38 | AY88: 2.5 | AZ88: 4 | BA88: 5 | BB88: 11 | BC88: 8 | BD88: 10 | BE88: 15.5 | BF88: 25 | BG88: 40.5 | BI88: ='[1]شعبة التسزيق'!BS88 ->  | BJ88: ='[1]شعبة التسزيق'!BT88 ->  | BK88: ='[1]شعبة التسزيق'!BU88 ->  | BM88: ='[1]شعبة التسزيق'!BW88 ->  | BN88: ='[1]شعبة التسزيق'!BX88 ->  | BO88: ='[1]شعبة التسزيق'!BY88 ->  | BQ88: =IF($C88="","",IF(BS88=0,"ناجحة",IF(BS88<=2,"دورثان","راسبة"))) -> راسبة | BR88: =IF($C88="","",IF(BS88=0,"ومنقولة للصف الثالث",IF(BS88>0,"فى : "&CONCATENATE(BX88,BY88,BZ88,CA88,CB88,CC88,CD88,CE88,CF88,CG88,CH88,CI88,CJ88,CK88,CL88),CONCATENATE(BX88,BY88,BZ88,CA88,CB88,CC88,CD88,CE88,CF88,CG88,CH88,CI88,CJ88,CK88,CL88)))) ->  | BS88: =IF($C88="","",COUNTA($BX88:$CL88)-COUNTBLANK($BX88:$CL88)) -> 4
A89: 80 | B89: 580 | C89: طالبة تسويق 80 | D89: 2/2 | E89: مستجدة | F89: 704 | G89: 8 | H89: 12.5 | I89: 13.5 | J89: 34 | K89: 8 | L89: 8.4 | M89: 17.2 | N89: 33.6 | O89: 4.5 | P89: 8 | Q89: 8.4 | R89: 20.9 | S89: 8.5 | T89: 14.5 | U89: 5 | V89: 28 | W89: 9 | X89: 19 | Y89: 18 | Z89: 46 | AA89: ='[1]شعبة التسزيق'!AJ89 ->  | AB89: ='[1]شعبة التسزيق'!AK89 ->  | AC89: ='[1]شعبة التسزيق'!AL89 ->  | AE89: 8.5 | AF89: 18 | AG89: 9 | AH89: 35.5 | AI89: 9 | AJ89: 16 | AK89: 13 | AL89: 38 | AM89: 9 | AN89: 14.5 | AO89: 11 | AP89: 34.5 | AQ89: 9.5 | AR89: 17 | AS89: 18 | AT89: 44.5 | AU89: 9 | AV89: 15 | AW89: 16 | AX89: 40 | AY89: 2.5 | AZ89: 4 | BA89: 5 | BB89: 11 | BC89: 8 | BD89: 10 | BE89: 15.5 | BF89: 25 | BG89: 40.5 | BI89: ='[1]شعبة التسزيق'!BS89 ->  | BJ89: ='[1]شعبة التسزيق'!BT89 ->  | BK89: ='[1]شعبة التسزيق'!BU89 ->  | BM89: ='[1]شعبة التسزيق'!BW89 ->  | BN89: ='[1]شعبة التسزيق'!BX89 ->  | BO89: ='[1]شعبة التسزيق'!BY89 ->  | BQ89: راسبة | BS89: 4
A90: 81 | B90: 581 | C90: طالبة تسويق 81 | D90: 2/2 | E90: مستجدة | F90: 705 | G90: 8 | H90: 13 | I90: 14 | J90: 35 | K90: 8 | L90: 8.8 | M90: 18 | N90: 34.8 | O90: 4.5 | P90: 7.6 | Q90: 7.6 | R90: 19.7 | S90: 9 | T90: 14.5 | U90: 5 | V90: 28.5 | W90: 9 | X90: 19 | Y90: 18 | Z90: 46 | AA90: ='[1]شعبة التسزيق'!AJ90 ->  | AB90: ='[1]شعبة التسزيق'!AK90 ->  | AC90: ='[1]شعبة التسزيق'!AL90 ->  | AE90: 8.5 | AF90: 17 | AG90: 9 | AH90: 34.5 | AI90: 9 | AJ90: 16 | AK90: 14 | AL90: 39 | AM90: 9 | AN90: 14.5 | AO90: 11 | AP90: 34.5 | AQ90: 9.5 | AR90: 17 | AS90: 19 | AT90: 45.5 | AU90: 9 | AV90: 14 | AW90: 16 | AX90: 39 | AY90: 3 | AZ90: 4.5 | BA90: 6 | BB90: 11 | BC90: 7 | BD90: 11 | BE90: 16 | BF90: 26.5 | BG90: 42.5 | BI90: ='[1]شعبة التسزيق'!BS90 ->  | BJ90: ='[1]شعبة التسزيق'!BT90 ->  | BK90: ='[1]شعبة التسزيق'!BU90 ->  | BM90: ='[1]شعبة التسزيق'!BW90 ->  | BN90: ='[1]شعبة التسزيق'!BX90 ->  | BO90: ='[1]شعبة التسزيق'!BY90 ->  | BQ90: راسبة | BS90: 4
A91: 82 | B91: 582 | C91: طالبة تسويق 82 | D91: 2/2 | E91: مستجدة | F91: 706 | G91: 8 | H91: 12.5 | I91: 13 | J91: 33.5 | K91: 7 | L91: 8.8 | M91: 18 | N91: 33.8 | O91: 4.5 | P91: 7.6 | Q91: 6.4 | R91: 18.5 | S91: 8.5 | T91: 14 | U91: 2 | V91: 24.5 | W91: 9 | X91: 19 | Y91: 17 | Z91: 45 | AA91: ='[1]شعبة التسزيق'!AJ91 ->  | AB91: ='[1]شعبة التسزيق'!AK91 ->  | AC91: ='[1]شعبة التسزيق'!AL91 ->  | AE91: 8.5 | AF91: 17 | AG91: 9 | AH91: 34.5 | AI91: 9 | AJ91: 15 | AK91: 9 | AL91: 33 | AM91: 9 | AN91: 15 | AO91: 12 | AP91: 36 | AQ91: 8.5 | AR91: 17 | AS91: 17 | AT91: 42.5 | AU91: 9 | AV91: 14 | AW91: 15 | AX91: 38 | AY91: 2.5 | AZ91: 4 | BA91: 5 | BB91: 11 | BC91: 7 | BD91: 10 | BE91: 14.5 | BF91: 25 | BG91: 39.5 | BI91: ='[1]شعبة التسزيق'!BS91 ->  | BJ91: ='[1]شعبة التسزيق'!BT91 ->  | BK91: ='[1]شعبة التسزيق'!BU91 ->  | BM91: ='[1]شعبة التسزيق'!BW91 ->  | BN91: ='[1]شعبة التسزيق'!BX91 ->  | BO91: ='[1]شعبة التسزيق'!BY91 ->  | BQ91: راسبة | BS91: 5 | CA91: محاسبة -
A92: 83 | B92: 583 | C92: طالبة تسويق 83 | D92: 2/2 | E92: مستجدة | F92: 707 | G92: 8 | H92: 14 | I92: 15 | J92: 37 | K92: 8.5 | L92: 10.8 | M92: 14.4 | N92: 33.7 | O92: 4.5 | P92: 6 | Q92: 8.4 | R92: 18.9 | S92: 8 | T92: 4.5 | U92: 6 | V92: 18.5 | W92: 9 | X92: 15 | Y92: 19 | Z92: 43 | AA92: ='[1]شعبة التسزيق'!AJ92 ->  | AB92: ='[1]شعبة التسزيق'!AK92 ->  | AC92: ='[1]شعبة التسزيق'!AL92 ->  | AE92: 8.5 | AF92: 11 | AG92: 10 | AH92: 29.5 | AI92: 9 | AJ92: 12.5 | AK92: 12.5 | AL92: 34 | AM92: 9 | AN92: 11.5 | AO92: 11 | AP92: 31.5 | AQ92: 9 | AR92: 10 | AS92: 9 | AT92: 28 | AU92: 9 | AV92: 6 | AW92: 14 | AX92: 29 | AY92: 3 | AZ92: 4.5 | BA92: 6 | BB92: 8 | BC92: 7 | BD92: 5 | BE92: 16 | BF92: 17.5 | BG92: 33.5 | BI92: ='[1]شعبة التسزيق'!BS92 ->  | BJ92: ='[1]شعبة التسزيق'!BT92 ->  | BK92: ='[1]شعبة التسزيق'!BU92 ->  | BM92: ='[1]شعبة التسزيق'!BW92 ->  | BN92: ='[1]شعبة التسزيق'!BX92 ->  | BO92: ='[1]شعبة التسزيق'!BY92 ->  | BQ92: راسبة | BS92: 5 | CA92: محاسبة -
A93: 84 | B93: 584 | C93: طالبة تسويق 84 | D93: 2/2 | E93: مستجدة | F93: 708 | G93: 8 | H93: 10 | I93: 11 | J93: 29 | K93: 7 | L93: 8 | M93: 13.2 | N93: 28.2 | O93: 4.5 | P93: 5.6 | Q93: 6 | R93: 16.1 | S93: 8.5 | T93: 8 | U93: 8.5 | V93: 25 | W93: 9 | X93: 11 | Y93: 18 | Z93: 38 | AA93: ='[1]شعبة التسزيق'!AJ93 ->  | AB93: ='[1]شعبة التسزيق'!AK93 ->  | AC93: ='[1]شعبة التسزيق'!AL93 ->  | AE93: 8.5 | AF93: 11 | AG93: 9 | AH93: 28.5 | AI93: 9 | AJ93: 7 | AK93: 10.5 | AL93: 26.5 | AM93: 9 | AN93: 7 | AO93: 6 | AP93: 22 | AQ93: 8.5 | AR93: 11 | AS93: 7 | AT93: 26.5 | AU93: 9 | AV93: 5 | AW93: 15 | AX93: 29 | AY93: 3 | AZ93: 4.5 | BA93: 5 | BB93: 8 | BC93: 8 | BD93: 5 | BE93: 16 | BF93: 17.5 | BG93: 33.5 | BI93: ='[1]شعبة التسزيق'!BS93 ->  | BJ93: ='[1]شعبة التسزيق'!BT93 ->  | BK93: ='[1]شعبة التسزيق'!BU93 ->  | BM93: ='[1]شعبة التسزيق'!BW93 ->  | BN93: ='[1]شعبة التسزيق'!BX93 ->  | BO93: ='[1]شعبة التسزيق'!BY93 ->  | BQ93: راسبة | BS93: 4
A94: 85 | B94: 585 | C94: طالبة تسويق 85 | D94: 2/2 | E94: مستجدة | F94: 709 | G94: 8 | H94: 11 | I94: 14 | J94: 33 | K94: 7 | L94: 11.6 | M94: 14 | N94: 32.6 | O94: 4.5 | P94: 8 | Q94: 8 | R94: 20.5 | S94: 8 | T94: 7.5 | U94: 3.5 | V94: 19 | W94: 9 | X94: 15 | Y94: 19 | Z94: 43 | AA94: ='[1]شعبة التسزيق'!AJ94 ->  | AB94: ='[1]شعبة التسزيق'!AK94 ->  | AC94: ='[1]شعبة التسزيق'!AL94 ->  | AE94: 8.5 | AF94: 10 | AG94: 8 | AH94: 26.5 | AI94: 9 | AJ94: 9 | AK94: 7.5 | AL94: 25.5 | AM94: 9 | AN94: 3.5 | AO94: 7.5 | AP94: 20 | AQ94: 9.5 | AR94: 12 | AS94: 9 | AT94: 30.5 | AU94: 9 | AV94: 3 | AW94: 13 | AX94: 25 | AY94: 2.5 | AZ94: 4 | BA94: 5 | BB94: 9 | BC94: 8 | BD94: 6 | BE94: 15.5 | BF94: 19 | BG94: 34.5 | BI94: ='[1]شعبة التسزيق'!BS94 ->  | BJ94: ='[1]شعبة التسزيق'!BT94 ->  | BK94: ='[1]شعبة التسزيق'!BU94 ->  | BM94: ='[1]شعبة التسزيق'!BW94 ->  | BN94: ='[1]شعبة التسزيق'!BX94 ->  | BO94: ='[1]شعبة التسزيق'!BY94 ->  | BQ94: راسبة | BS94: 5 | CA94: محاسبة -
A95: 86 | B95: 586 | C95: طالبة تسويق 86 | D95: 2/2 | E95: مستجدة | F95: 710 | G95: 8 | H95: 13 | I95: 13.5 | J95: 34.5 | K95: 9 | L95: 13.2 | M95: 13.6 | N95: 35.8 | O95: 4.5 | P95: 6.4 | Q95: 7.6 | R95: 18.5 | S95: 8.5 | T95: 8.5 | U95: 3.5 | V95: 20.5 | W95: 9.5 | X95: 11 | Y95: 18 | Z95: 38.5 | AA95: ='[1]شعبة التسزيق'!AJ95 ->  | AB95: ='[1]شعبة التسزيق'!AK95 ->  | AC95: ='[1]شعبة التسزيق'!AL95 ->  | AE95: 8.5 | AF95: 7 | AG95: 9.5 | AH95: 25 | AI95: 9 | AJ95: 10 | AK95: 13 | AL95: 32 | AM95: 9 | AN95: 11 | AO95: 9 | AP95: 29 | AQ95: 9 | AR95: 14 | AS95: 8 | AT95: 31 | AU95: 9 | AV95: 1 | AW95: 16 | AX95: 26 | AY95: 3 | AZ95: 4.5 | BA95: 5 | BB95: 8 | BC95: 7 | BD95: 6 | BE95: 15 | BF95: 18.5 | BG95: 33.5 | BI95: ='[1]شعبة التسزيق'!BS95 ->  | BJ95: ='[1]شعبة التسزيق'!BT95 ->  | BK95: ='[1]شعبة التسزيق'!BU95 ->  | BM95: ='[1]شعبة التسزيق'!BW95 ->  | BN95: ='[1]شعبة التسزيق'!BX95 ->  | BO95: ='[1]شعبة التسزيق'!BY95 ->  | BQ95: راسبة | BS95: 5 | CA95: محاسبة -
A96: 87 | B96: 587 | C96: طالبة تسويق 87 | D96: 2/2 | E96: مستجدة | F96: 711 | G96: 7.5 | H96: 6.5 | I96: 11.5 | J96: 25.5 | K96: 7 | L96: 6 | M96: 11.2 | N96: 24.2 | O96: 4.5 | P96: 6 | Q96: 6.8 | R96: 17.3 | S96: 8 | T96: 7.5 | U96: 0 | V96: 15.5 | W96: 9.5 | X96: 0 | Y96: 15.5 | Z96: 25 | AA96: ='[1]شعبة التسزيق'!AJ96 ->  | AB96: ='[1]شعبة التسزيق'!AK96 ->  | AC96: ='[1]شعبة التسزيق'!AL96 ->  | AE96: 8.5 | AF96: 8 | AG96: 4 | AH96: 20.5 | AI96: 9 | AJ96: 9 | AK96: 7.5 | AL96: 25.5 | AM96: 9 | AN96: 2 | AO96: 6 | AP96: 17 | AQ96: 8.5 | AR96: 13 | AS96: 6 | AT96: 27.5 | AU96: 9 | AV96: 0 | AW96: 16 | AX96: 25 | AY96: 2.5 | AZ96: 4 | BA96: 6 | BB96: 7 | BC96: 8 | BD96: 6 | BE96: 16.5 | BF96: 17 | BG96: 33.5 | BI96: ='[1]شعبة التسزيق'!BS96 ->  | BJ96: ='[1]شعبة التسزيق'!BT96 ->  | BK96: ='[1]شعبة التسزيق'!BU96 ->  | BM96: ='[1]شعبة التسزيق'!BW96 ->  | BN96: ='[1]شعبة التسزيق'!BX96 ->  | BO96: ='[1]شعبة التسزيق'!BY96 ->  | BQ96: راسبة | BS96: 7 | CA96: محاسبة - | CD96: اقتصاد - | CF96: سكرتارية . ف -
A97: 88 | B97: 588 | C97: طالبة تسويق 88 | D97: 2/2 | E97: مستجدة | F97: 712 | G97: 7.5 | H97: 9.5 | I97: 13 | J97: 30 | K97: 8 | L97: 14.8 | M97: 15.6 | N97: 38.4 | O97: 4.5 | P97: 6 | Q97: 7.6 | R97: 18.1 | S97: 8 | T97: 5 | U97: 5.5 | V97: 18.5 | W97: 9 | X97: 8 | Y97: 16 | Z97: 33 | AA97: ='[1]شعبة التسزيق'!AJ97 ->  | AB97: ='[1]شعبة التسزيق'!AK97 ->  | AC97: ='[1]شعبة التسزيق'!AL97 ->  | AE97: 8.5 | AF97: 11 | AG97: 7 | AH97: 26.5 | AI97: 9 | AJ97: 8 | AK97: 11.5 | AL97: 28.5 | AM97: 9 | AN97: 5.5 | AO97: 11.5 | AP97: 26 | AQ97: 9 | AR97: 10 | AS97: 6 | AT97: 25 | AU97: 9 | AV97: 4 | AW97: 15 | AX97: 28 | AY97: 3 | AZ97: 4 | BA97: 5 | BB97: 7 | BC97: 8 | BD97: 6 | BE97: 16 | BF97: 17 | BG97: 33 | BI97: ='[1]شعبة التسزيق'!BS97 ->  | BJ97: ='[1]شعبة التسزيق'!BT97 ->  | BK97: ='[1]شعبة التسزيق'!BU97 ->  | BM97: ='[1]شعبة التسزيق'!BW97 ->  | BN97: ='[1]شعبة التسزيق'!BX97 ->  | BO97: ='[1]شعبة التسزيق'!BY97 ->  | BQ97: راسبة | BS97: 5 | CA97: محاسبة -
A98: 89 | B98: 589 | C98: طالبة تسويق 89 | D98: 2/2 | E98: مستجدة | F98: 713 | G98: 7.5 | H98: 10.5 | I98: 14.5 | J98: 32.5 | K98: 7 | L98: 12.4 | M98: 15.2 | N98: 34.6 | O98: 4.5 | P98: 6 | Q98: 9.2 | R98: 19.7 | S98: 8 | T98: 16 | U98: 14 | V98: 38 | W98: 9.5 | X98: 11 | Y98: 19 | Z98: 39.5 | AA98: ='[1]شعبة التسزيق'!AJ98 ->  | AB98: ='[1]شعبة التسزيق'!AK98 ->  | AC98: ='[1]شعبة التسزيق'!AL98 ->  | AE98: 8.5 | AF98: 9 | AG98: 8 | AH98: 25.5 | AI98: 9 | AJ98: 8 | AK98: 14.5 | AL98: 31.5 | AM98: 9 | AN98: 10.5 | AO98: 14.5 | AP98: 34 | AQ98: 9.5 | AR98: 13 | AS98: 9 | AT98: 31.5 | AU98: 9 | AV98: 4 | AW98: 16 | AX98: 29 | AY98: 3 | AZ98: 4.5 | BA98: 5 | BB98: 8 | BC98: 7 | BD98: 6 | BE98: 15 | BF98: 18.5 | BG98: 33.5 | BI98: ='[1]شعبة التسزيق'!BS98 ->  | BJ98: ='[1]شعبة التسزيق'!BT98 ->  | BK98: ='[1]شعبة التسزيق'!BU98 ->  | BM98: ='[1]شعبة التسزيق'!BW98 ->  | BN98: ='[1]شعبة التسزيق'!BX98 ->  | BO98: ='[1]شعبة التسزيق'!BY98 ->  | BQ98: راسبة | BS98: 4
A99: 90 | B99: 590 | C99: طالبة تسويق 90 | D99: 2/2 | E99: مستجدة | F99: 714 | G99: 8 | H99: 10.5 | I99: 12.5 | J99: 31 | K99: 8 | L99: 14.4 | M99: 16 | N99: 38.4 | O99: 4.5 | P99: 5.2 | Q99: 7.2 | R99: 16.9 | S99: 8.5 | T99: 17.5 | U99: 17.5 | V99: 43.5 | W99: 9.5 | X99: 13 | Y99: 18 | Z99: 40.5 | AA99: ='[1]شعبة التسزيق'!AJ99 ->  | AB99: ='[1]شعبة التسزيق'!AK99 ->  | AC99: ='[1]شعبة التسزيق'!AL99 ->  | AE99: 8.5 | AF99: 11 | AG99: 11 | AH99: 30.5 | AI99: 9 | AJ99: 10 | AK99: 13.5 | AL99: 32.5 | AM99: 9 | AN99: 12 | AO99: 14 | AP99: 35 | AQ99: 9.5 | AR99: 14 | AS99: 13 | AT99: 36.5 | AU99: 9 | AV99: 5 | AW99: 14 | AX99: 28 | AY99: 3 | AZ99: 4.5 | BA99: 6 | BB99: 8 | BC99: 8 | BD99: 6 | BE99: 17 | BF99: 18.5 | BG99: 35.5 | BI99: ='[1]شعبة التسزيق'!BS99 ->  | BJ99: ='[1]شعبة التسزيق'!BT99 ->  | BK99: ='[1]شعبة التسزيق'!BU99 ->  | BM99: ='[1]شعبة التسزيق'!BW99 ->  | BN99: ='[1]شعبة التسزيق'!BX99 ->  | BO99: ='[1]شعبة التسزيق'!BY99 ->  | BQ99: راسبة | BS99: 4
A100: 91 | B100: 591 | C100: طالبة تسويق 91 | D100: 2/2 | E100: مستجدة | F100: 715 | G100: 8 | H100: 11 | I100: 12.5 | J100: 31.5 | K100: 8 | L100: 12.4 | M100: 16.8 | N100: 37.2 | O100: 4.5 | P100: 6 | Q100: 7.6 | R100: 18.1 | S100: 8.5 | T100: 8 | U100: 8.5 | V100: 25 | W100: 9.5 | X100: 11 | Y100: 19 | Z100: 39.5 | AA100: ='[1]شعبة التسزيق'!AJ100 ->  | AB100: ='[1]شعبة التسزيق'!AK100 ->  | AC100: ='[1]شعبة التسزيق'!AL100 ->  | AE100: 8.5 | AF100: 9 | AG100: 9 | AH100: 26.5 | AI100: 9 | AJ100: 9.5 | AK100: 9.5 | AL100: 28 | AM100: 9 | AN100: 6.5 | AO100: 11.5 | AP100: 27 | AQ100: 9.5 | AR100: 12 | AS100: 9 | AT100: 30.5 | AU100: 9 | AV100: 4 | AW100: 15 | AX100: 28 | AY100: 3 | AZ100: 4.5 | BA100: 6 | BB100: 8 | BC100: 8 | BD100: 5 | BE100: 17 | BF100: 17.5 | BG100: 34.5 | BI100: ='[1]شعبة التسزيق'!BS100 ->  | BJ100: ='[1]شعبة التسزيق'!BT100 ->  | BK100: ='[1]شعبة التسزيق'!BU100 ->  | BM100: ='[1]شعبة التسزيق'!BW100 ->  | BN100: ='[1]شعبة التسزيق'!BX100 ->  | BO100: ='[1]شعبة التسزيق'!BY100 ->  | BQ100: راسبة | BS100: 4
A101: 92 | B101: 592 | C101: طالبة تسويق 92 | D101: 2/2 | E101: مستجدة | F101: 716 | G101: 8 | H101: 11 | I101: 13 | J101: 32 | K101: 7.5 | L101: 9.2 | M101: 16 | N101: 32.7 | O101: 4.5 | P101: 6.8 | Q101: 7.6 | R101: 18.9 | S101: 8.5 | T101: 8.5 | U101: 2.5 | V101: 19.5 | W101: 9 | X101: 5 | Y101: 19 | Z101: 33 | AA101: ='[1]شعبة التسزيق'!AJ101 ->  | AB101: ='[1]شعبة التسزيق'!AK101 ->  | AC101: ='[1]شعبة التسزيق'!AL101 ->  | AE101: 8.5 | AF101: 12 | AG101: 5 | AH101: 25.5 | AI101: 9 | AJ101: 8 | AK101: 10.5 | AL101: 27.5 | AM101: 9 | AN101: 6.5 | AO101: 11.5 | AP101: 27 | AQ101: 9 | AR101: 14 | AS101: 7 | AT101: 30 | AU101: 9 | AV101: 3 | AW101: 16 | AX101: 28 | AY101: 3 | AZ101: 4.5 | BA101: 5 | BB101: 8 | BC101: 8 | BD101: 4 | BE101: 16 | BF101: 16.5 | BG101: 32.5 | BI101: ='[1]شعبة التسزيق'!BS101 ->  | BJ101: ='[1]شعبة التسزيق'!BT101 ->  | BK101: ='[1]شعبة التسزيق'!BU101 ->  | BM101: ='[1]شعبة التسزيق'!BW101 ->  | BN101: ='[1]شعبة التسزيق'!BX101 ->  | BO101: ='[1]شعبة التسزيق'!BY101 ->  | BQ101: راسبة | BS101: 5 | CA101: محاسبة -
A102: 93 | B102: 593 | C102: طالبة تسويق 93 | D102: 2/2 | E102: مستجدة | F102: 717 | G102: 8 | H102: 10.5 | I102: 13 | J102: 31.5 | K102: 7.5 | L102: 12.8 | M102: 15.6 | N102: 35.9 | O102: 4.5 | P102: 6.8 | Q102: 8.8 | R102: 20.1 | S102: 9 | T102: 10 | U102: 11 | V102: 30 | W102: 9 | X102: 11 | Y102: 19 | Z102: 39 | AA102: ='[1]شعبة التسزيق'!AJ102 ->  | AB102: ='[1]شعبة التسزيق'!AK102 ->  | AC102: ='[1]شعبة التسزيق'!AL102 ->  | AE102: 8.5 | AF102: 7 | AG102: 5 | AH102: 20.5 | AI102: 9 | AJ102: 8.5 | AK102: 12.5 | AL102: 30 | AM102: 9 | AN102: 11 | AO102: 10 | AP102: 30 | AQ102: 9.5 | AR102: 14 | AS102: 7 | AT102: 30.5 | AU102: 9 | AV102: 5 | AW102: 15 | AX102: 29 | AY102: 3 | AZ102: 4.5 | BA102: 6 | BB102: 8 | BC102: 7 | BD102: 5 | BE102: 16 | BF102: 17.5 | BG102: 33.5 | BI102: ='[1]شعبة التسزيق'!BS102 ->  | BJ102: ='[1]شعبة التسزيق'!BT102 ->  | BK102: ='[1]شعبة التسزيق'!BU102 ->  | BM102: ='[1]شعبة التسزيق'!BW102 ->  | BN102: ='[1]شعبة التسزيق'!BX102 ->  | BO102: ='[1]شعبة التسزيق'!BY102 ->  | BQ102: راسبة | BS102: 5 | CD102: اقتصاد -
A103: 94 | B103: 594 | C103: طالبة تسويق 94 | D103: 2/2 | E103: مستجدة | F103: 718 | G103: 8 | H103: 12 | I103: 15.5 | J103: 35.5 | K103: 7.5 | L103: 14.4 | M103: 17.2 | N103: 39.1 | O103: 4.5 | P103: 6.4 | Q103: 9.2 | R103: 20.1 | S103: 8.5 | T103: 15 | U103: 14.5 | V103: 38 | W103: 9.5 | X103: 16 | Y103: 19 | Z103: 44.5 | AA103: ='[1]شعبة التسزيق'!AJ103 ->  | AB103: ='[1]شعبة التسزيق'!AK103 ->  | AC103: ='[1]شعبة التسزيق'!AL103 ->  | AE103: 8.5 | AF103: 9 | AG103: 10 | AH103: 27.5 | AI103: 9 | AJ103: 8 | AK103: 12 | AL103: 29 | AM103: 9 | AN103: 17.5 | AO103: 17.5 | AP103: 44 | AQ103: 9.5 | AR103: 15 | AS103: 10 | AT103: 34.5 | AU103: 9 | AV103: 11 | AW103: 16 | AX103: 36 | AY103: 3 | AZ103: 4.5 | BA103: 6 | BB103: 8 | BC103: 7 | BD103: 6 | BE103: 16 | BF103: 18.5 | BG103: 34.5 | BI103: ='[1]شعبة التسزيق'!BS103 ->  | BJ103: ='[1]شعبة التسزيق'!BT103 ->  | BK103: ='[1]شعبة التسزيق'!BU103 ->  | BM103: ='[1]شعبة التسزيق'!BW103 ->  | BN103: ='[1]شعبة التسزيق'!BX103 ->  | BO103: ='[1]شعبة التسزيق'!BY103 ->  | BQ103: راسبة | BS103: 4
A104: 95 | B104: 595 | C104: طالبة تسويق 95 | D104: 2/2 | E104: مستجدة | F104: 719 | G104: 8 | H104: 10.5 | I104: 13 | J104: 31.5 | K104: 8 | L104: 11.2 | M104: 13.6 | N104: 32.8 | O104: 4.5 | P104: 6.8 | Q104: 8.8 | R104: 20.1 | S104: 8.5 | T104: 10.5 | U104: 15 | V104: 34 | W104: 9 | X104: 12 | Y104: 19 | Z104: 40 | AA104: ='[1]شعبة التسزيق'!AJ104 ->  | AB104: ='[1]شعبة التسزيق'!AK104 ->  | AC104: ='[1]شعبة التسزيق'!AL104 ->  | AE104: 8.5 | AF104: 9 | AG104: 11 | AH104: 28.5 | AI104: 9 | AJ104: 11.5 | AK104: 11.5 | AL104: 32 | AM104: 9 | AN104: 11 | AO104: 11.5 | AP104: 31.5 | AQ104: 9.5 | AR104: 15 | AS104: 9 | AT104: 33.5 | AU104: 9 | AV104: 5 | AW104: 14 | AX104: 28 | AY104: 2.5 | AZ104: 4.5 | BA104: 5 | BB104: 8 | BC104: 7 | BD104: 4 | BE104: 14.5 | BF104: 16.5 | BG104: 31 | BI104: ='[1]شعبة التسزيق'!BS104 ->  | BJ104: ='[1]شعبة التسزيق'!BT104 ->  | BK104: ='[1]شعبة التسزيق'!BU104 ->  | BM104: ='[1]شعبة التسزيق'!BW104 ->  | BN104: ='[1]شعبة التسزيق'!BX104 ->  | BO104: ='[1]شعبة التسزيق'!BY104 ->  | BQ104: راسبة | BS104: 4
A105: 96 | B105: 596 | C105: طالبة تسويق 96 | D105: 2/2 | E105: مستجدة | F105: 720 | G105: 8 | H105: 13 | I105: 13 | J105: 34 | K105: 8.5 | L105: 11.6 | M105: 16 | N105: 36.1 | O105: 4.5 | P105: 7.2 | Q105: 9.2 | R105: 20.9 | S105: 8.5 | T105: 10 | U105: 12 | V105: 30.5 | W105: 9 | X105: 9 | Y105: 19 | Z105: 37 | AA105: ='[1]شعبة التسزيق'!AJ105 ->  | AB105: ='[1]شعبة التسزيق'!AK105 ->  | AC105: ='[1]شعبة التسزيق'!AL105 ->  | AE105: 8.5 | AF105: 12 | AG105: 14 | AH105: 34.5 | AI105: 9 | AJ105: 10 | AK105: 11 | AL105: 30 | AM105: 9 | AN105: 9 | AO105: 9 | AP105: 27 | AQ105: 9.5 | AR105: 13 | AS105: 7 | AT105: 29.5 | AU105: 9 | AV105: 4 | AW105: 15 | AX105: 28 | AY105: 3 | AZ105: 4.5 | BA105: 6 | BB105: 8 | BC105: 7 | BD105: 6 | BE105: 16 | BF105: 18.5 | BG105: 34.5 | BI105: ='[1]شعبة التسزيق'!BS105 ->  | BJ105: ='[1]شعبة التسزيق'!BT105 ->  | BK105: ='[1]شعبة التسزيق'!BU105 ->  | BM105: ='[1]شعبة التسزيق'!BW105 ->  | BN105: ='[1]شعبة التسزيق'!BX105 ->  | BO105: ='[1]شعبة التسزيق'!BY105 ->  | BQ105: راسبة | BS105: 4
A106: 97 | B106: 597 | C106: طالبة تسويق 97 | D106: 2/2 | E106: مستجدة | F106: 721 | G106: 8 | H106: 9 | I106: 12.5 | J106: 29.5 | K106: 8 | L106: 9.2 | M106: 11.2 | N106: 28.4 | O106: 4.5 | P106: 3.6 | Q106: 7.6 | R106: 15.7 | S106: 8.5 | T106: 7 | U106: 9.5 | V106: 25 | W106: 8.5 | X106: 18 | Y106: 18 | Z106: 44.5 | AA106: ='[1]شعبة التسزيق'!AJ106 ->  | AB106: ='[1]شعبة التسزيق'!AK106 ->  | AC106: ='[1]شعبة التسزيق'!AL106 ->  | AE106: 8.5 | AF106: 11 | AG106: 19 | AH106: 38.5 | AI106: 9 | AJ106: 8 | AK106: 10.5 | AL106: 27.5 | AM106: 9 | AN106: 5 | AO106: 13 | AP106: 27 | AQ106: 9 | AR106: 12 | AS106: 16 | AT106: 37 | AU106: 9 | AV106: 10 | AW106: 10 | AX106: 29 | AY106: 2.5 | AZ106: 4.5 | BA106: 5 | BB106: 5 | BC106: 7 | BD106: 7 | BE106: =IF($C106="","",SUM(AY106,BA106,BC106)) -> 14.5 | BF106: 16.5 | BG106: 31 | BI106: ='[1]شعبة التسزيق'!BS106 ->  | BJ106: ='[1]شعبة التسزيق'!BT106 ->  | BK106: ='[1]شعبة التسزيق'!BU106 ->  | BM106: ='[1]شعبة التسزيق'!BW106 ->  | BN106: ='[1]شعبة التسزيق'!BX106 ->  | BO106: ='[1]شعبة التسزيق'!BY106 ->  | BQ106: راسبة | BS106: 4
A107: 98 | B107: 598 | C107: طالبة تسويق 98 | D107: 2/2 | E107: مستجدة | F107: 722 | G107: 8 | H107: 12 | I107: 17 | J107: 37 | K107: 8 | L107: 5.6 | M107: 14 | N107: 27.6 | O107: 4.5 | P107: 4 | Q107: 8.4 | R107: 16.9 | S107: 9 | T107: 11 | U107: 13.5 | V107: 33.5 | W107: 9.5 | X107: 18 | Y107: 18 | Z107: 45.5 | AA107: ='[1]شعبة التسزيق'!AJ107 ->  | AB107: ='[1]شعبة التسزيق'!AK107 ->  | AC107: ='[1]شعبة التسزيق'!AL107 ->  | AE107: 8.5 | AF107: 15 | AG107: 19 | AH107: 42.5 | AI107: 9 | AJ107: 5 | AK107: 14.5 | AL107: 28.5 | AM107: 9 | AN107: 12 | AO107: 9 | AP107: 30 | AQ107: 9.5 | AR107: 11 | AS107: 13 | AT107: 33.5 | AU107: 9 | AV107: 13 | AW107: 5 | AX107: 27 | AY107: 2.5 | AZ107: 4.5 | BA107: 5 | BB107: 5 | BC107: 6 | BD107: 8 | BE107: 13.5 | BF107: 17.5 | BG107: 31 | BI107: ='[1]شعبة التسزيق'!BS107 ->  | BJ107: ='[1]شعبة التسزيق'!BT107 ->  | BK107: ='[1]شعبة التسزيق'!BU107 ->  | BM107: ='[1]شعبة التسزيق'!BW107 ->  | BN107: ='[1]شعبة التسزيق'!BX107 ->  | BO107: ='[1]شعبة التسزيق'!BY107 ->  | BQ107: راسبة | BS107: 4
A108: 99 | B108: 599 | C108: طالبة تسويق 99 | D108: 2/2 | E108: مستجدة | F108: 723 | G108: 8 | H108: 12.5 | I108: 18 | J108: 38.5 | K108: 7.5 | L108: 10 | M108: 15.2 | N108: 32.7 | O108: 4.5 | P108: 4.4 | Q108: 8.4 | R108: 17.3 | S108: 8.5 | T108: 9.5 | U108: 9.5 | V108: 27.5 | W108: 9.5 | X108: 20 | Y108: 18 | Z108: 47.5 | AA108: ='[1]شعبة التسزيق'!AJ108 ->  | AB108: ='[1]شعبة التسزيق'!AK108 ->  | AC108: ='[1]شعبة التسزيق'!AL108 ->  | AE108: 8.5 | AF108: 13 | AG108: 19 | AH108: 40.5 | AI108: 9 | AJ108: 10.5 | AK108: 14.5 | AL108: 34 | AM108: 9 | AN108: 12 | AO108: 10 | AP108: 31 | AQ108: 9.5 | AR108: 13 | AS108: 16 | AT108: 38.5 | AU108: 9 | AV108: 14 | AW108: 8 | AX108: 31 | AY108: 2.5 | AZ108: 4.5 | BA108: 5 | BB108: 4 | BC108: 5 | BD108: 8 | BE108: 12.5 | BF108: 16.5 | BG108: 29 | BI108: ='[1]شعبة التسزيق'!BS108 ->  | BJ108: ='[1]شعبة التسزيق'!BT108 ->  | BK108: ='[1]شعبة التسزيق'!BU108 ->  | BM108: ='[1]شعبة التسزيق'!BW108 ->  | BN108: ='[1]شعبة التسزيق'!BX108 ->  | BO108: ='[1]شعبة التسزيق'!BY108 ->  | BQ108: راسبة | BS108: 4
A109: 100 | B109: 600 | C109: طالبة تسويق 100 | D109: 2/2 | E109: مستجدة | F109: 724 | G109: 7.5 | H109: 11 | I109: 17 | J109: 35.5 | K109: 8 | L109: 10.8 | M109: 16.4 | N109: 35.2 | O109: 5 | P109: 4.8 | Q109: 10 | R109: 19.8 | S109: 8.5 | T109: 16.5 | U109: 16 | V109: 41 | W109: 9.5 | X109: 20 | Y109: 18 | Z109: 47.5 | AA109: ='[1]شعبة التسزيق'!AJ109 ->  | AB109: ='[1]شعبة التسزيق'!AK109 ->  | AC109: ='[1]شعبة التسزيق'!AL109 ->  | AE109: 8.5 | AF109: 11 | AG109: 19 | AH109: 38.5 | AI109: 9 | AJ109: 10.5 | AK109: 15 | AL109: 34.5 | AM109: 9 | AN109: 17.5 | AO109: 15.5 | AP109: 42 | AQ109: 9.5 | AR109: 12 | AS109: 16 | AT109: 37.5 | AU109: 9 | AV109: 14 | AW109: 12 | AX109: 35 | AY109: 3 | AZ109: 4.5 | BA109: 5 | BB109: 5 | BC109: 5 | BD109: 8 | BE109: 13 | BF109: 17.5 | BG109: 30.5 | BI109: ='[1]شعبة التسزيق'!BS109 ->  | BJ109: ='[1]شعبة التسزيق'!BT109 ->  | BK109: ='[1]شعبة التسزيق'!BU109 ->  | BM109: ='[1]شعبة التسزيق'!BW109 ->  | BN109: ='[1]شعبة التسزيق'!BX109 ->  | BO109: ='[1]شعبة التسزيق'!BY109 ->  | BQ109: راسبة | BS109: 4
A110: 101 | B110: 601 | C110: طالبة تسويق 101 | D110: 2/2 | E110: مستجدة | F110: 725 | G110: 8.5 | H110: 12.5 | I110: 16.5 | J110: 37.5 | K110: 9 | L110: 9.6 | M110: 15.6 | N110: 34.2 | O110: 4.5 | P110: 3.6 | Q110: 9.6 | R110: 17.7 | S110: 8.5 | T110: 12 | U110: 15 | V110: 35.5 | W110: 9 | X110: 16 | Y110: 18 | Z110: 43 | AA110: ='[1]شعبة التسزيق'!AJ110 ->  | AB110: ='[1]شعبة التسزيق'!AK110 ->  | AC110: ='[1]شعبة التسزيق'!AL110 ->  | AE110: 8.5 | AF110: 15 | AG110: 18 | AH110: 41.5 | AI110: 9 | AJ110: 10.5 | AK110: 14.5 | AL110: 34 | AM110: 9 | AN110: 11 | AO110: 14.5 | AP110: 34.5 | AQ110: 9.5 | AR110: 10 | AS110: 15 | AT110: 34.5 | AU110: 9 | AV110: 10 | AW110: 10 | AX110: 29 | AY110: 3 | AZ110: 4.5 | BA110: 6 | BB110: 4 | BC110: 6 | BD110: 8 | BE110: 15 | BF110: 16.5 | BG110: 31.5 | BI110: ='[1]شعبة التسزيق'!BS110 ->  | BJ110: ='[1]شعبة التسزيق'!BT110 ->  | BK110: ='[1]شعبة التسزيق'!BU110 ->  | BM110: ='[1]شعبة التسزيق'!BW110 ->  | BN110: ='[1]شعبة التسزيق'!BX110 ->  | BO110: ='[1]شعبة التسزيق'!BY110 ->  | BQ110: راسبة | BS110: 4
A111: 102 | B111: 602 | C111: طالبة تسويق 102 | D111: 2/2 | E111: مستجدة | F111: 726 | G111: 8 | H111: 11 | I111: 15.5 | J111: 34.5 | K111: 9 | L111: 8 | M111: 14.4 | N111: 31.4 | O111: 4.5 | P111: 3.2 | Q111: 8.4 | R111: 16.1 | S111: 8.5 | T111: 8.5 | U111: 14.5 | V111: 31.5 | W111: 9 | X111: 15 | Y111: 16 | Z111: 40 | AA111: ='[1]شعبة التسزيق'!AJ111 ->  | AB111: ='[1]شعبة التسزيق'!AK111 ->  | AC111: ='[1]شعبة التسزيق'!AL111 ->  | AE111: 8.5 | AF111: 11 | AG111: 17 | AH111: 36.5 | AI111: 9 | AJ111: 5.5 | AK111: 14 | AL111: 28.5 | AM111: 9 | AN111: 8 | AO111: 10 | AP111: 27 | AQ111: 9.5 | AR111: 11 | AS111: 12 | AT111: 32.5 | AU111: 9 | AV111: 11 | AW111: 11 | AX111: 31 | AY111: 2.5 | AZ111: 4.5 | BA111: 5 | BB111: 3 | BC111: 5 | BD111: 8 | BE111: 12.5 | BF111: 15.5 | BG111: 28 | BI111: ='[1]شعبة التسزيق'!BS111 ->  | BJ111: ='[1]شعبة التسزيق'!BT111 ->  | BK111: ='[1]شعبة التسزيق'!BU111 ->  | BM111: ='[1]شعبة التسزيق'!BW111 ->  | BN111: ='[1]شعبة التسزيق'!BX111 ->  | BO111: ='[1]شعبة التسزيق'!BY111 ->  | BQ111: راسبة | BS111: 4
A112: 103 | B112: 603 | C112: طالبة تسويق 103 | D112: 2/2 | E112: مستجدة | F112: 727 | G112: 7.5 | H112: 11.5 | I112: 15.5 | J112: 34.5 | K112: 7.5 | L112: 5.6 | M112: 13.6 | N112: 26.7 | O112: 4.5 | P112: 5.6 | Q112: 9.2 | R112: 19.3 | S112: 8.5 | T112: 8 | U112: 13.5 | V112: 30 | W112: 9 | X112: 19 | Y112: 17 | Z112: 45 | AA112: ='[1]شعبة التسزيق'!AJ112 ->  | AB112: ='[1]شعبة التسزيق'!AK112 ->  | AC112: ='[1]شعبة التسزيق'!AL112 ->  | AE112: 8.5 | AF112: 7 | AG112: 18 | AH112: 33.5 | AI112: 9 | AJ112: 7 | AK112: 9 | AL112: 25 | AM112: 9 | AN112: 8.5 | AO112: 8 | AP112: 25.5 | AQ112: 9.5 | AR112: 12 | AS112: 12 | AT112: 33.5 | AU112: 9 | AV112: 8 | AW112: 11 | AX112: 28 | AY112: 3 | AZ112: 4.5 | BA112: 5 | BB112: 5 | BC112: 6 | BD112: 8 | BE112: 14 | BF112: 17.5 | BG112: 31.5 | BI112: ='[1]شعبة التسزيق'!BS112 ->  | BJ112: ='[1]شعبة التسزيق'!BT112 ->  | BK112: ='[1]شعبة التسزيق'!BU112 ->  | BM112: ='[1]شعبة التسزيق'!BW112 ->  | BN112: ='[1]شعبة التسزيق'!BX112 ->  | BO112: ='[1]شعبة التسزيق'!BY112 ->  | BQ112: راسبة | BS112: 4
A113: 104 | B113: 604 | C113: طالبة تسويق 104 | D113: 3/2 | E113: مستجدة | F113: 728 | G113: 8 | H113: 13 | I113: 16.5 | J113: 37.5 | K113: 7 | L113: 12.4 | M113: 16.4 | N113: 35.8 | O113: 4.5 | P113: 5.2 | Q113: 8.8 | R113: 18.5 | S113: 8 | T113: 9.5 | U113: 18.5 | V113: 36 | W113: 8 | X113: 20 | Y113: 17 | Z113: 45 | AA113: ='[1]شعبة التسزيق'!AJ113 ->  | AB113: ='[1]شعبة التسزيق'!AK113 ->  | AC113: ='[1]شعبة التسزيق'!AL113 ->  | AE113: 8.5 | AF113: 17 | AG113: 16 | AH113: 41.5 | AI113: 9 | AJ113: 11 | AK113: 16 | AL113: 36 | AM113: 8.5 | AN113: 11.5 | AO113: 13 | AP113: 33 | AQ113: 8 | AR113: 14 | AS113: 14 | AT113: 36 | AU113: 9 | AV113: 16 | AW113: 7 | AX113: 32 | AY113: 3 | AZ113: 4 | BA113: 5 | BB113: 7 | BC113: 5 | BD113: 8 | BE113: 13 | BF113: 19 | BG113: 32 | BI113: ='[1]شعبة التسزيق'!BS113 ->  | BJ113: ='[1]شعبة التسزيق'!BT113 ->  | BK113: ='[1]شعبة التسزيق'!BU113 ->  | BM113: ='[1]شعبة التسزيق'!BW113 ->  | BN113: ='[1]شعبة التسزيق'!BX113 ->  | BO113: ='[1]شعبة التسزيق'!BY113 ->  | BQ113: راسبة | BS113: 4
A114: 105 | B114: 605 | C114: طالبة تسويق 105 | D114: 3/2 | E114: مستجدة | F114: 729 | G114: 8 | H114: 13 | I114: 18 | J114: 39 | K114: 9.5 | L114: 11.2 | M114: 16.8 | N114: 37.5 | O114: 5 | P114: 4.8 | Q114: 9.2 | R114: 19 | S114: 8 | T114: 19.5 | U114: 18.5 | V114: 46 | W114: 9 | X114: 20 | Y114: 19 | Z114: 48 | AA114: ='[1]شعبة التسزيق'!AJ114 ->  | AB114: ='[1]شعبة التسزيق'!AK114 ->  | AC114: ='[1]شعبة التسزيق'!AL114 ->  | AE114: 8.5 | AF114: 15 | AG114: 19 | AH114: 42.5 | AI114: 9 | AJ114: 8 | AK114: 16 | AL114: 33 | AM114: 8.5 | AN114: 17.5 | AO114: 15.5 | AP114: 41.5 | AQ114: 9 | AR114: 14 | AS114: 13 | AT114: 36 | AU114: 9 | AV114: 16 | AW114: 12 | AX114: 37 | AY114: 3 | AZ114: 4 | BA114: 5 | BB114: 8 | BC114: 6 | BD114: 8 | BE114: 14 | BF114: 20 | BG114: 34 | BI114: ='[1]شعبة التسزيق'!BS114 ->  | BJ114: ='[1]شعبة التسزيق'!BT114 ->  | BK114: ='[1]شعبة التسزيق'!BU114 ->  | BM114: ='[1]شعبة التسزيق'!BW114 ->  | BN114: ='[1]شعبة التسزيق'!BX114 ->  | BO114: ='[1]شعبة التسزيق'!BY114 ->  | BQ114: راسبة | BS114: 4
A115: 106 | B115: 606 | C115: طالبة تسويق 106 | D115: 3/2 | E115: مستجدة | F115: 730 | G115: 8 | H115: 11.5 | I115: 14 | J115: 33.5 | K115: 9.5 | L115: 5.6 | M115: 14 | N115: 29.1 | O115: 5 | P115: 6 | Q115: 8 | R115: 19 | S115: 8 | T115: 15 | U115: 19 | V115: 42 | W115: 8.5 | X115: 20 | Y115: 17 | Z115: 45.5 | AA115: ='[1]شعبة التسزيق'!AJ115 ->  | AB115: ='[1]شعبة التسزيق'!AK115 ->  | AC115: ='[1]شعبة التسزيق'!AL115 ->  | AE115: 8.5 | AF115: 17 | AG115: 19 | AH115: 44.5 | AI115: 9 | AJ115: 8 | AK115: 16 | AL115: 33 | AM115: 8 | AN115: 11.5 | AO115: 14.5 | AP115: 34 | AQ115: 9 | AR115: 13 | AS115: 14 | AT115: 36 | AU115: 9 | AV115: 17 | AW115: 10 | AX115: 36 | AY115: 3 | AZ115: 4 | BA115: 6 | BB115: 7 | BC115: 5 | BD115: 8 | BE115: 14 | BF115: 19 | BG115: 33 | BI115: ='[1]شعبة التسزيق'!BS115 ->  | BJ115: ='[1]شعبة التسزيق'!BT115 ->  | BK115: ='[1]شعبة التسزيق'!BU115 ->  | BM115: ='[1]شعبة التسزيق'!BW115 ->  | BN115: ='[1]شعبة التسزيق'!BX115 ->  | BO115: ='[1]شعبة التسزيق'!BY115 ->  | BQ115: راسبة | BS115: 4
A116: 107 | B116: 607 | C116: طالبة تسويق 107 | D116: 3/2 | E116: مستجدة | F116: 731 | G116: 8.5 | H116: 11.5 | I116: 18 | J116: 38 | K116: 7 | L116: 10.8 | M116: 16.4 | N116: 34.2 | O116: 4.5 | P116: 6 | Q116: 8 | R116: 18.5 | S116: 8 | T116: 16 | U116: 18.5 | V116: 42.5 | W116: 9 | X116: 20 | Y116: 16 | Z116: 45 | AA116: ='[1]شعبة التسزيق'!AJ116 ->  | AB116: ='[1]شعبة التسزيق'!AK116 ->  | AC116: ='[1]شعبة التسزيق'!AL116 ->  | AE116: 8.5 | AF116: 17 | AG116: 17 | AH116: 42.5 | AI116: 9 | AJ116: 8 | AK116: 12.5 | AL116: 29.5 | AM116: 8 | AN116: 11.5 | AO116: 15 | AP116: 34.5 | AQ116: 8.5 | AR116: 12 | AS116: 14 | AT116: 34.5 | AU116: 9 | AV116: 17 | AW116: 12 | AX116: 38 | AY116: 3 | AZ116: 4 | BA116: 6 | BB116: 5 | BC116: 5 | BD116: 8 | BE116: 14 | BF116: 17 | BG116: 31 | BI116: ='[1]شعبة التسزيق'!BS116 ->  | BJ116: ='[1]شعبة التسزيق'!BT116 ->  | BK116: ='[1]شعبة التسزيق'!BU116 ->  | BM116: ='[1]شعبة التسزيق'!BW116 ->  | BN116: ='[1]شعبة التسزيق'!BX116 ->  | BO116: ='[1]شعبة التسزيق'!BY116 ->  | BQ116: راسبة | BS116: 4
A117: 108 | B117: 608 | C117: طالبة تسويق 108 | D117: 3/2 | E117: مستجدة | F117: 732 | G117: 8.5 | H117: 10 | I117: 17.5 | J117: 36 | K117: 7 | L117: 8.4 | M117: 15.6 | N117: 31 | O117: 4.5 | P117: 2.8 | Q117: 8 | R117: 15.3 | S117: 8 | T117: 13 | U117: 14.5 | V117: 35.5 | W117: 9 | X117: 18 | Y117: 17 | Z117: 44 | AA117: ='[1]شعبة التسزيق'!AJ117 ->  | AB117: ='[1]شعبة التسزيق'!AK117 ->  | AC117: ='[1]شعبة التسزيق'!AL117 ->  | AE117: 8.5 | AF117: 14 | AG117: 19 | AH117: 41.5 | AI117: 9 | AJ117: 8 | AK117: 16 | AL117: 33 | AM117: 8.5 | AN117: 10.5 | AO117: 11.5 | AP117: 30.5 | AQ117: 8.5 | AR117: 8 | AS117: 13 | AT117: 29.5 | AU117: 9 | AV117: 14 | AW117: 11 | AX117: 34 | AY117: 3 | AZ117: 4 | BA117: 6 | BB117: 4 | BC117: 6 | BD117: 8 | BE117: 15 | BF117: 16 | BG117: 31 | BI117: ='[1]شعبة التسزيق'!BS117 ->  | BJ117: ='[1]شعبة التسزيق'!BT117 ->  | BK117: ='[1]شعبة التسزيق'!BU117 ->  | BM117: ='[1]شعبة التسزيق'!BW117 ->  | BN117: ='[1]شعبة التسزيق'!BX117 ->  | BO117: ='[1]شعبة التسزيق'!BY117 ->  | BQ117: راسبة | BS117: 4
A118: 109 | B118: 609 | C118: طالبة تسويق 109 | D118: 3/2 | E118: مستجدة | F118: 733 | G118: 8.5 | H118: 9 | I118: 15 | J118: 32.5 | K118: 7 | L118: 6.8 | M118: 14.8 | N118: 28.6 | O118: 5 | P118: 5.2 | Q118: 8.8 | R118: 19 | S118: 8 | T118: 11 | U118: 18.5 | V118: 37.5 | W118: 9 | X118: 18 | Y118: 18 | Z118: 45 | AA118: ='[1]شعبة التسزيق'!AJ118 ->  | AB118: ='[1]شعبة التسزيق'!AK118 ->  | AC118: ='[1]شعبة التسزيق'!AL118 ->  | AE118: 8.5 | AF118: 8 | AG118: 18 | AH118: 34.5 | AI118: 9 | AJ118: 5.5 | AK118: 11 | AL118: 25.5 | AM118: 8.5 | AN118: 8 | AO118: 14.5 | AP118: 31 | AQ118: 9 | AR118: 10 | AS118: 14 | AT118: 33 | AU118: 9 | AV118: 9 | AW118: 14 | AX118: 32 | AY118: 3 | AZ118: 4 | BA118: 5 | BB118: 4 | BC118: 6 | BD118: 8 | BE118: 14 | BF118: 16 | BG118: 30 | BI118: ='[1]شعبة التسزيق'!BS118 ->  | BJ118: ='[1]شعبة التسزيق'!BT118 ->  | BK118: ='[1]شعبة التسزيق'!BU118 ->  | BM118: ='[1]شعبة التسزيق'!BW118 ->  | BN118: ='[1]شعبة التسزيق'!BX118 ->  | BO118: ='[1]شعبة التسزيق'!BY118 ->  | BQ118: راسبة | BS118: 4
A119: 110 | B119: 610 | C119: طالبة تسويق 110 | D119: 3/2 | E119: مستجدة | F119: 734 | G119: 8.5 | H119: 12 | I119: 18.5 | J119: 39 | K119: 9 | L119: 10.8 | M119: 12.8 | N119: 32.6 | O119: 5 | P119: 6.8 | Q119: 8.4 | R119: 20.2 | S119: 8 | T119: 19.5 | U119: 19 | V119: 46.5 | W119: 9.5 | X119: 19 | Y119: 19 | Z119: 47.5 | AA119: ='[1]شعبة التسزيق'!AJ119 ->  | AB119: ='[1]شعبة التسزيق'!AK119 ->  | AC119: ='[1]شعبة التسزيق'!AL119 ->  | AE119: 8.5 | AF119: 13 | AG119: 19 | AH119: 40.5 | AI119: 9 | AJ119: 11.5 | AK119: 18.5 | AL119: 39 | AM119: 8.5 | AN119: 19 | AO119: 19 | AP119: 46.5 | AQ119: 9.5 | AR119: 15 | AS119: 16 | AT119: 40.5 | AU119: 9 | AV119: 12 | AW119: 11 | AX119: 32 | AY119: 3 | AZ119: 4 | BA119: 6 | BB119: 8 | BC119: 5 | BD119: 8 | BE119: 14 | BF119: 20 | BG119: 34 | BI119: ='[1]شعبة التسزيق'!BS119 ->  | BJ119: ='[1]شعبة التسزيق'!BT119 ->  | BK119: ='[1]شعبة التسزيق'!BU119 ->  | BM119: ='[1]شعبة التسزيق'!BW119 ->  | BN119: ='[1]شعبة التسزيق'!BX119 ->  | BO119: ='[1]شعبة التسزيق'!BY119 ->  | BQ119: راسبة | BS119: 4
A120: 111 | B120: 611 | C120: طالبة تسويق 111 | D120: 3/2 | E120: مستجدة | F120: 735 | G120: 8 | H120: 14.5 | I120: 12 | J120: 34.5 | K120: 7 | L120: 13.2 | M120: 14 | N120: 34.2 | O120: 4.5 | P120: 4.8 | Q120: 7.2 | R120: 16.5 | S120: 8 | T120: 17.5 | U120: 10.5 | V120: 36 | W120: 9 | X120: 16 | Y120: 15 | Z120: 40 | AA120: ='[1]شعبة التسزيق'!AJ120 ->  | AB120: ='[1]شعبة التسزيق'!AK120 ->  | AC120: ='[1]شعبة التسزيق'!AL120 ->  | AE120: 8.5 | AF120: 8 | AG120: 13 | AH120: 29.5 | AI120: 9 | AJ120: 6 | AK120: 13 | AL120: 28 | AM120: 8.5 | AN120: 14.5 | AO120: 11.5 | AP120: 34.5 | AQ120: 9.5 | AR120: 11 | AS120: 13 | AT120: 33.5 | AU120: 9 | AV120: 11 | AW120: 5 | AX120: 25 | AY120: 3 | AZ120: 4 | BA120: 5 | BB120: 5 | BC120: 5 | BD120: 8 | BE120: 13 | BF120: 17 | BG120: 30 | BI120: ='[1]شعبة التسزيق'!BS120 ->  | BJ120: ='[1]شعبة التسزيق'!BT120 ->  | BK120: ='[1]شعبة التسزيق'!BU120 ->  | BM120: ='[1]شعبة التسزيق'!BW120 ->  | BN120: ='[1]شعبة التسزيق'!BX120 ->  | BO120: ='[1]شعبة التسزيق'!BY120 ->  | BQ120: راسبة | BS120: 4
A121: 112 | B121: 612 | C121: طالبة تسويق 112 | D121: 3/2 | E121: مستجدة | F121: 736 | G121: 8 | H121: 8.5 | I121: 9.5 | J121: 26 | K121: 7 | L121: 8 | M121: 10.4 | N121: 25.4 | O121: 4.5 | P121: 4.4 | Q121: 7.6 | R121: 16.5 | S121: 8 | T121: 1 | U121: 0 | V121: 9 | W121: 9 | X121: 18 | Y121: 17 | Z121: 44 | AA121: ='[1]شعبة التسزيق'!AJ121 ->  | AB121: ='[1]شعبة التسزيق'!AK121 ->  | AC121: ='[1]شعبة التسزيق'!AL121 ->  | AE121: 8.5 | AF121: 8 | AG121: 14 | AH121: 30.5 | AI121: 9 | AJ121: 10 | AK121: 12 | AL121: 31 | AM121: 8.5 | AN121: 5 | AO121: 6.5 | AP121: 20 | AQ121: 8.5 | AR121: 13 | AS121: 13 | AT121: 34.5 | AU121: 9 | AV121: 9 | AW121: 7 | AX121: 25 | AY121: 3 | AZ121: 4 | BA121: 5 | BB121: 5 | BC121: 6 | BD121: 8 | BE121: 14 | BF121: 17 | BG121: 31 | BI121: ='[1]شعبة التسزيق'!BS121 ->  | BJ121: ='[1]شعبة التسزيق'!BT121 ->  | BK121: ='[1]شعبة التسزيق'!BU121 ->  | BM121: ='[1]شعبة التسزيق'!BW121 ->  | BN121: ='[1]شعبة التسزيق'!BX121 ->  | BO121: ='[1]شعبة التسزيق'!BY121 ->  | BQ121: راسبة | BS121: 5 | CA121: محاسبة -
A122: 113 | B122: 613 | C122: طالبة تسويق 113 | D122: 3/2 | E122: مستجدة | F122: 737 | G122: 8 | H122: 9.5 | I122: 12.5 | J122: 30 | K122: 7 | L122: 13.2 | M122: 11.6 | N122: 31.8 | O122: 4.5 | P122: 5.2 | Q122: 8.4 | R122: 18.1 | S122: 8 | T122: 2.5 | U122: 0 | V122: 10.5 | W122: 9 | X122: 16 | Y122: 14 | Z122: 39 | AA122: ='[1]شعبة التسزيق'!AJ122 ->  | AB122: ='[1]شعبة التسزيق'!AK122 ->  | AC122: ='[1]شعبة التسزيق'!AL122 ->  | AE122: 8.5 | AF122: 7 | AG122: 12 | AH122: 27.5 | AI122: 9 | AJ122: 9 | AK122: 15 | AL122: 33 | AM122: 8.5 | AN122: 6.5 | AO122: 5.5 | AP122: 20.5 | AQ122: 8.5 | AR122: 13 | AS122: 13 | AT122: 34.5 | AU122: 9 | AV122: 8 | AW122: 8 | AX122: 25 | AY122: 3 | AZ122: 4 | BA122: 6 | BB122: 5 | BC122: 5 | BD122: 8 | BE122: 14 | BF122: 17 | BG122: 31 | BI122: ='[1]شعبة التسزيق'!BS122 ->  | BJ122: ='[1]شعبة التسزيق'!BT122 ->  | BK122: ='[1]شعبة التسزيق'!BU122 ->  | BM122: ='[1]شعبة التسزيق'!BW122 ->  | BN122: ='[1]شعبة التسزيق'!BX122 ->  | BO122: ='[1]شعبة التسزيق'!BY122 ->  | BQ122: راسبة | BS122: 5 | CA122: محاسبة -
A123: 114 | B123: 614 | C123: طالبة تسويق 114 | D123: 3/2 | E123: مستجدة | F123: 738 | G123: 8.5 | H123: 11.5 | I123: 12 | J123: 32 | K123: 7 | L123: 10.8 | M123: 10.8 | N123: 28.6 | O123: 4.5 | P123: 6 | Q123: 8 | R123: 18.5 | S123: 8 | T123: 1 | U123: 5 | V123: 14 | W123: 8.5 | X123: 15 | Y123: 13 | Z123: 36.5 | AA123: ='[1]شعبة التسزيق'!AJ123 ->  | AB123: ='[1]شعبة التسزيق'!AK123 ->  | AC123: ='[1]شعبة التسزيق'!AL123 ->  | AE123: 8.5 | AF123: 6 | AG123: 14 | AH123: 28.5 | AI123: 9 | AJ123: 9 | AK123: 11.5 | AL123: 29.5 | AM123: 8.5 | AN123: 9 | AO123: 7 | AP123: 24.5 | AQ123: 8.5 | AR123: 11 | AS123: 12 | AT123: 31.5 | AU123: 9 | AV123: 11 | AW123: 5 | AX123: 25 | AY123: 3 | AZ123: 4 | BA123: 5 | BB123: 4 | BC123: 5 | BD123: 8 | BE123: 13 | BF123: 16 | BG123: 29 | BI123: ='[1]شعبة التسزيق'!BS123 ->  | BJ123: ='[1]شعبة التسزيق'!BT123 ->  | BK123: ='[1]شعبة التسزيق'!BU123 ->  | BM123: ='[1]شعبة التسزيق'!BW123 ->  | BN123: ='[1]شعبة التسزيق'!BX123 ->  | BO123: ='[1]شعبة التسزيق'!BY123 ->  | BQ123: راسبة | BS123: 5 | CA123: محاسبة -
A124: 115 | B124: 615 | C124: طالبة تسويق 115 | D124: 3/2 | E124: مستجدة | F124: 739 | G124: 8.5 | H124: 7.5 | I124: 12 | J124: 28 | K124: 8.5 | L124: 9.6 | M124: 8.4 | N124: 26.5 | O124: 4.5 | P124: 5.6 | Q124: 6.8 | R124: 16.9 | S124: 8 | T124: 4 | U124: 0.5 | V124: 12.5 | W124: 8.5 | X124: 16 | Y124: 15 | Z124: 39.5 | AA124: ='[1]شعبة التسزيق'!AJ124 ->  | AB124: ='[1]شعبة التسزيق'!AK124 ->  | AC124: ='[1]شعبة التسزيق'!AL124 ->  | AE124: 8.5 | AF124: 7 | AG124: 16 | AH124: 31.5 | AI124: 9 | AJ124: 11 | AK124: 11.5 | AL124: 31.5 | AM124: 8.5 | AN124: 7 | AO124: 6 | AP124: 21.5 | AQ124: 9 | AR124: 12 | AS124: 14 | AT124: 35 | AU124: 9 | AV124: 8 | AW124: 8 | AX124: 25 | AY124: 3 | AZ124: 4 | BA124: 6 | BB124: 4 | BC124: 6 | BD124: 8 | BE124: 15 | BF124: 16 | BG124: 31 | BI124: ='[1]شعبة التسزيق'!BS124 ->  | BJ124: ='[1]شعبة التسزيق'!BT124 ->  | BK124: ='[1]شعبة التسزيق'!BU124 ->  | BM124: ='[1]شعبة التسزيق'!BW124 ->  | BN124: ='[1]شعبة التسزيق'!BX124 ->  | BO124: ='[1]شعبة التسزيق'!BY124 ->  | BQ124: راسبة | BS124: 5 | CA124: محاسبة -
A125: 116 | B125: 616 | C125: طالبة تسويق 116 | D125: 3/2 | E125: مستجدة | F125: 740 | G125: 8.5 | H125: 10.5 | I125: 12.5 | J125: 31.5 | K125: 8.5 | L125: 11.2 | M125: 10.8 | N125: 30.5 | O125: 4.5 | P125: 6.4 | Q125: 7.6 | R125: 18.5 | S125: 8 | T125: 5 | U125: 0 | V125: 13 | W125: 9 | X125: 16 | Y125: 14 | Z125: 39 | AA125: ='[1]شعبة التسزيق'!AJ125 ->  | AB125: ='[1]شعبة التسزيق'!AK125 ->  | AC125: ='[1]شعبة التسزيق'!AL125 ->  | AE125: 8.5 | AF125: 7 | AG125: 15 | AH125: 30.5 | AI125: 9 | AJ125: 11 | AK125: 11 | AL125: 31 | AM125: 8.5 | AN125: 6.5 | AO125: 5 | AP125: 20 | AQ125: 9.5 | AR125: 14 | AS125: 14 | AT125: 37.5 | AU125: 9 | AV125: 11 | AW125: 5 | AX125: 25 | AY125: 3 | AZ125: 4 | BA125: 6 | BB125: 4 | BC125: 6 | BD125: 8 | BE125: 15 | BF125: 16 | BG125: 31 | BI125: ='[1]شعبة التسزيق'!BS125 ->  | BJ125: ='[1]شعبة التسزيق'!BT125 ->  | BK125: ='[1]شعبة التسزيق'!BU125 ->  | BM125: ='[1]شعبة التسزيق'!BW125 ->  | BN125: ='[1]شعبة التسزيق'!BX125 ->  | BO125: ='[1]شعبة التسزيق'!BY125 ->  | BQ125: راسبة | BS125: 5 | CA125: محاسبة -
A126: 117 | B126: 617 | C126: طالبة تسويق 117 | D126: 3/2 | E126: مستجدة | F126: 741 | G126: 8.5 | H126: 11.5 | I126: 11 | J126: 31 | K126: 8.5 | L126: 10 | M126: 10.8 | N126: 29.3 | O126: 5 | P126: 5.2 | Q126: 7.6 | R126: 17.8 | S126: 8 | T126: 0 | U126: 0.5 | V126: 8.5 | W126: 9 | X126: 15 | Y126: 13 | Z126: 37 | AA126: ='[1]شعبة التسزيق'!AJ126 ->  | AB126: ='[1]شعبة التسزيق'!AK126 ->  | AC126: ='[1]شعبة التسزيق'!AL126 ->  | AE126: 8.5 | AF126: 9 | AG126: 16 | AH126: 33.5 | AI126: 9 | AJ126: 9 | AK126: 12.5 | AL126: 30.5 | AM126: 8.5 | AN126: 11.5 | AO126: 6.5 | AP126: 26.5 | AQ126: 8.5 | AR126: 13 | AS126: 12 | AT126: 33.5 | AU126: 9 | AV126: 9 | AW126: 7 | AX126: 25 | AY126: 3 | AZ126: 4 | BA126: 6 | BB126: 4 | BC126: 5 | BD126: 8 | BE126: 14 | BF126: 16 | BG126: 30 | BI126: ='[1]شعبة التسزيق'!BS126 ->  | BJ126: ='[1]شعبة التسزيق'!BT126 ->  | BK126: ='[1]شعبة التسزيق'!BU126 ->  | BM126: ='[1]شعبة التسزيق'!BW126 ->  | BN126: ='[1]شعبة التسزيق'!BX126 ->  | BO126: ='[1]شعبة التسزيق'!BY126 ->  | BQ126: راسبة | BS126: 5 | CA126: محاسبة -
A127: 118 | B127: 618 | C127: طالبة تسويق 118 | D127: 3/2 | E127: مستجدة | F127: 742 | G127: 8.5 | H127: 8 | I127: 11 | J127: 27.5 | K127: 7.5 | L127: 5.2 | M127: 7.6 | N127: 20.3 | O127: 4.5 | P127: 5.2 | Q127: 7.2 | R127: 16.9 | S127: 8 | T127: 4.5 | U127: 1.5 | V127: 14 | W127: 9 | X127: 19 | Y127: 13 | Z127: 41 | AA127: ='[1]شعبة التسزيق'!AJ127 ->  | AB127: ='[1]شعبة التسزيق'!AK127 ->  | AC127: ='[1]شعبة التسزيق'!AL127 ->  | AE127: 8.5 | AF127: 6 | AG127: 12 | AH127: 26.5 | AI127: 9 | AJ127: 8 | AK127: 13 | AL127: 30 | AM127: 8.5 | AN127: 3 | AO127: 8.5 | AP127: 20 | AQ127: 9 | AR127: 12 | AS127: 11 | AT127: 32 | AU127: 9 | AV127: 10 | AW127: 7 | AX127: 26 | AY127: 3 | AZ127: 4 | BA127: 6 | BB127: 4 | BC127: 6 | BD127: 7 | BE127: 15 | BF127: 15 | BG127: 30 | BI127: ='[1]شعبة التسزيق'!BS127 ->  | BJ127: ='[1]شعبة التسزيق'!BT127 ->  | BK127: ='[1]شعبة التسزيق'!BU127 ->  | BM127: ='[1]شعبة التسزيق'!BW127 ->  | BN127: ='[1]شعبة التسزيق'!BX127 ->  | BO127: ='[1]شعبة التسزيق'!BY127 ->  | BQ127: راسبة | BS127: 5 | CA127: محاسبة -
A128: 119 | B128: 619 | C128: طالبة تسويق 119 | D128: 3/2 | E128: مستجدة | F128: 743 | G128: 8.5 | H128: 12 | I128: 13 | J128: 33.5 | K128: 9 | L128: 12 | M128: 10.8 | N128: 31.8 | O128: 4.5 | P128: 6.4 | Q128: 8 | R128: 18.9 | S128: 8 | T128: 15 | U128: 6 | V128: 29 | W128: 9 | X128: 19 | Y128: 12 | Z128: 40 | AA128: ='[1]شعبة التسزيق'!AJ128 ->  | AB128: ='[1]شعبة التسزيق'!AK128 ->  | AC128: ='[1]شعبة التسزيق'!AL128 ->  | AE128: 8.5 | AF128: 9 | AG128: 16 | AH128: 33.5 | AI128: 9 | AJ128: 9.5 | AK128: 13.5 | AL128: 32 | AM128: 8.5 | AN128: 16 | AO128: 12 | AP128: 36.5 | AQ128: 8.5 | AR128: 14 | AS128: 12 | AT128: 34.5 | AU128: 9 | AV128: 12 | AW128: 9 | AX128: 30 | AY128: 3 | AZ128: 4 | BA128: 6 | BB128: 3 | BC128: 5 | BD128: 8 | BE128: 14 | BF128: 15 | BG128: 29 | BI128: ='[1]شعبة التسزيق'!BS128 ->  | BJ128: ='[1]شعبة التسزيق'!BT128 ->  | BK128: ='[1]شعبة التسزيق'!BU128 ->  | BM128: ='[1]شعبة التسزيق'!BW128 ->  | BN128: ='[1]شعبة التسزيق'!BX128 ->  | BO128: ='[1]شعبة التسزيق'!BY128 ->  | BQ128: راسبة | BS128: 4
A129: 120 | B129: 620 | C129: طالبة تسويق 120 | D129: 3/2 | E129: مستجدة | F129: 744 | G129: 8.5 | H129: 11 | I129: 10.5 | J129: 30 | K129: 7 | L129: 7.6 | M129: 11.6 | N129: 26.2 | O129: 4.5 | P129: 6 | Q129: 6.4 | R129: 16.9 | S129: 8 | T129: 3 | U129: 0 | V129: 11 | W129: 8.5 | X129: 18 | Y129: 9 | Z129: 35.5 | AA129: ='[1]شعبة التسزيق'!AJ129 ->  | AB129: ='[1]شعبة التسزيق'!AK129 ->  | AC129: ='[1]شعبة التسزيق'!AL129 ->  | AE129: 8.5 | AF129: 12 | AG129: 16 | AH129: 36.5 | AI129: 9 | AJ129: 10 | AK129: 15 | AL129: 34 | AM129: 9 | AN129: 12.5 | AO129: 7 | AP129: 28.5 | AQ129: 9 | AR129: 12 | AS129: 12 | AT129: 33 | AU129: 9 | AV129: 7 | AW129: 9 | AX129: 25 | AY129: 3 | AZ129: 4 | BA129: 6 | BB129: 7 | BC129: 6 | BD129: 6 | BE129: 15 | BF129: 17 | BG129: 32 | BI129: ='[1]شعبة التسزيق'!BS129 ->  | BJ129: ='[1]شعبة التسزيق'!BT129 ->  | BK129: ='[1]شعبة التسزيق'!BU129 ->  | BM129: ='[1]شعبة التسزيق'!BW129 ->  | BN129: ='[1]شعبة التسزيق'!BX129 ->  | BO129: ='[1]شعبة التسزيق'!BY129 ->  | BQ129: راسبة | BS129: 5 | CA129: محاسبة -
A130: 121 | B130: 621 | C130: طالبة تسويق 121 | D130: 3/2 | E130: مستجدة | F130: 745 | G130: 8 | H130: 7.5 | I130: 9.5 | J130: 25 | K130: 8.5 | L130: 5.6 | M130: 10.8 | N130: 24.9 | O130: 5 | P130: 5.6 | Q130: 8 | R130: 18.6 | S130: 8 | T130: 16.5 | U130: 16 | V130: 40.5 | W130: 8.5 | X130: 18 | Y130: 13 | Z130: 39.5 | AA130: ='[1]شعبة التسزيق'!AJ130 ->  | AB130: ='[1]شعبة التسزيق'!AK130 ->  | AC130: ='[1]شعبة التسزيق'!AL130 ->  | AE130: 8.5 | AF130: 5 | AG130: 15 | AH130: 28.5 | AI130: 9 | AJ130: 11 | AK130: 14 | AL130: 34 | AM130: 9 | AN130: 13 | AO130: 10.5 | AP130: 32.5 | AQ130: 9 | AR130: 11 | AS130: 14 | AT130: 34 | AU130: 9 | AV130: 10 | AW130: 10 | AX130: 29 | AY130: 3 | AZ130: 4 | BA130: 6 | BB130: 7 | BC130: 5 | BD130: 8 | BE130: 14 | BF130: 19 | BG130: 33 | BI130: ='[1]شعبة التسزيق'!BS130 ->  | BJ130: ='[1]شعبة التسزيق'!BT130 ->  | BK130: ='[1]شعبة التسزيق'!BU130 ->  | BM130: ='[1]شعبة التسزيق'!BW130 ->  | BN130: ='[1]شعبة التسزيق'!BX130 ->  | BO130: ='[1]شعبة التسزيق'!BY130 ->  | BQ130: راسبة | BS130: 4
A131: 122 | B131: 622 | C131: طالبة تسويق 122 | D131: 3/2 | E131: مستجدة | F131: 746 | G131: 8.5 | H131: 7.5 | I131: 9.5 | J131: 25.5 | K131: 7.5 | L131: 9.6 | M131: 10.8 | N131: 27.9 | O131: 4.5 | P131: 5.6 | Q131: 7.2 | R131: 17.3 | S131: 8 | T131: 2.5 | U131: 5.5 | V131: 16 | W131: 9 | X131: 15 | Y131: 12 | Z131: 36 | AA131: ='[1]شعبة التسزيق'!AJ131 ->  | AB131: ='[1]شعبة التسزيق'!AK131 ->  | AC131: ='[1]شعبة التسزيق'!AL131 ->  | AE131: 8.5 | AF131: 9 | AG131: 13 | AH131: 30.5 | AI131: 9 | AJ131: 11 | AK131: 9 | AL131: 29 | AM131: 9 | AN131: 9.5 | AO131: 9 | AP131: 27.5 | AQ131: 9 | AR131: 12 | AS131: 13 | AT131: 34 | AU131: 9 | AV131: 10 | AW131: 9 | AX131: 28 | AY131: 3 | AZ131: 4 | BA131: 5 | BB131: 6 | BC131: 5 | BD131: 7 | BE131: 13 | BF131: 17 | BG131: 30 | BI131: ='[1]شعبة التسزيق'!BS131 ->  | BJ131: ='[1]شعبة التسزيق'!BT131 ->  | BK131: ='[1]شعبة التسزيق'!BU131 ->  | BM131: ='[1]شعبة التسزيق'!BW131 ->  | BN131: ='[1]شعبة التسزيق'!BX131 ->  | BO131: ='[1]شعبة التسزيق'!BY131 ->  | BQ131: راسبة | BS131: 5 | CA131: محاسبة -
A132: 123 | B132: 623 | C132: طالبة تسويق 123 | D132: 3/2 | E132: مستجدة | F132: 747 | G132: 8 | H132: 11.5 | I132: 13.5 | J132: 33 | K132: 8 | L132: 9.6 | M132: 14.8 | N132: 32.4 | O132: 4.5 | P132: 6.4 | Q132: 7.6 | R132: 18.5 | S132: 8 | T132: 14 | U132: 13.5 | V132: 35.5 | W132: 9 | X132: 16 | Y132: 15 | Z132: 40 | AA132: ='[1]شعبة التسزيق'!AJ132 ->  | AB132: ='[1]شعبة التسزيق'!AK132 ->  | AC132: ='[1]شعبة التسزيق'!AL132 ->  | AE132: 8.5 | AF132: 12 | AG132: 16 | AH132: 36.5 | AI132: 9 | AJ132: 12 | AK132: 16 | AL132: 37 | AM132: 8.5 | AN132: 13.5 | AO132: 12.5 | AP132: 34.5 | AQ132: 9 | AR132: 13 | AS132: 12 | AT132: 34 | AU132: 9 | AV132: 9 | AW132: 9 | AX132: 27 | AY132: 3 | AZ132: 4 | BA132: 5 | BB132: 7 | BC132: 6 | BD132: 8 | BE132: 14 | BF132: 19 | BG132: 33 | BI132: ='[1]شعبة التسزيق'!BS132 ->  | BJ132: ='[1]شعبة التسزيق'!BT132 ->  | BK132: ='[1]شعبة التسزيق'!BU132 ->  | BM132: ='[1]شعبة التسزيق'!BW132 ->  | BN132: ='[1]شعبة التسزيق'!BX132 ->  | BO132: ='[1]شعبة التسزيق'!BY132 ->  | BQ132: راسبة | BS132: 4
A133: 124 | B133: 624 | C133: طالبة تسويق 124 | D133: 3/2 | E133: مستجدة | F133: 748 | G133: 8.5 | H133: 12 | I133: 13 | J133: 33.5 | K133: 8 | L133: 9.6 | M133: 13.2 | N133: 30.8 | O133: 4.5 | P133: 6.8 | Q133: 7.2 | R133: 18.5 | S133: 8 | T133: 11.5 | U133: 5.5 | V133: 25 | W133: 9 | X133: 17 | Y133: 15 | Z133: 41 | AA133: ='[1]شعبة التسزيق'!AJ133 ->  | AB133: ='[1]شعبة التسزيق'!AK133 ->  | AC133: ='[1]شعبة التسزيق'!AL133 ->  | AE133: 8.5 | AF133: 12 | AG133: 16 | AH133: 36.5 | AI133: 9 | AJ133: 10 | AK133: 15.5 | AL133: 34.5 | AM133: 8.5 | AN133: 11.5 | AO133: 10.5 | AP133: 30.5 | AQ133: 8.5 | AR133: 13 | AS133: 12 | AT133: 33.5 | AU133: 9 | AV133: 9 | AW133: 9 | AX133: 27 | AY133: 3 | AZ133: 4 | BA133: 4 | BB133: 7 | BC133: 5 | BD133: 8 | BE133: 12 | BF133: 19 | BG133: 31 | BI133: ='[1]شعبة التسزيق'!BS133 ->  | BJ133: ='[1]شعبة التسزيق'!BT133 ->  | BK133: ='[1]شعبة التسزيق'!BU133 ->  | BM133: ='[1]شعبة التسزيق'!BW133 ->  | BN133: ='[1]شعبة التسزيق'!BX133 ->  | BO133: ='[1]شعبة التسزيق'!BY133 ->  | BQ133: راسبة | BS133: 4
A134: 125 | B134: 625 | C134: طالبة تسويق 125 | D134: 3/2 | E134: مستجدة | F134: 749 | G134: 8.5 | H134: 11.5 | I134: 16 | J134: 36 | K134: 9.5 | L134: 15.6 | M134: 18 | N134: 43.1 | O134: 5 | P134: 7.2 | Q134: 9.2 | R134: 21.4 | S134: 8 | T134: 12.5 | U134: 13.5 | V134: 34 | W134: 9.5 | X134: 19 | Y134: 19 | Z134: 47.5 | AA134: ='[1]شعبة التسزيق'!AJ134 ->  | AB134: ='[1]شعبة التسزيق'!AK134 ->  | AC134: ='[1]شعبة التسزيق'!AL134 ->  | AE134: 8.5 | AF134: 18 | AG134: 14 | AH134: 40.5 | AI134: 9 | AJ134: 12.5 | AK134: 11.5 | AL134: 33 | AM134: 9 | AN134: 17.5 | AO134: 13.5 | AP134: 40 | AQ134: 9.5 | AR134: 13 | AS134: 18 | AT134: 40.5 | AU134: 9 | AV134: 14 | AW134: 17 | AX134: 40 | AY134: 3 | AZ134: 4 | BA134: 6 | BB134: 5 | BC134: 5 | BD134: 7 | BE134: 14 | BF134: 16 | BG134: 30 | BI134: ='[1]شعبة التسزيق'!BS134 ->  | BJ134: ='[1]شعبة التسزيق'!BT134 ->  | BK134: ='[1]شعبة التسزيق'!BU134 ->  | BM134: ='[1]شعبة التسزيق'!BW134 ->  | BN134: ='[1]شعبة التسزيق'!BX134 ->  | BO134: ='[1]شعبة التسزيق'!BY134 ->  | BQ134: راسبة | BS134: 4
A135: 126 | B135: 626 | C135: طالبة تسويق 126 | D135: 3/2 | E135: مستجدة | F135: 750 | G135: 8.5 | H135: 14 | I135: 13 | J135: 35.5 | K135: 8.5 | L135: 12.8 | M135: 12.4 | N135: 33.7 | O135: 4.5 | P135: 6.4 | Q135: 8.8 | R135: 19.7 | S135: 8 | T135: 7.5 | U135: 9.5 | V135: 25 | W135: 8.5 | X135: 17 | Y135: 13 | Z135: 38.5 | AA135: ='[1]شعبة التسزيق'!AJ135 ->  | AB135: ='[1]شعبة التسزيق'!AK135 ->  | AC135: ='[1]شعبة التسزيق'!AL135 ->  | AE135: 8.5 | AF135: 12 | AG135: 10 | AH135: 30.5 | AI135: 9 | AJ135: 15 | AK135: 13 | AL135: 37 | AM135: 8.5 | AN135: 13.5 | AO135: 5.5 | AP135: 27.5 | AQ135: 9 | AR135: 13 | AS135: 14 | AT135: 36 | AU135: 9 | AV135: 9 | AW135: 14 | AX135: 32 | AY135: 3 | AZ135: 4 | BA135: 5 | BB135: 3 | BC135: 6 | BD135: 8 | BE135: 14 | BF135: 15 | BG135: 29 | BI135: ='[1]شعبة التسزيق'!BS135 ->  | BJ135: ='[1]شعبة التسزيق'!BT135 ->  | BK135: ='[1]شعبة التسزيق'!BU135 ->  | BM135: ='[1]شعبة التسزيق'!BW135 ->  | BN135: ='[1]شعبة التسزيق'!BX135 ->  | BO135: ='[1]شعبة التسزيق'!BY135 ->  | BQ135: راسبة | BS135: 4
A136: 127 | B136: 627 | C136: طالبة تسويق 127 | D136: 3/2 | E136: مستجدة | F136: 751 | G136: 8.5 | H136: 13.5 | I136: 14 | J136: 36 | K136: 8.5 | L136: 14.8 | M136: 16.8 | N136: 40.1 | O136: 4.5 | P136: 5.6 | Q136: 9.2 | R136: 19.3 | S136: 8 | T136: 7.5 | U136: 9.5 | V136: 25 | W136: 8 | X136: 17 | Y136: 14 | Z136: 39 | AA136: ='[1]شعبة التسزيق'!AJ136 ->  | AB136: ='[1]شعبة التسزيق'!AK136 ->  | AC136: ='[1]شعبة التسزيق'!AL136 ->  | AE136: 8.5 | AF136: 15 | AG136: 14 | AH136: 37.5 | AI136: 9 | AJ136: 17.5 | AK136: 17 | AL136: 43.5 | AM136: 8.5 | AN136: 12 | AO136: 9 | AP136: 29.5 | AQ136: 9 | AR136: 8 | AS136: 18 | AT136: 35 | AU136: 9 | AV136: 11 | AW136: 15 | AX136: 35 | AY136: 3 | AZ136: 4 | BA136: 5 | BB136: 3 | BC136: 6 | BD136: 8 | BE136: 14 | BF136: 15 | BG136: 29 | BI136: ='[1]شعبة التسزيق'!BS136 ->  | BJ136: ='[1]شعبة التسزيق'!BT136 ->  | BK136: ='[1]شعبة التسزيق'!BU136 ->  | BM136: ='[1]شعبة التسزيق'!BW136 ->  | BN136: ='[1]شعبة التسزيق'!BX136 ->  | BO136: ='[1]شعبة التسزيق'!BY136 ->  | BQ136: راسبة | BS136: 4
A137: 128 | B137: 628 | C137: طالبة تسويق 128 | D137: 3/2 | E137: مستجدة | F137: 752 | G137: 8.5 | H137: 11 | I137: 11.5 | J137: 31 | K137: 8.5 | L137: 9.6 | M137: 18 | N137: 36.1 | O137: 4.5 | P137: 7.6 | Q137: 9.6 | R137: 21.7 | S137: 8 | T137: 10 | U137: 7 | V137: 25 | W137: 9 | X137: 17 | Y137: 15 | Z137: 41 | AA137: ='[1]شعبة التسزيق'!AJ137 ->  | AB137: ='[1]شعبة التسزيق'!AK137 ->  | AC137: ='[1]شعبة التسزيق'!AL137 ->  | AE137: 8.5 | AF137: 9 | AG137: 9 | AH137: 26.5 | AI137: 9 | AJ137: 8 | AK137: 16 | AL137: 33 | AM137: 8.5 | AN137: 12.5 | AO137: 7 | AP137: 28 | AQ137: 9 | AR137: 15 | AS137: 19 | AT137: 43 | AU137: 9 | AV137: 6 | AW137: 10 | AX137: 25 | AY137: 3 | AZ137: 4 | BA137: 5 | BB137: 5 | BC137: 6 | BD137: 7 | BE137: 14 | BF137: 16 | BG137: 30 | BI137: ='[1]شعبة التسزيق'!BS137 ->  | BJ137: ='[1]شعبة التسزيق'!BT137 ->  | BK137: ='[1]شعبة التسزيق'!BU137 ->  | BM137: ='[1]شعبة التسزيق'!BW137 ->  | BN137: ='[1]شعبة التسزيق'!BX137 ->  | BO137: ='[1]شعبة التسزيق'!BY137 ->  | BQ137: راسبة | BS137: 4
A138: 129 | B138: 629 | C138: طالبة تسويق 129 | D138: 3/2 | E138: مستجدة | F138: 753 | G138: 8.5 | H138: 10.5 | I138: 9.5 | J138: 28.5 | K138: 8.5 | L138: 11.2 | M138: 16.4 | N138: =SUM(K138:M138) -> 36.1 | O138: 4.5 | P138: 8 | Q138: 8.8 | R138: =SUM(O138:Q138) -> 21.3 | S138: 8 | T138: 4.5 | U138: 12.5 | V138: =SUM(S138:U138) -> 25 | W138: 9.5 | X138: 17 | Y138: 12 | Z138: =SUM(W138:Y138) -> 38.5 | AA138: ='[1]شعبة التسزيق'!AJ138 ->  | AB138: ='[1]شعبة التسزيق'!AK138 ->  | AC138: ='[1]شعبة التسزيق'!AL138 ->  | AD138: =SUM(AA138:AC138) ->  | AE138: 8.5 | AF138: 7 | AG138: 10 | AH138: =SUM(AE138:AG138) -> 25.5 | AI138: 9 | AJ138: 12 | AK138: 11.5 | AL138: =SUM(AI138:AK138) -> 32.5 | AM138: 8.5 | AN138: 10 | AO138: 5.5 | AP138: =SUM(AM138:AO138) -> 24 | AQ138: 9 | AR138: 13 | AS138: 17 | AT138: =SUM(AQ138:AS138) -> 39 | AU138: 9 | AV138: 10 | AW138: 15 | AX138: =SUM(AU138:AW138) -> 34 | AY138: 3 | AZ138: 4 | BA138: 5 | BB138: 5 | BC138: 6 | BD138: 7 | BE138: =IF($C138="","",SUM(AY138,BA138,BC138)) -> 14 | BF138: 16 | BG138: =IF($C138="","",SUM(BE138,BF138)) -> 30 | BH138: =IF($C138="","",SUM(J138,N138,R138,V138,Z138,AD138,AH138,AL138,AP138,AT138,AX138,BG138)) ->  | BI138: ='[1]شعبة التسزيق'!BS138 ->  | BJ138: ='[1]شعبة التسزيق'!BT138 ->  | BK138: ='[1]شعبة التسزيق'!BU138 ->  | BL138: =SUM(BI138:BK138) ->  | BM138: ='[1]شعبة التسزيق'!BW138 ->  | BN138: ='[1]شعبة التسزيق'!BX138 ->  | BO138: ='[1]شعبة التسزيق'!BY138 ->  | BP138: =SUM(BM138:BO138) ->  | BQ138: =IF($C138="","",IF(BS138=0,"ناجحة",IF(BS138<=2,"دورثان","راسبة"))) -> راسبة | BR138: =IF($C138="","",IF(BS138=0,"ومنقولة للصف الثالث",IF(BS138>0,"فى : "&CONCATENATE(BX138,BY138,BZ138,CA138,CB138,CC138,CD138,CE138,CF138,CG138,CH138,CI138,CJ138,CK138,CL138),CONCATENATE(BX138,BY138,BZ138,CA138,CB138,CC138,CD138,CE138,CF138,CG138,CH138,CI138,CJ138,CK138,CL138)))) ->  | BS138: =IF($C138="","",COUNTA($BX138:$CL138)-COUNTBLANK($BX138:$CL138)) -> 4 | BX138: =IF($C138="","",IF(OR(I138<$I$9,I138="غ",J138<$J$9),$BX$5&" - ","")) ->  | BY138: =IF($C138="","",IF(OR(M138<$M$9,M138="غ",N138<$N$9),$BY$5&" - ","")) ->  | BZ138: =IF($C138="","",IF(OR(Q138<$Q$9,Q138="غ",R138<$R$9),BZ$5&" - ","")) ->  | CA138: =IF($C138="","",IF(OR(U138<$U$9,U138="غ",V138<$V$9),CA$5&" - ","")) ->  | CB138: =IF($C138="","",IF(OR(Y138<$Y$9,Y138="غ",Z138<$Z$9),CB$5&" - ","")) ->  | CC138: =IF($C138="","",IF(OR(AC138<$AC$9,AC138="غ",AD138<$AD$9),CC$5&" - ","")) ->  | CD138: =IF($C138="","",IF(OR(AG138<$AG$9,AG138="غ",AH138<$AH$9),CD$5&" - ","")) ->  | CE138: =IF($C138="","",IF(OR(AK138<$AK$9,AK138="غ",AL138<$AL$9),CE$5&" - ","")) ->  | CF138: =IF($C138="","",IF(OR(AO138<$AO$9,AO138="غ",AP138<$AP$9),CF$5&" - ","")) ->  | CG138: =IF($C138="","",IF(OR(AS138<$AS$9,AS138="غ",AT138<$AT$9),CG$5&" - ","")) ->  | CH138: =IF($C138="","",IF(OR(AW138<$AW$9,AW138="غ",AX138<$AX$9),CH$5&" - ","")) ->  | CI138: =IF($C138="","",IF(OR(BE138<$BE$9,BE138="غ",BF138<$BF$9,BF138="غ",BG138<$BG$9),CI$5&" - ","")) ->  | CJ138: =IF($C138="","",IF(OR(BK138<$BK$9,BK138="غ",BL138<$BL$9),CJ$5&" - ","")) ->  | CK138: =IF($C138="","",IF(OR(BO138<$BO$9,BO138="غ",BP138<$BP$9),CK$5&" - ","")) ->  | CL138: =IF($C138="","",IF(BH138<$BH$9,CL$5,"")) ->  | CN138: =IF($C138="","",SUM(H138,L138,P138,T138,X138,AB138,AF138,AJ138,AN138,AR138,AV138,BA138,BB138)) -> 
A139: 130 | B139: 630 | C139: طالبة تسويق 130 | D139: 3/2 | E139: مستجدة | F139: 754 | G139: 8.5 | H139: 10.5 | I139: 10.5 | J139: =SUM(G139:I139) -> 29.5 | K139: 9 | L139: 12.8 | M139: 14 | N139: 35.8 | O139: 4.5 | P139: 6.8 | Q139: 8.4 | R139: 19.7 | S139: 8 | T139: 0 | U139: 7.5 | V139: 15.5 | W139: 9 | X139: 16 | Y139: 13 | Z139: 38 | AA139: ='[1]شعبة التسزيق'!AJ139 ->  | AB139: ='[1]شعبة التسزيق'!AK139 ->  | AC139: ='[1]شعبة التسزيق'!AL139 ->  | AE139: 8.5 | AF139: 11 | AG139: 8 | AH139: 27.5 | AI139: 9 | AJ139: 7 | AK139: 14.5 | AL139: 30.5 | AM139: 9 | AN139: 7 | AO139: 5 | AP139: 21 | AQ139: 8.5 | AR139: 14 | AS139: 13 | AT139: 35.5 | AU139: 9 | AV139: 8 | AW139: 16 | AX139: 33 | AY139: 3 | AZ139: 4 | BA139: 6 | BB139: 5.5 | BC139: 5 | BD139: 7 | BE139: 14 | BF139: 16.5 | BG139: 30.5 | BI139: ='[1]شعبة التسزيق'!BS139 ->  | BJ139: ='[1]شعبة التسزيق'!BT139 ->  | BK139: ='[1]شعبة التسزيق'!BU139 ->  | BM139: ='[1]شعبة التسزيق'!BW139 ->  | BN139: ='[1]شعبة التسزيق'!BX139 ->  | BO139: ='[1]شعبة التسزيق'!BY139 ->  | BQ139: راسبة | BS139: 5 | CA139: محاسبة -
A140: 131 | B140: 631 | C140: طالبة تسويق 131 | D140: 3/2 | E140: مستجدة | F140: 755 | G140: 8.5 | H140: 11 | I140: 12.5 | J140: 32 | K140: 7 | L140: 12.4 | M140: 14.4 | N140: 33.8 | O140: 4.5 | P140: 7.6 | Q140: 8.4 | R140: 20.5 | S140: 8 | T140: 8 | U140: 10 | V140: 26 | W140: 9 | X140: 17 | Y140: 16 | Z140: 42 | AA140: ='[1]شعبة التسزيق'!AJ140 ->  | AB140: ='[1]شعبة التسزيق'!AK140 ->  | AC140: ='[1]شعبة التسزيق'!AL140 ->  | AE140: 8.5 | AF140: 9 | AG140: 18 | AH140: 35.5 | AI140: 9 | AJ140: 12 | AK140: 13.5 | AL140: 34.5 | AM140: 8.5 | AN140: 6 | AO140: 7 | AP140: 21.5 | AQ140: 9 | AR140: 10 | AS140: 16 | AT140: 35 | AU140: 9 | AV140: 5 | AW140: 12 | AX140: 26 | AY140: 3 | AZ140: 4 | BA140: 4 | BB140: 5 | BC140: 6 | BD140: 7 | BE140: 13 | BF140: 16 | BG140: 29 | BI140: ='[1]شعبة التسزيق'!BS140 ->  | BJ140: ='[1]شعبة التسزيق'!BT140 ->  | BK140: ='[1]شعبة التسزيق'!BU140 ->  | BM140: ='[1]شعبة التسزيق'!BW140 ->  | BN140: ='[1]شعبة التسزيق'!BX140 ->  | BO140: ='[1]شعبة التسزيق'!BY140 ->  | BQ140: راسبة | BS140: 4
A141: 132 | B141: 632 | C141: طالبة تسويق 132 | D141: 3/2 | E141: مستجدة | F141: 756 | G141: 8.5 | H141: 13.5 | I141: 13 | J141: 35 | K141: 8 | L141: 10 | M141: 15.2 | N141: 33.2 | O141: 4.5 | P141: 6.8 | Q141: 8.8 | R141: 20.1 | S141: 8 | T141: 6.5 | U141: 11.5 | V141: 26 | W141: 9 | X141: 19 | Y141: 16 | Z141: 44 | AA141: ='[1]شعبة التسزيق'!AJ141 ->  | AB141: ='[1]شعبة التسزيق'!AK141 ->  | AC141: ='[1]شعبة التسزيق'!AL141 ->  | AE141: 8.5 | AF141: 13 | AG141: 17 | AH141: 38.5 | AI141: 9 | AJ141: 12 | AK141: 17 | AL141: 38 | AM141: 8.5 | AN141: 6.5 | AO141: 10 | AP141: 25 | AQ141: 9 | AR141: 11 | AS141: 16 | AT141: 36 | AU141: 9 | AV141: 8 | AW141: 11 | AX141: 28 | AY141: 3 | AZ141: 4 | BA141: 6 | BB141: 3 | BC141: 5 | BD141: 8 | BE141: 14 | BF141: 15 | BG141: 29 | BI141: ='[1]شعبة التسزيق'!BS141 ->  | BJ141: ='[1]شعبة التسزيق'!BT141 ->  | BK141: ='[1]شعبة التسزيق'!BU141 ->  | BM141: ='[1]شعبة التسزيق'!BW141 ->  | BN141: ='[1]شعبة التسزيق'!BX141 ->  | BO141: ='[1]شعبة التسزيق'!BY141 ->  | BQ141: راسبة | BS141: 4
A142: 133 | B142: 633 | C142: طالبة تسويق 133 | D142: 3/2 | E142: مستجدة | F142: 757 | G142: 8 | H142: 11.5 | I142: 14 | J142: 33.5 | K142: 8.5 | L142: 13.6 | M142: 18 | N142: 40.1 | O142: 4.5 | P142: 6.8 | Q142: 8.4 | R142: 19.7 | S142: 8 | T142: 18 | U142: 15 | V142: 41 | W142: 9.5 | X142: 19 | Y142: 10 | Z142: 38.5 | AA142: ='[1]شعبة التسزيق'!AJ142 ->  | AB142: ='[1]شعبة التسزيق'!AK142 ->  | AC142: ='[1]شعبة التسزيق'!AL142 ->  | AE142: 8.5 | AF142: 13 | AG142: 11 | AH142: 32.5 | AI142: 9 | AJ142: 12 | AK142: 16.5 | AL142: 37.5 | AM142: 8.5 | AN142: 12.5 | AO142: 12.5 | AP142: 33.5 | AQ142: 9 | AR142: 9 | AS142: 15 | AT142: 33 | AU142: 9 | AV142: 8 | AW142: 17 | AX142: 34 | AY142: 3 | AZ142: 4 | BA142: 5 | BB142: 5 | BC142: 5 | BD142: 7 | BE142: 13 | BF142: 16 | BG142: 29 | BI142: ='[1]شعبة التسزيق'!BS142 ->  | BJ142: ='[1]شعبة التسزيق'!BT142 ->  | BK142: ='[1]شعبة التسزيق'!BU142 ->  | BM142: ='[1]شعبة التسزيق'!BW142 ->  | BN142: ='[1]شعبة التسزيق'!BX142 ->  | BO142: ='[1]شعبة التسزيق'!BY142 ->  | BQ142: راسبة | BS142: 4
A143: 134 | B143: 634 | C143: طالبة تسويق 134 | D143: 3/2 | E143: مستجدة | F143: 758 | G143: 8.5 | H143: 19 | I143: 13 | J143: 40.5 | K143: 7 | L143: 14.8 | M143: 16.8 | N143: 38.6 | O143: 4.5 | P143: 10.8 | Q143: 8.8 | R143: 24.1 | S143: 8 | T143: 16 | U143: 13 | V143: 37 | W143: 9 | X143: 17.5 | Y143: 11 | Z143: 37.5 | AA143: ='[1]شعبة التسزيق'!AJ143 ->  | AB143: ='[1]شعبة التسزيق'!AK143 ->  | AC143: ='[1]شعبة التسزيق'!AL143 ->  | AE143: 8.5 | AF143: 12 | AG143: 11 | AH143: 31.5 | AI143: 9 | AJ143: 18 | AK143: 10 | AL143: 37 | AM143: 9 | AN143: 10.5 | AO143: 12.5 | AP143: 32 | AQ143: 9 | AR143: 17.5 | AS143: 17 | AT143: 43.5 | AU143: 9 | AV143: 7 | AW143: 18 | AX143: 34 | AY143: 3 | AZ143: 4 | BA143: 5 | BB143: 10 | BC143: 5 | BD143: 8 | BE143: 13 | BF143: 22 | BG143: 35 | BI143: ='[1]شعبة التسزيق'!BS143 ->  | BJ143: ='[1]شعبة التسزيق'!BT143 ->  | BK143: ='[1]شعبة التسزيق'!BU143 ->  | BM143: ='[1]شعبة التسزيق'!BW143 ->  | BN143: ='[1]شعبة التسزيق'!BX143 ->  | BO143: ='[1]شعبة التسزيق'!BY143 ->  | BQ143: راسبة | BS143: 4
A144: 135 | B144: 635 | C144: طالبة تسويق 135 | D144: 3/2 | E144: مستجدة | F144: 759 | G144: 8.5 | H144: 12.5 | I144: 14.5 | J144: 35.5 | K144: 9.5 | L144: 16 | M144: 17.6 | N144: 43.1 | O144: 4.5 | P144: 7.2 | Q144: 8.4 | R144: 20.1 | S144: 8 | T144: 15.5 | U144: 15 | V144: 38.5 | W144: 9.5 | X144: 16 | Y144: 14 | Z144: 39.5 | AA144: ='[1]شعبة التسزيق'!AJ144 ->  | AB144: ='[1]شعبة التسزيق'!AK144 ->  | AC144: ='[1]شعبة التسزيق'!AL144 ->  | AE144: 8.5 | AF144: 12 | AG144: 7 | AH144: 27.5 | AI144: 9 | AJ144: 15.5 | AK144: 16.5 | AL144: 41 | AM144: 8.5 | AN144: 15 | AO144: 15 | AP144: 38.5 | AQ144: 9 | AR144: 12 | AS144: 13 | AT144: 34 | AU144: 9 | AV144: 10 | AW144: 16 | AX144: 35 | AY144: 3 | AZ144: 4 | BA144: 5 | BB144: 5 | BC144: 6 | BD144: 7 | BE144: 14 | BF144: 16 | BG144: 30 | BI144: ='[1]شعبة التسزيق'!BS144 ->  | BJ144: ='[1]شعبة التسزيق'!BT144 ->  | BK144: ='[1]شعبة التسزيق'!BU144 ->  | BM144: ='[1]شعبة التسزيق'!BW144 ->  | BN144: ='[1]شعبة التسزيق'!BX144 ->  | BO144: ='[1]شعبة التسزيق'!BY144 ->  | BQ144: راسبة | BS144: 4
A145: 136 | B145: 636 | C145: طالبة تسويق 136 | D145: 3/2 | E145: مستجدة | F145: 760 | G145: 8.5 | H145: 12.5 | I145: 15.5 | J145: 36.5 | K145: 8.5 | L145: 15.2 | M145: 17.2 | N145: 40.9 | O145: 4.5 | P145: 8 | Q145: 8 | R145: 20.5 | S145: 8 | T145: 5.5 | U145: 11.5 | V145: 25 | W145: 9 | X145: 17 | Y145: 11 | Z145: 37 | AA145: ='[1]شعبة التسزيق'!AJ145 ->  | AB145: ='[1]شعبة التسزيق'!AK145 ->  | AC145: ='[1]شعبة التسزيق'!AL145 ->  | AE145: 8.5 | AF145: 9 | AG145: 15 | AH145: 32.5 | AI145: 9 | AJ145: 13 | AK145: 11.5 | AL145: 33.5 | AM145: 9 | AN145: 14.5 | AO145: 7.5 | AP145: 31 | AQ145: 9 | AR145: 12 | AS145: 19 | AT145: 40 | AU145: 9 | AV145: 6 | AW145: 17 | AX145: 32 | AY145: 3 | AZ145: 4 | BA145: 6 | BB145: 6 | BC145: 5 | BD145: 7 | BE145: 14 | BF145: 17 | BG145: 31 | BI145: ='[1]شعبة التسزيق'!BS145 ->  | BJ145: ='[1]شعبة التسزيق'!BT145 ->  | BK145: ='[1]شعبة التسزيق'!BU145 ->  | BM145: ='[1]شعبة التسزيق'!BW145 ->  | BN145: ='[1]شعبة التسزيق'!BX145 ->  | BO145: ='[1]شعبة التسزيق'!BY145 ->  | BQ145: راسبة | BS145: 4
A146: 137 | B146: 637 | C146: طالبة تسويق 137 | D146: 3/2 | E146: مستجدة | F146: 761 | G146: 8.5 | H146: 11 | I146: 11.5 | J146: 31 | K146: 9 | L146: 14.4 | M146: 15.6 | N146: 39 | O146: 4.5 | P146: 7.2 | Q146: 7.6 | R146: 19.3 | S146: 8 | T146: 7 | U146: 5.5 | V146: 20.5 | W146: 9 | X146: 16 | Y146: 11 | Z146: 36 | AA146: ='[1]شعبة التسزيق'!AJ146 ->  | AB146: ='[1]شعبة التسزيق'!AK146 ->  | AC146: ='[1]شعبة التسزيق'!AL146 ->  | AE146: 8.5 | AF146: 9 | AG146: 7.5 | AH146: 25 | AI146: 9 | AJ146: 11 | AK146: 8.5 | AL146: 28.5 | AM146: 8.5 | AN146: 9.5 | AO146: 6 | AP146: 24 | AQ146: 9 | AR146: 10 | AS146: 15 | AT146: 34 | AU146: 9 | AV146: 7 | AW146: 12 | AX146: 28 | AY146: 3 | AZ146: 4 | BA146: 5 | BB146: 6 | BC146: 6 | BD146: 7 | BE146: 14 | BF146: 17 | BG146: 31 | BI146: ='[1]شعبة التسزيق'!BS146 ->  | BJ146: ='[1]شعبة التسزيق'!BT146 ->  | BK146: ='[1]شعبة التسزيق'!BU146 ->  | BM146: ='[1]شعبة التسزيق'!BW146 ->  | BN146: ='[1]شعبة التسزيق'!BX146 ->  | BO146: ='[1]شعبة التسزيق'!BY146 ->  | BQ146: راسبة | BS146: 5 | CA146: محاسبة -
A147: 138 | B147: 638 | C147: طالبة تسويق 138 | D147: 3/2 | E147: مستجدة | F147: 762 | G147: 8.5 | H147: 13.5 | I147: 13.5 | J147: 35.5 | K147: 8 | L147: 14.4 | M147: 17.6 | N147: 40 | O147: 4.5 | P147: 7.2 | Q147: 8.4 | R147: 20.1 | S147: 8 | T147: 15 | U147: 15.5 | V147: 38.5 | W147: 9 | X147: 19 | Y147: 10 | Z147: 38 | AA147: ='[1]شعبة التسزيق'!AJ147 ->  | AB147: ='[1]شعبة التسزيق'!AK147 ->  | AC147: ='[1]شعبة التسزيق'!AL147 ->  | AE147: 8.5 | AF147: 8 | AG147: 8.5 | AH147: 25 | AI147: 9 | AJ147: 14 | AK147: 16 | AL147: 39 | AM147: 8.5 | AN147: 8.5 | AO147: 7 | AP147: 24 | AQ147: 9 | AR147: 13 | AS147: 14 | AT147: 36 | AU147: 9 | AV147: 7 | AW147: 16 | AX147: 32 | AY147: 3 | AZ147: 4 | BA147: 5 | BB147: 5 | BC147: 5 | BD147: 7 | BE147: 13 | BF147: 16 | BG147: 29 | BI147: ='[1]شعبة التسزيق'!BS147 ->  | BJ147: ='[1]شعبة التسزيق'!BT147 ->  | BK147: ='[1]شعبة التسزيق'!BU147 ->  | BM147: ='[1]شعبة التسزيق'!BW147 ->  | BN147: ='[1]شعبة التسزيق'!BX147 ->  | BO147: ='[1]شعبة التسزيق'!BY147 ->  | BQ147: راسبة | BS147: 4
A148: 139 | B148: 639 | C148: طالبة تسويق 139 | D148: 3/2 | E148: مستجدة | F148: 763 | G148: 8.5 | H148: 11.5 | I148: 11.5 | J148: 31.5 | K148: 8 | L148: 10 | M148: 15.6 | N148: 33.6 | O148: 4.5 | P148: 4.4 | Q148: 8 | R148: 16.9 | S148: 8 | T148: 11 | U148: 7 | V148: 26 | W148: 9.5 | X148: 18 | Y148: 17 | Z148: 44.5 | AA148: ='[1]شعبة التسزيق'!AJ148 ->  | AB148: ='[1]شعبة التسزيق'!AK148 ->  | AC148: ='[1]شعبة التسزيق'!AL148 ->  | AE148: 8.5 | AF148: 17 | AG148: 15 | AH148: 40.5 | AI148: 9 | AJ148: 19 | AK148: 13 | AL148: 41 | AM148: 8 | AN148: 11.5 | AO148: 10 | AP148: 29.5 | AQ148: 9 | AR148: 12 | AS148: 15 | AT148: 36 | AU148: 9 | AV148: 15 | AW148: 13 | AX148: 37 | AY148: 3 | AZ148: 4 | BA148: 6 | BB148: 5 | BC148: 6 | BD148: 6 | BE148: 15 | BF148: 15 | BG148: 30 | BI148: ='[1]شعبة التسزيق'!BS148 ->  | BJ148: ='[1]شعبة التسزيق'!BT148 ->  | BK148: ='[1]شعبة التسزيق'!BU148 ->  | BM148: ='[1]شعبة التسزيق'!BW148 ->  | BN148: ='[1]شعبة التسزيق'!BX148 ->  | BO148: ='[1]شعبة التسزيق'!BY148 ->  | BQ148: راسبة | BS148: 4
A149: 140 | B149: 640 | C149: طالبة تسويق 140 | D149: 3/2 | E149: مستجدة | F149: 764 | G149: 8.5 | H149: 10.5 | I149: 14.5 | J149: 33.5 | K149: 9.5 | L149: 12 | M149: 17.2 | N149: 38.7 | O149: 4.5 | P149: 6.8 | Q149: 8.8 | R149: 20.1 | S149: 8 | T149: 10 | U149: 11.5 | V149: 29.5 | W149: 9 | X149: 19 | Y149: 18 | Z149: 46 | AA149: ='[1]شعبة التسزيق'!AJ149 ->  | AB149: ='[1]شعبة التسزيق'!AK149 ->  | AC149: ='[1]شعبة التسزيق'!AL149 ->  | AE149: 8.5 | AF149: 19 | AG149: 19 | AH149: 46.5 | AI149: 9 | AJ149: 17 | AK149: 14.5 | AL149: 40.5 | AM149: 8.5 | AN149: 16.5 | AO149: 13 | AP149: 38 | AQ149: 9 | AR149: 15 | AS149: 15 | AT149: 39 | AU149: 9 | AV149: 12 | AW149: 14 | AX149: 35 | AY149: 3 | AZ149: 4 | BA149: 5 | BB149: 7 | BC149: 5 | BD149: 8 | BE149: 13 | BF149: 19 | BG149: 32 | BI149: ='[1]شعبة التسزيق'!BS149 ->  | BJ149: ='[1]شعبة التسزيق'!BT149 ->  | BK149: ='[1]شعبة التسزيق'!BU149 ->  | BM149: ='[1]شعبة التسزيق'!BW149 ->  | BN149: ='[1]شعبة التسزيق'!BX149 ->  | BO149: ='[1]شعبة التسزيق'!BY149 ->  | BQ149: راسبة | BS149: 4
A150: 141 | B150: 641 | C150: طالبة تسويق 141 | D150: 3/2 | E150: مستجدة | F150: 765 | G150: 8.5 | H150: 11.5 | I150: 12 | J150: 32 | K150: 7 | L150: 7.6 | M150: 17.2 | N150: 31.8 | O150: 4.5 | P150: 4.4 | Q150: 8.8 | R150: 17.7 | S150: 8 | T150: 6 | U150: 11 | V150: 25 | W150: 9 | X150: 19 | Y150: 18 | Z150: 46 | AA150: ='[1]شعبة التسزيق'!AJ150 ->  | AB150: ='[1]شعبة التسزيق'!AK150 ->  | AC150: ='[1]شعبة التسزيق'!AL150 ->  | AE150: 8.5 | AF150: 17 | AG150: 19 | AH150: 44.5 | AI150: 9 | AJ150: 19.5 | AK150: 15 | AL150: 43.5 | AM150: 9 | AN150: 12.5 | AO150: 8.5 | AP150: 30 | AQ150: 9 | AR150: 12 | AS150: 18 | AT150: 39 | AU150: 9 | AV150: 12 | AW150: 14 | AX150: 35 | AY150: 3 | AZ150: 4 | BA150: 5 | BB150: 6 | BC150: 5 | BD150: 8 | BE150: 13 | BF150: 18 | BG150: 31 | BI150: ='[1]شعبة التسزيق'!BS150 ->  | BJ150: ='[1]شعبة التسزيق'!BT150 ->  | BK150: ='[1]شعبة التسزيق'!BU150 ->  | BM150: ='[1]شعبة التسزيق'!BW150 ->  | BN150: ='[1]شعبة التسزيق'!BX150 ->  | BO150: ='[1]شعبة التسزيق'!BY150 ->  | BQ150: راسبة | BS150: 4
A151: 142 | B151: 642 | C151: طالبة تسويق 142 | D151: 3/2 | E151: مستجدة | F151: 766 | G151: 8.5 | H151: 10.5 | I151: 13.5 | J151: 32.5 | K151: 9 | L151: 14.8 | M151: 16.4 | N151: 40.2 | O151: 4.5 | P151: 4.4 | Q151: 7.2 | R151: 16.1 | S151: 8 | T151: 5.5 | U151: 11.5 | V151: 25 | W151: 9 | X151: 16 | Y151: 16 | Z151: 41 | AA151: ='[1]شعبة التسزيق'!AJ151 ->  | AB151: ='[1]شعبة التسزيق'!AK151 ->  | AC151: ='[1]شعبة التسزيق'!AL151 ->  | AE151: 8.5 | AF151: 19 | AG151: 19 | AH151: 46.5 | AI151: 9 | AJ151: 18 | AK151: 11 | AL151: 38 | AM151: 9 | AN151: 15.5 | AO151: 10.5 | AP151: 35 | AQ151: 9 | AR151: 12 | AS151: 18 | AT151: 39 | AU151: 9 | AV151: 17 | AW151: 11 | AX151: 37 | AY151: 3 | AZ151: 4 | BA151: 5 | BB151: 7 | BC151: 6 | BD151: 6 | BE151: 14 | BF151: 17 | BG151: 31 | BI151: ='[1]شعبة التسزيق'!BS151 ->  | BJ151: ='[1]شعبة التسزيق'!BT151 ->  | BK151: ='[1]شعبة التسزيق'!BU151 ->  | BM151: ='[1]شعبة التسزيق'!BW151 ->  | BN151: ='[1]شعبة التسزيق'!BX151 ->  | BO151: ='[1]شعبة التسزيق'!BY151 ->  | BQ151: راسبة | BS151: 4
A152: 143 | B152: 643 | C152: طالبة تسويق 143 | D152: 3/2 | E152: مستجدة | F152: 767 | G152: 8.5 | H152: 10.5 | I152: 13 | J152: 32 | K152: 9.5 | L152: 12.4 | M152: 17.6 | N152: 39.5 | O152: 4.5 | P152: 5.6 | Q152: 8 | R152: 18.1 | S152: 8 | T152: 9.5 | U152: 11.5 | V152: 29 | W152: 9.5 | X152: 16 | Y152: 16 | Z152: 41.5 | AA152: ='[1]شعبة التسزيق'!AJ152 ->  | AB152: ='[1]شعبة التسزيق'!AK152 ->  | AC152: ='[1]شعبة التسزيق'!AL152 ->  | AE152: 8.5 | AF152: 19 | AG152: 18 | AH152: 45.5 | AI152: 9 | AJ152: 17.5 | AK152: 12.5 | AL152: 39 | AM152: 8.5 | AN152: 15.5 | AO152: 13 | AP152: 37 | AQ152: 9.5 | AR152: 17 | AS152: 18 | AT152: 44.5 | AU152: 9 | AV152: 16 | AW152: 12 | AX152: 37 | AY152: 3 | AZ152: 4 | BA152: 5 | BB152: 7 | BC152: 6 | BD152: 6 | BE152: 14 | BF152: 17 | BG152: 31 | BI152: ='[1]شعبة التسزيق'!BS152 ->  | BJ152: ='[1]شعبة التسزيق'!BT152 ->  | BK152: ='[1]شعبة التسزيق'!BU152 ->  | BM152: ='[1]شعبة التسزيق'!BW152 ->  | BN152: ='[1]شعبة التسزيق'!BX152 ->  | BO152: ='[1]شعبة التسزيق'!BY152 ->  | BQ152: راسبة | BS152: 4
A153: 144 | B153: 644 | C153: طالبة تسويق 144 | D153: 3/2 | E153: مستجدة | F153: 768 | G153: 8.5 | H153: 12 | I153: 14.5 | J153: 35 | K153: 8.5 | L153: 14 | M153: 16.8 | N153: 39.3 | O153: 4.5 | P153: 6.4 | Q153: 8.4 | R153: 19.3 | S153: 8 | T153: 14 | U153: 8 | V153: 30 | W153: 9 | X153: 17 | Y153: 16 | Z153: 42 | AA153: ='[1]شعبة التسزيق'!AJ153 ->  | AB153: ='[1]شعبة التسزيق'!AK153 ->  | AC153: ='[1]شعبة التسزيق'!AL153 ->  | AE153: 8.5 | AF153: 15 | AG153: 16 | AH153: 39.5 | AI153: 9 | AJ153: 20 | AK153: 15 | AL153: 44 | AM153: 8.5 | AN153: 13.5 | AO153: 11 | AP153: 33 | AQ153: 9.5 | AR153: 16 | AS153: 17 | AT153: 42.5 | AU153: 9 | AV153: 11 | AW153: 13 | AX153: 33 | AY153: 3 | AZ153: 4 | BA153: 6 | BB153: 7 | BC153: 5 | BD153: 7 | BE153: 14 | BF153: 18 | BG153: 32 | BI153: ='[1]شعبة التسزيق'!BS153 ->  | BJ153: ='[1]شعبة التسزيق'!BT153 ->  | BK153: ='[1]شعبة التسزيق'!BU153 ->  | BM153: ='[1]شعبة التسزيق'!BW153 ->  | BN153: ='[1]شعبة التسزيق'!BX153 ->  | BO153: ='[1]شعبة التسزيق'!BY153 ->  | BQ153: راسبة | BS153: 4
A154: 145 | B154: 645 | C154: طالبة تسويق 145 | D154: 3/2 | E154: مستجدة | F154: 769 | G154: 8.5 | H154: 12.5 | I154: 15.5 | J154: 36.5 | K154: 9.5 | L154: 14.4 | M154: 16.4 | N154: 40.3 | O154: 4.5 | P154: 6.8 | Q154: 8.8 | R154: 20.1 | S154: 8 | T154: 14.5 | U154: 12.5 | V154: 35 | W154: 9.5 | X154: 19 | Y154: 17 | Z154: 45.5 | AA154: ='[1]شعبة التسزيق'!AJ154 ->  | AB154: ='[1]شعبة التسزيق'!AK154 ->  | AC154: ='[1]شعبة التسزيق'!AL154 ->  | AE154: 8.5 | AF154: 14 | AG154: 18 | AH154: 40.5 | AI154: 9 | AJ154: 20 | AK154: 15.5 | AL154: 44.5 | AM154: 8.5 | AN154: 13 | AO154: 11.5 | AP154: 33 | AQ154: 9.5 | AR154: 17 | AS154: 18 | AT154: 44.5 | AU154: 9 | AV154: 16 | AW154: 10 | AX154: 35 | AY154: 3 | AZ154: 4 | BA154: 5 | BB154: 7 | BC154: 6 | BD154: 7 | BE154: 14 | BF154: 18 | BG154: 32 | BI154: ='[1]شعبة التسزيق'!BS154 ->  | BJ154: ='[1]شعبة التسزيق'!BT154 ->  | BK154: ='[1]شعبة التسزيق'!BU154 ->  | BM154: ='[1]شعبة التسزيق'!BW154 ->  | BN154: ='[1]شعبة التسزيق'!BX154 ->  | BO154: ='[1]شعبة التسزيق'!BY154 ->  | BQ154: راسبة | BS154: 4
A155: 146 | B155: 646 | C155: طالبة تسويق 146 | D155: 3/2 | E155: مستجدة | F155: 770 | G155: 8.5 | H155: 12.5 | I155: 16.5 | J155: 37.5 | K155: 9.5 | L155: 14.8 | M155: 17.6 | N155: 41.9 | O155: 4.5 | P155: 6.4 | Q155: 8 | R155: 18.9 | S155: 8 | T155: 10 | U155: 11 | V155: 29 | W155: 9 | X155: 17 | Y155: 16 | Z155: 42 | AA155: ='[1]شعبة التسزيق'!AJ155 ->  | AB155: ='[1]شعبة التسزيق'!AK155 ->  | AC155: ='[1]شعبة التسزيق'!AL155 ->  | AE155: 8.5 | AF155: 19 | AG155: 18 | AH155: 45.5 | AI155: 9 | AJ155: 19 | AK155: 13 | AL155: 41 | AM155: 9 | AN155: 17.5 | AO155: 12.5 | AP155: 39 | AQ155: 9.5 | AR155: 17 | AS155: 17 | AT155: 43.5 | AU155: 9 | AV155: 15 | AW155: 13 | AX155: 37 | AY155: 3 | AZ155: 4 | BA155: 6 | BB155: 7 | BC155: 6 | BD155: 7 | BE155: 15 | BF155: 18 | BG155: 33 | BI155: ='[1]شعبة التسزيق'!BS155 ->  | BJ155: ='[1]شعبة التسزيق'!BT155 ->  | BK155: ='[1]شعبة التسزيق'!BU155 ->  | BM155: ='[1]شعبة التسزيق'!BW155 ->  | BN155: ='[1]شعبة التسزيق'!BX155 ->  | BO155: ='[1]شعبة التسزيق'!BY155 ->  | BQ155: راسبة | BS155: 4
A156: 147 | B156: 647 | C156: طالبة تسويق 147 | D156: 3/2 | E156: مستجدة | F156: 771 | G156: 8.5 | H156: 10 | I156: 12 | J156: 30.5 | K156: 9.5 | L156: 13.6 | M156: 16 | N156: 39.1 | O156: 4.5 | P156: 5.6 | Q156: 7.2 | R156: 17.3 | S156: 8 | T156: 12.5 | U156: 14 | V156: 34.5 | W156: 9 | X156: 19 | Y156: 13 | Z156: 41 | AA156: ='[1]شعبة التسزيق'!AJ156 ->  | AB156: ='[1]شعبة التسزيق'!AK156 ->  | AC156: ='[1]شعبة التسزيق'!AL156 ->  | AE156: 8.5 | AF156: 19 | AG156: 18 | AH156: 45.5 | AI156: 9 | AJ156: 16.5 | AK156: 15 | AL156: 40.5 | AM156: 8.5 | AN156: 14.5 | AO156: 10.5 | AP156: 33.5 | AQ156: 9 | AR156: 13 | AS156: 18 | AT156: 40 | AU156: 9 | AV156: 15 | AW156: 12 | AX156: 36 | AY156: 3 | AZ156: 4 | BA156: 5 | BB156: 7 | BC156: 5 | BD156: 7 | BE156: 13 | BF156: 18 | BG156: 31 | BI156: ='[1]شعبة التسزيق'!BS156 ->  | BJ156: ='[1]شعبة التسزيق'!BT156 ->  | BK156: ='[1]شعبة التسزيق'!BU156 ->  | BM156: ='[1]شعبة التسزيق'!BW156 ->  | BN156: ='[1]شعبة التسزيق'!BX156 ->  | BO156: ='[1]شعبة التسزيق'!BY156 ->  | BQ156: راسبة | BS156: 4
A157: 148 | B157: 648 | C157: طالبة تسويق 148 | D157: 3/2 | E157: مستجدة | F157: 772 | G157: 8.5 | H157: 12.5 | I157: 13.5 | J157: 34.5 | K157: 8.5 | L157: 16.4 | M157: 16 | N157: 40.9 | O157: 4.5 | P157: 5.6 | Q157: 8 | R157: 18.1 | S157: 8 | T157: 12.5 | U157: 13.5 | V157: 34 | W157: 9 | X157: 18 | Y157: 16 | Z157: 43 | AA157: ='[1]شعبة التسزيق'!AJ157 ->  | AB157: ='[1]شعبة التسزيق'!AK157 ->  | AC157: ='[1]شعبة التسزيق'!AL157 ->  | AE157: 8.5 | AF157: 18 | AG157: 15 | AH157: 41.5 | AI157: 9 | AJ157: 15 | AK157: 11 | AL157: 35 | AM157: 8.5 | AN157: 15 | AO157: 12 | AP157: 35.5 | AQ157: 9 | AR157: 16 | AS157: 18 | AT157: 43 | AU157: 9 | AV157: 14 | AW157: 13 | AX157: 36 | AY157: 3 | AZ157: 4 | BA157: 5 | BB157: 6 | BC157: 6 | BD157: 7 | BE157: 14 | BF157: 17 | BG157: 31 | BI157: ='[1]شعبة التسزيق'!BS157 ->  | BJ157: ='[1]شعبة التسزيق'!BT157 ->  | BK157: ='[1]شعبة التسزيق'!BU157 ->  | BM157: ='[1]شعبة التسزيق'!BW157 ->  | BN157: ='[1]شعبة التسزيق'!BX157 ->  | BO157: ='[1]شعبة التسزيق'!BY157 ->  | BQ157: راسبة | BS157: 4
A158: 149 | B158: 649 | C158: طالبة تسويق 149 | D158: 3/2 | E158: مستجدة | F158: 773 | G158: 8.5 | H158: 12.5 | I158: 13 | J158: 34 | K158: 9.5 | L158: 18 | M158: 17.2 | N158: 44.7 | O158: 4.5 | P158: 6.8 | Q158: 9.2 | R158: 20.5 | S158: 8 | T158: 16 | U158: 14 | V158: 38 | W158: 9 | X158: 19 | Y158: 16 | Z158: 44 | AA158: ='[1]شعبة التسزيق'!AJ158 ->  | AB158: ='[1]شعبة التسزيق'!AK158 ->  | AC158: ='[1]شعبة التسزيق'!AL158 ->  | AE158: 8.5 | AF158: 19 | AG158: 20 | AH158: 47.5 | AI158: 9 | AJ158: 17 | AK158: 16.5 | AL158: 42.5 | AM158: 9 | AN158: 15 | AO158: 16 | AP158: 40 | AQ158: 9.5 | AR158: 16 | AS158: 19 | AT158: 44.5 | AU158: 9 | AV158: 18 | AW158: 14 | AX158: 41 | AY158: 3 | AZ158: 4 | BA158: 6 | BB158: 7 | BC158: 5 | BD158: 7 | BE158: 14 | BF158: 18 | BG158: 32 | BI158: ='[1]شعبة التسزيق'!BS158 ->  | BJ158: ='[1]شعبة التسزيق'!BT158 ->  | BK158: ='[1]شعبة التسزيق'!BU158 ->  | BM158: ='[1]شعبة التسزيق'!BW158 ->  | BN158: ='[1]شعبة التسزيق'!BX158 ->  | BO158: ='[1]شعبة التسزيق'!BY158 ->  | BQ158: راسبة | BS158: 4
A159: 150 | B159: 650 | C159: طالبة تسويق 150 | D159: 3/2 | E159: مستجدة | F159: 774 | G159: 8.5 | H159: 13.5 | I159: 14 | J159: 36 | K159: 7.5 | L159: 15.2 | M159: 16.8 | N159: 39.5 | O159: 4.5 | P159: 4 | Q159: 10 | R159: 18.5 | S159: 8 | T159: 14 | U159: 15 | V159: 37 | W159: 9.5 | X159: 16 | Y159: 16 | Z159: 41.5 | AA159: ='[1]شعبة التسزيق'!AJ159 ->  | AB159: ='[1]شعبة التسزيق'!AK159 ->  | AC159: ='[1]شعبة التسزيق'!AL159 ->  | AE159: 8.5 | AF159: 19 | AG159: 19 | AH159: 46.5 | AI159: 9 | AJ159: 16 | AK159: 13 | AL159: 38 | AM159: 9 | AN159: 17.5 | AO159: 12 | AP159: 38.5 | AQ159: 9 | AR159: 12 | AS159: 18 | AT159: 39 | AU159: 9 | AV159: 18 | AW159: 15 | AX159: 42 | AY159: 3 | AZ159: 4 | BA159: 5 | BB159: 6 | BC159: 6 | BD159: 8 | BE159: 14 | BF159: 18 | BG159: 32 | BI159: ='[1]شعبة التسزيق'!BS159 ->  | BJ159: ='[1]شعبة التسزيق'!BT159 ->  | BK159: ='[1]شعبة التسزيق'!BU159 ->  | BM159: ='[1]شعبة التسزيق'!BW159 ->  | BN159: ='[1]شعبة التسزيق'!BX159 ->  | BO159: ='[1]شعبة التسزيق'!BY159 ->  | BQ159: راسبة | BS159: 4
A160: 151 | B160: 651 | C160: طالبة تسويق 151 | D160: 3/2 | E160: مستجدة | F160: 775 | G160: 8.5 | H160: 14.5 | I160: 15.5 | J160: 38.5 | K160: 7 | L160: 15.2 | M160: 18 | N160: 40.2 | O160: 4.5 | P160: 5.2 | Q160: 8.4 | R160: 18.1 | S160: 8 | T160: 15 | U160: 14.5 | V160: 37.5 | W160: 9 | X160: 19 | Y160: 14 | Z160: 42 | AA160: ='[1]شعبة التسزيق'!AJ160 ->  | AB160: ='[1]شعبة التسزيق'!AK160 ->  | AC160: ='[1]شعبة التسزيق'!AL160 ->  | AE160: 8.5 | AF160: 18 | AG160: 18 | AH160: 44.5 | AI160: 9 | AJ160: 20 | AK160: 14 | AL160: 43 | AM160: 9 | AN160: 18 | AO160: 13.5 | AP160: 40.5 | AQ160: 9 | AR160: 14 | AS160: 19 | AT160: 42 | AU160: 9 | AV160: 18 | AW160: 14 | AX160: 41 | AY160: 3 | AZ160: 4 | BA160: 6 | BB160: 7 | BC160: 5 | BD160: 8 | BE160: 14 | BF160: 19 | BG160: 33 | BI160: ='[1]شعبة التسزيق'!BS160 ->  | BJ160: ='[1]شعبة التسزيق'!BT160 ->  | BK160: ='[1]شعبة التسزيق'!BU160 ->  | BM160: ='[1]شعبة التسزيق'!BW160 ->  | BN160: ='[1]شعبة التسزيق'!BX160 ->  | BO160: ='[1]شعبة التسزيق'!BY160 ->  | BQ160: راسبة | BS160: 4
A161: 152 | B161: 652 | C161: طالبة تسويق 152 | D161: 3/2 | E161: مستجدة | F161: 776 | G161: 8.5 | H161: 12.5 | I161: 13.5 | J161: 34.5 | K161: 7.5 | L161: 14 | M161: 16.8 | N161: 38.3 | O161: 4.5 | P161: 5.2 | Q161: 8.4 | R161: 18.1 | S161: 8 | T161: 13.5 | U161: 14.5 | V161: 36 | W161: 9 | X161: 19 | Y161: 15 | Z161: 43 | AA161: ='[1]شعبة التسزيق'!AJ161 ->  | AB161: ='[1]شعبة التسزيق'!AK161 ->  | AC161: ='[1]شعبة التسزيق'!AL161 ->  | AE161: 8.5 | AF161: 18 | AG161: 18 | AH161: 44.5 | AI161: 9 | AJ161: 20 | AK161: 11.5 | AL161: 40.5 | AM161: 8.5 | AN161: 17.5 | AO161: 12.5 | AP161: 38.5 | AQ161: 8.5 | AR161: 15 | AS161: 18 | AT161: 41.5 | AU161: 9 | AV161: 18 | AW161: 13 | AX161: 40 | AY161: 3 | AZ161: 4 | BA161: 6 | BB161: 7 | BC161: 6 | BD161: 8 | BE161: 15 | BF161: 19 | BG161: 34 | BI161: ='[1]شعبة التسزيق'!BS161 ->  | BJ161: ='[1]شعبة التسزيق'!BT161 ->  | BK161: ='[1]شعبة التسزيق'!BU161 ->  | BM161: ='[1]شعبة التسزيق'!BW161 ->  | BN161: ='[1]شعبة التسزيق'!BX161 ->  | BO161: ='[1]شعبة التسزيق'!BY161 ->  | BQ161: راسبة | BS161: 4
A162: 153 | B162: 653 | C162: طالبة تسويق 153 | D162: 3/2 | E162: مستجدة | F162: 777 | G162: 8.5 | H162: 12.5 | I162: 15.5 | J162: 36.5 | K162: 8.5 | L162: 15.2 | M162: 17.6 | N162: 41.3 | O162: 4.5 | P162: 4.4 | Q162: 7.2 | R162: 16.1 | S162: 8 | T162: 16 | U162: 13.5 | V162: 37.5 | W162: 8 | X162: 19 | Y162: 16 | Z162: 43 | AA162: ='[1]شعبة التسزيق'!AJ162 ->  | AB162: ='[1]شعبة التسزيق'!AK162 ->  | AC162: ='[1]شعبة التسزيق'!AL162 ->  | AE162: 8.5 | AF162: 14 | AG162: 18 | AH162: 40.5 | AI162: 9 | AJ162: 20 | AK162: 15.5 | AL162: 44.5 | AM162: 8.5 | AN162: 13.5 | AO162: 11.5 | AP162: 33.5 | AQ162: 8.5 | AR162: 16 | AS162: 19 | AT162: 43.5 | AU162: 9 | AV162: 18 | AW162: 14 | AX162: 41 | AY162: 3 | AZ162: 4 | BA162: 5 | BB162: 7 | BC162: 5 | BD162: 8 | BE162: 13 | BF162: 19 | BG162: 32 | BI162: ='[1]شعبة التسزيق'!BS162 ->  | BJ162: ='[1]شعبة التسزيق'!BT162 ->  | BK162: ='[1]شعبة التسزيق'!BU162 ->  | BM162: ='[1]شعبة التسزيق'!BW162 ->  | BN162: ='[1]شعبة التسزيق'!BX162 ->  | BO162: ='[1]شعبة التسزيق'!BY162 ->  | BQ162: راسبة | BS162: 4
A163: 154 | B163: 654 | C163: طالبة تسويق 154 | D163: 3/2 | E163: مستجدة | F163: 778 | G163: 8.5 | H163: 10 | I163: 13.5 | J163: 32 | K163: 7 | L163: 10.4 | M163: 11.2 | N163: 28.6 | O163: 4.5 | P163: 6.4 | Q163: 8.4 | R163: 19.3 | S163: 8 | T163: 16 | U163: 14 | V163: 38 | W163: 8 | X163: 20 | Y163: 17 | Z163: 45 | AA163: ='[1]شعبة التسزيق'!AJ163 ->  | AB163: ='[1]شعبة التسزيق'!AK163 ->  | AC163: ='[1]شعبة التسزيق'!AL163 ->  | AE163: 8.5 | AF163: 17 | AG163: 17 | AH163: 42.5 | AI163: 9 | AJ163: 14.5 | AK163: 11.5 | AL163: 35 | AM163: 8.5 | AN163: 4 | AO163: 4.5 | AP163: 17 | AQ163: 9 | AR163: 12 | AS163: 13 | AT163: 34 | AU163: 9 | AV163: 16 | AW163: 10 | AX163: 35 | AY163: 3 | AZ163: 4 | BA163: 5 | BB163: 4.5 | BC163: 6 | BD163: 7 | BE163: 14 | BF163: 15.5 | BG163: 29.5 | BI163: ='[1]شعبة التسزيق'!BS163 ->  | BJ163: ='[1]شعبة التسزيق'!BT163 ->  | BK163: ='[1]شعبة التسزيق'!BU163 ->  | BM163: ='[1]شعبة التسزيق'!BW163 ->  | BN163: ='[1]شعبة التسزيق'!BX163 ->  | BO163: ='[1]شعبة التسزيق'!BY163 ->  | BQ163: راسبة | BS163: 5 | CF163: سكرتارية . ف -
A164: 155 | B164: 655 | C164: طالبة تسويق 155 | D164: منازل عمال | E164: مستجدة | F164: 779 | G164: 0 | H164: 14.5 | I164: 17.5 | J164: 32 | K164: 0 | L164: 18 | M164: 19.5 | N164: 37.5 | O164: 0 | P164: 9.5 | Q164: 11.5 | R164: 21 | S164: 0 | T164: 21.5 | U164: 19 | V164: 40.5 | W164: 0 | X164: 25 | Y164: 20 | Z164: 45 | AA164: ='[1]شعبة التسزيق'!AJ164 ->  | AB164: ='[1]شعبة التسزيق'!AK164 ->  | AC164: ='[1]شعبة التسزيق'!AL164 ->  | AF164: 22.5 | AG164: 16.5 | AH164: 39 | AI164: 0 | AJ164: 19.5 | AK164: 19 | AL164: 38.5 | AM164: 0 | AN164: 17.5 | AO164: 10 | AP164: 27.5 | AR164: 19 | AS164: 16.5 | AT164: 35.5 | AU164: 0 | AV164: 20 | AW164: 13.5 | AX164: 33.5 | BA164: 8 | BB164: 6.5 | BC164: 8 | BD164: 9 | BE164: 16 | BF164: 15.5 | BG164: 31.5 | BI164: ='[1]شعبة التسزيق'!BS164 ->  | BJ164: ='[1]شعبة التسزيق'!BT164 ->  | BK164: ='[1]شعبة التسزيق'!BU164 ->  | BM164: ='[1]شعبة التسزيق'!BW164 ->  | BN164: ='[1]شعبة التسزيق'!BX164 ->  | BO164: ='[1]شعبة التسزيق'!BY164 ->  | BQ164: راسبة | BS164: 4
A165: 156 | B165: 656 | C165: طالبة تسويق 156 | D165: منازل عمال | E165: مستجدة | F165: 780 | G165: 0 | H165: 12.5 | I165: 16.5 | J165: 29 | K165: 0 | L165: 18 | M165: 16.5 | N165: 34.5 | O165: 0 | P165: 8.5 | Q165: 11 | R165: 19.5 | S165: 0 | T165: 22.5 | U165: 17.5 | V165: 40 | W165: 0 | X165: 25 | Y165: 22.5 | Z165: 47.5 | AA165: ='[1]شعبة التسزيق'!AJ165 ->  | AB165: ='[1]شعبة التسزيق'!AK165 ->  | AC165: ='[1]شعبة التسزيق'!AL165 ->  | AF165: 19 | AG165: 19 | AH165: 38 | AI165: 0 | AJ165: 19.5 | AK165: 16.5 | AL165: 36 | AM165: 0 | AN165: 17 | AO165: 8.5 | AP165: 25.5 | AR165: 16.5 | AS165: 22.5 | AT165: 39 | AU165: 0 | AV165: 20 | AW165: 12.5 | AX165: 32.5 | AY165: 0 | AZ165: 0 | BA165: 7 | BB165: 6.5 | BC165: 7 | BD165: 9 | BE165: 14 | BF165: 15.5 | BG165: 29.5 | BI165: ='[1]شعبة التسزيق'!BS165 ->  | BJ165: ='[1]شعبة التسزيق'!BT165 ->  | BK165: ='[1]شعبة التسزيق'!BU165 ->  | BM165: ='[1]شعبة التسزيق'!BW165 ->  | BN165: ='[1]شعبة التسزيق'!BX165 ->  | BO165: ='[1]شعبة التسزيق'!BY165 ->  | BQ165: راسبة | BS165: 4
A166: 157 | B166: 657 | C166: طالبة تسويق 157 | D166: منازل عمال | E166: مستجدة | F166: 781 | G166: 0 | H166: 14.5 | I166: 23 | J166: 37.5 | K166: 0 | L166: 21.5 | M166: 21.5 | N166: 43 | O166: 0 | P166: 9.5 | Q166: 12 | R166: 21.5 | S166: 0 | T166: 23.5 | U166: 20 | V166: 43.5 | W166: 0 | X166: 25 | Y166: 20 | Z166: 45 | AA166: ='[1]شعبة التسزيق'!AJ166 ->  | AB166: ='[1]شعبة التسزيق'!AK166 ->  | AC166: ='[1]شعبة التسزيق'!AL166 ->  | AF166: 21.5 | AG166: 17.5 | AH166: 39 | AI166: 0 | AJ166: 19 | AK166: 16 | AL166: 35 | AM166: 0 | AN166: 17 | AO166: 10.5 | AP166: 27.5 | AR166: 19 | AS166: 17.5 | AT166: 36.5 | AU166: 0 | AV166: 20 | AW166: 12.5 | AX166: 32.5 | AY166: 0 | AZ166: 0 | BA166: 8 | BB166: 6.5 | BC166: 8 | BD166: 9 | BE166: 16 | BF166: 15.5 | BG166: 31.5 | BI166: ='[1]شعبة التسزيق'!BS166 ->  | BJ166: ='[1]شعبة التسزيق'!BT166 ->  | BK166: ='[1]شعبة التسزيق'!BU166 ->  | BM166: ='[1]شعبة التسزيق'!BW166 ->  | BN166: ='[1]شعبة التسزيق'!BX166 ->  | BO166: ='[1]شعبة التسزيق'!BY166 ->  | BQ166: راسبة | BS166: 4
A167: 158 | B167: 658 | C167: طالبة تسويق 158 | D167: منازل عمال | E167: مستجدة | F167: 782 | G167: 0 | H167: 17 | I167: 20 | J167: 37 | K167: 0 | L167: 13.5 | M167: 20.5 | N167: 34 | O167: 0 | P167: 8 | Q167: 11.5 | R167: 19.5 | S167: 0 | T167: 21.5 | U167: 16.5 | V167: 38 | W167: 0 | X167: 25 | Y167: 20 | Z167: 45 | AA167: ='[1]شعبة التسزيق'!AJ167 ->  | AB167: ='[1]شعبة التسزيق'!AK167 ->  | AC167: ='[1]شعبة التسزيق'!AL167 ->  | AF167: 22.5 | AG167: 19 | AH167: 41.5 | AI167: 0 | AJ167: 22 | AK167: 17 | AL167: 39 | AM167: 0 | AN167: 19.5 | AO167: 9.5 | AP167: 29 | AR167: 20 | AS167: 17.5 | AT167: 37.5 | AU167: 0 | AV167: 20 | AW167: 12.5 | AX167: 32.5 | AY167: 0 | AZ167: 0 | BA167: 7 | BB167: 6.5 | BC167: 8 | BD167: 9 | BE167: 15 | BF167: 15.5 | BG167: 30.5 | BI167: ='[1]شعبة التسزيق'!BS167 ->  | BJ167: ='[1]شعبة التسزيق'!BT167 ->  | BK167: ='[1]شعبة التسزيق'!BU167 ->  | BM167: ='[1]شعبة التسزيق'!BW167 ->  | BN167: ='[1]شعبة التسزيق'!BX167 ->  | BO167: ='[1]شعبة التسزيق'!BY167 ->  | BQ167: راسبة | BS167: 4
A168: 159 | B168: 659 | C168: طالبة تسويق 159 | D168: منازل عمال | E168: مستجدة | F168: 783 | G168: 0 | H168: 18 | I168: 20.5 | J168: 38.5 | K168: 0 | L168: 23 | M168: 21 | N168: 44 | O168: 0 | P168: 12 | Q168: 11.5 | R168: 23.5 | S168: 0 | T168: 20 | U168: 19 | V168: 39 | W168: 0 | X168: 25 | Y168: 20 | Z168: 45 | AA168: ='[1]شعبة التسزيق'!AJ168 ->  | AB168: ='[1]شعبة التسزيق'!AK168 ->  | AC168: ='[1]شعبة التسزيق'!AL168 ->  | AF168: 19 | AG168: 20 | AH168: 39 | AI168: 0 | AJ168: 24 | AK168: 19.5 | AL168: 43.5 | AM168: 0 | AN168: 19.5 | AO168: 10.5 | AP168: 30 | AR168: 19 | AS168: 24 | AT168: 43 | AU168: 0 | AV168: 20 | AW168: 17.5 | AX168: 37.5 | AY168: 0 | AZ168: 0 | BA168: 8 | BB168: 6.5 | BC168: 8 | BD168: 9 | BE168: 16 | BF168: 15.5 | BG168: 31.5 | BI168: ='[1]شعبة التسزيق'!BS168 ->  | BJ168: ='[1]شعبة التسزيق'!BT168 ->  | BK168: ='[1]شعبة التسزيق'!BU168 ->  | BM168: ='[1]شعبة التسزيق'!BW168 ->  | BN168: ='[1]شعبة التسزيق'!BX168 ->  | BO168: ='[1]شعبة التسزيق'!BY168 ->  | BQ168: راسبة | BS168: 4
A169: 160 | B169: 660 | C169: طالبة تسويق 160 | D169: منازل عمال | E169: مستجدة | F169: 784 | G169: 0 | H169: 15.5 | I169: 17.5 | J169: 33 | K169: 0 | L169: 20.5 | M169: 21 | N169: 41.5 | O169: 0 | P169: 10 | Q169: 11.5 | R169: 21.5 | S169: 0 | T169: 14.5 | U169: 19 | V169: 33.5 | W169: 0 | X169: 25 | Y169: 20 | Z169: 45 | AA169: ='[1]شعبة التسزيق'!AJ169 ->  | AB169: ='[1]شعبة التسزيق'!AK169 ->  | AC169: ='[1]شعبة التسزيق'!AL169 ->  | AF169: 22.5 | AG169: 16.5 | AH169: 39 | AI169: 0 | AJ169: 23 | AK169: 15 | AL169: 38 | AM169: 0 | AN169: 15 | AO169: 7.5 | AP169: 22.5 | AR169: 19 | AS169: 17.5 | AT169: 36.5 | AU169: 0 | AV169: 20 | AW169: 11.5 | AX169: 31.5 | AY169: 0 | AZ169: 0 | BA169: 8 | BB169: 6.5 | BC169: 8 | BD169: 9 | BE169: 16 | BF169: 15.5 | BG169: 31.5 | BI169: ='[1]شعبة التسزيق'!BS169 ->  | BJ169: ='[1]شعبة التسزيق'!BT169 ->  | BK169: ='[1]شعبة التسزيق'!BU169 ->  | BM169: ='[1]شعبة التسزيق'!BW169 ->  | BN169: ='[1]شعبة التسزيق'!BX169 ->  | BO169: ='[1]شعبة التسزيق'!BY169 ->  | BQ169: راسبة | BS169: 4
A170: 161 | B170: 661 | C170: طالبة تسويق 161 | D170: منازل عمال | E170: مستجدة | F170: 785 | G170: 0 | H170: 17 | I170: 20 | J170: 37 | K170: 0 | L170: 21.5 | M170: 20 | N170: 41.5 | O170: 0 | P170: 9.5 | Q170: 12 | R170: 21.5 | S170: 0 | T170: 17.5 | U170: 20 | V170: 37.5 | W170: 0 | X170: 24 | Y170: 19 | Z170: 43 | AA170: ='[1]شعبة التسزيق'!AJ170 ->  | AB170: ='[1]شعبة التسزيق'!AK170 ->  | AC170: ='[1]شعبة التسزيق'!AL170 ->  | AF170: 22.5 | AG170: 17.5 | AH170: 40 | AI170: 0 | AJ170: 23 | AK170: 15.5 | AL170: 38.5 | AM170: 0 | AN170: 17 | AO170: 8.5 | AP170: 25.5 | AR170: 19 | AS170: 18.5 | AT170: 37.5 | AU170: 0 | AV170: 19 | AW170: 12.5 | AX170: 31.5 | AY170: 0 | AZ170: 0 | BA170: 8 | BB170: 6.5 | BC170: 8 | BD170: 9 | BE170: 16 | BF170: 15.5 | BG170: 31.5 | BI170: ='[1]شعبة التسزيق'!BS170 ->  | BJ170: ='[1]شعبة التسزيق'!BT170 ->  | BK170: ='[1]شعبة التسزيق'!BU170 ->  | BM170: ='[1]شعبة التسزيق'!BW170 ->  | BN170: ='[1]شعبة التسزيق'!BX170 ->  | BO170: ='[1]شعبة التسزيق'!BY170 ->  | BQ170: راسبة | BS170: 4
A171: 162 | B171: 662 | C171: طالبة تسويق 162 | D171: منازل عمال | E171: مستجدة | F171: 786 | G171: 0 | H171: 12 | I171: 15 | J171: 27 | K171: 0 | L171: 14.5 | M171: 15.5 | N171: 30 | O171: 0 | P171: 7 | Q171: 10.5 | R171: 17.5 | S171: 0 | T171: 19 | U171: 19 | V171: 38 | W171: 0 | X171: 23 | Y171: 21.5 | Z171: 44.5 | AA171: ='[1]شعبة التسزيق'!AJ171 ->  | AB171: ='[1]شعبة التسزيق'!AK171 ->  | AC171: ='[1]شعبة التسزيق'!AL171 ->  | AF171: 20 | AG171: 16.5 | AH171: 36.5 | AI171: 0 | AJ171: 20 | AK171: 12.5 | AL171: 32.5 | AM171: 0 | AN171: 13 | AO171: 7.5 | AP171: 20.5 | AR171: 17.5 | AS171: 14.5 | AT171: 32 | AU171: 0 | AV171: 19 | AW171: 7.5 | AX171: 26.5 | AY171: 0 | AZ171: 0 | BA171: 8 | BB171: 6 | BC171: 7 | BD171: 10 | BE171: 15 | BF171: 16 | BG171: 31 | BI171: ='[1]شعبة التسزيق'!BS171 ->  | BJ171: ='[1]شعبة التسزيق'!BT171 ->  | BK171: ='[1]شعبة التسزيق'!BU171 ->  | BM171: ='[1]شعبة التسزيق'!BW171 ->  | BN171: ='[1]شعبة التسزيق'!BX171 ->  | BO171: ='[1]شعبة التسزيق'!BY171 ->  | BQ171: راسبة | BS171: 4
A172: 163 | B172: 663 | C172: طالبة تسويق 163 | D172: منازل عمال | E172: مستجدة | F172: 787 | G172: 0 | H172: 16.5 | I172: 19.5 | J172: 36 | K172: 0 | L172: 20 | M172: 19.5 | N172: 39.5 | O172: 0 | P172: 7 | Q172: 11 | R172: 18 | S172: 0 | T172: 19.5 | U172: 20 | V172: 39.5 | W172: 0 | X172: 25 | Y172: 21.5 | Z172: 46.5 | AA172: ='[1]شعبة التسزيق'!AJ172 ->  | AB172: ='[1]شعبة التسزيق'!AK172 ->  | AC172: ='[1]شعبة التسزيق'!AL172 ->  | AF172: 16.5 | AG172: 17.5 | AH172: 34 | AI172: 0 | AJ172: 19.5 | AK172: 17.5 | AL172: 37 | AM172: 0 | AN172: 14 | AO172: 6.5 | AP172: 20.5 | AR172: 19 | AS172: 17.5 | AT172: 36.5 | AU172: 0 | AV172: 20 | AW172: 12.5 | AX172: 32.5 | AY172: 0 | AZ172: 0 | BA172: 7 | BB172: 6.5 | BC172: 7 | BD172: 10 | BE172: 14 | BF172: 16.5 | BG172: 30.5 | BI172: ='[1]شعبة التسزيق'!BS172 ->  | BJ172: ='[1]شعبة التسزيق'!BT172 ->  | BK172: ='[1]شعبة التسزيق'!BU172 ->  | BM172: ='[1]شعبة التسزيق'!BW172 ->  | BN172: ='[1]شعبة التسزيق'!BX172 ->  | BO172: ='[1]شعبة التسزيق'!BY172 ->  | BQ172: راسبة | BS172: 4
A173: 164 | B173: 664 | C173: طالبة تسويق 164 | D173: منازل عمال | E173: مستجدة | F173: 788 | G173: 0 | H173: 10.5 | I173: 17.5 | J173: 28 | K173: 0 | L173: 12 | M173: 15 | N173: 27 | O173: 0 | P173: 7 | Q173: 10 | R173: 17 | S173: 0 | T173: 15 | U173: 19.5 | V173: 34.5 | W173: 0 | X173: 25 | Y173: 20 | Z173: 45 | AA173: ='[1]شعبة التسزيق'!AJ173 ->  | AB173: ='[1]شعبة التسزيق'!AK173 ->  | AC173: ='[1]شعبة التسزيق'!AL173 ->  | AF173: 20 | AG173: 14 | AH173: 34 | AI173: 0 | AJ173: 20 | AK173: 13.5 | AL173: 33.5 | AM173: 0 | AN173: 16.5 | AO173: 5 | AP173: 21.5 | AR173: 19 | AS173: 14 | AT173: 33 | AU173: 0 | AV173: 20 | AW173: 14 | AX173: 34 | AY173: 0 | AZ173: 0 | BA173: 8 | BB173: 6.5 | BC173: 8 | BD173: 10 | BE173: 16 | BF173: 16.5 | BG173: 32.5 | BI173: ='[1]شعبة التسزيق'!BS173 ->  | BJ173: ='[1]شعبة التسزيق'!BT173 ->  | BK173: ='[1]شعبة التسزيق'!BU173 ->  | BM173: ='[1]شعبة التسزيق'!BW173 ->  | BN173: ='[1]شعبة التسزيق'!BX173 ->  | BO173: ='[1]شعبة التسزيق'!BY173 ->  | BQ173: راسبة | BS173: 4
A174: 165 | B174: 665 | C174: طالبة تسويق 165 | D174: منازل عمال | E174: مستجدة | F174: 789 | G174: 0 | H174: 14 | I174: 14 | J174: 28 | K174: 0 | L174: 20 | M174: 18 | N174: 38 | O174: 0 | P174: 7 | Q174: 10.5 | R174: 17.5 | S174: 0 | T174: 14.5 | U174: 19.5 | V174: 34 | W174: 0 | X174: 25 | Y174: 20 | Z174: 45 | AA174: ='[1]شعبة التسزيق'!AJ174 ->  | AB174: ='[1]شعبة التسزيق'!AK174 ->  | AC174: ='[1]شعبة التسزيق'!AL174 ->  | AF174: 21.5 | AG174: 17.5 | AH174: 39 | AI174: 0 | AJ174: 19 | AK174: 13 | AL174: 32 | AM174: 0 | AN174: 12 | AO174: 8 | AP174: 20 | AR174: 20 | AS174: 16.5 | AT174: 36.5 | AU174: 0 | AV174: 19 | AW174: 12.5 | AX174: 31.5 | AY174: 0 | AZ174: 0 | BA174: 8 | BB174: 6.5 | BC174: 8 | BD174: 10 | BE174: 16 | BF174: 16.5 | BG174: 32.5 | BI174: ='[1]شعبة التسزيق'!BS174 ->  | BJ174: ='[1]شعبة التسزيق'!BT174 ->  | BK174: ='[1]شعبة التسزيق'!BU174 ->  | BM174: ='[1]شعبة التسزيق'!BW174 ->  | BN174: ='[1]شعبة التسزيق'!BX174 ->  | BO174: ='[1]شعبة التسزيق'!BY174 ->  | BQ174: راسبة | BS174: 4
C175: طالبة تسويق 166 | J175: 0 | N175: 0 | R175: 0 | S175: ='[1]شعبة التسزيق'!AB175 ->  | T175: ='[1]شعبة التسزيق'!AC175 ->  | U175: ='[1]شعبة التسزيق'!AD175 ->  | W175: ='[1]شعبة التسزيق'!AF175 ->  | X175: ='[1]شعبة التسزيق'!AG175 ->  | Y175: ='[1]شعبة التسزيق'!AH175 ->  | AD175: 0 | AH175: 0 | AL175: 0 | AP175: 0 | AT175: 0 | AX175: 0 | BE175: =IF($C175="","",SUM(AY175,BA175,BC175)) -> 0 | BF175: 0 | BG175: 0 | BI175: ='[1]شعبة التسزيق'!BS175 ->  | BJ175: ='[1]شعبة التسزيق'!BT175 ->  | BK175: ='[1]شعبة التسزيق'!BU175 ->  | BP175: 0 | BQ175: راسبة | BS175: 15 | BX175: عربى - | BY175: انجليزى - | BZ175: فرنسى - | CC175: رياضة مالية - | CD175: اقتصاد - | CE175: سكرتارية . ع - | CF175: سكرتارية . ف - | CG175: مشروعات - | CH175: مخازن - | CI175: حاسب - | CK175: دين -
C176: طالبة تسويق 167 | J176: 0 | K176: ='[1]شعبة التسزيق'!T176 ->  | L176: ='[1]شعبة التسزيق'!U176 ->  | M176: ='[1]شعبة التسزيق'!V176 ->  | R176: 0 | S176: ='[1]شعبة التسزيق'!AB176 ->  | T176: ='[1]شعبة التسزيق'!AC176 ->  | U176: ='[1]شعبة التسزيق'!AD176 ->  | Z176: 0 | AD176: 0 | AH176: 0 | AL176: 0 | AP176: 0 | AT176: 0 | AX176: 0 | BE176: 0 | BF176: 0 | BG176: 0 | BI176: ='[1]شعبة التسزيق'!BS176 ->  | BJ176: ='[1]شعبة التسزيق'!BT176 ->  | BK176: ='[1]شعبة التسزيق'!BU176 ->  | BP176: 0 | BQ176: راسبة | BS176: 15 | BX176: عربى - | BZ176: فرنسى - | CB176: احصاء - | CC176: رياضة مالية - | CD176: اقتصاد - | CE176: سكرتارية . ع - | CF176: سكرتارية . ف - | CG176: مشروعات - | CH176: مخازن - | CI176: حاسب - | CK176: دين -
C177: طالبة تسويق 168 | J177: 0 | K177: ='[1]شعبة التسزيق'!T177 ->  | L177: ='[1]شعبة التسزيق'!U177 ->  | M177: ='[1]شعبة التسزيق'!V177 ->  | R177: 0 | S177: ='[1]شعبة التسزيق'!AB177 ->  | T177: ='[1]شعبة التسزيق'!AC177 ->  | U177: ='[1]شعبة التسزيق'!AD177 ->  | Z177: 0 | AD177: 0 | AH177: 0 | AL177: 0 | AP177: 0 | AT177: 0 | AX177: 0 | BE177: 0 | BF177: 0 | BG177: 0 | BI177: ='[1]شعبة التسزيق'!BS177 ->  | BJ177: ='[1]شعبة التسزيق'!BT177 ->  | BK177: ='[1]شعبة التسزيق'!BU177 ->  | BP177: 0 | BQ177: راسبة | BS177: 15 | BX177: عربى - | BZ177: فرنسى - | CB177: احصاء - | CC177: رياضة مالية - | CD177: اقتصاد - | CE177: سكرتارية . ع - | CF177: سكرتارية . ف - | CG177: مشروعات - | CH177: مخازن - | CI177: حاسب - | CK177: دين -
C178: طالبة تسويق 169 | J178: 0 | K178: ='[1]شعبة التسزيق'!T178 ->  | L178: ='[1]شعبة التسزيق'!U178 ->  | M178: ='[1]شعبة التسزيق'!V178 ->  | R178: 0 | S178: ='[1]شعبة التسزيق'!AB178 ->  | T178: ='[1]شعبة التسزيق'!AC178 ->  | U178: ='[1]شعبة التسزيق'!AD178 ->  | Z178: 0 | AD178: 0 | AH178: 0 | AL178: 0 | AP178: 0 | AT178: 0 | AX178: 0 | BE178: 0 | BF178: 0 | BG178: 0 | BI178: ='[1]شعبة التسزيق'!BS178 ->  | BJ178: ='[1]شعبة التسزيق'!BT178 ->  | BK178: ='[1]شعبة التسزيق'!BU178 ->  | BP178: 0 | BQ178: راسبة | BS178: 15 | BX178: عربى - | BZ178: فرنسى - | CB178: احصاء - | CC178: رياضة مالية - | CD178: اقتصاد - | CE178: سكرتارية . ع - | CF178: سكرتارية . ف - | CG178: مشروعات - | CH178: مخازن - | CI178: حاسب - | CK178: دين -
C179: طالبة تسويق 170 | J179: 0 | K179: ='[1]شعبة التسزيق'!T179 ->  | L179: ='[1]شعبة التسزيق'!U179 ->  | M179: ='[1]شعبة التسزيق'!V179 ->  | R179: 0 | S179: ='[1]شعبة التسزيق'!AB179 ->  | T179: ='[1]شعبة التسزيق'!AC179 ->  | U179: ='[1]شعبة التسزيق'!AD179 ->  | Z179: 0 | AD179: 0 | AH179: 0 | AL179: 0 | AP179: 0 | AT179: 0 | AX179: 0 | BE179: 0 | BF179: 0 | BG179: 0 | BI179: ='[1]شعبة التسزيق'!BS179 ->  | BJ179: ='[1]شعبة التسزيق'!BT179 ->  | BK179: ='[1]شعبة التسزيق'!BU179 ->  | BP179: 0 | BQ179: راسبة | BS179: 15 | BX179: عربى - | BZ179: فرنسى - | CB179: احصاء - | CC179: رياضة مالية - | CD179: اقتصاد - | CE179: سكرتارية . ع - | CF179: سكرتارية . ف - | CG179: مشروعات - | CH179: مخازن - | CI179: حاسب - | CK179: دين -
C180: طالبة تسويق 171 | J180: 0 | K180: ='[1]شعبة التسزيق'!T180 ->  | L180: ='[1]شعبة التسزيق'!U180 ->  | M180: ='[1]شعبة التسزيق'!V180 ->  | R180: 0 | S180: ='[1]شعبة التسزيق'!AB180 ->  | T180: ='[1]شعبة التسزيق'!AC180 ->  | U180: ='[1]شعبة التسزيق'!AD180 ->  | Z180: 0 | AD180: 0 | AH180: 0 | AL180: 0 | AP180: 0 | AT180: 0 | AX180: 0 | BE180: 0 | BF180: 0 | BG180: 0 | BI180: ='[1]شعبة التسزيق'!BS180 ->  | BJ180: ='[1]شعبة التسزيق'!BT180 ->  | BK180: ='[1]شعبة التسزيق'!BU180 ->  | BP180: 0 | BQ180: راسبة | BS180: 15 | BX180: عربى - | BZ180: فرنسى - | CB180: احصاء - | CC180: رياضة مالية - | CD180: اقتصاد - | CE180: سكرتارية . ع - | CF180: سكرتارية . ف - | CG180: مشروعات - | CH180: مخازن - | CI180: حاسب - | CK180: دين -
C181: طالبة تسويق 172 | J181: 0 | K181: ='[1]شعبة التسزيق'!T181 ->  | L181: ='[1]شعبة التسزيق'!U181 ->  | M181: ='[1]شعبة التسزيق'!V181 ->  | R181: 0 | S181: ='[1]شعبة التسزيق'!AB181 ->  | T181: ='[1]شعبة التسزيق'!AC181 ->  | U181: ='[1]شعبة التسزيق'!AD181 ->  | Z181: 0 | AD181: 0 | AH181: 0 | AL181: 0 | AP181: 0 | AT181: 0 | AX181: 0 | BE181: 0 | BF181: 0 | BG181: 0 | BI181: ='[1]شعبة التسزيق'!BS181 ->  | BJ181: ='[1]شعبة التسزيق'!BT181 ->  | BK181: ='[1]شعبة التسزيق'!BU181 ->  | BP181: 0 | BQ181: راسبة | BS181: 15 | BX181: عربى - | BZ181: فرنسى - | CB181: احصاء - | CC181: رياضة مالية - | CD181: اقتصاد - | CE181: سكرتارية . ع - | CF181: سكرتارية . ف - | CG181: مشروعات - | CH181: مخازن - | CI181: حاسب - | CK181: دين -
C182: طالبة تسويق 173 | J182: 0 | K182: ='[1]شعبة التسزيق'!T182 ->  | L182: ='[1]شعبة التسزيق'!U182 ->  | M182: ='[1]شعبة التسزيق'!V182 ->  | R182: 0 | S182: ='[1]شعبة التسزيق'!AB182 ->  | T182: ='[1]شعبة التسزيق'!AC182 ->  | U182: ='[1]شعبة التسزيق'!AD182 ->  | Z182: 0 | AD182: 0 | AH182: 0 | AL182: 0 | AP182: 0 | AT182: 0 | AX182: 0 | BE182: 0 | BF182: 0 | BG182: 0 | BI182: ='[1]شعبة التسزيق'!BS182 ->  | BJ182: ='[1]شعبة التسزيق'!BT182 ->  | BK182: ='[1]شعبة التسزيق'!BU182 ->  | BP182: 0 | BQ182: راسبة | BS182: 15 | BX182: عربى - | BZ182: فرنسى - | CB182: احصاء - | CC182: رياضة مالية - | CD182: اقتصاد - | CE182: سكرتارية . ع - | CF182: سكرتارية . ف - | CG182: مشروعات - | CH182: مخازن - | CI182: حاسب - | CK182: دين -
C183: طالبة تسويق 174 | J183: 0 | K183: ='[1]شعبة التسزيق'!T183 ->  | L183: ='[1]شعبة التسزيق'!U183 ->  | M183: ='[1]شعبة التسزيق'!V183 ->  | R183: 0 | S183: ='[1]شعبة التسزيق'!AB183 ->  | T183: ='[1]شعبة التسزيق'!AC183 ->  | U183: ='[1]شعبة التسزيق'!AD183 ->  | Z183: 0 | AD183: 0 | AH183: 0 | AL183: 0 | AP183: 0 | AT183: 0 | AX183: 0 | BE183: 0 | BF183: 0 | BG183: 0 | BI183: ='[1]شعبة التسزيق'!BS183 ->  | BJ183: ='[1]شعبة التسزيق'!BT183 ->  | BK183: ='[1]شعبة التسزيق'!BU183 ->  | BP183: 0 | BQ183: راسبة | BS183: 15 | BX183: عربى - | BZ183: فرنسى - | CB183: احصاء - | CC183: رياضة مالية - | CD183: اقتصاد - | CE183: سكرتارية . ع - | CF183: سكرتارية . ف - | CG183: مشروعات - | CH183: مخازن - | CI183: حاسب - | CK183: دين -
C184: طالبة تسويق 175 | J184: 0 | K184: ='[1]شعبة التسزيق'!T184 ->  | L184: ='[1]شعبة التسزيق'!U184 ->  | M184: ='[1]شعبة التسزيق'!V184 ->  | R184: 0 | S184: ='[1]شعبة التسزيق'!AB184 ->  | T184: ='[1]شعبة التسزيق'!AC184 ->  | U184: ='[1]شعبة التسزيق'!AD184 ->  | Z184: 0 | AD184: 0 | AH184: 0 | AL184: 0 | AP184: 0 | AT184: 0 | AX184: 0 | BE184: 0 | BF184: 0 | BG184: 0 | BI184: ='[1]شعبة التسزيق'!BS184 ->  | BJ184: ='[1]شعبة التسزيق'!BT184 ->  | BK184: ='[1]شعبة التسزيق'!BU184 ->  | BP184: 0 | BQ184: راسبة | BS184: 15 | BX184: عربى - | BZ184: فرنسى - | CB184: احصاء - | CC184: رياضة مالية - | CD184: اقتصاد - | CE184: سكرتارية . ع - | CF184: سكرتارية . ف - | CG184: مشروعات - | CH184: مخازن - | CI184: حاسب - | CK184: دين -
C185: طالبة تسويق 176 | J185: 0 | K185: ='[1]شعبة التسزيق'!T185 ->  | L185: ='[1]شعبة التسزيق'!U185 ->  | M185: ='[1]شعبة التسزيق'!V185 ->  | R185: 0 | S185: ='[1]شعبة التسزيق'!AB185 ->  | T185: ='[1]شعبة التسزيق'!AC185 ->  | U185: ='[1]شعبة التسزيق'!AD185 ->  | Z185: 0 | AD185: 0 | AH185: 0 | AL185: 0 | AP185: 0 | AT185: 0 | AX185: 0 | BE185: 0 | BF185: 0 | BG185: 0 | BI185: ='[1]شعبة التسزيق'!BS185 ->  | BJ185: ='[1]شعبة التسزيق'!BT185 ->  | BK185: ='[1]شعبة التسزيق'!BU185 ->  | BP185: 0 | BQ185: راسبة | BS185: 15 | BX185: عربى - | BZ185: فرنسى - | CB185: احصاء - | CC185: رياضة مالية - | CD185: اقتصاد - | CE185: سكرتارية . ع - | CF185: سكرتارية . ف - | CG185: مشروعات - | CH185: مخازن - | CI185: حاسب - | CK185: دين -
C186: طالبة تسويق 177 | J186: 0 | K186: ='[1]شعبة التسزيق'!T186 ->  | L186: ='[1]شعبة التسزيق'!U186 ->  | M186: ='[1]شعبة التسزيق'!V186 ->  | R186: 0 | S186: ='[1]شعبة التسزيق'!AB186 ->  | T186: ='[1]شعبة التسزيق'!AC186 ->  | U186: ='[1]شعبة التسزيق'!AD186 ->  | Z186: 0 | AD186: 0 | AH186: 0 | AL186: 0 | AP186: 0 | AT186: 0 | AX186: 0 | BE186: 0 | BF186: 0 | BG186: 0 | BI186: ='[1]شعبة التسزيق'!BS186 ->  | BJ186: ='[1]شعبة التسزيق'!BT186 ->  | BK186: ='[1]شعبة التسزيق'!BU186 ->  | BP186: 0 | BQ186: راسبة | BS186: 15 | BX186: عربى - | BZ186: فرنسى - | CB186: احصاء - | CC186: رياضة مالية - | CD186: اقتصاد - | CE186: سكرتارية . ع - | CF186: سكرتارية . ف - | CG186: مشروعات - | CH186: مخازن - | CI186: حاسب - | CK186: دين -
C187: طالبة تسويق 178 | J187: 0 | K187: ='[1]شعبة التسزيق'!T187 ->  | L187: ='[1]شعبة التسزيق'!U187 ->  | M187: ='[1]شعبة التسزيق'!V187 ->  | R187: 0 | S187: ='[1]شعبة التسزيق'!AB187 ->  | T187: ='[1]شعبة التسزيق'!AC187 ->  | U187: ='[1]شعبة التسزيق'!AD187 ->  | Z187: 0 | AD187: 0 | AH187: 0 | AL187: 0 | AP187: 0 | AT187: 0 | AX187: 0 | BE187: 0 | BF187: 0 | BG187: 0 | BI187: ='[1]شعبة التسزيق'!BS187 ->  | BJ187: ='[1]شعبة التسزيق'!BT187 ->  | BK187: ='[1]شعبة التسزيق'!BU187 ->  | BP187: 0 | BQ187: راسبة | BS187: 15 | BX187: عربى - | BZ187: فرنسى - | CB187: احصاء - | CC187: رياضة مالية - | CD187: اقتصاد - | CE187: سكرتارية . ع - | CF187: سكرتارية . ف - | CG187: مشروعات - | CH187: مخازن - | CI187: حاسب - | CK187: دين -
C188: طالبة تسويق 179 | J188: 0 | K188: ='[1]شعبة التسزيق'!T188 ->  | L188: ='[1]شعبة التسزيق'!U188 ->  | M188: ='[1]شعبة التسزيق'!V188 ->  | R188: 0 | S188: ='[1]شعبة التسزيق'!AB188 ->  | T188: ='[1]شعبة التسزيق'!AC188 ->  | U188: ='[1]شعبة التسزيق'!AD188 ->  | Z188: 0 | AD188: 0 | AH188: 0 | AL188: 0 | AP188: 0 | AT188: 0 | AX188: 0 | BE188: 0 | BF188: 0 | BG188: 0 | BI188: ='[1]شعبة التسزيق'!BS188 ->  | BJ188: ='[1]شعبة التسزيق'!BT188 ->  | BK188: ='[1]شعبة التسزيق'!BU188 ->  | BP188: 0 | BQ188: راسبة | BS188: 15 | BX188: عربى - | BZ188: فرنسى - | CB188: احصاء - | CC188: رياضة مالية - | CD188: اقتصاد - | CE188: سكرتارية . ع - | CF188: سكرتارية . ف - | CG188: مشروعات - | CH188: مخازن - | CI188: حاسب - | CK188: دين -
C189: طالبة تسويق 180 | J189: 0 | K189: ='[1]شعبة التسزيق'!T189 ->  | L189: ='[1]شعبة التسزيق'!U189 ->  | M189: ='[1]شعبة التسزيق'!V189 ->  | R189: 0 | S189: ='[1]شعبة التسزيق'!AB189 ->  | T189: ='[1]شعبة التسزيق'!AC189 ->  | U189: ='[1]شعبة التسزيق'!AD189 ->  | Z189: 0 | AD189: 0 | AH189: 0 | AL189: 0 | AP189: 0 | AT189: 0 | AX189: 0 | BE189: 0 | BF189: 0 | BG189: 0 | BI189: ='[1]شعبة التسزيق'!BS189 ->  | BJ189: ='[1]شعبة التسزيق'!BT189 ->  | BK189: ='[1]شعبة التسزيق'!BU189 ->  | BP189: 0 | BQ189: راسبة | BS189: 15 | BX189: عربى - | BZ189: فرنسى - | CB189: احصاء - | CC189: رياضة مالية - | CD189: اقتصاد - | CE189: سكرتارية . ع - | CF189: سكرتارية . ف - | CG189: مشروعات - | CH189: مخازن - | CI189: حاسب - | CK189: دين -
C190: طالبة تسويق 181 | J190: 0 | K190: ='[1]شعبة التسزيق'!T190 ->  | L190: ='[1]شعبة التسزيق'!U190 ->  | M190: ='[1]شعبة التسزيق'!V190 ->  | R190: 0 | S190: ='[1]شعبة التسزيق'!AB190 ->  | T190: ='[1]شعبة التسزيق'!AC190 ->  | U190: ='[1]شعبة التسزيق'!AD190 ->  | Z190: 0 | AD190: 0 | AH190: 0 | AL190: 0 | AP190: 0 | AT190: 0 | AX190: 0 | BE190: 0 | BF190: 0 | BG190: 0 | BL190: 0 | BP190: 0 | BQ190: راسبة | BS190: 15 | BX190: عربى - | BZ190: فرنسى - | CB190: احصاء - | CC190: رياضة مالية - | CD190: اقتصاد - | CE190: سكرتارية . ع - | CF190: سكرتارية . ف - | CG190: مشروعات - | CH190: مخازن - | CI190: حاسب - | CJ190: مواطنة - | CK190: دين -
C191: طالبة تسويق 182 | J191: 0 | K191: ='[1]شعبة التسزيق'!T191 ->  | L191: ='[1]شعبة التسزيق'!U191 ->  | M191: ='[1]شعبة التسزيق'!V191 ->  | R191: 0 | S191: ='[1]شعبة التسزيق'!AB191 ->  | T191: ='[1]شعبة التسزيق'!AC191 ->  | U191: ='[1]شعبة التسزيق'!AD191 ->  | Z191: 0 | AD191: 0 | AH191: 0 | AL191: 0 | AP191: 0 | AT191: 0 | AX191: 0 | BE191: 0 | BF191: 0 | BG191: 0 | BL191: 0 | BP191: 0 | BQ191: راسبة | BS191: 15 | BX191: عربى - | BZ191: فرنسى - | CB191: احصاء - | CC191: رياضة مالية - | CD191: اقتصاد - | CE191: سكرتارية . ع - | CF191: سكرتارية . ف - | CG191: مشروعات - | CH191: مخازن - | CI191: حاسب - | CJ191: مواطنة - | CK191: دين -
C192: طالبة تسويق 183 | J192: 0 | K192: ='[1]شعبة التسزيق'!T192 ->  | L192: ='[1]شعبة التسزيق'!U192 ->  | M192: ='[1]شعبة التسزيق'!V192 ->  | R192: 0 | S192: ='[1]شعبة التسزيق'!AB192 ->  | T192: ='[1]شعبة التسزيق'!AC192 ->  | U192: ='[1]شعبة التسزيق'!AD192 ->  | Z192: 0 | AD192: 0 | AH192: 0 | AL192: 0 | AP192: 0 | AT192: 0 | AX192: 0 | BE192: 0 | BF192: 0 | BG192: 0 | BL192: 0 | BP192: 0 | BQ192: راسبة | BS192: 15 | BX192: عربى - | BZ192: فرنسى - | CB192: احصاء - | CC192: رياضة مالية - | CD192: اقتصاد - | CE192: سكرتارية . ع - | CF192: سكرتارية . ف - | CG192: مشروعات - | CH192: مخازن - | CI192: حاسب - | CJ192: مواطنة - | CK192: دين -
C193: طالبة تسويق 184 | J193: 0 | K193: ='[1]شعبة التسزيق'!T193 ->  | L193: ='[1]شعبة التسزيق'!U193 ->  | M193: ='[1]شعبة التسزيق'!V193 ->  | R193: 0 | S193: ='[1]شعبة التسزيق'!AB193 ->  | T193: ='[1]شعبة التسزيق'!AC193 ->  | U193: ='[1]شعبة التسزيق'!AD193 ->  | Z193: 0 | AD193: 0 | AH193: 0 | AL193: 0 | AP193: 0 | AT193: 0 | AX193: 0 | BE193: 0 | BF193: 0 | BG193: 0 | BL193: 0 | BP193: 0 | BQ193: راسبة | BS193: 15 | BX193: عربى - | BZ193: فرنسى - | CB193: احصاء - | CC193: رياضة مالية - | CD193: اقتصاد - | CE193: سكرتارية . ع - | CF193: سكرتارية . ف - | CG193: مشروعات - | CH193: مخازن - | CI193: حاسب - | CJ193: مواطنة - | CK193: دين -
C194: طالبة تسويق 185 | J194: 0 | K194: ='[1]شعبة التسزيق'!T194 ->  | L194: ='[1]شعبة التسزيق'!U194 ->  | M194: ='[1]شعبة التسزيق'!V194 ->  | R194: 0 | S194: ='[1]شعبة التسزيق'!AB194 ->  | T194: ='[1]شعبة التسزيق'!AC194 ->  | U194: ='[1]شعبة التسزيق'!AD194 ->  | Z194: 0 | AD194: 0 | AH194: 0 | AL194: 0 | AP194: 0 | AT194: 0 | AX194: 0 | BE194: 0 | BF194: 0 | BG194: 0 | BL194: 0 | BP194: 0 | BQ194: راسبة | BS194: 15 | BX194: عربى - | BZ194: فرنسى - | CB194: احصاء - | CC194: رياضة مالية - | CD194: اقتصاد - | CE194: سكرتارية . ع - | CF194: سكرتارية . ف - | CG194: مشروعات - | CH194: مخازن - | CI194: حاسب - | CJ194: مواطنة - | CK194: دين -
C195: طالبة تسويق 186 | J195: 0 | K195: ='[1]شعبة التسزيق'!T195 ->  | L195: ='[1]شعبة التسزيق'!U195 ->  | M195: ='[1]شعبة التسزيق'!V195 ->  | R195: 0 | S195: ='[1]شعبة التسزيق'!AB195 ->  | T195: ='[1]شعبة التسزيق'!AC195 ->  | U195: ='[1]شعبة التسزيق'!AD195 ->  | Z195: 0 | AD195: 0 | AH195: 0 | AL195: 0 | AP195: 0 | AT195: 0 | AX195: 0 | BE195: 0 | BF195: 0 | BG195: 0 | BL195: 0 | BP195: 0 | BQ195: راسبة | BS195: 15 | BX195: عربى - | BZ195: فرنسى - | CB195: احصاء - | CC195: رياضة مالية - | CD195: اقتصاد - | CE195: سكرتارية . ع - | CF195: سكرتارية . ف - | CG195: مشروعات - | CH195: مخازن - | CI195: حاسب - | CJ195: مواطنة - | CK195: دين -
C196: طالبة تسويق 187 | J196: 0 | K196: ='[1]شعبة التسزيق'!T196 ->  | L196: ='[1]شعبة التسزيق'!U196 ->  | M196: ='[1]شعبة التسزيق'!V196 ->  | R196: 0 | S196: ='[1]شعبة التسزيق'!AB196 ->  | T196: ='[1]شعبة التسزيق'!AC196 ->  | U196: ='[1]شعبة التسزيق'!AD196 ->  | Z196: 0 | AD196: 0 | AH196: 0 | AL196: 0 | AP196: 0 | AT196: 0 | AX196: 0 | BE196: 0 | BF196: 0 | BG196: 0 | BL196: 0 | BP196: 0 | BQ196: راسبة | BS196: 15 | BX196: عربى - | BZ196: فرنسى - | CB196: احصاء - | CC196: رياضة مالية - | CD196: اقتصاد - | CE196: سكرتارية . ع - | CF196: سكرتارية . ف - | CG196: مشروعات - | CH196: مخازن - | CI196: حاسب - | CJ196: مواطنة - | CK196: دين -
C197: طالبة تسويق 188 | J197: 0 | K197: ='[1]شعبة التسزيق'!T197 ->  | L197: ='[1]شعبة التسزيق'!U197 ->  | M197: ='[1]شعبة التسزيق'!V197 ->  | R197: 0 | S197: ='[1]شعبة التسزيق'!AB197 ->  | T197: ='[1]شعبة التسزيق'!AC197 ->  | U197: ='[1]شعبة التسزيق'!AD197 ->  | Z197: 0 | AD197: 0 | AH197: 0 | AL197: 0 | AP197: 0 | AT197: 0 | AX197: 0 | BE197: 0 | BF197: 0 | BG197: 0 | BL197: 0 | BP197: 0 | BQ197: راسبة | BS197: 15 | BX197: عربى - | BZ197: فرنسى - | CB197: احصاء - | CC197: رياضة مالية - | CD197: اقتصاد - | CE197: سكرتارية . ع - | CF197: سكرتارية . ف - | CG197: مشروعات - | CH197: مخازن - | CI197: حاسب - | CJ197: مواطنة - | CK197: دين -
C198: طالبة تسويق 189 | J198: 0 | K198: ='[1]شعبة التسزيق'!T198 ->  | L198: ='[1]شعبة التسزيق'!U198 ->  | M198: ='[1]شعبة التسزيق'!V198 ->  | R198: 0 | S198: ='[1]شعبة التسزيق'!AB198 ->  | T198: ='[1]شعبة التسزيق'!AC198 ->  | U198: ='[1]شعبة التسزيق'!AD198 ->  | Z198: 0 | AD198: 0 | AH198: 0 | AL198: 0 | AP198: 0 | AT198: 0 | AX198: 0 | BE198: 0 | BF198: 0 | BG198: 0 | BL198: 0 | BP198: 0 | BQ198: راسبة | BS198: 15 | BX198: عربى - | BZ198: فرنسى - | CB198: احصاء - | CC198: رياضة مالية - | CD198: اقتصاد - | CE198: سكرتارية . ع - | CF198: سكرتارية . ف - | CG198: مشروعات - | CH198: مخازن - | CI198: حاسب - | CJ198: مواطنة - | CK198: دين -
C199: طالبة تسويق 190 | J199: 0 | K199: ='[1]شعبة التسزيق'!T199 ->  | L199: ='[1]شعبة التسزيق'!U199 ->  | M199: ='[1]شعبة التسزيق'!V199 ->  | R199: 0 | S199: ='[1]شعبة التسزيق'!AB199 ->  | T199: ='[1]شعبة التسزيق'!AC199 ->  | U199: ='[1]شعبة التسزيق'!AD199 ->  | Z199: 0 | AD199: 0 | AH199: 0 | AL199: 0 | AP199: 0 | AT199: 0 | AX199: 0 | BE199: 0 | BF199: 0 | BG199: 0 | BL199: 0 | BP199: 0 | BQ199: راسبة | BS199: 15 | BX199: عربى - | BZ199: فرنسى - | CB199: احصاء - | CC199: رياضة مالية - | CD199: اقتصاد - | CE199: سكرتارية . ع - | CF199: سكرتارية . ف - | CG199: مشروعات - | CH199: مخازن - | CI199: حاسب - | CJ199: مواطنة - | CK199: دين -
C200: طالبة تسويق 191 | J200: 0 | K200: ='[1]شعبة التسزيق'!T200 ->  | L200: ='[1]شعبة التسزيق'!U200 ->  | M200: ='[1]شعبة التسزيق'!V200 ->  | R200: 0 | S200: ='[1]شعبة التسزيق'!AB200 ->  | T200: ='[1]شعبة التسزيق'!AC200 ->  | U200: ='[1]شعبة التسزيق'!AD200 ->  | Z200: 0 | AD200: 0 | AH200: 0 | AL200: 0 | AP200: 0 | AT200: 0 | AX200: 0 | BE200: 0 | BF200: 0 | BG200: 0 | BL200: 0 | BP200: 0 | BQ200: راسبة | BS200: 15 | BX200: عربى - | BZ200: فرنسى - | CB200: احصاء - | CC200: رياضة مالية - | CD200: اقتصاد - | CE200: سكرتارية . ع - | CF200: سكرتارية . ف - | CG200: مشروعات - | CH200: مخازن - | CI200: حاسب - | CJ200: مواطنة - | CK200: دين -
C201: طالبة تسويق 192 | J201: 0 | N201: 0 | R201: 0 | S201: ='[1]شعبة التسزيق'!AB201 ->  | T201: ='[1]شعبة التسزيق'!AC201 ->  | U201: ='[1]شعبة التسزيق'!AD201 ->  | Z201: 0 | AD201: 0 | AH201: 0 | AL201: 0 | AP201: 0 | AT201: 0 | AX201: 0 | BE201: 0 | BF201: 0 | BG201: 0 | BL201: 0 | BP201: 0 | BQ201: راسبة | BS201: 15 | BX201: عربى - | BY201: انجليزى - | BZ201: فرنسى - | CB201: احصاء - | CC201: رياضة مالية - | CD201: اقتصاد - | CE201: سكرتارية . ع - | CF201: سكرتارية . ف - | CG201: مشروعات - | CH201: مخازن - | CI201: حاسب - | CJ201: مواطنة - | CK201: دين -
... 500 more rows

Sheet القانون
B1: بسم الله الرحمن الرحيم
C2: ادارة طوخ التعليمية | W2: الصف الثانى - شعبة قانون
C3: مدرسة العمار التجارية
A5: مسلسل | B5: رقم جلوس | C5: الاســــــــــــــم | D5: الفصــــــــــل | E5: الحالــــــــة | F5: السرى | G5: لغة عربية | K5: لغة انجليزية | O5: لغة فرنسية | S5: محاسبة مالية | W5: احصاء | AA5: اعمال وساطة | AE5: قانون تجارى | AI5: قانون مدنى | AM5: قانون عقوبات | AQ5: قانون مرافعات | AU5: علم نفس | AY5: حاسب آلى | BH5: مجموع كلى | BI5: مواطنة وحقوق انسان | BM5: تربية دينية | BQ5: نتيجة | BR5: مواد الرسوب | BS5: عدد المواد | BX5: عربى | BY5: انجليزى | BZ5: فرنسى | CA5: محاسبة | CB5: احصاء | CC5: اعمال وساطة | CD5: قانون تجارى | CE5: قانون مدنى | CF5: قانون عقوبات | CG5: قانون مرافعات | CH5: علم نفس | CI5: حاسب | CJ5: مواطنة | CK5: دين | CL5: مجموع | CN5: مجموع نصف العام
G6: اعمال السنة | H6: نصف العام | I6: آخر العام | J6: المجموع | K6: اعمال السنة | L6: نصف العام | M6: آخر العام | N6: المجموع | O6: اعمال السنة | P6: نصف العام | Q6: آخر العام | R6: المجموع | S6: اعمال السنة | T6: نصف العام | U6: آخر العام | V6: المجموع | W6: اعمال السنة | X6: نصف العام | Y6: آخر العام | Z6: المجموع | AA6: اعمال السنة | AB6: نصف العام | AC6: آخر العام | AD6: المجموع | AE6: اعمال السنة | AF6: نصف العام | AG6: آخر العام | AH6: المجموع | AI6: اعمال السنة | AJ6: نصف العام | AK6: آخر العام | AL6: المجموع | AM6: اعمال السنة | AN6: نصف العام | AO6: آخر العام | AP6: المجموع | AQ6: اعمال السنة | AR6: نصف العام | AS6: آخر العام | AT6: المجموع | AU6: اعمال السنة | AV6: نصف العام | AW6: آخر العام | AX6: المجموع | AY6: اعمال السنة | BA6: نصف العام | BC6: آخر العام | BE6: مجموع عملى | BF6: مجموع تحريرى | BG6: مجموع | BI6: اعمال السنة | BJ6: نصف العام | BK6: آخر العام | BL6: المجموع | BM6: اعمال السنة | BN6: نصف العام | BO6: آخر العام | BP6: المجموع
AY7: عملى | AZ7: تحريرى | BA7: عملى | BB7: تحريرى | BC7: عملى | BD7: تحريرى
F8: عظمى | G8: 10 | H8: 20 | I8: 20 | J8: 50 | K8: 10 | L8: 20 | M8: 20 | N8: 50 | O8: 6 | P8: 12 | Q8: 12 | R8: 30 | S8: 10 | T8: 20 | U8: 20 | V8: 50 | W8: 10 | X8: 20 | Y8: 20 | Z8: 50 | AA8: 10 | AB8: 20 | AC8: 20 | AD8: 50 | AE8: 10 | AF8: 20 | AG8: 20 | AH8: 50 | AI8: 10 | AJ8: 20 | AK8: 20 | AL8: 50 | AM8: 10 | AN8: 20 | AO8: 20 | AP8: 50 | AQ8: 10 | AR8: 20 | AS8: 20 | AT8: 50 | AU8: 10 | AV8: 20 | AW8: 20 | AX8: 50 | AY8: 4 | AZ8: 6 | BA8: 8 | BB8: 12 | BC8: 8 | BD8: 12 | BE8: 20 | BF8: 30 | BG8: 50 | BH8: 580 | BI8: 4 | BJ8: 8 | BK8: 8 | BL8: 20 | BM8: 4 | BN8: 8 | BO8: 8 | BP8: 20
F9: صغرى | H9: 0 | J9: 25 | K9: 0 | L9: 0 | M9: 5 | N9: 20 | O9: 0 | P9: 0 | Q9: 3 | R9: 9 | S9: 0 | T9: 0 | U9: 5 | V9: 25 | W9: 0 | X9: 0 | Y9: 5 | Z9: 25 | AA9: 0 | AB9: 0 | AC9: 5 | AD9: 25 | AE9: 0 | AF9: 0 | AG9: 5 | AH9: 25 | AI9: 0 | AJ9: 0 | AK9: 5 | AL9: 25 | AM9: 0 | AN9: 0 | AO9: 5 | AP9: 20 | AQ9: 0 | AR9: 0 | AS9: 5 | AT9: 25 | AU9: 0 | AV9: 0 | AW9: 5 | AX9: 25 | AY9: 0 | AZ9: 0 | BA9: 0 | BB9: 0 | BC9: 2 | BD9: 3 | BE9: 10 | BF9: 15 | BG9: 25 | BH9: 290 | BI9: 0 | BJ9: 0 | BK9: 2 | BL9: 10 | BM9: 0 | BN9: 0 | BO9: 2 | BP9: 10
A10: 1 | B10: 701 | C10: ابراهيم السيد رفاعي حسين خميس | D10: 4/2 | E10: مستجد | F10: 501 | G10: 6.5 | H10: 9 | I10: 14 | J10: =SUM(G10:I10) -> 29.5 | K10: 8 | L10: 12.4 | M10: 10 | N10: =SUM(K10:M10) -> 30.4 | O10: 5 | P10: 8 | Q10: 7.2 | R10: =SUM(O10:Q10) -> 20.2 | S10: 8 | T10: 1 | U10: 16 | V10: =SUM(S10:U10) -> 25 | W10: 9 | X10: 6 | Y10: 1 | Z10: =SUM(W10:Y10) -> 16 | AA10: 8.5 | AB10: 10.5 | AC10: 11 | AD10: =SUM(AA10:AC10) -> 30 | AE10: 8.5 | AF10: 4 | AG10: 13 | AH10: =SUM(AE10:AG10) -> 25.5 | AI10: 8 | AJ10: 14 | AK10: 12 | AL10: =SUM(AI10:AK10) -> 34 | AM10: 8.5 | AN10: 19 | AO10: 10 | AP10: =SUM(AM10:AO10) -> 37.5 | AQ10: 8 | AR10: 3 | AS10: 14 | AT10: =SUM(AM10:AP10) -> 75 | AU10: 7 | AV10: 11 | AW10: 15 | AX10: =SUM(AU10:AW10) -> 33 | AY10: 2.5 | AZ10: 4 | BA10: 5 | BB10: 9 | BC10: 5 | BD10: 8 | BE10: =IF($C10="","",SUM(AY10,BA10,BC10)) -> 12.5 | BF10: 21 | BG10: =IF($C10="","",SUM(BE10,BF10)) -> 33.5 | BH10: =IF($C10="","",SUM(J10,N10,R10,V10,Z10,AD10,AH10,AL10,AP10,AT10,AX10,BG10)) -> 389.6 | BI10: 4 | BJ10: 6.5 | BK10: غ | BL10: =SUM(BI10:BK10) -> 10.5 | BM10: 3 | BN10: 3 | BO10: غ | BP10: =SUM(BM10:BO10) -> 6 | BQ10: =IF($C10="","",IF(BS10=0,"ناجحة",IF(BS10<=2,"دورثان","راسبة"))) -> راسبة | BR10: =IF($C10="","",IF(BS10=0,"ومنقولة للصف الثالث",IF(BS10>0,"فى : "&CONCATENATE(BX10,BY10,BZ10,CA10,CB10,CC10,CD10,CE10,CF10,CG10,CH10,CI10,CJ10,CK10,CL10),CONCATENATE(BX10,BY10,BZ10,CA10,CB10,CC10,CD10,CE10,CF10,CG10,CH10,CI10,CJ10,CK10,CL10)))) -> فى : احصاء - مواطنة - دين - | BS10: =IF($C10="","",COUNTA($BX10:$CL10)-COUNTBLANK($BX10:$CL10)) -> 3 | BX10: =IF($C10="","",IF(OR(I10<$I$9,I10="غ",J10<$J$9),$BX$5&" - ","")) ->  | BY10: =IF($C10="","",IF(OR(M10<$M$9,M10="غ",N10<$N$9),$BY$5&" - ","")) ->  | BZ10: =IF($C10="","",IF(OR(Q10<$Q$9,Q10="غ",R10<$R$9),BZ$5&" - ","")) ->  | CA10: =IF($C10="","",IF(OR(U10<$U$9,U10="غ",V10<$V$9),CA$5&" - ","")) ->  | CB10: =IF($C10="","",IF(OR(Y10<$Y$9,Y10="غ",Z10<$Z$9),CB$5&" - ","")) -> احصاء - | CC10: =IF($C10="","",IF(OR(AC10<$AC$9,AC10="غ",AD10<$AD$9),CC$5&" - ","")) ->  | CD10: =IF($C10="","",IF(OR(AG10<$AG$9,AG10="غ",AH10<$AH$9),CD$5&" - ","")) ->  | CE10: =IF($C10="","",IF(OR(AK10<$AK$9,AK10="غ",AL10<$AL$9),CE$5&" - ","")) ->  | CF10: =IF($C10="","",IF(OR(AO10<$AO$9,AO10="غ",AP10<$AP$9),CF$5&" - ","")) ->  | CG10: =IF($C10="","",IF(OR(AS10<$AS$9,AS10="غ",AT10<$AT$9),CG$5&" - ","")) ->  | CH10: =IF($C10="","",IF(OR(AW10<$AW$9,AW10="غ",AX10<$AX$9),CH$5&" - ","")) ->  | CI10: =IF($C10="","",IF(OR(BE10<$BE$9,BE10="غ",BF10<$BF$9,BF10="غ",BG10<$BG$9),CI$5&" - ","")) ->  | CJ10: =IF($C10="","",IF(OR(BK10<$BK$9,BK10="غ",BL10<$BL$9),CJ$5&" - ","")) -> مواطنة - | CK10: =IF($C10="","",IF(OR(BO10<$BO$9,BO10="غ",BP10<$BP$9),CK$5&" - ","")) -> دين - | CL10: =IF($C10="","",IF(BH10<$BH$9,CL$5,"")) ->  | CN10: =IF($C10="","",SUM(H10,L10,P10,T10,X10,AB10,AF10,AJ10,AN10,AR10,AV10,BA10,BB10)) -> 111.9
A11: 2 | B11: 702 | C11: ابراهيم علي علي امام علي | D11: 4/2 | E11: مستجد | F11: 502 | G11: 7 | H11: 12 | I11: 13 | J11: 32 | K11: 8.5 | L11: 15.6 | M11: 12.8 | N11: 36.9 | O11: 5 | P11: 7.2 | Q11: 7.2 | R11: 19.4 | S11: 8 | T11: 0 | U11: 17 | V11: 25 | W11: 9 | X11: 7.5 | Y11: 2 | Z11: 18.5 | AA11: 8.5 | AB11: 11 | AC11: 10 | AD11: 29.5 | AE11: 8.5 | AF11: 6 | AG11: 13 | AH11: 27.5 | AI11: 8 | AJ11: 12 | AK11: 12 | AL11: 32 | AM11: 8.5 | AN11: 19 | AO11: 14 | AP11: 41.5 | AQ11: 8 | AR11: 5 | AS11: 13 | AT11: =SUM(AQ11:AS11) -> 26 | AU11: 7 | AV11: 13 | AW11: 16 | AX11: 36 | AY11: 2.5 | AZ11: 4.5 | BA11: 6 | BB11: 9 | BC11: 6 | BD11: 8 | BE11: 14.5 | BF11: 21.5 | BG11: 36 | BH11: 360.3 | BI11: 4 | BJ11: 7 | BK11: غ | BL11: 11 | BM11: 3 | BN11: 3.5 | BO11: غ | BP11: 6.5 | BQ11: راسبة | BR11: فى : احصاء - مواطنة - دين - | BS11: 3 | CB11: احصاء - | CJ11: مواطنة - | CK11: دين - | CN11: 123.3
A12: 3 | B12: 703 | C12: ابراهيم محمد عبد العليم محمد | D12: 4/2 | E12: مستجد | F12: 503 | G12: 6 | H12: 8.5 | I12: 16 | J12: 30.5 | K12: 7.5 | L12: 13.6 | M12: 10.8 | N12: 31.9 | O12: 5.5 | P12: 5.6 | Q12: 6.8 | R12: 17.9 | S12: 8 | T12: 0 | U12: 17 | V12: 25 | W12: 9 | X12: 7 | Y12: 10 | Z12: 26 | AA12: 8.5 | AB12: 9 | AC12: 11 | AD12: 28.5 | AE12: 8 | AF12: 3 | AG12: 14 | AH12: 25 | AI12: 8 | AJ12: 12 | AK12: 12 | AL12: 32 | AM12: 8 | AN12: 19 | AO12: 12 | AP12: 39 | AQ12: 8 | AR12: 3 | AS12: 14 | AT12: 25 | AU12: 7 | AV12: 13 | AW12: 16 | AX12: 36 | AY12: 2.5 | AZ12: 4 | BA12: 4 | BB12: 9 | BC12: 5 | BD12: 8 | BE12: 11.5 | BF12: 21 | BG12: 32.5 | BH12: 349.3 | BI12: 4 | BJ12: 5.5 | BK12: غ | BL12: 9.5 | BM12: 3 | BN12: 4.5 | BO12: غ | BP12: 7.5 | BQ12: دورثان | BR12: فى : مواطنة - دين - | BS12: 2 | CJ12: مواطنة - | CK12: دين - | CN12: 106.7
A13: 4 | B13: 704 | C13: ابراهيم مسعد عبد المرضي عبد السلام | D13: 4/2 | E13: مستجد | F13: 504 | G13: 6.5 | H13: 10.5 | I13: 11.5 | J13: 28.5 | K13: 7.5 | L13: 13.6 | M13: 11.6 | N13: 32.7 | O13: 5 | P13: 6 | Q13: 8 | R13: 19 | S13: 7.5 | T13: 0 | U13: 17.5 | V13: 25 | W13: 9 | X13: 6 | Y13: 5 | Z13: 20 | AA13: 8.5 | AB13: 10 | AC13: 11 | AD13: 29.5 | AE13: 8 | AF13: 5 | AG13: 12 | AH13: 25 | AI13: 8 | AJ13: 14 | AK13: 13 | AL13: 35 | AM13: 8 | AN13: 19 | AO13: 14 | AP13: 41 | AQ13: 8 | AR13: 0 | AS13: 17 | AT13: 25 | AU13: 7 | AV13: 13 | AW13: 11 | AX13: 31 | AY13: 2.5 | AZ13: 4 | BA13: 5 | BB13: 9 | BC13: 5 | BD13: 8 | BE13: 12.5 | BF13: 21 | BG13: 33.5 | BH13: 345.2 | BI13: 4 | BJ13: 5 | BK13: 5 | BL13: 14 | BM13: 3 | BN13: 1.5 | BO13: 6 | BP13: 10.5 | BQ13: دورثان | BR13: فى : احصاء - | BS13: 1 | CB13: احصاء - | CN13: 111.1
A14: 5 | B14: 705 | C14: احمد اشرف السيد عفيفي مصطفى | D14: 4/2 | E14: مستجد | F14: 505 | G14: 6.5 | H14: 8 | I14: 14.5 | J14: 29 | K14: 8 | L14: 12.4 | M14: 11.2 | N14: 31.6 | O14: 5 | P14: 6 | Q14: 7.2 | R14: 18.2 | S14: 7.5 | T14: 0 | U14: 17.5 | V14: 25 | W14: 9 | X14: 6 | Y14: 0 | Z14: 15 | AA14: 8.5 | AB14: 7 | AC14: 11 | AD14: 26.5 | AE14: 8 | AF14: 3 | AG14: 14 | AH14: 25 | AI14: 8 | AJ14: 13 | AK14: 11 | AL14: 32 | AM14: 8 | AN14: 19 | AO14: 15 | AP14: 42 | AQ14: 8 | AR14: 1 | AS14: 16 | AT14: 25 | AU14: 7 | AV14: 11 | AW14: 16 | AX14: 34 | AY14: 2.5 | AZ14: 4 | BA14: 5 | BB14: 9 | BC14: 5 | BD14: 8 | BE14: 12.5 | BF14: 21 | BG14: 33.5 | BH14: 336.8 | BI14: 4 | BJ14: 5 | BK14: 5 | BL14: 14 | BM14: 3 | BN14: 2.5 | BO14: 6 | BP14: 11.5 | BQ14: دورثان | BR14: فى : احصاء - | BS14: 1 | CB14: احصاء - | CN14: 100.4
A15: 6 | B15: 706 | C15: احمد أشرف عبدالسميع على بيومي | D15: 4/2 | E15: مستجد | F15: 506 | G15: 6.5 | H15: 9.5 | I15: 15.5 | J15: 31.5 | K15: 7.5 | L15: 13.6 | M15: 10.8 | N15: 31.9 | O15: 5 | P15: 5.6 | Q15: 8.8 | R15: 19.4 | S15: 8 | T15: 0 | U15: 17 | V15: 25 | W15: 9 | X15: 6 | Y15: 0 | Z15: 15 | AA15: 8.5 | AB15: 9 | AC15: 10 | AD15: 27.5 | AE15: 8 | AF15: 8 | AG15: 12 | AH15: 28 | AI15: 8 | AJ15: 13 | AK15: 12 | AL15: 33 | AM15: 8 | AN15: 17 | AO15: 15 | AP15: 40 | AQ15: 8 | AR15: 2 | AS15: 15 | AT15: 25 | AU15: 7 | AV15: 10 | AW15: 16 | AX15: 33 | AY15: 2.5 | AZ15: 4 | BA15: 6 | BB15: 9 | BC15: 6 | BD15: 8 | BE15: 14.5 | BF15: 21 | BG15: 35.5 | BH15: 344.8 | BI15: 3.5 | BJ15: 5.5 | BK15: 5 | BL15: 14 | BM15: 3 | BN15: 2 | BO15: 5.5 | BP15: 10.5 | BQ15: دورثان | BR15: فى : احصاء - | BS15: 1 | CB15: احصاء - | CN15: 108.7
A16: 7 | B16: 707 | C16: احمد السيد محمد السيد عيسوي | D16: 4/2 | E16: مستجد | F16: 507 | G16: 6 | H16: 7 | I16: 14.5 | J16: 27.5 | K16: 7.5 | L16: 12 | M16: 11.6 | N16: 31.1 | O16: 5 | P16: 7.6 | Q16: 8 | R16: 20.6 | S16: 8 | T16: 0 | U16: 17 | V16: 25 | W16: 9 | X16: 7 | Y16: 0 | Z16: 16 | AA16: 8.5 | AB16: 12 | AC16: 11.5 | AD16: 32 | AE16: 8 | AF16: 6 | AG16: 11 | AH16: 25 | AI16: 8 | AJ16: 10 | AK16: 11 | AL16: 29 | AM16: 8 | AN16: 18 | AO16: 14 | AP16: 40 | AQ16: 8 | AR16: 1 | AS16: 16 | AT16: 25 | AU16: 7 | AV16: 11 | AW16: 15 | AX16: 33 | AY16: 2.5 | AZ16: 4 | BA16: 5 | BB16: 9 | BC16: 5 | BD16: 8 | BE16: 12.5 | BF16: 21 | BG16: 33.5 | BH16: 337.7 | BI16: 4 | BJ16: 5 | BK16: 5 | BL16: 14 | BM16: 3.5 | BN16: 0 | BO16: 6.5 | BP16: 10 | BQ16: دورثان | BR16: فى : احصاء - | BS16: 1 | CB16: احصاء - | CN16: 105.6
A17: 8 | B17: 708 | C17: احمد انور عبد الوهاب عبد العظيم | D17: 4/2 | E17: مستجد | F17: 508 | G17: 7.5 | H17: 9.5 | I17: 15 | J17: 32 | K17: 7.5 | L17: 13.6 | M17: 14 | N17: 35.1 | O17: 5.5 | P17: 7.2 | Q17: 7.2 | R17: 19.9 | S17: 8 | T17: 1.5 | U17: 15.5 | V17: 25 | W17: 9 | X17: 9 | Y17: 1 | Z17: 19 | AA17: 8.5 | AB17: 13 | AC17: 10.5 | AD17: 32 | AE17: 8 | AF17: 7 | AG17: 14 | AH17: 29 | AI17: 8.5 | AJ17: 12 | AK17: 12 | AL17: 32.5 | AM17: 8 | AN17: 19 | AO17: 14 | AP17: 41 | AQ17: 8 | AR17: 4 | AS17: 13 | AT17: 25 | AU17: 7 | AV17: 11 | AW17: 16 | AX17: 34 | AY17: 2.5 | AZ17: 4 | BA17: 5 | BB17: 9 | BC17: 5 | BD17: 8 | BE17: 12.5 | BF17: 21 | BG17: 33.5 | BH17: 358 | BI17: 3.5 | BJ17: 5 | BK17: 5 | BL17: 13.5 | BM17: 3 | BN17: 3.5 | BO17: 6 | BP17: 12.5 | BQ17: دورثان | BR17: فى : احصاء - | BS17: 1 | CB17: احصاء - | CN17: 120.8
A18: 9 | B18: 709 | C18: احمد جمال الصادق منصور | D18: 4/2 | E18: مستجد | F18: 509 | G18: 7 | H18: 9 | I18: 14.5 | J18: 30.5 | K18: 7.5 | L18: 11.6 | M18: 10.8 | N18: 29.9 | O18: 5.5 | P18: 6.4 | Q18: 6.8 | R18: 18.7 | S18: 8 | T18: 0 | U18: 17 | V18: 25 | W18: 9 | X18: 6.5 | Y18: 1 | Z18: 16.5 | AA18: 8.5 | AB18: 13 | AC18: 10 | AD18: 31.5 | AE18: 8 | AF18: 4 | AG18: 13 | AH18: 25 | AI18: 8.5 | AJ18: 14 | AK18: 10 | AL18: 32.5 | AM18: 8 | AN18: 19 | AO18: 13 | AP18: 40 | AQ18: 8 | AR18: 2 | AS18: 15 | AT18: 25 | AU18: 7 | AV18: 11 | AW18: 16 | AX18: 34 | AY18: 2.5 | AZ18: 4 | BA18: 5 | BB18: 9 | BC18: 5 | BD18: 7 | BE18: 12.5 | BF18: 20 | BG18: 32.5 | BH18: 341.1 | BI18: 3.5 | BJ18: 5 | BK18: 5 | BL18: 13.5 | BM18: 3 | BN18: 1.5 | BO18: 6 | BP18: 10.5 | BQ18: دورثان | BR18: فى : احصاء - | BS18: 1 | CB18: احصاء - | CN18: 110.5
A19: 10 | B19: 710 | C19: احمد جمال فاروق عبد العليم عجلان | D19: 4/2 | E19: مستجد | F19: 510 | G19: 7 | H19: 9 | I19: 15.5 | J19: 31.5 | K19: 8 | L19: 14.4 | M19: 11.6 | N19: 34 | O19: 5.5 | P19: 5.2 | Q19: 6.8 | R19: 17.5 | S19: 8 | T19: 0 | U19: 12.5 | V19: 20.5 | W19: 9 | X19: 6.5 | Y19: 1 | Z19: 16.5 | AA19: 8.5 | AB19: 10 | AC19: 11.5 | AD19: 30 | AE19: 8 | AF19: 5 | AG19: 12 | AH19: 25 | AI19: 8 | AJ19: 13 | AK19: 12 | AL19: 33 | AM19: 8 | AN19: 16 | AO19: 14 | AP19: 38 | AQ19: 8 | AR19: 2 | AS19: 15 | AT19: 25 | AU19: 7 | AV19: 12 | AW19: 15 | AX19: 34 | AY19: 2.5 | AZ19: 4 | BA19: 5 | BB19: 9 | BC19: 5 | BD19: 8 | BE19: 12.5 | BF19: 21 | BG19: 33.5 | BH19: 338.5 | BI19: 3 | BJ19: 5 | BK19: 5 | BL19: 13 | BM19: 3 | BN19: 4.5 | BO19: 6 | BP19: 13.5 | BQ19: دورثان | BR19: فى : محاسبة - احصاء - | BS19: 2 | CA19: محاسبة - | CB19: احصاء - | CN19: 107.1
A20: 11 | B20: 711 | C20: احمد جمال محمود علي مصطفى خليل | D20: 4/2 | E20: مستجد | F20: 511 | G20: 7 | H20: 11 | I20: 15 | J20: 33 | K20: 8 | L20: 14.4 | M20: 11.2 | N20: 33.6 | O20: 5.5 | P20: 6.4 | Q20: 8 | R20: 19.9 | S20: 8 | T20: 0 | U20: 12 | V20: 20 | W20: 9 | X20: 7 | Y20: 1 | Z20: 17 | AA20: 8.5 | AB20: 12 | AC20: 11.5 | AD20: 32 | AE20: 8 | AF20: 5 | AG20: 12 | AH20: 25 | AI20: 8 | AJ20: 13 | AK20: 10 | AL20: 31 | AM20: 8 | AN20: 19 | AO20: 14 | AP20: 41 | AQ20: 8 | AR20: 4 | AS20: 13 | AT20: 25 | AU20: 7 | AV20: 15 | AW20: 16 | AX20: 38 | AY20: 2.5 | AZ20: 4.5 | BA20: 6 | BB20: 10 | BC20: 6 | BD20: 8 | BE20: 14.5 | BF20: 22.5 | BG20: 37 | BH20: 352.5 | BI20: 3 | BJ20: 5 | BK20: 5 | BL20: 13 | BM20: 3 | BN20: 4.5 | BO20: 6.5 | BP20: 14 | BQ20: دورثان | BR20: فى : محاسبة - احصاء - | BS20: 2 | CA20: محاسبة - | CB20: احصاء - | CN20: 122.8
A21: 12 | B21: 712 | C21: احمد سعيد عبدالباقي شحاته شكر | D21: 4/2 | E21: مستجد | F21: 512 | G21: 7.5 | H21: 10.5 | I21: 15.5 | J21: 33.5 | K21: 8 | L21: 13.2 | M21: 12 | N21: 33.2 | O21: 5.5 | P21: 6.4 | Q21: 7.6 | R21: 19.5 | S21: 8 | T21: 0 | U21: 17 | V21: 25 | W21: 9 | X21: 8 | Y21: 1 | Z21: 18 | AA21: 8.5 | AB21: 11 | AC21: 11.5 | AD21: 31 | AE21: 8 | AF21: 7 | AG21: 13 | AH21: 28 | AI21: 8 | AJ21: 12 | AK21: 11 | AL21: 31 | AM21: 8.5 | AN21: 19 | AO21: 12 | AP21: 39.5 | AQ21: 8 | AR21: 4 | AS21: 13 | AT21: 25 | AU21: 7 | AV21: 12 | AW21: 17 | AX21: 36 | AY21: 2.5 | AZ21: 4.5 | BA21: 5 | BB21: 10 | BC21: 5 | BD21: 8 | BE21: 12.5 | BF21: 22.5 | BG21: 35 | BH21: 354.7 | BI21: 3.5 | BJ21: 5 | BK21: 5 | BL21: 13.5 | BM21: 3 | BN21: 3.5 | BO21: 5 | BP21: 11.5 | BQ21: دورثان | BR21: فى : احصاء - | BS21: 1 | CB21: احصاء - | CN21: 118.1
A22: 13 | B22: 713 | C22: احمد علي علي امام | D22: 4/2 | E22: مستجد | F22: 513 | G22: 7 | H22: 9 | I22: 13.5 | J22: 29.5 | K22: 8.5 | L22: 12.8 | M22: 11.2 | N22: 32.5 | O22: 5 | P22: 6 | Q22: 6.4 | R22: 17.4 | S22: 8 | T22: 0 | U22: 17 | V22: 25 | W22: 9 | X22: 10 | Y22: 1 | Z22: 20 | AA22: 8.5 | AB22: 13 | AC22: 12.5 | AD22: 34 | AE22: 8 | AF22: 6 | AG22: 12 | AH22: 26 | AI22: 8 | AJ22: 13 | AK22: 11 | AL22: 32 | AM22: 8 | AN22: 19 | AO22: 13 | AP22: 40 | AQ22: 8 | AR22: 6 | AS22: 11 | AT22: 25 | AU22: 7 | AV22: 13 | AW22: 17 | AX22: 37 | AY22: 2.5 | AZ22: 4.5 | BA22: 6 | BB22: 9 | BC22: 6 | BD22: 8 | BE22: 14.5 | BF22: 21.5 | BG22: 36 | BH22: 354.4 | BI22: 3.5 | BJ22: 5 | BK22: 5 | BL22: 13.5 | BM22: 3 | BN22: 3.5 | BO22: 5.5 | BP22: 12 | BQ22: دورثان | BR22: فى : احصاء - | BS22: 1 | CB22: احصاء - | CN22: 122.8
A23: 14 | B23: 714 | C23: احمد محمد سامي حسين | D23: 4/2 | E23: مستجد | F23: 514 | G23: 7 | H23: 10.5 | I23: 13 | J23: 30.5 | K23: 8 | L23: 11.6 | M23: 14 | N23: 33.6 | O23: 5 | P23: 6 | Q23: 7.2 | R23: 18.2 | S23: 8 | T23: 0 | U23: 17 | V23: 25 | W23: 9 | X23: 7.5 | Y23: 1 | Z23: 17.5 | AA23: 8.5 | AB23: 10 | AC23: 11.5 | AD23: 30 | AE23: 8.5 | AF23: 3 | AG23: 14 | AH23: 25.5 | AI23: 8.5 | AJ23: 11 | AK23: 11 | AL23: 30.5 | AM23: 8.5 | AN23: 19 | AO23: 12 | AP23: 39.5 | AQ23: 8 | AR23: 6 | AS23: 11 | AT23: 25 | AU23: 7 | AV23: 12 | AW23: 15 | AX23: 34 | AY23: 2.5 | AZ23: 4 | BA23: 6 | BB23: 10 | BC23: 5 | BD23: 8 | BE23: 13.5 | BF23: 22 | BG23: 35.5 | BH23: 344.8 | BI23: 3.5 | BJ23: 5.5 | BK23: 4.5 | BL23: 13.5 | BM23: 3 | BN23: 3.5 | BO23: 5.5 | BP23: 12 | BQ23: دورثان | BR23: فى : احصاء - | BS23: 1 | CB23: احصاء - | CN23: 112.6
A24: 15 | B24: 715 | C24: احمد محمد عبده عطا | D24: 4/2 | E24: مستجد | F24: 515 | G24: 6.5 | H24: 4.5 | I24: 14 | J24: 25 | K24: 7.5 | L24: 12 | M24: 12.8 | N24: 32.3 | O24: 5.5 | P24: 6.4 | Q24: 6.8 | R24: 18.7 | S24: 8 | T24: 0 | U24: 17 | V24: 25 | W24: 9 | X24: 7.5 | Y24: 0 | Z24: 16.5 | AA24: 8.5 | AB24: 9 | AC24: 10.5 | AD24: 28 | AE24: 8 | AF24: 0 | AG24: 17 | AH24: 25 | AI24: 8 | AJ24: 9 | AK24: 10 | AL24: 27 | AM24: 8.5 | AN24: 15 | AO24: 12 | AP24: 35.5 | AQ24: 8 | AR24: 5 | AS24: 12 | AT24: 25 | AU24: 7 | AV24: 11 | AW24: 16 | AX24: 34 | AY24: 2.5 | AZ24: 4 | BA24: 5 | BB24: 10 | BC24: 5 | BD24: 8 | BE24: 12.5 | BF24: 22 | BG24: 34.5 | BH24: 326.5 | BI24: 3 | BJ24: 5 | BK24: 4.5 | BL24: 12.5 | BM24: 3 | BN24: 3.5 | BO24: 5 | BP24: 11.5 | BQ24: دورثان | BR24: فى : احصاء - | BS24: 1 | CB24: احصاء - | CN24: 94.4
A25: 16 | B25: 716 | C25: احمد محمد عزت محمد محمد خالد | D25: 4/2 | E25: مستجد | F25: 516 | G25: 6.5 | H25: 6.5 | I25: 15 | J25: 28 | K25: 7.5 | L25: 13.2 | M25: 13.2 | N25: 33.9 | O25: 5 | P25: 6 | Q25: 8 | R25: 19 | S25: 7.5 | T25: 0 | U25: 17.5 | V25: 25 | W25: 9 | X25: 6.5 | Y25: 0 | Z25: 15.5 | AA25: 8.5 | AB25: 6 | AC25: 11 | AD25: 25.5 | AE25: 8.5 | AF25: 8 | AG25: 12 | AH25: 28.5 | AI25: 8 | AJ25: 13 | AK25: 12 | AL25: 33 | AM25: 8 | AN25: 19 | AO25: 14 | AP25: 41 | AQ25: 8 | AR25: 2 | AS25: 16 | AT25: 26 | AU25: 7 | AV25: 12 | AW25: 16 | AX25: 35 | AY25: 2.5 | AZ25: 4 | BA25: 5 | BB25: 10 | BC25: 5 | BD25: 8 | BE25: 12.5 | BF25: 22 | BG25: 34.5 | BH25: 344.9 | BI25: 3.5 | BJ25: 5.5 | BK25: 5 | BL25: 14 | BM25: 3 | BN25: 2.5 | BO25: 5.5 | BP25: 11 | BQ25: دورثان | BR25: فى : احصاء - | BS25: 1 | CB25: احصاء - | CN25: 107.2
A26: 17 | B26: 717 | C26: احمد محمود زكي بربش | D26: 4/2 | E26: مستجد | F26: 517 | G26: 6.5 | H26: 9 | I26: 12.5 | J26: 28 | K26: 7.5 | L26: 10.4 | M26: 10.8 | N26: 28.7 | O26: 5 | P26: 6.4 | Q26: 7.6 | R26: 19 | S26: 7.5 | T26: 0 | U26: 12.5 | V26: 20 | W26: 9 | X26: 12 | Y26: 5.5 | Z26: 26.5 | AA26: 8.5 | AB26: 11 | AC26: 11.5 | AD26: 31 | AE26: 8.5 | AF26: 3 | AG26: 14 | AH26: 25.5 | AI26: 8 | AJ26: 11 | AK26: 12 | AL26: 31 | AM26: 8 | AN26: 18 | AO26: 12 | AP26: 38 | AQ26: 8 | AR26: 1 | AS26: 16 | AT26: 25 | AU26: 7 | AV26: 10 | AW26: 15 | AX26: 32 | AY26: 2.5 | AZ26: 4 | BA26: 6 | BB26: 9 | BC26: 6 | BD26: 7 | BE26: 14.5 | BF26: 20 | BG26: 34.5 | BH26: 339.2 | BI26: 3.5 | BJ26: 4.5 | BK26: 1 | BL26: 9 | BM26: 3 | BN26: 3.5 | BO26: 6 | BP26: 12.5 | BQ26: دورثان | BR26: فى : محاسبة - مواطنة - | BS26: 2 | CA26: محاسبة - | CJ26: مواطنة - | CN26: 106.8
A27: 18 | B27: 718 | C27: احمد محمود عبدالرسول ابراهيم عطيه نصر | D27: 4/2 | E27: مستجد | F27: 518 | G27: 6.5 | H27: 10.5 | I27: 14 | J27: 31 | K27: 7 | L27: 9.2 | M27: 11.6 | N27: 27.8 | O27: 5 | P27: 6.4 | Q27: 7.6 | R27: 19 | S27: 7.5 | T27: 0 | U27: 17.5 | V27: 25 | W27: 9 | X27: 9 | Y27: 7 | Z27: 25 | AA27: 8.5 | AB27: 8 | AC27: 11.5 | AD27: 28 | AE27: 8 | AF27: 5 | AG27: غ | AH27: 13 | AI27: 8 | AJ27: 9 | AK27: 14 | AL27: 31 | AM27: 8.5 | AN27: 17 | AO27: 14 | AP27: 39.5 | AQ27: 8 | AR27: 2 | AS27: 15 | AT27: 25 | AU27: 7 | AV27: 9 | AW27: 14 | AX27: 30 | AY27: 2.5 | AZ27: 4 | BA27: 5 | BB27: 8 | BC27: 6 | BD27: 7 | BE27: 13.5 | BF27: 19 | BG27: 32.5 | BH27: 326.8 | BI27: 3.5 | BJ27: 6 | BK27: غ | BL27: 9.5 | BM27: 3 | BN27: 3.5 | BO27: 6 | BP27: 12.5 | BQ27: دورثان | BR27: فى : قانون تجارى - مواطنة - | BS27: 2 | CD27: قانون تجارى - | CJ27: مواطنة - | CN27: 98.1
A28: 19 | B28: 719 | C28: احمد مصطفي عبد العليم مصطفي يحيي | D28: 4/2 | E28: مستجد | F28: 519 | G28: 6.5 | H28: 9.5 | I28: 11 | J28: 27 | K28: 8 | L28: 12.8 | M28: 13.2 | N28: 34 | O28: 5.5 | P28: 7.6 | Q28: 6.8 | R28: 19.9 | S28: 8 | T28: 0 | U28: 17 | V28: 25 | W28: 9 | X28: 9.5 | Y28: 6.5 | Z28: 25 | AA28: 8.5 | AB28: 8 | AC28: 11.5 | AD28: 28 | AE28: 8 | AF28: 3 | AG28: 14 | AH28: 25 | AI28: 8 | AJ28: 10 | AK28: 12 | AL28: 30 | AM28: 8.5 | AN28: 17 | AO28: 14 | AP28: 39.5 | AQ28: 8 | AR28: 3 | AS28: 14 | AT28: 25 | AU28: 7 | AV28: 8 | AW28: 16 | AX28: 31 | AY28: 2.5 | AZ28: 4 | BA28: 5 | BB28: 7 | BC28: 5 | BD28: 7 | BE28: 12.5 | BF28: 18 | BG28: 30.5 | BH28: 339.9 | BI28: 3.5 | BJ28: 5.5 | BK28: 2.5 | BL28: 11.5 | BM28: 3 | BN28: 4 | BO28: 6 | BP28: 13 | BQ28: ناجحة | BR28: ومنقولة للصف الثالث | BS28: 0 | CN28: 100.4
A29: 20 | B29: 720 | C29: احمد وحيد فؤاد هلال | D29: 4/2 | E29: مستجد | F29: 520 | G29: 6 | H29: 9.5 | I29: 13 | J29: 28.5 | K29: 8 | L29: 10.8 | M29: 12 | N29: 30.8 | O29: 5.5 | P29: 5.6 | Q29: 7.6 | R29: 18.7 | S29: 8 | T29: 0 | U29: 17 | V29: 25 | W29: 9 | X29: 10 | Y29: 8 | Z29: 27 | AA29: 8.5 | AB29: 9 | AC29: 11.5 | AD29: 29 | AE29: 8.5 | AF29: 4 | AG29: 13 | AH29: 25.5 | AI29: 8 | AJ29: 7 | AK29: 14 | AL29: 29 | AM29: 8.5 | AN29: 17 | AO29: 14 | AP29: 39.5 | AQ29: 8 | AR29: 2 | AS29: 15 | AT29: 25 | AU29: 7 | AV29: 11 | AW29: 13 | AX29: 31 | AY29: 2.5 | AZ29: 4.5 | BA29: 6 | BB29: 10 | BC29: 6 | BD29: 8 | BE29: 14.5 | BF29: 22.5 | BG29: 37 | BH29: 346 | BI29: 3.5 | BJ29: 5 | BK29: 2.5 | BL29: 11 | BM29: 3 | BN29: 3.5 | BO29: 6 | BP29: 12.5 | BQ29: ناجحة | BR29: ومنقولة للصف الثالث | BS29: 0 | CN29: 101.9
A30: 21 | B30: 721 | C30: ادهم رضا عفيفي عفيفي | D30: 4/2 | E30: مستجد | F30: 521 | G30: 7 | H30: 9 | I30: 12.5 | J30: 28.5 | K30: 8 | L30: 10.4 | M30: 11.6 | N30: 30 | O30: 5.5 | P30: 7.2 | Q30: 8 | R30: 20.7 | S30: 8 | T30: 0 | U30: 17 | V30: 25 | W30: 9 | X30: 7 | Y30: 9 | Z30: 25 | AA30: 8.5 | AB30: 9 | AC30: 11.5 | AD30: 29 | AE30: 8.5 | AF30: 5 | AG30: 13 | AH30: 26.5 | AI30: 7.5 | AJ30: 9 | AK30: 12 | AL30: 28.5 | AM30: 8.5 | AN30: 17 | AO30: 12 | AP30: 37.5 | AQ30: 8 | AR30: 2 | AS30: 15 | AT30: 25 | AU30: 7 | AV30: 5 | AW30: 17 | AX30: 29 | AY30: 3 | AZ30: 4 | BA30: 6 | BB30: 8 | BC30: 6 | BD30: 8 | BE30: 15 | BF30: 20 | BG30: 35 | BH30: 339.7 | BI30: 3.5 | BJ30: 5 | BK30: 2.5 | BL30: 11 | BM30: 3 | BN30: 3.5 | BO30: 6 | BP30: 12.5 | BQ30: ناجحة | BR30: ومنقولة للصف الثالث | BS30: 0 | CN30: 94.6
A31: 22 | B31: 722 | C31: اسامة وحيد السيد متولي | D31: 4/2 | E31: مستجد | F31: 522 | G31: 6.5 | H31: 12.5 | I31: 12.5 | J31: 31.5 | K31: 7.5 | L31: 10.4 | M31: 10.8 | N31: 28.7 | O31: 5.5 | P31: 6.4 | Q31: 7.6 | R31: 19.5 | S31: 8 | T31: 0 | U31: 12.5 | V31: 20.5 | W31: 9 | X31: 10.5 | Y31: 8.5 | Z31: 28 | AA31: 8.5 | AB31: 7 | AC31: 11 | AD31: 26.5 | AE31: 8 | AF31: 8 | AG31: 13 | AH31: 29 | AI31: 8 | AJ31: 9 | AK31: 12 | AL31: 29 | AM31: 8 | AN31: 16 | AO31: 12 | AP31: 36 | AQ31: 8 | AR31: 2 | AS31: 15 | AT31: 25 | AU31: 7 | AV31: 4 | AW31: 16 | AX31: 27 | AY31: 2.5 | AZ31: 4 | BA31: 5 | BB31: 10 | BC31: 6 | BD31: 7 | BE31: 13.5 | BF31: 21 | BG31: 34.5 | BH31: 335.2 | BI31: 3.5 | BJ31: 6.5 | BK31: 3.5 | BL31: 13.5 | BM31: 3 | BN31: 3.5 | BO31: 6.5 | BP31: 13 | BQ31: دورثان | BR31: فى : محاسبة - | BS31: 1 | CA31: محاسبة - | CN31: 100.8
A32: 23 | B32: 723 | C32: السيد ابراهيم السيد ابراهيم | D32: 4/2 | E32: مستجد | F32: 523 | G32: 6 | H32: 9 | I32: غ | J32: 15 | K32: 8 | L32: 8 | M32: 10.8 | N32: 26.8 | O32: 5.5 | P32: 5.6 | Q32: غ | R32: 11.1 | S32: 7.5 | T32: 0 | U32: 13.5 | V32: 21 | W32: 9 | X32: غ | Y32: غ | Z32: 9 | AA32: 8.5 | AB32: غ | AC32: 12 | AD32: 20.5 | AE32: 8 | AF32: غ | AG32: غ | AH32: 8 | AI32: 8 | AJ32: 10 | AK32: 13 | AL32: 31 | AM32: 8 | AN32: 16 | AO32: 12 | AP32: 36 | AQ32: 8 | AR32: 1 | AS32: 16 | AT32: 25 | AU32: 8 | AV32: غ | AW32: 17 | AX32: 25 | AY32: 2.5 | AZ32: 4 | BA32: 5 | BB32: 6 | BC32: 5 | BD32: 8 | BE32: 12.5 | BF32: 18 | BG32: 30.5 | BH32: 258.9 | BI32: 3.5 | BJ32: 5 | BK32: غ | BL32: 8.5 | BM32: 3 | BN32: غ | BO32: غ | BP32: 3 | BQ32: راسبة | BR32: فى : عربى - فرنسى - محاسبة - احصاء - اعمال وساطة - قانون تجارى - مواطنة - دين - مجموع | BS32: 9 | BX32: عربى - | BZ32: فرنسى - | CA32: محاسبة - | CB32: احصاء - | CC32: اعمال وساطة - | CD32: قانون تجارى - | CJ32: مواطنة - | CK32: دين - | CL32: مجموع | CN32: 60.6
A33: 24 | B33: 724 | C33: انس أحمد حامد محمد | D33: 4/2 | E33: مستجد | F33: 524 | G33: 6.5 | H33: 3 | I33: 15.5 | J33: 25 | K33: 8 | L33: 8.4 | M33: 11.6 | N33: 28 | O33: 5.5 | P33: 4.8 | Q33: 8 | R33: 18.3 | S33: 8 | T33: 0 | U33: 17 | V33: 25 | W33: 9 | X33: 5 | Y33: 7 | Z33: 21 | AA33: 8.5 | AB33: 7 | AC33: 11.5 | AD33: 27 | AE33: 8 | AF33: 0 | AG33: 17 | AH33: 25 | AI33: 8.5 | AJ33: 9 | AK33: 12 | AL33: 29.5 | AM33: 8 | AN33: 17 | AO33: 12 | AP33: 37 | AQ33: 8 | AR33: 2 | AS33: 15 | AT33: 25 | AU33: 7 | AV33: غ | AW33: 12 | AX33: 19 | AY33: 2.5 | AZ33: 4 | BA33: 4 | BB33: 7 | BC33: 5 | BD33: 8 | BE33: 11.5 | BF33: 19 | BG33: 30.5 | BH33: 310.3 | BI33: 3.5 | BJ33: 5 | BK33: 3.5 | BL33: 12 | BM33: 3.5 | BN33: 2 | BO33: 4.5 | BP33: 10 | BQ33: دورثان | BR33: فى : احصاء - علم نفس - | BS33: 2 | CB33: احصاء - | CH33: علم نفس - | CN33: 67.2
A34: 25 | B34: 725 | C34: جمال سامي محمد حسن أبو العلا | D34: 4/2 | E34: مستجد | F34: 525 | G34: 8 | H34: 13.5 | I34: 16 | J34: 37.5 | K34: 8.5 | L34: 15.2 | M34: 16.4 | N34: 40.1 | O34: 5.5 | P34: 6.8 | Q34: 7.6 | R34: 19.9 | S34: 8 | T34: 12 | U34: 10 | V34: 30 | W34: 9 | X34: 18 | Y34: 9 | Z34: 36 | AA34: 8.5 | AB34: 14 | AC34: 12.5 | AD34: 35 | AE34: 8.5 | AF34: 9 | AG34: 14 | AH34: 31.5 | AI34: 8 | AJ34: 13 | AK34: 15 | AL34: 36 | AM34: 8.5 | AN34: 19 | AO34: 16 | AP34: 43.5 | AQ34: 8 | AR34: 6.5 | AS34: 14 | AT34: 28.5 | AU34: 7 | AV34: 13 | AW34: 17 | AX34: 37 | AY34: 2.5 | AZ34: 4 | BA34: 5 | BB34: 10 | BC34: 5 | BD34: 8 | BE34: 12.5 | BF34: 22 | BG34: 34.5 | BH34: 409.5 | BI34: 3.5 | BJ34: 5.5 | BK34: 4.5 | BL34: 13.5 | BM34: 4 | BN34: 4 | BO34: 6 | BP34: 14 | BQ34: ناجحة | BR34: ومنقولة للصف الثالث | BS34: 0 | CN34: 155
A35: 26 | B35: 726 | C35: جمال عبد الرسول سلامة موسي | D35: 4/2 | E35: مستجد | F35: 526 | G35: 6.5 | H35: 9 | I35: 12 | J35: 27.5 | K35: 8 | L35: 10.8 | M35: 10.4 | N35: 29.2 | O35: 5.5 | P35: 5.6 | Q35: 8 | R35: 19.1 | S35: 7.5 | T35: 0 | U35: 17.5 | V35: 25 | W35: 9 | X35: 6.5 | Y35: 9.5 | Z35: 25 | AA35: 8.5 | AB35: 10 | AC35: 10.5 | AD35: 29 | AE35: 9 | AF35: 2 | AG35: 14 | AH35: 25 | AI35: 8 | AJ35: 11 | AK35: 11 | AL35: 30 | AM35: 9 | AN35: 17 | AO35: 12 | AP35: 38 | AQ35: 8 | AR35: 0 | AS35: 17 | AT35: 25 | AU35: 7 | AV35: 13 | AW35: 13 | AX35: 33 | AY35: 2.5 | AZ35: 4 | BA35: 4 | BB35: 8 | BC35: 5 | BD35: 7 | BE35: 11.5 | BF35: 19 | BG35: 30.5 | BH35: 336.3 | BI35: 3.5 | BJ35: 5 | BK35: 2.5 | BL35: 11 | BM35: 3 | BN35: 2.5 | BO35: 6 | BP35: 11.5 | BQ35: ناجحة | BR35: ومنقولة للصف الثالث | BS35: 0 | CN35: 96.9
A36: 27 | B36: 727 | C36: حسام شحاته محمدي الطوخي | D36: 4/2 | E36: مستجد | F36: 527 | G36: 6.5 | H36: 7 | I36: 11.5 | J36: 25 | K36: 7.5 | L36: 7.2 | M36: 8.8 | N36: 23.5 | O36: 5.5 | P36: 5.6 | Q36: 6.8 | R36: 17.9 | S36: 8 | T36: 0 | U36: 9.5 | V36: 17.5 | W36: 9 | X36: 10.5 | Y36: 1 | Z36: 20.5 | AA36: 8.5 | AB36: 10 | AC36: 7.5 | AD36: 26 | AE36: 8 | AF36: 0 | AG36: 17 | AH36: 25 | AI36: 7.5 | AJ36: 11 | AK36: 10 | AL36: 28.5 | AM36: 8 | AN36: 17 | AO36: 12 | AP36: 37 | AQ36: 8.5 | AR36: 3 | AS36: 13.5 | AT36: 25 | AU36: 7 | AV36: 10 | AW36: 14 | AX36: 31 | AY36: 2.5 | AZ36: 4 | BA36: 4 | BB36: 7 | BC36: 5 | BD36: 8 | BE36: 11.5 | BF36: 19 | BG36: 30.5 | BH36: 307.4 | BI36: 3 | BJ36: 4.5 | BK36: 0 | BL36: 7.5 | BM36: 3.5 | BN36: 1 | BO36: 5.5 | BP36: 10 | BQ36: راسبة | BR36: فى : محاسبة - احصاء - مواطنة - | BS36: 3 | CA36: محاسبة - | CB36: احصاء - | CJ36: مواطنة - | CN36: 92.3
A37: 28 | B37: 728 | C37: حسام عبد الحميد محمد المسعد | D37: 4/2 | E37: مستجد | F37: 528 | G37: 7.5 | H37: 13 | I37: 15.5 | J37: 36 | K37: 8 | L37: 12 | M37: 12.4 | N37: 32.4 | O37: 5 | P37: 7.2 | Q37: 8 | R37: 20.2 | S37: 8 | T37: 3 | U37: 14 | V37: 25 | W37: 9 | X37: 8.5 | Y37: 8.5 | Z37: 26 | AA37: 8.5 | AB37: 14 | AC37: 11.5 | AD37: 34 | AE37: 8.5 | AF37: 0 | AG37: 17 | AH37: 25.5 | AI37: 7.5 | AJ37: 11 | AK37: 13 | AL37: 31.5 | AM37: 8.5 | AN37: 19 | AO37: 14 | AP37: 41.5 | AQ37: 8.5 | AR37: 5.5 | AS37: 13 | AT37: 27 | AU37: 7 | AV37: 12 | AW37: 16 | AX37: 35 | AY37: 2.5 | AZ37: 4 | BA37: 4 | BB37: 10 | BC37: 6 | BD37: 8 | BE37: 12.5 | BF37: 22 | BG37: 34.5 | BH37: 368.6 | BI37: 3 | BJ37: 5.5 | BK37: 3.5 | BL37: 12 | BM37: 3 | BN37: 4.5 | BO37: 5.5 | BP37: 13 | BQ37: ناجحة | BR37: ومنقولة للصف الثالث | BS37: 0 | CN37: 119.2
A38: 29 | B38: 729 | C38: حسام علي عبد الغني علي | D38: 4/2 | E38: مستجد | F38: 529 | G38: 7 | H38: 11 | I38: 15 | J38: 33 | K38: 7.5 | L38: 9.6 | M38: 15.2 | N38: 32.3 | O38: 5.5 | P38: 4 | Q38: 6.4 | R38: 15.9 | S38: 8 | T38: 3 | U38: 14 | V38: 25 | W38: 9 | X38: 9.5 | Y38: 9 | Z38: 27.5 | AA38: 8.5 | AB38: 7 | AC38: 10.5 | AD38: 26 | AE38: 8.5 | AF38: 5 | AG38: 13 | AH38: 26.5 | AI38: 7.5 | AJ38: 12 | AK38: 13 | AL38: 32.5 | AM38: 8.5 | AN38: 16 | AO38: 14 | AP38: 38.5 | AQ38: 8 | AR38: 2 | AS38: 15 | AT38: 25 | AU38: 7 | AV38: 10 | AW38: 16 | AX38: 33 | AY38: 3 | AZ38: 4 | BA38: 5 | BB38: 10 | BC38: 5 | BD38: 8 | BE38: 13 | BF38: 22 | BG38: 35 | BH38: 350.2 | BI38: 3.5 | BJ38: 6 | BK38: 3.5 | BL38: 13 | BM38: 3 | BN38: 4 | BO38: 6 | BP38: 13 | BQ38: ناجحة | BR38: ومنقولة للصف الثالث | BS38: 0 | CN38: 104.1
A39: 30 | B39: 730 | C39: حسين رجب سليمان حسين | D39: 4/2 | E39: مستجد | F39: 530 | G39: 7 | H39: 4.5 | I39: 13.5 | J39: 25 | K39: 7.5 | L39: 8 | M39: 12 | N39: 27.5 | O39: 5.5 | P39: 4.8 | Q39: 7.2 | R39: 17.5 | S39: 8 | T39: 0 | U39: 17 | V39: 25 | W39: 9 | X39: 7 | Y39: 6 | Z39: 22 | AA39: 8.5 | AB39: 9 | AC39: 11.5 | AD39: 29 | AE39: 8.5 | AF39: 7 | AG39: 13 | AH39: 28.5 | AI39: 7.5 | AJ39: 12 | AK39: 11 | AL39: 30.5 | AM39: 8.5 | AN39: 15 | AO39: 14 | AP39: 37.5 | AQ39: 8 | AR39: 1 | AS39: 16 | AT39: 25 | AU39: 7 | AV39: 12 | AW39: 16 | AX39: 35 | AY39: 2.5 | AZ39: 4 | BA39: 4 | BB39: 9 | BC39: 5 | BD39: 8 | BE39: 11.5 | BF39: 21 | BG39: 32.5 | BH39: 335 | BI39: 3 | BJ39: 5 | BK39: 3.5 | BL39: 11.5 | BM39: 3 | BN39: 4.5 | BO39: 6 | BP39: 13.5 | BQ39: دورثان | BR39: فى : احصاء - | BS39: 1 | CB39: احصاء - | CN39: 93.3
A40: 31 | B40: 731 | C40: حلمي أشرف حلمي عبد العظيم | D40: 4/2 | E40: مستجد | F40: 531 | G40: 8 | H40: 8 | I40: 16.5 | J40: 32.5 | K40: 7.5 | L40: 12.4 | M40: 13.6 | N40: 33.5 | O40: 5.5 | P40: 5.2 | Q40: غ | R40: 10.7 | S40: 7.5 | T40: 0.5 | U40: 17 | V40: 25 | W40: 9 | X40: 12 | Y40: 9 | Z40: 30 | AA40: 8.5 | AB40: 9 | AC40: 11.5 | AD40: 29 | AE40: 8.5 | AF40: 6 | AG40: 14 | AH40: 28.5 | AI40: 7.5 | AJ40: 12 | AK40: 15 | AL40: 34.5 | AM40: 8.5 | AN40: 17 | AO40: 14 | AP40: =[1]ورقة2!AY40 -> 0 | AQ40: 8 | AR40: 2 | AS40: 15 | AT40: 25 | AU40: 7 | AV40: 10 | AW40: 16 | AX40: 33 | AY40: 2.5 | AZ40: 4 | BA40: 4 | BB40: 11 | BC40: 5 | BD40: 8 | BE40: 11.5 | BF40: 23 | BG40: 34.5 | BH40: 316.2 | BI40: 3.5 | BJ40: 5 | BK40: 4 | BL40: 12.5 | BM40: 3 | BN40: 4 | BO40: 6 | BP40: 13 | BQ40: دورثان | BR40: فى : فرنسى - قانون عقوبات - | BS40: 2 | BZ40: فرنسى - | CF40: قانون عقوبات - | CN40: 109.1
A41: 32 | B41: 732 | C41: حلمي حمادة حلمي محمود | D41: 4/2 | E41: مستجد | F41: 532 | G41: 6.5 | H41: 11 | I41: 14.5 | J41: =SUM(G41:I41) -> 32 | K41: 7.5 | L41: 6.8 | M41: 8 | N41: 22.3 | O41: 5 | P41: 3.2 | Q41: 7.2 | R41: 15.4 | S41: 8 | T41: 0 | U41: 17 | V41: 25 | W41: 9 | X41: 5.5 | Y41: 10.5 | Z41: 25 | AA41: 8.5 | AB41: 11 | AC41: 11.5 | AD41: 31 | AE41: 8 | AF41: 7 | AG41: 13 | AH41: 28 | AI41: 7.5 | AJ41: 9 | AK41: 12 | AL41: 28.5 | AM41: 8 | AN41: 17 | AO41: 17 | AP41: =[1]ورقة2!AY41 -> 0 | AQ41: 8 | AR41: 4 | AS41: 13 | AT41: 25 | AU41: 7 | AV41: 12 | AW41: 14 | AX41: 33 | AY41: 2.5 | AZ41: 4 | BA41: 6 | BB41: 7 | BC41: 6 | BD41: 8 | BE41: =IF($C41="","",SUM(AY41,BA41,BC41)) -> 14.5 | BF41: 19 | BG41: 33.5 | BH41: 298.7 | BI41: 3 | BJ41: 5 | BK41: 3.5 | BL41: 11.5 | BM41: 3 | BN41: 4.5 | BO41: 6.5 | BP41: 14 | BQ41: دورثان | BR41: فى : قانون عقوبات - | BS41: 1 | CF41: قانون عقوبات - | CN41: 99.5
A42: 33 | B42: 733 | C42: حمدي مصطفي علي مصطفي | D42: 4/2 | E42: مستجد | F42: 533 | G42: 6.5 | H42: 9 | I42: 12.5 | J42: 28 | K42: 8 | L42: 12 | M42: 14.8 | N42: 34.8 | O42: 5.5 | P42: 2.4 | Q42: 6.8 | R42: 14.7 | S42: 8 | T42: 10 | U42: 11.5 | V42: 29.5 | W42: 9 | X42: 11.5 | Y42: 9 | Z42: 29.5 | AA42: 8.5 | AB42: 14 | AC42: 11 | AD42: 33.5 | AE42: 8 | AF42: 11 | AG42: 13 | AH42: 32 | AI42: 8 | AJ42: 10 | AK42: 7 | AL42: 25 | AM42: 8 | AN42: 18 | AO42: 14 | AP42: =[1]ورقة2!AY42 -> 0 | AQ42: 8 | AR42: 5 | AS42: 12 | AT42: 25 | AU42: 7 | AV42: 16 | AW42: 16 | AX42: 39 | AY42: 2.5 | AZ42: 4 | BA42: 4 | BB42: 10 | BC42: 6 | BD42: 8 | BE42: 12.5 | BF42: 22 | BG42: 34.5 | BH42: 325.5 | BI42: 3.5 | BJ42: 7.5 | BK42: 3.5 | BL42: 14.5 | BM42: 3 | BN42: 5.5 | BO42: 6 | BP42: 14.5 | BQ42: دورثان | BR42: فى : قانون عقوبات - | BS42: 1 | CF42: قانون عقوبات - | CN42: 132.9
A43: 34 | B43: 734 | C43: حمدي ممدوح حمد السيد | D43: 4/2 | E43: مستجد | F43: 534 | G43: 7 | H43: 13 | I43: 13 | J43: 33 | K43: 7.5 | L43: 12 | M43: 16.4 | N43: 35.9 | O43: 5.5 | P43: 4.8 | Q43: 6.4 | R43: 16.7 | S43: 8 | T43: 10.5 | U43: 13 | V43: 31.5 | W43: 9 | X43: 12 | Y43: 9.5 | Z43: 30.5 | AA43: 8.5 | AB43: 13 | AC43: 11 | AD43: 32.5 | AE43: 8 | AF43: 8 | AG43: 13 | AH43: 29 | AI43: 8.5 | AJ43: 10 | AK43: 8 | AL43: 26.5 | AM43: 8 | AN43: 19 | AO43: 16 | AP43: =[1]ورقة2!AY43 -> 0 | AQ43: 8 | AR43: 5 | AS43: 12 | AT43: 25 | AU43: 7 | AV43: 12 | AW43: 16 | AX43: 35 | AY43: 2.5 | AZ43: 4 | BA43: 5 | BB43: 11 | BC43: 5 | BD43: 8 | BE43: 12.5 | BF43: 23 | BG43: 35.5 | BH43: 331.1 | BI43: 3 | BJ43: 7 | BK43: 3.5 | BL43: 13.5 | BM43: 3 | BN43: 5 | BO43: 6.5 | BP43: 14.5 | BQ43: دورثان | BR43: فى : قانون عقوبات - | BS43: 1 | CF43: قانون عقوبات - | CN43: 135.3
A44: 35 | B44: 735 | C44: حمدي وائل حمدي عبد العزيز | D44: 4/2 | E44: مستجد | F44: 535 | G44: 7 | H44: 13 | I44: 12 | J44: 32 | K44: 7.5 | L44: 12 | M44: 14.4 | N44: 33.9 | O44: 5.5 | P44: 3.6 | Q44: 6.4 | R44: 15.5 | S44: 8 | T44: 8.5 | U44: 12 | V44: 28.5 | W44: 9 | X44: 11 | Y44: 1 | Z44: 21 | AA44: 8.5 | AB44: 14 | AC44: 8 | AD44: 30.5 | AE44: 8.5 | AF44: 6 | AG44: 13 | AH44: 27.5 | AI44: 7.5 | AJ44: 4 | AK44: 14 | AL44: 25.5 | AM44: 8.5 | AN44: 20 | AO44: 14 | AP44: =[1]ورقة2!AY44 -> 0 | AQ44: 8 | AR44: 3 | AS44: 9 | AT44: 20 | AU44: 7 | AV44: 15 | AW44: 17 | AX44: 39 | AY44: 2.5 | AZ44: 4 | BA44: 6 | BB44: 11 | BC44: 5 | BD44: 8 | BE44: 13.5 | BF44: 23 | BG44: 36.5 | BH44: 309.9 | BI44: 3 | BJ44: 7 | BK44: 4.5 | BL44: 14.5 | BM44: 3 | BN44: 6 | BO44: 6 | BP44: 15 | BQ44: راسبة | BR44: فى : احصاء - قانون عقوبات - قانون مرافعات - | BS44: 3 | CB44: احصاء - | CF44: قانون عقوبات - | CG44: قانون مرافعات - | CN44: 127.1
A45: 36 | B45: 736 | C45: خالد عبد القادر عبد القادر محمد | D45: 4/2 | E45: مستجد | F45: 536 | G45: 8 | H45: 15 | I45: 12.5 | J45: 35.5 | K45: 7.5 | L45: 12.8 | M45: 16.8 | N45: 37.1 | O45: 5.5 | P45: 4 | Q45: 6.4 | R45: 15.9 | S45: 8 | T45: 12.5 | U45: 12.5 | V45: 33 | W45: 9 | X45: 14.5 | Y45: 0 | Z45: 23.5 | AA45: 8.5 | AB45: 14 | AC45: 10 | AD45: 32.5 | AE45: 9 | AF45: 6 | AG45: 13 | AH45: 28 | AI45: 8 | AJ45: 8 | AK45: 9 | AL45: 25 | AM45: 9 | AN45: 19 | AO45: 14 | AP45: =[1]ورقة2!AY45 -> 0 | AQ45: 8 | AR45: 5 | AS45: 12 | AT45: 25 | AU45: 7 | AV45: 14 | AW45: 16 | AX45: 37 | AY45: 3 | AZ45: 4.5 | BA45: 6 | BB45: 11 | BC45: 6 | BD45: 8 | BE45: 15 | BF45: 23.5 | BG45: 38.5 | BH45: 331 | BI45: 3 | BJ45: 7 | BK45: 5.5 | BL45: 15.5 | BM45: 3 | BN45: 6.5 | BO45: 6 | BP45: 15.5 | BQ45: دورثان | BR45: فى : احصاء - قانون عقوبات - | BS45: 2 | CB45: احصاء - | CF45: قانون عقوبات - | CN45: 141.8
A46: 37 | B46: 737 | C46: خالد محي الدين مظهر عبد المجيد | D46: 4/2 | E46: مستجد | F46: 537 | G46: 7.5 | H46: 13 | I46: 11.5 | J46: 32 | K46: 8 | L46: 14 | M46: 16.8 | N46: 38.8 | O46: 5.5 | P46: 4.8 | Q46: 8.4 | R46: 18.7 | S46: 8 | T46: 9.5 | U46: 11.5 | V46: 29 | W46: 9 | X46: 11.5 | Y46: 0 | Z46: 20.5 | AA46: 8.5 | AB46: 13 | AC46: 11.5 | AD46: 33 | AE46: 8 | AF46: 9 | AG46: 13 | AH46: 30 | AI46: 8.5 | AJ46: 8 | AK46: 12 | AL46: 28.5 | AM46: 8 | AN46: 18 | AO46: 16 | AP46: =[1]ورقة2!AY46 -> 0 | AQ46: 8 | AR46: 3 | AS46: 10 | AT46: 21 | AU46: 7 | AV46: 15 | AW46: 16 | AX46: 38 | AY46: 3 | AZ46: 4.5 | BA46: 6 | BB46: 11 | BC46: 6 | BD46: 7 | BE46: 15 | BF46: 22.5 | BG46: 37.5 | BH46: 327 | BI46: 3.5 | BJ46: 7.5 | BK46: 4.5 | BL46: 15.5 | BM46: 3 | BN46: 5 | BO46: 6.5 | BP46: 14.5 | BQ46: راسبة | BR46: فى : احصاء - قانون عقوبات - قانون مرافعات - | BS46: 3 | CB46: احصاء - | CF46: قانون عقوبات - | CG46: قانون مرافعات - | CN46: 135.8
A47: 38 | B47: 738 | C47: خالد يوسف لطفي عبد المحسن | D47: 4/2 | E47: مستجد | F47: 538 | G47: 7 | H47: 8 | I47: 10.5 | J47: 25.5 | K47: 8 | L47: 12 | M47: 14.4 | N47: 34.4 | O47: 5.5 | P47: 2.8 | Q47: 6.8 | R47: 15.1 | S47: 8 | T47: 11 | U47: 11 | V47: 30 | W47: 9 | X47: 11.5 | Y47: 11.5 | Z47: 32 | AA47: 8.5 | AB47: 12.5 | AC47: 11.5 | AD47: 32.5 | AE47: 8.5 | AF47: 9 | AG47: 13 | AH47: 30.5 | AI47: 8 | AJ47: 3 | AK47: 14 | AL47: 25 | AM47: 8.5 | AN47: 19 | AO47: 12 | AP47: =[1]ورقة2!AY47 -> 0 | AQ47: 8 | AR47: 3 | AS47: 7 | AT47: 18 | AU47: 7 | AV47: 11 | AW47: 14 | AX47: 32 | AY47: 2.5 | AZ47: 4 | BA47: 5 | BB47: 11 | BC47: 6 | BD47: 8 | BE47: 13.5 | BF47: 23 | BG47: 36.5 | BH47: 311.5 | BI47: 3 | BJ47: 6.5 | BK47: 5 | BL47: 14.5 | BM47: 3 | BN47: 4.5 | BO47: 5.5 | BP47: 13 | BQ47: دورثان | BR47: فى : قانون عقوبات - قانون مرافعات - | BS47: 2 | CF47: قانون عقوبات - | CG47: قانون مرافعات - | CN47: 118.8
A48: 39 | B48: 739 | C48: رزق محمد رزق معوض | D48: 4/2 | E48: مستجد | F48: 539 | G48: 8 | H48: 12.5 | I48: 11.5 | J48: 32 | K48: 7.5 | L48: 12 | M48: 15.6 | N48: 35.1 | O48: 5.5 | P48: 3.6 | Q48: 6.8 | R48: 15.9 | S48: 7.5 | T48: 11.5 | U48: 11.5 | V48: 30.5 | W48: 9 | X48: 10.5 | Y48: 11.5 | Z48: 31 | AA48: 8.5 | AB48: 15 | AC48: 10 | AD48: 33.5 | AE48: 8 | AF48: 9 | AG48: 13 | AH48: 30 | AI48: 7.5 | AJ48: 9 | AK48: 9 | AL48: 25.5 | AM48: 8 | AN48: 19 | AO48: 14 | AP48: =[1]ورقة2!AY48 -> 0 | AQ48: 8 | AR48: 3 | AS48: 14 | AT48: 25 | AU48: 7 | AV48: 15 | AW48: 14 | AX48: 36 | AY48: 2.5 | AZ48: 4 | BA48: 5 | BB48: 11 | BC48: 5 | BD48: 7 | BE48: 12.5 | BF48: 22 | BG48: 34.5 | BH48: 329 | BI48: 3.5 | BJ48: 5 | BK48: 5 | BL48: 13.5 | BM48: 3 | BN48: 5.5 | BO48: 6 | BP48: 14.5 | BQ48: دورثان | BR48: فى : قانون عقوبات - | BS48: 1 | CF48: قانون عقوبات - | CN48: 136.1
A49: 40 | B49: 740 | C49: سعد مسعد سعد المغازي | D49: 4/2 | E49: مستجد | F49: 540 | G49: 7.5 | H49: 10 | I49: 10.5 | J49: 28 | K49: 7.5 | L49: 14.4 | M49: 16.4 | N49: 38.3 | O49: 5.5 | P49: 6.8 | Q49: 7.6 | R49: 19.9 | S49: 8 | T49: 9.5 | U49: 13 | V49: 30.5 | W49: 9 | X49: 11 | Y49: 11 | Z49: 31 | AA49: 8.5 | AB49: 15 | AC49: 10.5 | AD49: 34 | AE49: 8 | AF49: 9 | AG49: 13 | AH49: 30 | AI49: 8 | AJ49: 10 | AK49: 13 | AL49: 31 | AM49: 8 | AN49: 16 | AO49: 12 | AP49: =[1]ورقة2!AY49 -> 0 | AQ49: 8 | AR49: 3 | AS49: 14 | AT49: 25 | AU49: 7 | AV49: 12 | AW49: 15 | AX49: 34 | AY49: 2.5 | AZ49: 4.5 | BA49: 6 | BB49: 11 | BC49: 6 | BD49: 8 | BE49: 14.5 | BF49: 23.5 | BG49: 38 | BH49: 339.7 | BI49: 3 | BJ49: 8 | BK49: 5 | BL49: 16 | BM49: 3 | BN49: 5 | BO49: 6 | BP49: 14 | BQ49: دورثان | BR49: فى : قانون عقوبات - | BS49: 1 | CF49: قانون عقوبات - | CN49: 133.7
A50: 41 | B50: 741 | C50: سليمان مصطفي سليمان عبد العزيز | D50: 4/2 | E50: مستجد | F50: 541 | G50: 7 | H50: 9.5 | I50: 9.5 | J50: 26 | K50: 8 | L50: 12.4 | M50: 13.2 | N50: 33.6 | O50: 5.5 | P50: 4.4 | Q50: 6.4 | R50: 16.3 | S50: 8 | T50: 8.5 | U50: 11.5 | V50: 28 | W50: 9 | X50: 12 | Y50: 9 | Z50: 30 | AA50: 8.5 | AB50: 13 | AC50: 11.5 | AD50: 33 | AE50: 8 | AF50: 9 | AG50: 13 | AH50: 30 | AI50: 8 | AJ50: 4 | AK50: 13 | AL50: 25 | AM50: 8 | AN50: 19 | AO50: 15 | AP50: =[1]ورقة2!AY50 -> 0 | AQ50: 8.5 | AR50: 2 | AS50: 14.5 | AT50: 25 | AU50: 7 | AV50: 12 | AW50: 12 | AX50: 31 | AY50: 2.5 | AZ50: 4.5 | BA50: 5 | BB50: 10 | BC50: 6 | BD50: 8 | BE50: 13.5 | BF50: 22.5 | BG50: 36 | BH50: 313.9 | BI50: 3.5 | BJ50: 7 | BK50: 5 | BL50: 15.5 | BM50: 3 | BN50: 3 | BO50: 5 | BP50: 11 | BQ50: دورثان | BR50: فى : قانون عقوبات - | BS50: 1 | CF50: قانون عقوبات - | CN50: 120.8
A51: 42 | B51: 742 | C51: عبد الرحمن سراج الدين محمد عباس | D51: 4/2 | E51: مستجد | F51: 542 | G51: 7 | H51: 7.5 | I51: 10.5 | J51: 25 | K51: 8.5 | L51: 11.2 | M51: 13.6 | N51: 33.3 | O51: 5.5 | P51: 5.6 | Q51: 6.4 | R51: 17.5 | S51: 8 | T51: 7 | U51: 12 | V51: 27 | W51: 9 | X51: 10.5 | Y51: 1 | Z51: 20.5 | AA51: 8.5 | AB51: 13 | AC51: 10 | AD51: 31.5 | AE51: 8.5 | AF51: 9 | AG51: 13 | AH51: 30.5 | AI51: 8 | AJ51: 4 | AK51: 13 | AL51: 25 | AM51: 8.5 | AN51: 19 | AO51: 15 | AP51: =[1]ورقة2!AY51 -> 0 | AQ51: 8.5 | AR51: 4 | AS51: 12.5 | AT51: 25 | AU51: 7 | AV51: 12 | AW51: 12 | AX51: 31 | AY51: 3 | AZ51: 4.5 | BA51: 6 | BB51: 10.5 | BC51: 6 | BD51: 8 | BE51: 15 | BF51: 23 | BG51: 38 | BH51: 304.3 | BI51: 3.5 | BJ51: 5.5 | BK51: 5 | BL51: 14 | BM51: 3 | BN51: 4.5 | BO51: 6 | BP51: 13.5 | BQ51: دورثان | BR51: فى : احصاء - قانون عقوبات - | BS51: 2 | CB51: احصاء - | CF51: قانون عقوبات - | CN51: 119.3
A52: 43 | B52: 743 | C52: عبد السميع جمال عبد السميع علي | D52: 5/2 | E52: مستجد | F52: 543 | G52: 7 | H52: 11.5 | I52: 10 | J52: 28.5 | K52: 8 | L52: 12.4 | M52: 16.4 | N52: 36.8 | O52: 5 | P52: 4.4 | Q52: 5.6 | R52: 15 | S52: 7.5 | T52: 8 | U52: 13 | V52: 28.5 | W52: 9 | X52: 11 | Y52: 6 | Z52: 26 | AA52: 7.5 | AB52: 14 | AC52: 10 | AD52: 31.5 | AE52: 8.5 | AF52: 9 | AG52: 13 | AH52: 30.5 | AI52: 8 | AJ52: 15 | AK52: 5 | AL52: 28 | AM52: 8.5 | AN52: 19 | AO52: 14 | AP52: =[1]ورقة2!AY52 -> 0 | AQ52: 8.5 | AR52: 3 | AS52: 13.5 | AT52: 25 | AU52: 6.5 | AV52: 15 | AW52: 11 | AX52: 32.5 | AY52: 3 | AZ52: 4 | BA52: 5 | BB52: 10.5 | BC52: 5 | BD52: 7 | BE52: 13 | BF52: 21.5 | BG52: 34.5 | BH52: 316.8 | BI52: 3 | BJ52: 7 | BK52: 5 | BL52: 15 | BM52: 3 | BN52: 5.5 | BO52: 4.5 | BP52: 13 | BQ52: دورثان | BR52: فى : قانون عقوبات - | BS52: 1 | CF52: قانون عقوبات - | CN52: 137.8
A53: 44 | B53: 744 | C53: عبد الفتاح سامي عبد الفتاح يوسف | D53: 5/2 | E53: مستجد | F53: 544 | G53: 7 | H53: 12 | I53: 10.5 | J53: 29.5 | K53: 8 | L53: 12 | M53: 14.8 | N53: 34.8 | O53: 5 | P53: 4.8 | Q53: 6 | R53: 15.8 | S53: 7.5 | T53: 10.5 | U53: 11.5 | V53: 29.5 | W53: 9.5 | X53: 11 | Y53: 9 | Z53: 29.5 | AA53: 7.5 | AB53: 14 | AC53: 11.5 | AD53: 33 | AE53: 8.5 | AF53: 7 | AG53: 13 | AH53: 28.5 | AI53: 8 | AJ53: 15 | AK53: 8 | AL53: 31 | AM53: 8.5 | AN53: 18 | AO53: 14 | AP53: =[1]ورقة2!AY53 -> 0 | AQ53: 8.5 | AR53: 3 | AS53: 13.5 | AT53: 25 | AU53: 6.5 | AV53: 14 | AW53: 15 | AX53: 35.5 | AY53: 3 | AZ53: 4 | BA53: 5 | BB53: 11 | BC53: 6 | BD53: 8 | BE53: 14 | BF53: 23 | BG53: 37 | BH53: 329.1 | BI53: 3 | BJ53: 6 | BK53: 5 | BL53: 14 | BM53: 3 | BN53: 5 | BO53: 5 | BP53: 13 | BQ53: دورثان | BR53: فى : قانون عقوبات - | BS53: 1 | CF53: قانون عقوبات - | CN53: 137.3
A54: 45 | B54: 745 | C54: عبد الله السيد محمد اسماعيل | D54: 5/2 | E54: مستجد | F54: 545 | G54: 7 | H54: 12.5 | I54: 12 | J54: 31.5 | K54: 8 | L54: 12 | M54: 15.2 | N54: 35.2 | O54: 5 | P54: 4.8 | Q54: 6.8 | R54: 16.6 | S54: 7.5 | T54: 10.5 | U54: 12 | V54: 30 | W54: 9.5 | X54: 10.5 | Y54: 0 | Z54: 20 | AA54: 7.5 | AB54: 14.5 | AC54: 11.5 | AD54: 33.5 | AE54: 9 | AF54: 9 | AG54: 13 | AH54: 31 | AI54: 8 | AJ54: 13 | AK54: 10 | AL54: 31 | AM54: 9 | AN54: 19 | AO54: 15 | AP54: =[1]ورقة2!AY54 -> 0 | AQ54: 8.5 | AR54: 4.5 | AS54: 12 | AT54: 25 | AU54: 6.5 | AV54: 11 | AW54: 15 | AX54: 32.5 | AY54: 3 | AZ54: 4 | BA54: 6 | BB54: 11 | BC54: 5 | BD54: 7 | BE54: 14 | BF54: 22 | BG54: 36 | BH54: 322.3 | BI54: 3 | BJ54: 5.5 | BK54: 5 | BL54: 13.5 | BM54: 3 | BN54: 5 | BO54: 6 | BP54: 14 | BQ54: دورثان | BR54: فى : احصاء - قانون عقوبات - | BS54: 2 | CB54: احصاء - | CF54: قانون عقوبات - | CN54: 138.3
A55: 46 | B55: 746 | C55: عبدالله احمد محمد فرج النجار | D55: 5/2 | E55: مستجد | F55: 546 | G55: 7 | H55: 9 | I55: 12 | J55: 28 | K55: 8 | L55: 11.6 | M55: 16.8 | N55: 36.4 | O55: 5 | P55: 5.2 | Q55: 6.8 | R55: 17 | S55: 7.5 | T55: 9 | U55: 11 | V55: 27.5 | W55: 9.5 | X55: 10 | Y55: 1 | Z55: 20.5 | AA55: 8 | AB55: 13 | AC55: 10.5 | AD55: 31.5 | AE55: 8 | AF55: 9 | AG55: 13 | AH55: 30 | AI55: 8 | AJ55: 12 | AK55: 9 | AL55: 29 | AM55: 8 | AN55: 19 | AO55: 17 | AP55: =[1]ورقة2!AY55 -> 0 | AQ55: 8.5 | AR55: 5.5 | AS55: 11 | AT55: 25 | AU55: 6.5 | AV55: 11 | AW55: 15 | AX55: 32.5 | AY55: 3 | AZ55: 4 | BA55: 5 | BB55: 11 | BC55: 5 | BD55: 7 | BE55: 13 | BF55: 22 | BG55: 35 | BH55: 312.4 | BI55: 3 | BJ55: 6.5 | BK55: 4.5 | BL55: 14 | BM55: 3 | BN55: 5 | BO55: 5.5 | BP55: 13.5 | BQ55: دورثان | BR55: فى : احصاء - قانون عقوبات - | BS55: 2 | CB55: احصاء - | CF55: قانون عقوبات - | CN55: 130.3
A56: 47 | B56: 747 | C56: عبد الله سامي محمد البيومي علام | D56: 5/2 | E56: مستجد | F56: 547 | G56: 7 | H56: 9 | I56: 9 | J56: 25 | K56: 8 | L56: 12.4 | M56: 16 | N56: 36.4 | O56: 5.5 | P56: 4 | Q56: 7.2 | R56: 16.7 | S56: 7.5 | T56: 7.5 | U56: 13.5 | V56: 28.5 | W56: 9.5 | X56: 11 | Y56: 6.5 | Z56: 27 | AA56: 8 | AB56: 14 | AC56: 12 | AD56: 34 | AE56: 8 | AF56: 7 | AG56: 14 | AH56: 29 | AI56: 7.5 | AJ56: 14 | AK56: 5 | AL56: 26.5 | AM56: 8 | AN56: 14 | AO56: 14 | AP56: =[1]ورقة2!AY56 -> 0 | AQ56: 8.5 | AR56: 3 | AS56: 13.5 | AT56: 25 | AU56: 7 | AV56: 13 | AW56: 16 | AX56: 36 | AY56: 3 | AZ56: 4 | BA56: 5 | BB56: 11 | BC56: 5 | BD56: 8 | BE56: 13 | BF56: 23 | BG56: 36 | BH56: 320.1 | BI56: 3 | BJ56: 5 | BK56: 5 | BL56: 13 | BM56: 3 | BN56: 5.5 | BO56: 5 | BP56: 13.5 | BQ56: دورثان | BR56: فى : قانون عقوبات - | BS56: 1 | CF56: قانون عقوبات - | CN56: 124.9
A57: 48 | B57: 748 | C57: عبد الله طلعت عبد السلام محمد | D57: 5/2 | E57: مستجد | F57: 548 | G57: 7 | H57: 12.5 | I57: 10.5 | J57: 30 | K57: 8 | L57: 12.4 | M57: 16.8 | N57: 37.2 | O57: 5.5 | P57: 4 | Q57: 6.8 | R57: 16.3 | S57: 8 | T57: 8.5 | U57: 11.5 | V57: 28 | W57: 9.5 | X57: 11 | Y57: 6.5 | Z57: 27 | AA57: 7.5 | AB57: 14 | AC57: 12.5 | AD57: 34 | AE57: 8.5 | AF57: 9 | AG57: 13 | AH57: 30.5 | AI57: 8 | AJ57: 13 | AK57: 7 | AL57: 28 | AM57: 8.5 | AN57: 18 | AO57: 15 | AP57: =[1]ورقة2!AY57 -> 0 | AQ57: 8.5 | AR57: 3 | AS57: 13.5 | AT57: 25 | AU57: 7 | AV57: 12 | AW57: 15 | AX57: 34 | AY57: 3 | AZ57: 4 | BA57: 6 | BB57: 11 | BC57: 5 | BD57: 8 | BE57: 14 | BF57: 23 | BG57: 37 | BH57: 327 | BI57: 3 | BJ57: 6.5 | BK57: 4.5 | BL57: 14 | BM57: 3 | BN57: 5.5 | BO57: 4 | BP57: 12.5 | BQ57: دورثان | BR57: فى : قانون عقوبات - | BS57: 1 | CF57: قانون عقوبات - | CN57: 134.4
A58: 49 | B58: 749 | C58: عبد الله محمود عبد الرحمن محمد | D58: 5/2 | E58: مستجد | F58: 549 | G58: 7 | H58: 12 | I58: 13 | J58: 32 | K58: 8 | L58: 10.8 | M58: 13.6 | N58: 32.4 | O58: 5 | P58: 7.2 | Q58: 8 | R58: 20.2 | S58: 8 | T58: 7.5 | U58: 13 | V58: 28.5 | W58: 9.5 | X58: 17.5 | Y58: 11.5 | Z58: 38.5 | AA58: 8 | AB58: 12 | AC58: 11.5 | AD58: 31.5 | AE58: 8.5 | AF58: 9 | AG58: 13 | AH58: 30.5 | AI58: 8.5 | AJ58: 15 | AK58: 15 | AL58: 38.5 | AM58: 8.5 | AN58: 17 | AO58: 14 | AP58: =[1]ورقة2!AY58 -> 0 | AQ58: 8.5 | AR58: 3.5 | AS58: 13 | AT58: 25 | AU58: 7 | AV58: 14 | AW58: 15 | AX58: 36 | AY58: 3 | AZ58: 4 | BA58: 6 | BB58: 9 | BC58: 6 | BD58: 8 | BE58: 15 | BF58: 21 | BG58: 36 | BH58: 349.1 | BI58: 3 | BJ58: 6 | BK58: 5 | BL58: 14 | BM58: 3 | BN58: 5.5 | BO58: 5 | BP58: 13.5 | BQ58: دورثان | BR58: فى : قانون عقوبات - | BS58: 1 | CF58: قانون عقوبات - | CN58: 140.5
A59: 50 | B59: 750 | C59: عبد الله وائل عبد الله سعد حسيني | D59: 5/2 | E59: مستجد | F59: 550 | G59: 7 | H59: 6.5 | I59: 15 | J59: 28.5 | K59: 8 | L59: 8 | M59: 11.2 | N59: 27.2 | O59: 5.5 | P59: 6.8 | Q59: 7.2 | R59: 19.5 | S59: 7.5 | T59: 4.5 | U59: 13.5 | V59: 25.5 | W59: 9.5 | X59: 14 | Y59: 10.5 | Z59: 34 | AA59: 7.5 | AB59: 10 | AC59: 11.5 | AD59: 29 | AE59: 8.5 | AF59: 5 | AG59: 12 | AH59: 25.5 | AI59: 7.5 | AJ59: 14 | AK59: 14 | AL59: 35.5 | AM59: 8.5 | AN59: 15 | AO59: 12 | AP59: =[1]ورقة2!AY59 -> 0 | AQ59: 8 | AR59: 3.5 | AS59: 13.5 | AT59: 25 | AU59: 6 | AV59: 13 | AW59: 14 | AX59: 33 | AY59: 3 | AZ59: 4 | BA59: 6 | BB59: 8 | BC59: 5 | BD59: 7 | BE59: 14 | BF59: 19 | BG59: 33 | BH59: 315.7 | BI59: 3 | BJ59: 4.5 | BK59: 5 | BL59: 12.5 | BM59: 3 | BN59: 4.5 | BO59: 5 | BP59: 12.5 | BQ59: دورثان | BR59: فى : قانون عقوبات - | BS59: 1 | CF59: قانون عقوبات - | CN59: 114.3
A60: 51 | B60: 751 | C60: عبد الله ياسر عبد الله تهامي | D60: 5/2 | E60: مستجد | F60: 551 | G60: 7 | H60: 10.5 | I60: 16 | J60: 33.5 | K60: 8 | L60: 8.4 | M60: 12.4 | N60: 28.8 | O60: 5 | P60: 6 | Q60: 7.2 | R60: 18.2 | S60: 7.5 | T60: 6 | U60: 13.5 | V60: 27 | W60: 9.5 | X60: 8 | Y60: 8.5 | Z60: 26 | AA60: 7.5 | AB60: 8 | AC60: 11.5 | AD60: 27 | AE60: 8 | AF60: 6 | AG60: 13 | AH60: 27 | AI60: 8 | AJ60: 15 | AK60: 12 | AL60: 35 | AM60: 8 | AN60: 17 | AO60: 12 | AP60: =[1]ورقة2!AY60 -> 0 | AQ60: 8 | AR60: 2 | AS60: 16 | AT60: 26 | AU60: 6.5 | AV60: 11 | AW60: 11 | AX60: 28.5 | AY60: 3 | AZ60: 4 | BA60: 6 | BB60: 7 | BC60: 5 | BD60: 7 | BE60: 14 | BF60: 18 | BG60: 32 | BH60: 309 | BI60: 3 | BJ60: 4.5 | BK60: 4 | BL60: 11.5 | BM60: 3 | BN60: 4.5 | BO60: 4 | BP60: 11.5 | BQ60: دورثان | BR60: فى : قانون عقوبات - | BS60: 1 | CF60: قانون عقوبات - | CN60: 110.9
A61: 52 | B61: 752 | C61: عصام جمال عبد الناصر عبد الهادي | D61: 5/2 | E61: مستجد | F61: 552 | G61: 7 | H61: 9.5 | I61: 15 | J61: 31.5 | K61: 8 | L61: 12 | M61: 16 | N61: 36 | O61: 4.5 | P61: 6 | Q61: 6.8 | R61: 17.3 | S61: 8 | T61: 4 | U61: 13 | V61: 25 | W61: 9.5 | X61: 12.5 | Y61: 9 | Z61: 31 | AA61: 7.5 | AB61: 8 | AC61: 11.5 | AD61: 27 | AE61: 8 | AF61: 5 | AG61: 12 | AH61: 25 | AI61: 7.5 | AJ61: 15 | AK61: 15 | AL61: 37.5 | AM61: 8 | AN61: 17 | AO61: 12 | AP61: =[1]ورقة2!AY61 -> 0 | AQ61: 8.5 | AR61: 2 | AS61: 15 | AT61: 25.5 | AU61: 6.5 | AV61: 12 | AW61: 13 | AX61: 31.5 | AY61: 3 | AZ61: 4 | BA61: 5 | BB61: 10 | BC61: 5 | BD61: 7 | BE61: 13 | BF61: 21 | BG61: 34 | BH61: 321.3 | BI61: 3 | BJ61: 6 | BK61: 5 | BL61: 14 | BM61: 3 | BN61: 5.5 | BO61: 5 | BP61: 13.5 | BQ61: دورثان | BR61: فى : قانون عقوبات - | BS61: 1 | CF61: قانون عقوبات - | CN61: 118
A62: 53 | B62: 753 | C62: علاء مختار فؤاد هلالي | D62: 5/2 | E62: مستجد | F62: 553 | G62: 7 | H62: 7 | I62: 11 | J62: 25 | K62: 8 | L62: 13.2 | M62: 11.2 | N62: 32.4 | O62: 4.5 | P62: 4.4 | Q62: 7.6 | R62: 16.5 | S62: 8 | T62: 3 | U62: 14 | V62: 25 | W62: 9.5 | X62: 8 | Y62: 4 | Z62: 21.5 | AA62: 8 | AB62: 9 | AC62: 10.5 | AD62: 27.5 | AE62: 8 | AF62: 6 | AG62: 12 | AH62: 26 | AI62: 8 | AJ62: 14 | AK62: 14 | AL62: 36 | AM62: 8 | AN62: 18 | AO62: 11 | AP62: =[1]ورقة2!AY62 -> 0 | AQ62: 8 | AR62: 2 | AS62: 15 | AT62: 25 | AU62: 7 | AV62: 10 | AW62: 13 | AX62: 30 | AY62: 3 | AZ62: 4 | BA62: 5 | BB62: 9 | BC62: 5 | BD62: 6 | BE62: 13 | BF62: 19 | BG62: 32 | BH62: 296.9 | BI62: 3 | BJ62: 4.5 | BK62: 4.5 | BL62: 12 | BM62: 3 | BN62: 3.5 | BO62: 4.5 | BP62: 11 | BQ62: دورثان | BR62: فى : احصاء - قانون عقوبات - | BS62: 2 | CB62: احصاء - | CF62: قانون عقوبات - | CN62: 108.6
A63: 54 | B63: 754 | C63: علي السيد علي رجب | D63: 5/2 | E63: مستجد | F63: 554 | G63: 7 | H63: 13 | I63: 9.5 | J63: 29.5 | K63: 8 | L63: 10.8 | M63: 12.4 | N63: 31.2 | O63: 5 | P63: 6 | Q63: 7.6 | R63: 18.6 | S63: 8 | T63: 4.5 | U63: 13 | V63: 25.5 | W63: 9.5 | X63: 10 | Y63: 7 | Z63: 26.5 | AA63: 7.5 | AB63: 10 | AC63: 11.5 | AD63: 29 | AE63: 8 | AF63: 5 | AG63: 12 | AH63: 25 | AI63: 8 | AJ63: 14 | AK63: 14 | AL63: 36 | AM63: 8 | AN63: 17 | AO63: 12 | AP63: =[1]ورقة2!AY63 -> 0 | AQ63: 8 | AR63: 3 | AS63: 14 | AT63: 25 | AU63: 7 | AV63: 13 | AW63: 14 | AX63: 34 | AY63: 3 | AZ63: 4 | BA63: 5 | BB63: 10 | BC63: 5 | BD63: 7 | BE63: 13 | BF63: 21 | BG63: 34 | BH63: 314.3 | BI63: 3 | BJ63: 6 | BK63: 5 | BL63: 14 | BM63: 3 | BN63: 5 | BO63: 4.5 | BP63: 12.5 | BQ63: دورثان | BR63: فى : قانون عقوبات - | BS63: 1 | CF63: قانون عقوبات - | CN63: 121.3
A64: 55 | B64: 755 | C64: عمار عبد الباقي محمد البكري جاد | D64: 5/2 | E64: مستجد | F64: 555 | G64: 7 | H64: 11 | I64: 12.5 | J64: 30.5 | K64: 8 | L64: 12 | M64: 12.4 | N64: 32.4 | O64: 5 | P64: 6.4 | Q64: 7.6 | R64: 19 | S64: 8 | T64: 4.5 | U64: 13.5 | V64: 26 | W64: 9.5 | X64: 8 | Y64: 7.5 | Z64: 25 | AA64: 8 | AB64: 10 | AC64: 10.5 | AD64: 28.5 | AE64: 8.5 | AF64: 4 | AG64: 13 | AH64: 25.5 | AI64: 8 | AJ64: 14 | AK64: 14 | AL64: 36 | AM64: 8.5 | AN64: 17 | AO64: 12 | AP64: =[1]ورقة2!AY64 -> 0 | AQ64: 8 | AR64: 2 | AS64: 9 | AT64: 19 | AU64: 7 | AV64: 7 | AW64: 12 | AX64: 26 | AY64: 3 | AZ64: 4 | BA64: 5 | BB64: 10 | BC64: 5 | BD64: 7 | BE64: 13 | BF64: 21 | BG64: 34 | BH64: 301.9 | BI64: 3 | BJ64: 7.5 | BK64: 5 | BL64: 15.5 | BM64: 3 | BN64: 4.5 | BO64: 3.5 | BP64: 11 | BQ64: دورثان | BR64: فى : قانون عقوبات - قانون مرافعات - | BS64: 2 | CF64: قانون عقوبات - | CG64: قانون مرافعات - | CN64: 110.9
A65: 56 | B65: 756 | C65: عمر عبد العزيز أحمد أحمد | D65: 5/2 | E65: مستجد | F65: 556 | G65: 7 | H65: 7.5 | I65: 14.5 | J65: 29 | K65: 8 | L65: 7.2 | M65: 13.2 | N65: 28.4 | O65: 5 | P65: 6.4 | Q65: 7.6 | R65: 19 | S65: 7.5 | T65: 0.5 | U65: 12 | V65: 20 | W65: 9.5 | X65: 8 | Y65: 7.5 | Z65: 25 | AA65: 7 | AB65: 7 | AC65: 11.5 | AD65: 25.5 | AE65: 8 | AF65: 5 | AG65: 12 | AH65: 25 | AI65: 7.5 | AJ65: 13 | AK65: 13 | AL65: 33.5 | AM65: 8 | AN65: 16 | AO65: 12 | AP65: =[1]ورقة2!AY65 -> 0 | AQ65: 8 | AR65: 0 | AS65: 7 | AT65: 15 | AU65: 7 | AV65: 6 | AW65: 13 | AX65: 26 | AY65: 3 | AZ65: 4 | BA65: 5 | BB65: 11 | BC65: 5 | BD65: 7 | BE65: 13 | BF65: 22 | BG65: 35 | BH65: 281.4 | BI65: 3 | BJ65: 4 | BK65: 4 | BL65: 11 | BM65: 3 | BN65: 4 | BO65: 5 | BP65: 12 | BQ65: راسبة | BR65: فى : محاسبة - قانون عقوبات - قانون مرافعات - مجموع | BS65: 4 | CA65: محاسبة - | CF65: قانون عقوبات - | CG65: قانون مرافعات - | CL65: مجموع | CN65: 92.6
A66: 57 | B66: 757 | C66: عمر عبد العليم كامل محمود | D66: 5/2 | E66: مستجد | F66: 557 | G66: 7 | H66: 8.5 | I66: 15.5 | J66: 31 | K66: 8 | L66: 9.6 | M66: 13.2 | N66: 30.8 | O66: 5.5 | P66: 6 | Q66: 6.4 | R66: 17.9 | S66: 7.5 | T66: 0 | U66: 13 | V66: 20.5 | W66: 9.5 | X66: 7 | Y66: 6 | Z66: 22.5 | AA66: 8 | AB66: 8 | AC66: 11.5 | AD66: 27.5 | AE66: 8 | AF66: 6 | AG66: 12 | AH66: 26 | AI66: 7.5 | AJ66: 12 | AK66: 14 | AL66: 33.5 | AM66: 8 | AN66: 17 | AO66: 14 | AP66: =[1]ورقة2!AY66 -> 0 | AQ66: 8.5 | AR66: 4 | AS66: 12.5 | AT66: 25 | AU66: 7 | AV66: 9 | AW66: 12 | AX66: 28 | AY66: 3 | AZ66: 4 | BA66: 5 | BB66: 11 | BC66: 5 | BD66: 7 | BE66: 13 | BF66: 22 | BG66: 35 | BH66: 297.7 | BI66: 3 | BJ66: 4 | BK66: 5 | BL66: 12 | BM66: 3 | BN66: 4.5 | BO66: 5 | BP66: 12.5 | BQ66: راسبة | BR66: فى : محاسبة - احصاء - قانون عقوبات - | BS66: 3 | CA66: محاسبة - | CB66: احصاء - | CF66: قانون عقوبات - | CN66: 103.1
A67: 58 | B67: 758 | C67: عمر وائل عمر محمد الشبراوي | D67: 5/2 | E67: مستجد | F67: 558 | G67: 7 | H67: 10.5 | I67: 16.5 | J67: 34 | K67: 8 | L67: 12.8 | M67: 13.6 | N67: 34.4 | O67: 5.5 | P67: 8.4 | Q67: 8.8 | R67: 22.7 | S67: 8 | T67: 8 | U67: 12.5 | V67: 28.5 | W67: 9.5 | X67: 15 | Y67: 14 | Z67: 38.5 | AA67: 8 | AB67: 11 | AC67: 11.5 | AD67: 30.5 | AE67: 8.5 | AF67: 7 | AG67: 12 | AH67: 27.5 | AI67: 7.5 | AJ67: 13 | AK67: 14 | AL67: 34.5 | AM67: 8.5 | AN67: 18 | AO67: 13 | AP67: =[1]ورقة2!AY67 -> 0 | AQ67: 8 | AR67: 4 | AS67: 13 | AT67: 25 | AU67: 6.5 | AV67: 13 | AW67: 14 | AX67: 33.5 | AY67: 3 | AZ67: 4 | BA67: 5 | BB67: 11 | BC67: 5 | BD67: 7 | BE67: 13 | BF67: 22 | BG67: 35 | BH67: 344.1 | BI67: 3.5 | BJ67: 6 | BK67: 5 | BL67: 14.5 | BM67: 3 | BN67: 4.5 | BO67: 5 | BP67: 12.5 | BQ67: دورثان | BR67: فى : قانون عقوبات - | BS67: 1 | CF67: قانون عقوبات - | CN67: 136.7
A68: 59 | B68: 759 | C68: عمرو سعيد السيد رضوان علي | D68: 5/2 | E68: مستجد | F68: 559 | G68: 7 | H68: 10 | I68: 15.5 | J68: 32.5 | K68: 8 | L68: 8.8 | M68: 12.4 | N68: 29.2 | O68: 5.5 | P68: 7.6 | Q68: 6.4 | R68: 19.5 | S68: 7.5 | T68: 7.5 | U68: 11.5 | V68: 26.5 | W68: 9.5 | X68: 8 | Y68: 8 | Z68: 25.5 | AA68: 8 | AB68: 10 | AC68: 10.5 | AD68: 28.5 | AE68: 8.5 | AF68: 6 | AG68: 13 | AH68: 27.5 | AI68: 7.5 | AJ68: 14 | AK68: 14 | AL68: 35.5 | AM68: 8.5 | AN68: 19 | AO68: 14 | AP68: =[1]ورقة2!AY68 -> 0 | AQ68: 8 | AR68: 5 | AS68: 12 | AT68: 25 | AU68: 6.5 | AV68: 11 | AW68: 16 | AX68: 33.5 | AY68: 3 | AZ68: 4 | BA68: 5 | BB68: 11 | BC68: 6 | BD68: 8 | BE68: 14 | BF68: 23 | BG68: 37 | BH68: 320.2 | BI68: 3.5 | BJ68: 6 | BK68: 5 | BL68: 14.5 | BM68: 3 | BN68: 5 | BO68: 6.5 | BP68: 14.5 | BQ68: دورثان | BR68: فى : قانون عقوبات - | BS68: 1 | CF68: قانون عقوبات - | CN68: 122.9
A69: 60 | B69: 760 | C69: عمرو عبد الرحمن عثمان علي | D69: 5/2 | E69: مستجد | F69: 560 | G69: 7 | H69: 7 | I69: 11 | J69: 25 | K69: 8 | L69: 8.4 | M69: 12 | N69: 28.4 | O69: 5.5 | P69: 6 | Q69: 6.8 | R69: 18.3 | S69: 7.5 | T69: 5.5 | U69: 12.5 | V69: 25.5 | W69: 9.5 | X69: 9 | Y69: 7 | Z69: 25.5 | AA69: 8 | AB69: 11 | AC69: 11.5 | AD69: 30.5 | AE69: 8.5 | AF69: 4 | AG69: 13 | AH69: 25.5 | AI69: 8 | AJ69: 13 | AK69: 14 | AL69: 35 | AM69: 8 | AN69: 19 | AO69: 12 | AP69: =[1]ورقة2!AY69 -> 0 | AQ69: 8 | AR69: 2 | AS69: 4 | AT69: 14 | AU69: 7 | AV69: 8 | AW69: غ | AX69: 15 | AY69: 3 | AZ69: 4 | BA69: 6 | BB69: 10 | BC69: 5 | BD69: 8 | BE69: 14 | BF69: 22 | BG69: 36 | BH69: 278.7 | BI69: 3.5 | BJ69: 4.5 | BK69: 5 | BL69: 13 | BM69: 3 | BN69: 4.5 | BO69: 5 | BP69: 12.5 | BQ69: راسبة | BR69: فى : قانون عقوبات - قانون مرافعات - علم نفس - مجموع | BS69: 4 | CF69: قانون عقوبات - | CG69: قانون مرافعات - | CH69: علم نفس - | CL69: مجموع | CN69: 108.9
A70: 61 | B70: 761 | C70: فتحي نور الدين فتحي الجوهري | D70: 5/2 | E70: مستجد | F70: 561 | G70: 7 | H70: 14 | I70: 14.5 | J70: 35.5 | K70: 8 | L70: 11.6 | M70: 14.4 | N70: 34 | O70: 5 | P70: 7.6 | Q70: 7.6 | R70: 20.2 | S70: 7.5 | T70: 9 | U70: 12.5 | V70: 29 | W70: 9.5 | X70: 14 | Y70: 9 | Z70: 32.5 | AA70: 8 | AB70: 10 | AC70: 11.5 | AD70: 29.5 | AE70: 8 | AF70: 8 | AG70: 13 | AH70: 29 | AI70: 8 | AJ70: 13 | AK70: 15 | AL70: 36 | AM70: 8 | AN70: 19 | AO70: 14 | AP70: =[1]ورقة2!AY70 -> 0 | AQ70: 8.5 | AR70: 5 | AS70: 11.5 | AT70: 25 | AU70: 6.5 | AV70: 11 | AW70: 13 | AX70: 30.5 | AY70: 3 | AZ70: 4 | BA70: 5 | BB70: 11 | BC70: 5 | BD70: 8 | BE70: 13 | BF70: 23 | BG70: 36 | BH70: 337.2 | BI70: 3 | BJ70: 4 | BK70: 5 | BL70: 12 | BM70: 3 | BN70: 4.5 | BO70: 5.5 | BP70: 13 | BQ70: دورثان | BR70: فى : قانون عقوبات - | BS70: 1 | CF70: قانون عقوبات - | CN70: 138.2
A71: 62 | B71: 762 | C71: قاسم محمد قاسم محمد محمد | D71: 5/2 | E71: مستجد | F71: 562 | G71: 7 | H71: 12.5 | I71: 12 | J71: 31.5 | K71: 8 | L71: 11.2 | M71: 13.6 | N71: 32.8 | O71: 5 | P71: 8 | Q71: 7.2 | R71: 20.2 | S71: 7.5 | T71: 12 | U71: 12 | V71: 31.5 | W71: 9.5 | X71: 15 | Y71: 9.5 | Z71: 34 | AA71: 8 | AB71: 13 | AC71: 11.5 | AD71: 32.5 | AE71: 8 | AF71: 7 | AG71: 13 | AH71: 28 | AI71: 8 | AJ71: 15 | AK71: 16 | AL71: 39 | AM71: 8 | AN71: 19 | AO71: 14 | AP71: =[1]ورقة2!AY71 -> 0 | AQ71: 8 | AR71: 8.5 | AS71: 9 | AT71: 25.5 | AU71: 6.5 | AV71: 12 | AW71: 13 | AX71: 31.5 | AY71: 3 | AZ71: 4 | BA71: 5 | BB71: 11 | BC71: 5 | BD71: 8 | BE71: 13 | BF71: 23 | BG71: 36 | BH71: 342.5 | BI71: 3.5 | BJ71: 3.5 | BK71: 5 | BL71: 12 | BM71: 3 | BN71: 5 | BO71: 5.5 | BP71: 13.5 | BQ71: دورثان | BR71: فى : قانون عقوبات - | BS71: 1 | CF71: قانون عقوبات - | CN71: 149.2
A72: 63 | B72: 763 | C72: كريم عربي عبد المعبود محمد | D72: 5/2 | E72: مستجد | F72: 563 | G72: 7 | H72: 9.5 | I72: 12.5 | J72: 29 | K72: 8 | L72: 12.8 | M72: 16 | N72: 36.8 | O72: 5 | P72: 4.8 | Q72: 8 | R72: 17.8 | S72: 8 | T72: 0 | U72: 17 | V72: 25 | W72: 9.5 | X72: 5 | Y72: 3.5 | Z72: 18 | AA72: 8 | AB72: 11 | AC72: 10.5 | AD72: 29.5 | AE72: 8 | AF72: 6 | AG72: 13 | AH72: 27 | AI72: 8 | AJ72: 12 | AK72: 12 | AL72: 32 | AM72: 8 | AN72: 17 | AO72: 10 | AP72: =[1]ورقة2!AY72 -> 0 | AQ72: 8.5 | AR72: 7 | AS72: 11 | AT72: 26.5 | AU72: 6.5 | AV72: 14 | AW72: 16 | AX72: 36.5 | AY72: 3 | AZ72: 4 | BA72: 5 | BB72: 4 | BC72: 6 | BD72: 7 | BE72: 14 | BF72: 15 | BG72: 29 | BH72: 307.1 | BI72: 3 | BJ72: 5.5 | BK72: 4 | BL72: 12.5 | BM72: 3 | BN72: 3.5 | BO72: 5 | BP72: 11.5 | BQ72: دورثان | BR72: فى : احصاء - قانون عقوبات - | BS72: 2 | CB72: احصاء - | CF72: قانون عقوبات - | CN72: 108.1
A73: 64 | B73: 764 | C73: مبروك فج النور مبروك اسماعيل | D73: 5/2 | E73: مستجد | F73: 564 | G73: 7 | H73: 10.5 | I73: 10.5 | J73: 28 | K73: 8 | L73: 14.4 | M73: 14 | N73: 36.4 | O73: 5 | P73: 6.8 | Q73: 6.8 | R73: 18.6 | S73: 7.5 | T73: 0 | U73: 17.5 | V73: 25 | W73: 9.5 | X73: 5 | Y73: 0 | Z73: 14.5 | AA73: 8.5 | AB73: 9 | AC73: 7.5 | AD73: 25 | AE73: 8 | AF73: 4 | AG73: 13 | AH73: 25 | AI73: 8 | AJ73: 14 | AK73: 11 | AL73: 33 | AM73: 8 | AN73: 18 | AO73: 14 | AP73: =[1]ورقة2!AY73 -> 0 | AQ73: 8.5 | AR73: 10 | AS73: 11 | AT73: 29.5 | AU73: 6.5 | AV73: 14 | AW73: 16 | AX73: 36.5 | AY73: 3 | AZ73: 4 | BA73: 6 | BB73: 4 | BC73: 6 | BD73: 7 | BE73: =IF($C73="","",SUM(AY73,BA73,BC73)) -> 15 | BF73: 15 | BG73: 30 | BH73: 301.5 | BI73: 3 | BJ73: 6.5 | BK73: 4 | BL73: 13.5 | BM73: 3 | BN73: 4 | BO73: 6.5 | BP73: 13.5 | BQ73: دورثان | BR73: فى : احصاء - قانون عقوبات - | BS73: 2 | CB73: احصاء - | CF73: قانون عقوبات - | CN73: 115.7
A74: 65 | B74: 765 | C74: مجدي أحمد حسين محمد | D74: 5/2 | E74: مستجد | F74: 565 | G74: 7 | H74: 10 | I74: 13 | J74: 30 | K74: 8 | L74: 15.6 | M74: 16.4 | N74: =SUM(K74:M74) -> 40 | O74: 5 | P74: 4.8 | Q74: 6.4 | R74: =SUM(O74:Q74) -> 16.2 | S74: 7.5 | T74: 0 | U74: غ | V74: =SUM(S74:U74) -> 7.5 | W74: 9.5 | X74: 5 | Y74: 0 | Z74: =SUM(W74:Y74) -> 14.5 | AA74: 7.5 | AB74: 11 | AC74: 11.5 | AD74: =SUM(AA74:AC74) -> 30 | AE74: 8.5 | AF74: 7 | AG74: 13 | AH74: =SUM(AE74:AG74) -> 28.5 | AI74: 7.5 | AJ74: 12 | AK74: 11 | AL74: =SUM(AI74:AK74) -> 30.5 | AM74: 8.5 | AN74: 14 | AO74: 13 | AP74: =[1]ورقة2!AY74 -> 0 | AQ74: 8 | AR74: 5 | AS74: 12 | AT74: =SUM(AQ74:AS74) -> 25 | AU74: 6.5 | AV74: 14 | AW74: 13 | AX74: =SUM(AU74:AW74) -> 33.5 | AY74: 3 | AZ74: 4 | BA74: 5 | BB74: 4 | BC74: 5 | BD74: 7 | BE74: 13 | BF74: 15 | BG74: =IF($C74="","",SUM(BE74,BF74)) -> 28 | BH74: =IF($C74="","",SUM(J74,N74,R74,V74,Z74,AD74,AH74,AL74,AP74,AT74,AX74,BG74)) -> 283.7 | BI74: 3.5 | BJ74: 6.5 | BK74: 4.5 | BL74: =SUM(BI74:BK74) -> 14.5 | BM74: 3 | BN74: 4.5 | BO74: 6 | BP74: =SUM(BM74:BO74) -> 13.5 | BQ74: =IF($C74="","",IF(BS74=0,"ناجحة",IF(BS74<=2,"دورثان","راسبة"))) -> راسبة | BR74: =IF($C74="","",IF(BS74=0,"ومنقولة للصف الثالث",IF(BS74>0,"فى : "&CONCATENATE(BX74,BY74,BZ74,CA74,CB74,CC74,CD74,CE74,CF74,CG74,CH74,CI74,CJ74,CK74,CL74),CONCATENATE(BX74,BY74,BZ74,CA74,CB74,CC74,CD74,CE74,CF74,CG74,CH74,CI74,CJ74,CK74,CL74)))) -> فى : محاسبة - احصاء - قانون عقوبات - مجموع | BS74: =IF($C74="","",COUNTA($BX74:$CL74)-COUNTBLANK($BX74:$CL74)) -> 4 | BX74: =IF($C74="","",IF(OR(I74<$I$9,I74="غ",J74<$J$9),$BX$5&" - ","")) ->  | BY74: =IF($C74="","",IF(OR(M74<$M$9,M74="غ",N74<$N$9),$BY$5&" - ","")) ->  | BZ74: =IF($C74="","",IF(OR(Q74<$Q$9,Q74="غ",R74<$R$9),BZ$5&" - ","")) ->  | CA74: =IF($C74="","",IF(OR(U74<$U$9,U74="غ",V74<$V$9),CA$5&" - ","")) -> محاسبة - | CB74: =IF($C74="","",IF(OR(Y74<$Y$9,Y74="غ",Z74<$Z$9),CB$5&" - ","")) -> احصاء - | CC74: =IF($C74="","",IF(OR(AC74<$AC$9,AC74="غ",AD74<$AD$9),CC$5&" - ","")) ->  | CD74: =IF($C74="","",IF(OR(AG74<$AG$9,AG74="غ",AH74<$AH$9),CD$5&" - ","")) ->  | CE74: =IF($C74="","",IF(OR(AK74<$AK$9,AK74="غ",AL74<$AL$9),CE$5&" - ","")) ->  | CF74: =IF($C74="","",IF(OR(AO74<$AO$9,AO74="غ",AP74<$AP$9),CF$5&" - ","")) -> قانون عقوبات - | CG74: =IF($C74="","",IF(OR(AS74<$AS$9,AS74="غ",AT74<$AT$9),CG$5&" - ","")) ->  | CH74: =IF($C74="","",IF(OR(AW74<$AW$9,AW74="غ",AX74<$AX$9),CH$5&" - ","")) ->  | CI74: =IF($C74="","",IF(OR(BE74<$BE$9,BE74="غ",BF74<$BF$9,BF74="غ",BG74<$BG$9),CI$5&" - ","")) ->  | CJ74: =IF($C74="","",IF(OR(BK74<$BK$9,BK74="غ",BL74<$BL$9),CJ$5&" - ","")) ->  | CK74: =IF($C74="","",IF(OR(BO74<$BO$9,BO74="غ",BP74<$BP$9),CK$5&" - ","")) ->  | CL74: =IF($C74="","",IF(BH74<$BH$9,CL$5,"")) -> مجموع | CN74: =IF($C74="","",SUM(H74,L74,P74,T74,X74,AB74,AF74,AJ74,AN74,AR74,AV74,BA74,BB74)) -> 107.4
A75: 66 | B75: 766 | C75: محمد ابراهيم محمد حسانين | D75: 5/2 | E75: مستجد | F75: 566 | G75: 7 | H75: 7.5 | I75: 10.5 | J75: 25 | K75: 8 | L75: 14 | M75: 12.4 | N75: 34.4 | O75: 5 | P75: 5.2 | Q75: 6.4 | R75: 16.6 | S75: 8 | T75: 2 | U75: 15.5 | V75: 25.5 | W75: 9.5 | X75: 3.5 | Y75: 0 | Z75: 13 | AA75: 8 | AB75: 7 | AC75: 10 | AD75: 25 | AE75: 8.5 | AF75: 8 | AG75: 13 | AH75: 29.5 | AI75: 8 | AJ75: 12 | AK75: 9 | AL75: 29 | AM75: 8.5 | AN75: 18 | AO75: 13 | AP75: =[1]ورقة2!AY75 -> 0 | AQ75: 8 | AR75: 4 | AS75: 13 | AT75: 25 | AU75: 6 | AV75: 15 | AW75: 15 | AX75: 36 | AY75: 3 | AZ75: 4 | BA75: 6 | BB75: 4 | BC75: 5 | BD75: 7 | BE75: 14 | BF75: 15 | BG75: 29 | BH75: 288 | BI75: 3.5 | BJ75: 6.5 | BK75: 5 | BL75: 15 | BM75: 3 | BN75: 4.5 | BO75: 6 | BP75: 13.5 | BQ75: راسبة | BR75: فى : احصاء - قانون عقوبات - مجموع | BS75: 3 | CB75: احصاء - | CF75: قانون عقوبات - | CL75: مجموع | CN75: 106.2
A76: 67 | B76: 767 | C76: محمد احمد شحاته شهوان | D76: 5/2 | E76: مستجد | F76: 567 | G76: 7 | H76: 10.5 | I76: 12.5 | J76: 30 | K76: 8 | L76: 11.6 | M76: 14 | N76: 33.6 | O76: 5 | P76: 5.2 | Q76: 7.2 | R76: 17.4 | S76: 7.5 | T76: 0 | U76: 17.5 | V76: 25 | W76: 9.5 | X76: 6.5 | Y76: 12 | Z76: 28 | AA76: 8 | AB76: 9 | AC76: 11.5 | AD76: 28.5 | AE76: 8 | AF76: 6 | AG76: 13 | AH76: 27 | AI76: 8 | AJ76: 12 | AK76: 10 | AL76: 30 | AM76: 8 | AN76: 17 | AO76: 13 | AP76: =[1]ورقة2!AY76 -> 0 | AQ76: 8 | AR76: 8 | AS76: 10 | AT76: 26 | AU76: 6.5 | AV76: 13 | AW76: 18 | AX76: 37.5 | AY76: 3 | AZ76: 4 | BA76: 6 | BB76: 4 | BC76: 6 | BD76: 7 | BE76: 15 | BF76: 15 | BG76: 30 | BH76: 313 | BI76: 3 | BJ76: 6.5 | BK76: 4.5 | BL76: 14 | BM76: 3 | BN76: 3.5 | BO76: 6.5 | BP76: 13 | BQ76: دورثان | BR76: فى : قانون عقوبات - | BS76: 1 | CF76: قانون عقوبات - | CN76: 108.8
A77: 68 | B77: 768 | C77: محمد اسامه محمد يوسف محمد | D77: 5/2 | E77: مستجد | F77: 568 | G77: 7 | H77: 11 | I77: 13.5 | J77: 31.5 | K77: 8 | L77: 17.6 | M77: 13.6 | N77: 39.2 | O77: 5 | P77: 4.4 | Q77: 7.2 | R77: 16.6 | S77: 7.5 | T77: 3.5 | U77: 15.5 | V77: 26.5 | W77: 9.5 | X77: 8.5 | Y77: 12.5 | Z77: 30.5 | AA77: 8 | AB77: 13 | AC77: 10.5 | AD77: 31.5 | AE77: 8.5 | AF77: 8 | AG77: 13 | AH77: 29.5 | AI77: 8 | AJ77: 14 | AK77: 10 | AL77: 32 | AM77: 8.5 | AN77: 18 | AO77: 13 | AP77: =[1]ورقة2!AY77 -> 0 | AQ77: 8.5 | AR77: 6 | AS77: 11 | AT77: 25.5 | AU77: 6.5 | AV77: 14 | AW77: 17 | AX77: 37.5 | AY77: 3 | AZ77: 4 | BA77: 5 | BB77: 4 | BC77: 5 | BD77: 7 | BE77: 13 | BF77: 15 | BG77: 28 | BH77: 328.3 | BI77: 3.5 | BJ77: 6.5 | BK77: 4.5 | BL77: 14.5 | BM77: 3 | BN77: 4.5 | BO77: 5 | BP77: 12.5 | BQ77: دورثان | BR77: فى : قانون عقوبات - | BS77: 1 | CF77: قانون عقوبات - | CN77: 127
A78: 69 | B78: 769 | C78: محمد أحمد محمد محمود | D78: 5/2 | E78: مستجد | F78: 569 | G78: 7 | H78: 11 | I78: 14.5 | J78: 32.5 | K78: 8 | L78: 17.2 | M78: 15.2 | N78: 40.4 | O78: 5 | P78: 5.2 | Q78: 6 | R78: 16.2 | S78: 7.5 | T78: 0 | U78: 10.5 | V78: 18 | W78: 9.5 | X78: 7 | Y78: 3.5 | Z78: 20 | AA78: 8 | AB78: 11 | AC78: 11.5 | AD78: 30.5 | AE78: 8 | AF78: 7 | AG78: 13 | AH78: 28 | AI78: 8 | AJ78: 12 | AK78: 11 | AL78: 31 | AM78: 8 | AN78: 18 | AO78: 13 | AP78: =[1]ورقة2!AY78 -> 0 | AQ78: 8 | AR78: 10 | AS78: 10 | AT78: 28 | AU78: 7 | AV78: 11 | AW78: 16 | AX78: 34 | AY78: 3 | AZ78: 4 | BA78: 5 | BB78: 4 | BC78: 5 | BD78: 7 | BE78: 13 | BF78: 15 | BG78: 28 | BH78: 306.6 | BI78: 3.5 | BJ78: 6 | BK78: 4 | BL78: 13.5 | BM78: 3 | BN78: 4.5 | BO78: 5.5 | BP78: 13 | BQ78: راسبة | BR78: فى : محاسبة - احصاء - قانون عقوبات - | BS78: 3 | CA78: محاسبة - | CB78: احصاء - | CF78: قانون عقوبات - | CN78: 118.4
A79: 70 | B79: 770 | C79: محمد أسامة عزت السيد محمد | D79: 5/2 | E79: مستجد | F79: 570 | G79: 7 | H79: 10 | I79: 15.5 | J79: 32.5 | K79: 8 | L79: 15.2 | M79: 13.6 | N79: 36.8 | O79: 5 | P79: 3.6 | Q79: 7.6 | R79: 16.2 | S79: 7.5 | T79: 0 | U79: 17.5 | V79: 25 | W79: 9.5 | X79: 6 | Y79: 0 | Z79: 15.5 | AA79: 8 | AB79: 10 | AC79: 11.5 | AD79: 29.5 | AE79: 8 | AF79: 5 | AG79: 12 | AH79: 25 | AI79: 8 | AJ79: 12 | AK79: 11 | AL79: 31 | AM79: 8 | AN79: 17 | AO79: 13 | AP79: =[1]ورقة2!AY79 -> 0 | AQ79: 8 | AR79: 8 | AS79: 10 | AT79: 26 | AU79: 6.5 | AV79: 15 | AW79: 17 | AX79: 38.5 | AY79: 3 | AZ79: 4 | BA79: 6 | BB79: 4 | BC79: 6 | BD79: 7 | BE79: 15 | BF79: 15 | BG79: 30 | BH79: 306 | BI79: 3 | BJ79: 6.5 | BK79: 4 | BL79: 13.5 | BM79: 3 | BN79: 1 | BO79: 6 | BP79: 10 | BQ79: دورثان | BR79: فى : احصاء - قانون عقوبات - | BS79: 2 | CB79: احصاء - | CF79: قانون عقوبات - | CN79: 111.8
A80: 71 | B80: 771 | C80: محمد أيمن سليمان جبر | D80: 5/2 | E80: مستجد | F80: 571 | G80: 7 | H80: 11 | I80: 15 | J80: 33 | K80: 8.5 | L80: 14.4 | M80: 14 | N80: 36.9 | O80: 5 | P80: 6.4 | Q80: 6.8 | R80: 18.2 | S80: 8 | T80: 1.5 | U80: 15.5 | V80: 25 | W80: 9.5 | X80: 7 | Y80: 5.5 | Z80: 22 | AA80: 8 | AB80: 13 | AC80: 10.5 | AD80: 31.5 | AE80: 8 | AF80: 7 | AG80: 13 | AH80: 28 | AI80: 8 | AJ80: 12 | AK80: 11 | AL80: 31 | AM80: 8 | AN80: 18 | AO80: 13 | AP80: =[1]ورقة2!AY80 -> 0 | AQ80: 8.5 | AR80: 8 | AS80: 10 | AT80: 26.5 | AU80: 7 | AV80: 15 | AW80: 17 | AX80: 39 | AY80: 3 | AZ80: 4 | BA80: 5 | BB80: 4 | BC80: 5 | BD80: 7 | BE80: 13 | BF80: 15 | BG80: 28 | BH80: 319.1 | BI80: 3 | BJ80: 6.5 | BK80: 5.5 | BL80: 15 | BM80: 3 | BN80: 4.5 | BO80: 5.5 | BP80: 13 | BQ80: دورثان | BR80: فى : احصاء - قانون عقوبات - | BS80: 2 | CB80: احصاء - | CF80: قانون عقوبات - | CN80: 122.3
A81: 72 | B81: 772 | C81: محمد أيمن كمال كامل السيد | D81: 5/2 | E81: مستجد | F81: 572 | G81: 7 | H81: 12 | I81: 13.5 | J81: 32.5 | K81: 8 | L81: 15.6 | M81: 14 | N81: 37.6 | O81: 5 | P81: 6.4 | Q81: 7.2 | R81: 18.6 | S81: 8 | T81: 0 | U81: 17.5 | V81: 25.5 | W81: 9.5 | X81: 6 | Y81: 5 | Z81: 20.5 | AA81: 8 | AB81: 11 | AC81: 11.5 | AD81: 30.5 | AE81: 8 | AF81: 6 | AG81: 13 | AH81: 27 | AI81: 8 | AJ81: 13 | AK81: 15 | AL81: 36 | AM81: 8 | AN81: 18 | AO81: 13 | AP81: =[1]ورقة2!AY81 -> 0 | AQ81: 8.5 | AR81: 11 | AS81: 10 | AT81: 29.5 | AU81: 6.5 | AV81: 14 | AW81: 16 | AX81: 36.5 | AY81: 3 | AZ81: 4 | BA81: 5 | BB81: 4 | BC81: 6 | BD81: 7 | BE81: 14 | BF81: 15 | BG81: 29 | BH81: 323.2 | BI81: 3 | BJ81: 6.5 | BK81: 3.5 | BL81: 13 | BM81: 3 | BN81: 4.5 | BO81: 6.5 | BP81: 14 | BQ81: دورثان | BR81: فى : احصاء - قانون عقوبات - | BS81: 2 | CB81: احصاء - | CF81: قانون عقوبات - | CN81: 122
A82: 73 | B82: 773 | C82: محمد بكري عبد العزيز حسن علي | D82: 5/2 | E82: مستجد | F82: 573 | G82: 7 | H82: 13.5 | I82: 15 | J82: 35.5 | K82: 8 | L82: 16.4 | M82: 16.8 | N82: 41.2 | O82: 5 | P82: 8 | Q82: 8.4 | R82: 21.4 | S82: 7.5 | T82: 0 | U82: 17.5 | V82: 25 | W82: 9.5 | X82: 6.5 | Y82: 5.5 | Z82: 21.5 | AA82: 8 | AB82: 13 | AC82: 11.5 | AD82: 32.5 | AE82: 8 | AF82: 5 | AG82: 14 | AH82: 27 | AI82: 8 | AJ82: 12 | AK82: 13 | AL82: 33 | AM82: 8 | AN82: 16 | AO82: 14 | AP82: =[1]ورقة2!AY82 -> 0 | AQ82: 8.5 | AR82: 7 | AS82: 10 | AT82: 25.5 | AU82: 6.5 | AV82: 14 | AW82: 18 | AX82: 38.5 | AY82: 3 | AZ82: 4 | BA82: 5 | BB82: 4 | BC82: 6 | BD82: 7 | BE82: 14 | BF82: 15 | BG82: 29 | BH82: 330.1 | BI82: 3 | BJ82: 5.5 | BK82: 4 | BL82: 12.5 | BM82: 3 | BN82: 5 | BO82: 6.5 | BP82: 14.5 | BQ82: دورثان | BR82: فى : احصاء - قانون عقوبات - | BS82: 2 | CB82: احصاء - | CF82: قانون عقوبات - | CN82: 120.4
A83: 74 | B83: 774 | C83: محمد جاد أحمد عبد الرحمن | D83: 5/2 | E83: مستجد | F83: 574 | G83: 7 | H83: 11.5 | I83: 15 | J83: 33.5 | K83: 8 | L83: 16 | M83: 17.2 | N83: 41.2 | O83: 5 | P83: 7.2 | Q83: 7.2 | R83: 19.4 | S83: 8 | T83: 0 | U83: 17.5 | V83: 25.5 | W83: 9.5 | X83: 6 | Y83: 5 | Z83: 20.5 | AA83: 7 | AB83: 10.5 | AC83: 11.5 | AD83: 29 | AE83: 8 | AF83: 6 | AG83: 13 | AH83: 27 | AI83: 8 | AJ83: 13 | AK83: 13 | AL83: 34 | AM83: 8 | AN83: 18 | AO83: 12 | AP83: =[1]ورقة2!AY83 -> 0 | AQ83: 8.5 | AR83: 10 | AS83: 10 | AT83: 28.5 | AU83: 6.5 | AV83: 15 | AW83: 17 | AX83: 38.5 | AY83: 3 | AZ83: 4 | BA83: 6 | BB83: 4 | BC83: 6 | BD83: 7 | BE83: 15 | BF83: 15 | BG83: 30 | BH83: 327.1 | BI83: 3 | BJ83: 6.5 | BK83: 4.5 | BL83: 14 | BM83: 3 | BN83: 4.5 | BO83: 6 | BP83: 13.5 | BQ83: دورثان | BR83: فى : احصاء - قانون عقوبات - | BS83: 2 | CB83: احصاء - | CF83: قانون عقوبات - | CN83: 123.2
A84: 75 | B84: 775 | C84: محمد جمال اسماعيل السيد علي | D84: 5/2 | E84: مستجد | F84: 575 | G84: 7 | H84: 11 | I84: 13 | J84: 31 | K84: 8 | L84: 14 | M84: 9.6 | N84: 31.6 | O84: 5.5 | P84: 6.8 | Q84: 8.4 | R84: 20.7 | S84: 8 | T84: 0 | U84: 17.5 | V84: 25.5 | W84: 9.5 | X84: 5.5 | Y84: 0 | Z84: 15 | AA84: 8 | AB84: 10 | AC84: 9 | AD84: 27 | AE84: 8 | AF84: 6 | AG84: 13 | AH84: 27 | AI84: 8 | AJ84: 14 | AK84: 11 | AL84: 33 | AM84: 8 | AN84: 17 | AO84: 14 | AP84: =[1]ورقة2!AY84 -> 0 | AQ84: 8.5 | AR84: 9 | AS84: 10 | AT84: 27.5 | AU84: 6 | AV84: 14 | AW84: 17 | AX84: 37 | AY84: 3 | AZ84: 4 | BA84: 5 | BB84: 4 | BC84: 6 | BD84: 7 | BE84: 14 | BF84: 15 | BG84: 29 | BH84: 304.3 | BI84: 3.5 | BJ84: 7.5 | BK84: 3.5 | BL84: 14.5 | BM84: 3 | BN84: 5 | BO84: 6 | BP84: 14 | BQ84: دورثان | BR84: فى : احصاء - قانون عقوبات - | BS84: 2 | CB84: احصاء - | CF84: قانون عقوبات - | CN84: 116.3
A85: 76 | B85: 776 | C85: محمد جمال السيد حسن | D85: 5/2 | E85: مستجد | F85: 576 | G85: 7 | H85: 14 | I85: 14 | J85: 35 | K85: 9 | L85: 16.4 | M85: 17.2 | N85: 42.6 | O85: 5 | P85: 8 | Q85: 8.4 | R85: 21.4 | S85: 8 | T85: 2.5 | U85: 14.5 | V85: 25 | W85: 9.5 | X85: 10.5 | Y85: 7.5 | Z85: 27.5 | AA85: 8 | AB85: 14 | AC85: 14 | AD85: 36 | AE85: 8.5 | AF85: 14 | AG85: 13 | AH85: 35.5 | AI85: 8.5 | AJ85: 17 | AK85: 13 | AL85: 38.5 | AM85: 8.5 | AN85: 18 | AO85: 12 | AP85: =[1]ورقة2!AY85 -> 0 | AQ85: 8.5 | AR85: 12 | AS85: 13 | AT85: 33.5 | AU85: 6.5 | AV85: 15 | AW85: 17 | AX85: 38.5 | AY85: 3 | AZ85: 4 | BA85: 5 | BB85: 4 | BC85: 5 | BD85: 7 | BE85: 13 | BF85: 15 | BG85: 28 | BH85: 361.5 | BI85: 4 | BJ85: 6.5 | BK85: 5.5 | BL85: 16 | BM85: 3 | BN85: 7.5 | BO85: 7 | BP85: 17.5 | BQ85: دورثان | BR85: فى : قانون عقوبات - | BS85: 1 | CF85: قانون عقوبات - | CN85: 150.4
A86: 77 | B86: 777 | C86: محمد ربيع السيد شحاته | D86: 5/2 | E86: مستجد | F86: 577 | G86: 7 | H86: 13 | I86: 12.5 | J86: 32.5 | K86: 8 | L86: 16.8 | M86: 14 | N86: 38.8 | O86: 5 | P86: 8 | Q86: 8.4 | R86: 21.4 | S86: 8 | T86: 2 | U86: 11.5 | V86: 21.5 | W86: 9.5 | X86: 7 | Y86: 5 | Z86: 21.5 | AA86: 8 | AB86: 13 | AC86: 13.5 | AD86: 34.5 | AE86: 8.5 | AF86: 4 | AG86: 13 | AH86: 25.5 | AI86: 8 | AJ86: 13 | AK86: 13 | AL86: 34 | AM86: 8.5 | AN86: 17 | AO86: 11 | AP86: =[1]ورقة2!AY86 -> 0 | AQ86: 8 | AR86: 10 | AS86: 13 | AT86: 31 | AU86: 7 | AV86: 14 | AW86: 17 | AX86: 38 | AY86: 3 | AZ86: 4 | BA86: 5 | BB86: 4 | BC86: 5 | BD86: 7 | BE86: 13 | BF86: 15 | BG86: 28 | BH86: 326.7 | BI86: 3 | BJ86: 6.5 | BK86: 4.5 | BL86: 14 | BM86: 3 | BN86: 5 | BO86: 7 | BP86: 15 | BQ86: راسبة | BR86: فى : محاسبة - احصاء - قانون عقوبات - | BS86: 3 | CA86: محاسبة - | CB86: احصاء - | CF86: قانون عقوبات - | CN86: 126.8
A87: 78 | B87: 778 | C87: محمد رضا مصطفي عبد العزيز | D87: 5/2 | E87: مستجد | F87: 578 | G87: 7 | H87: 7.5 | I87: 13 | J87: 27.5 | K87: 8 | L87: 10 | M87: 13.6 | N87: 31.6 | O87: 5 | P87: 6.4 | Q87: 7.2 | R87: 18.6 | S87: 7.5 | T87: 0 | U87: 8 | V87: 15.5 | W87: 9.5 | X87: 5.5 | Y87: 1 | Z87: 16 | AA87: 8 | AB87: 9 | AC87: 11.5 | AD87: 28.5 | AE87: 8 | AF87: 4 | AG87: 13 | AH87: 25 | AI87: 8 | AJ87: 10 | AK87: 13 | AL87: 31 | AM87: 8 | AN87: 17 | AO87: 11 | AP87: =[1]ورقة2!AY87 -> 0 | AQ87: 8 | AR87: 9 | AS87: 10 | AT87: 27 | AU87: 6.5 | AV87: 13 | AW87: 17 | AX87: 36.5 | AY87: 3 | AZ87: 4 | BA87: 5 | BB87: 4 | BC87: 5 | BD87: 7 | BE87: 13 | BF87: 15 | BG87: 28 | BH87: 285.2 | BI87: 3 | BJ87: 6.5 | BK87: 4.5 | BL87: 14 | BM87: 3 | BN87: 3 | BO87: 7 | BP87: 13 | BQ87: راسبة | BR87: فى : محاسبة - احصاء - قانون عقوبات - مجموع | BS87: 4 | CA87: محاسبة - | CB87: احصاء - | CF87: قانون عقوبات - | CL87: مجموع | CN87: 100.4
A88: 79 | B88: 779 | C88: محمد سالم سليمان محمد | D88: 5/2 | E88: مستجد | F88: 579 | G88: 7 | H88: 7 | I88: 12.5 | J88: 26.5 | K88: 8 | L88: 12 | M88: 11.6 | N88: 31.6 | O88: 5 | P88: 5.2 | Q88: 7.6 | R88: 17.8 | S88: 7.5 | T88: 0 | U88: 14 | V88: 21.5 | W88: 9.5 | X88: 11 | Y88: 8 | Z88: 28.5 | AA88: 8 | AB88: 9 | AC88: 10.5 | AD88: 27.5 | AE88: 8 | AF88: 4 | AG88: 14 | AH88: 26 | AI88: 8 | AJ88: 15 | AK88: 11 | AL88: 34 | AM88: 8 | AN88: 16 | AO88: 13 | AP88: =[1]ورقة2!AY88 -> 0 | AQ88: 8.5 | AR88: 8 | AS88: 10 | AT88: 26.5 | AU88: 6 | AV88: 10 | AW88: 14 | AX88: 30 | AY88: 3 | AZ88: 4 | BA88: 5 | BB88: 5 | BC88: 5 | BD88: 7 | BE88: 13 | BF88: 16 | BG88: 29 | BH88: 298.9 | BI88: 3.5 | BJ88: 6 | BK88: 4 | BL88: 13.5 | BM88: 3 | BN88: 5 | BO88: 7 | BP88: 15 | BQ88: دورثان | BR88: فى : محاسبة - قانون عقوبات - | BS88: 2 | CA88: محاسبة - | CF88: قانون عقوبات - | CN88: 107.2
A89: 80 | B89: 780 | C89: محمد سمير محمود محمد نصر | D89: 5/2 | E89: مستجد | F89: 580 | G89: 7 | H89: 11.5 | I89: 15 | J89: 33.5 | K89: 8 | L89: 13.2 | M89: 14 | N89: 35.2 | O89: 5 | P89: 5.2 | Q89: 7.6 | R89: 17.8 | S89: 7.5 | T89: 0 | U89: 11 | V89: 18.5 | W89: 9.5 | X89: 11.5 | Y89: 12.5 | Z89: 33.5 | AA89: 8 | AB89: 9 | AC89: 11.5 | AD89: 28.5 | AE89: 8.5 | AF89: 8 | AG89: 12 | AH89: 28.5 | AI89: 8 | AJ89: 15 | AK89: 13 | AL89: 36 | AM89: 8.5 | AN89: 16 | AO89: 16 | AP89: =[1]ورقة2!AY89 -> 0 | AQ89: 8 | AR89: 5 | AS89: 12 | AT89: 25 | AU89: 6 | AV89: 10 | AW89: 15 | AX89: 31 | AY89: 3 | AZ89: 4 | BA89: 5 | BB89: 5 | BC89: 5 | BD89: 7 | BE89: 13 | BF89: 16 | BG89: 29 | BH89: 316.5 | BI89: 3.5 | BJ89: 4.5 | BK89: 3.5 | BL89: 11.5 | BM89: 3 | BN89: 5 | BO89: 6.5 | BP89: 14.5 | BQ89: دورثان | BR89: فى : محاسبة - قانون عقوبات - | BS89: 2 | CA89: محاسبة - | CF89: قانون عقوبات - | CN89: 114.4
A90: 81 | B90: 781 | C90: محمد صلاح عفيفي أحمد نصر | D90: 5/2 | E90: مستجد | F90: 581 | G90: 7 | H90: 11 | I90: 14.5 | J90: 32.5 | K90: 8 | L90: 12.4 | M90: 12.8 | N90: 33.2 | O90: 5 | P90: 5.2 | Q90: 7.6 | R90: 17.8 | S90: 7.5 | T90: 0 | U90: 11 | V90: 18.5 | W90: 9.5 | X90: 9 | Y90: 0 | Z90: 18.5 | AA90: 7 | AB90: 5 | AC90: 13 | AD90: 25 | AE90: 8.5 | AF90: 0 | AG90: 17 | AH90: 25.5 | AI90: 7.5 | AJ90: 15 | AK90: 12 | AL90: 34.5 | AM90: 8.5 | AN90: 13 | AO90: 13 | AP90: =[1]ورقة2!AY90 -> 0 | AQ90: 8 | AR90: 8 | AS90: 10 | AT90: 26 | AU90: 7 | AV90: 9 | AW90: 15 | AX90: 31 | AY90: 3 | AZ90: 4 | BA90: 5 | BB90: 5 | BC90: 5 | BD90: 7 | BE90: 13 | BF90: 16 | BG90: 29 | BH90: 291.5 | BI90: 3 | BJ90: 5.5 | BK90: 5 | BL90: 13.5 | BM90: 3 | BN90: 4 | BO90: 5.5 | BP90: 12.5 | BQ90: راسبة | BR90: فى : محاسبة - احصاء - قانون عقوبات - | BS90: 3 | CA90: محاسبة - | CB90: احصاء - | CF90: قانون عقوبات - | CN90: 97.6
A91: 82 | B91: 782 | C91: محمد عبد الرحمن محمد عبد الغني | D91: 5/2 | E91: مستجد | F91: 582 | G91: 7 | H91: 9.5 | I91: 15 | J91: 31.5 | K91: 8 | L91: 14.4 | M91: 16 | N91: 38.4 | O91: 5 | P91: 6.4 | Q91: 8.8 | R91: 20.2 | S91: 8 | T91: 0.5 | U91: 16.5 | V91: 25 | W91: 9.5 | X91: 12 | Y91: 12 | Z91: 33.5 | AA91: 8 | AB91: 10 | AC91: 11.5 | AD91: 29.5 | AE91: 8 | AF91: 9 | AG91: 13 | AH91: 30 | AI91: 8 | AJ91: 16 | AK91: 12 | AL91: 36 | AM91: 8 | AN91: 13 | AO91: 13 | AP91: =[1]ورقة2!AY91 -> 0 | AQ91: 8.5 | AR91: 13 | AS91: 11 | AT91: 32.5 | AU91: 7 | AV91: 14 | AW91: 18 | AX91: 39 | AY91: 3 | AZ91: 4 | BA91: 5 | BB91: 5 | BC91: 5 | BD91: 7 | BE91: 13 | BF91: 16 | BG91: 29 | BH91: 344.6 | BI91: 3 | BJ91: 6 | BK91: 5 | BL91: 14 | BM91: 3 | BN91: 4.5 | BO91: 7 | BP91: 14.5 | BQ91: دورثان | BR91: فى : قانون عقوبات - | BS91: 1 | CF91: قانون عقوبات - | CN91: 127.8
A92: 83 | B92: 783 | C92: محمد عبد العزيز عبد الحليم عبد العزيز | D92: 6/2 | E92: مستجد | F92: 583 | G92: 7 | H92: 10 | I92: 15.5 | J92: 32.5 | K92: 7 | L92: 13.2 | M92: 12.4 | N92: 32.6 | O92: 5.5 | P92: 4.4 | Q92: 8 | R92: 17.9 | S92: 7 | T92: 3 | U92: 15 | V92: 25 | W92: 9 | X92: 9 | Y92: 10.5 | Z92: 28.5 | AA92: 7.5 | AB92: 6.5 | AC92: 11 | AD92: 25 | AE92: 8.5 | AF92: 5 | AG92: 12 | AH92: 25.5 | AI92: 7.5 | AJ92: 15 | AK92: 11 | AL92: 33.5 | AM92: 8.5 | AN92: 12 | AO92: 13 | AP92: =[1]ورقة2!AY92 -> 0 | AQ92: 8 | AR92: 6 | AS92: 11 | AT92: 25 | AU92: 7 | AV92: 5 | AW92: 13 | AX92: 25 | AY92: 2.5 | AZ92: 4 | BA92: 5 | BB92: 6 | BC92: 5 | BD92: 7 | BE92: 12.5 | BF92: 17 | BG92: 29.5 | BH92: 300 | BI92: 3 | BJ92: 6.5 | BK92: 3 | BL92: 12.5 | BM92: 3 | BN92: 5 | BO92: 6.5 | BP92: 14.5 | BQ92: دورثان | BR92: فى : قانون عقوبات - | BS92: 1 | CF92: قانون عقوبات - | CN92: 100.1
A93: 84 | B93: 784 | C93: محمد عرفة محمد عرفة عبد الباقي | D93: 6/2 | E93: مستجد | F93: 584 | G93: 7.5 | H93: 7 | I93: 10.5 | J93: 25 | K93: 7 | L93: 11.2 | M93: 12 | N93: 30.2 | O93: 5.5 | P93: 4.4 | Q93: 7.2 | R93: 17.1 | S93: 7.5 | T93: 0 | U93: 11 | V93: 18.5 | W93: 9 | X93: 11 | Y93: 12 | Z93: 32 | AA93: 8 | AB93: 10 | AC93: 10.5 | AD93: 28.5 | AE93: 8.5 | AF93: 7 | AG93: 12 | AH93: 27.5 | AI93: 7.5 | AJ93: 15 | AK93: 12 | AL93: 34.5 | AM93: 8.5 | AN93: 13 | AO93: 13 | AP93: =[1]ورقة2!AY93 -> 0 | AQ93: 8 | AR93: 8 | AS93: 10 | AT93: 26 | AU93: 6 | AV93: 7 | AW93: 15 | AX93: 28 | AY93: 2.5 | AZ93: 4 | BA93: 5 | BB93: 6 | BC93: 5 | BD93: 7 | BE93: 12.5 | BF93: 17 | BG93: 29.5 | BH93: 296.8 | BI93: 3 | BJ93: 6.5 | BK93: 2.5 | BL93: 12 | BM93: 3 | BN93: 3.5 | BO93: 5.5 | BP93: 12 | BQ93: دورثان | BR93: فى : محاسبة - قانون عقوبات - | BS93: 2 | CA93: محاسبة - | CF93: قانون عقوبات - | CN93: 104.6
A94: 85 | B94: 785 | C94: محمد عزت عبده محمد عفيفي | D94: 6/2 | E94: مستجد | F94: 585 | G94: 7 | H94: 10.5 | I94: 15 | J94: 32.5 | K94: 7 | L94: 12.4 | M94: 12.4 | N94: 31.8 | O94: 5.5 | P94: 5.6 | Q94: 7.2 | R94: 18.3 | S94: 7.5 | T94: 0 | U94: 17.5 | V94: 25 | W94: 9.5 | X94: 9 | Y94: 11 | Z94: 29.5 | AA94: 7 | AB94: 6.5 | AC94: 11.5 | AD94: 25 | AE94: 8.5 | AF94: 6 | AG94: 12 | AH94: 26.5 | AI94: 7.5 | AJ94: 14 | AK94: 12 | AL94: 33.5 | AM94: 8.5 | AN94: 12 | AO94: 13 | AP94: =[1]ورقة2!AY94 -> 0 | AQ94: 8 | AR94: 7 | AS94: 10 | AT94: 25 | AU94: 7 | AV94: 6 | AW94: 16 | AX94: 29 | AY94: 2.5 | AZ94: 4 | BA94: 5 | BB94: 6 | BC94: 5 | BD94: 7 | BE94: 12.5 | BF94: 17 | BG94: 29.5 | BH94: 305.6 | BI94: 3 | BJ94: 6 | BK94: 3.5 | BL94: 12.5 | BM94: 3 | BN94: 4.5 | BO94: 6.5 | BP94: 14 | BQ94: دورثان | BR94: فى : قانون عقوبات - | BS94: 1 | CF94: قانون عقوبات - | CN94: 100
A95: 86 | B95: 786 | C95: محمد عمر جمعة بيومي | D95: 6/2 | E95: مستجد | F95: 586 | G95: 7 | H95: 12 | I95: 16 | J95: 35 | K95: 7 | L95: 12 | M95: 15.2 | N95: 34.2 | O95: 5.5 | P95: 5.2 | Q95: 8.4 | R95: 19.1 | S95: 7.5 | T95: 4.5 | U95: 15.5 | V95: 27.5 | W95: 9.5 | X95: 12.5 | Y95: 12.5 | Z95: 34.5 | AA95: 8 | AB95: 13.5 | AC95: 13.5 | AD95: 35 | AE95: 8.5 | AF95: 10 | AG95: 14 | AH95: 32.5 | AI95: 8 | AJ95: 14 | AK95: 12 | AL95: 34 | AM95: 8.5 | AN95: 16 | AO95: 13 | AP95: =[1]ورقة2!AY95 -> 0 | AQ95: 8 | AR95: 6 | AS95: 12 | AT95: 26 | AU95: 6.5 | AV95: 12 | AW95: 18 | AX95: 36.5 | AY95: 2.5 | AZ95: 4 | BA95: 4 | BB95: 5 | BC95: 5 | BD95: 7 | BE95: 11.5 | BF95: 16 | BG95: 27.5 | BH95: 341.8 | BI95: 3 | BJ95: 6 | BK95: 4 | BL95: 13 | BM95: 3 | BN95: 6 | BO95: 8 | BP95: 17 | BQ95: دورثان | BR95: فى : قانون عقوبات - | BS95: 1 | CF95: قانون عقوبات - | CN95: 126.7
A96: 87 | B96: 787 | C96: محمد عوني محمد فوزي يوسف | D96: 6/2 | E96: مستجد | F96: 587 | G96: 7 | H96: 12.5 | I96: 16.5 | J96: 36 | K96: 9 | L96: 16 | M96: 17.2 | N96: 42.2 | O96: 5.5 | P96: 4.8 | Q96: 7.6 | R96: 17.9 | S96: 7.5 | T96: 16.5 | U96: 14.5 | V96: 38.5 | W96: 9.5 | X96: 13.5 | Y96: 11.5 | Z96: 34.5 | AA96: 8 | AB96: 13.5 | AC96: 14.5 | AD96: 36 | AE96: 8.5 | AF96: 10 | AG96: 13 | AH96: 31.5 | AI96: 8 | AJ96: 15 | AK96: 12 | AL96: 35 | AM96: 8.5 | AN96: 17 | AO96: 13 | AP96: =[1]ورقة2!AY96 -> 0 | AQ96: 8 | AR96: 5 | AS96: 13 | AT96: 26 | AU96: 5.5 | AV96: 11 | AW96: 18 | AX96: 34.5 | AY96: 2.5 | AZ96: 4.5 | BA96: 5 | BB96: 5 | BC96: 6 | BD96: 7 | BE96: 13.5 | BF96: 16.5 | BG96: 30 | BH96: 362.1 | BI96: 3.5 | BJ96: 6 | BK96: 4.5 | BL96: 14 | BM96: 3 | BN96: 5 | BO96: 8 | BP96: 16 | BQ96: دورثان | BR96: فى : قانون عقوبات - | BS96: 1 | CF96: قانون عقوبات - | CN96: 144.8
A97: 88 | B97: 788 | C97: محمد فهمي عبد الحميد محمد بدر | D97: 6/2 | E97: مستجد | F97: 588 | G97: 7 | H97: 10 | I97: 14 | J97: 31 | K97: 9 | L97: 13.6 | M97: 14.8 | N97: 37.4 | O97: 5.5 | P97: 4 | Q97: 8.4 | R97: 17.9 | S97: 7.5 | T97: 0 | U97: 17.5 | V97: 25 | W97: 9 | X97: 11.5 | Y97: 12.5 | Z97: 33 | AA97: 8 | AB97: 6 | AC97: 11.5 | AD97: 25.5 | AE97: 8.5 | AF97: 9 | AG97: 13 | AH97: 30.5 | AI97: 8 | AJ97: 15 | AK97: 11 | AL97: 34 | AM97: 8.5 | AN97: 15 | AO97: 13 | AP97: =[1]ورقة2!AY97 -> 0 | AQ97: 8 | AR97: 4 | AS97: 13 | AT97: 25 | AU97: 7 | AV97: 11 | AW97: 14 | AX97: 32 | AY97: 2.5 | AZ97: 4.5 | BA97: 6 | BB97: 5 | BC97: 5 | BD97: 7 | BE97: 13.5 | BF97: 16.5 | BG97: 30 | BH97: 321.3 | BI97: 3 | BJ97: 6.5 | BK97: 4.5 | BL97: 14 | BM97: 3 | BN97: 6 | BO97: 7.5 | BP97: 16.5 | BQ97: دورثان | BR97: فى : قانون عقوبات - | BS97: 1 | CF97: قانون عقوبات - | CN97: 110.1
A98: 89 | B98: 789 | C98: محمد فيصل علي ابراهيم عبد العاطي | D98: 6/2 | E98: مستجد | F98: 589 | G98: 7 | H98: 8 | I98: 14.5 | J98: 29.5 | K98: 7 | L98: 10.4 | M98: 12 | N98: 29.4 | O98: 5.5 | P98: 4 | Q98: 6.4 | R98: 15.9 | S98: 7.5 | T98: 0 | U98: 17.5 | V98: 25 | W98: 9 | X98: 7 | Y98: 12 | Z98: 28 | AA98: 8 | AB98: 10 | AC98: 11.5 | AD98: 29.5 | AE98: 8 | AF98: 0 | AG98: 17 | AH98: 25 | AI98: 7.5 | AJ98: 14 | AK98: 12 | AL98: 33.5 | AM98: 8 | AN98: 13 | AO98: 13 | AP98: =[1]ورقة2!AY98 -> 0 | AQ98: 8 | AR98: 4 | AS98: 13 | AT98: 25 | AU98: 7 | AV98: 6 | AW98: 17 | AX98: 30 | AY98: 2.5 | AZ98: 4 | BA98: 5 | BB98: 5 | BC98: 5 | BD98: 7 | BE98: 12.5 | BF98: 16 | BG98: 28.5 | BH98: 299.3 | BI98: 3.5 | BJ98: 6.5 | BK98: 4 | BL98: 14 | BM98: 3 | BN98: 4.5 | BO98: 6.5 | BP98: 14 | BQ98: دورثان | BR98: فى : قانون عقوبات - | BS98: 1 | CF98: قانون عقوبات - | CN98: 86.4
A99: 90 | B99: 790 | C99: محمد كمال علي موسي علي | D99: 6/2 | E99: مستجد | F99: 590 | G99: 7 | H99: 12 | I99: 15.5 | J99: 34.5 | K99: 8.5 | L99: 13.2 | M99: 12 | N99: 33.7 | O99: 5.5 | P99: 4 | Q99: 8 | R99: 17.5 | S99: 7.5 | T99: 0 | U99: 11.5 | V99: 19 | W99: 9 | X99: 12 | Y99: 0 | Z99: 21 | AA99: 8 | AB99: 8.5 | AC99: 11.5 | AD99: 28 | AE99: 8 | AF99: 3 | AG99: 14 | AH99: 25 | AI99: 7.5 | AJ99: 15 | AK99: 12 | AL99: 34.5 | AM99: 8 | AN99: 13 | AO99: 13 | AP99: =[1]ورقة2!AY99 -> 0 | AQ99: 8 | AR99: 4 | AS99: 13 | AT99: 25 | AU99: 7 | AV99: 12 | AW99: 14 | AX99: 33 | AY99: 2.5 | AZ99: 4 | BA99: 5 | BB99: 6 | BC99: 6 | BD99: 7 | BE99: 13.5 | BF99: 17 | BG99: 30.5 | BH99: 301.7 | BI99: 3 | BJ99: 4.5 | BK99: 4.5 | BL99: 12 | BM99: 3 | BN99: 4.5 | BO99: 7.5 | BP99: 15 | BQ99: راسبة | BR99: فى : محاسبة - احصاء - قانون عقوبات - | BS99: 3 | CA99: محاسبة - | CB99: احصاء - | CF99: قانون عقوبات - | CN99: 107.7
A100: 91 | B100: 791 | C100: محمد ماهر عبد الهادي شكر | D100: 6/2 | E100: مستجد | F100: 591 | G100: 7 | H100: 6.5 | I100: 11.5 | J100: 25 | K100: 8.5 | L100: 8.4 | M100: 12.8 | N100: 29.7 | O100: 5.5 | P100: 3.6 | Q100: 8 | R100: 17.1 | S100: 7.5 | T100: 0 | U100: 17.5 | V100: 25 | W100: 9 | X100: 7.5 | Y100: 12 | Z100: 28.5 | AA100: 8 | AB100: 7 | AC100: 14 | AD100: 29 | AE100: 8 | AF100: 3 | AG100: 14 | AH100: 25 | AI100: 7.5 | AJ100: 14 | AK100: 10 | AL100: 31.5 | AM100: 8 | AN100: 16 | AO100: 13 | AP100: =[1]ورقة2!AY100 -> 0 | AQ100: 8.5 | AR100: 4 | AS100: 12.5 | AT100: 25 | AU100: 7 | AV100: 8 | AW100: 16 | AX100: 31 | AY100: 2.5 | AZ100: 4 | BA100: 5 | BB100: 6 | BC100: 5 | BD100: 7 | BE100: 12.5 | BF100: 17 | BG100: 29.5 | BH100: 296.3 | BI100: 3 | BJ100: 4.5 | BK100: 4 | BL100: 11.5 | BM100: 3 | BN100: 5.5 | BO100: 7.5 | BP100: 16 | BQ100: دورثان | BR100: فى : قانون عقوبات - | BS100: 1 | CF100: قانون عقوبات - | CN100: 89
A101: 92 | B101: 792 | C101: محمد مجدي فتحي محمود السيد | D101: 6/2 | E101: مستجد | F101: 592 | G101: 7 | H101: 9 | I101: 14.5 | J101: 30.5 | K101: 7 | L101: 12.8 | M101: 13.6 | N101: 33.4 | O101: 5.5 | P101: 4.4 | Q101: 7.2 | R101: 17.1 | S101: 7.5 | T101: 0 | U101: 17.5 | V101: 25 | W101: 9 | X101: 10.5 | Y101: 11.5 | Z101: 31 | AA101: 8 | AB101: 0 | AC101: 11.5 | AD101: 19.5 | AE101: 8 | AF101: 0 | AG101: 17 | AH101: 25 | AI101: 7.5 | AJ101: 15 | AK101: 12 | AL101: 34.5 | AM101: 8 | AN101: 15 | AO101: 12 | AP101: =[1]ورقة2!AY101 -> 0 | AQ101: 8.5 | AR101: 8 | AS101: 10 | AT101: 26.5 | AU101: 5.5 | AV101: 0 | AW101: 12 | AX101: 17.5 | AY101: 2.5 | AZ101: 4 | BA101: 4 | BB101: 6 | BC101: 5 | BD101: 7 | BE101: 11.5 | BF101: 17 | BG101: 28.5 | BH101: 288.5 | BI101: 3.5 | BJ101: 5 | BK101: 4 | BL101: 12.5 | BM101: 3 | BN101: 5 | BO101: 6 | BP101: 14 | BQ101: راسبة | BR101: فى : اعمال وساطة - قانون عقوبات - علم نفس - مجموع | BS101: 4 | CC101: اعمال وساطة - | CF101: قانون عقوبات - | CH101: علم نفس - | CL101: مجموع | CN101: 84.7
A102: 93 | B102: 793 | C102: محمد محمود حمدي عثمان اسماعيل | D102: 6/2 | E102: مستجد | F102: 593 | G102: 7 | H102: 10.5 | I102: 12.5 | J102: 30 | K102: 7 | L102: غ | M102: 15.2 | N102: 22.2 | O102: 5.5 | P102: 4.8 | Q102: 8 | R102: 18.3 | S102: 7.5 | T102: 0 | U102: 17.5 | V102: 25 | W102: 9 | X102: 11 | Y102: 12.5 | Z102: 32.5 | AA102: 8 | AB102: 10 | AC102: 11.5 | AD102: 29.5 | AE102: 8.5 | AF102: 5 | AG102: 12 | AH102: 25.5 | AI102: 8 | AJ102: 14 | AK102: 12 | AL102: 34 | AM102: 8 | AN102: 13 | AO102: 13 | AP102: =[1]ورقة2!AY102 -> 0 | AQ102: 8 | AR102: 5 | AS102: 13 | AT102: 26 | AU102: 9 | AV102: غ | AW102: 16 | AX102: 25 | AY102: 2.5 | AZ102: 4 | BA102: 6 | BB102: 6 | BC102: 6 | BD102: 7 | BE102: 14.5 | BF102: 17 | BG102: 31.5 | BH102: 299.5 | BI102: 3 | BJ102: 3.5 | BK102: 4 | BL102: 10.5 | BM102: 3 | BN102: 3 | BO102: 8 | BP102: 14 | BQ102: دورثان | BR102: فى : قانون عقوبات - | BS102: 1 | CF102: قانون عقوبات - | CN102: 85.3
A103: 94 | B103: 794 | C103: محمد محمود محمد السعيد | D103: 6/2 | E103: مستجد | F103: 594 | G103: 7 | H103: 11 | I103: 15.5 | J103: 33.5 | K103: 8.5 | L103: 14.4 | M103: 16 | N103: 38.9 | O103: 5.5 | P103: 6.8 | Q103: 8 | R103: 20.3 | S103: 7.5 | T103: 12 | U103: 15.5 | V103: 35 | W103: 9 | X103: 13 | Y103: 11.5 | Z103: 33.5 | AA103: 7 | AB103: 9 | AC103: 13 | AD103: 29 | AE103: 8 | AF103: 9 | AG103: 12 | AH103: 29 | AI103: 8 | AJ103: 12 | AK103: 13 | AL103: 33 | AM103: 8 | AN103: 15 | AO103: 13 | AP103: =[1]ورقة2!AY103 -> 0 | AQ103: 8 | AR103: 8 | AS103: 10 | AT103: 26 | AU103: 7 | AV103: 12 | AW103: 14 | AX103: 33 | AY103: 2.5 | AZ103: 4 | BA103: 5 | BB103: 4 | BC103: 6 | BD103: 7 | BE103: 13.5 | BF103: 15 | BG103: 28.5 | BH103: 339.7 | BI103: 3 | BJ103: 6.5 | BK103: 5.5 | BL103: 15 | BM103: 3 | BN103: 6 | BO103: 8 | BP103: 17 | BQ103: دورثان | BR103: فى : قانون عقوبات - | BS103: 1 | CF103: قانون عقوبات - | CN103: 131.2
A104: 95 | B104: 795 | C104: محمد مسعد سعيد عبد القادر | D104: 6/2 | E104: مستجد | F104: 595 | G104: 7 | H104: 8.5 | I104: 14 | J104: 29.5 | K104: 7 | L104: 16.4 | M104: 14.8 | N104: 38.2 | O104: 5.5 | P104: 5.6 | Q104: 7.6 | R104: 18.7 | S104: 7 | T104: 14 | U104: 13.5 | V104: 34.5 | W104: 9 | X104: 13 | Y104: 0 | Z104: 22 | AA104: 8 | AB104: 6 | AC104: 11.5 | AD104: 25.5 | AE104: 8 | AF104: 7 | AG104: 11 | AH104: 26 | AI104: 7.5 | AJ104: 11 | AK104: 9 | AL104: 27.5 | AM104: 8 | AN104: 13 | AO104: 13 | AP104: =[1]ورقة2!AY104 -> 0 | AQ104: 8 | AR104: 8 | AS104: 10 | AT104: 26 | AU104: 6 | AV104: 12 | AW104: 14 | AX104: 32 | AY104: 3 | AZ104: 4.5 | BA104: 5 | BB104: 4 | BC104: 5 | BD104: 7 | BE104: 13 | BF104: 15.5 | BG104: 28.5 | BH104: 308.4 | BI104: 3 | BJ104: 5.5 | BK104: 4.5 | BL104: 13 | BM104: 3 | BN104: 5 | BO104: 7 | BP104: 15 | BQ104: دورثان | BR104: فى : احصاء - قانون عقوبات - | BS104: 2 | CB104: احصاء - | CF104: قانون عقوبات - | CN104: 123.5
A105: 96 | B105: 796 | C105: محمد مغاوري رمضان مغاوري | D105: 6/2 | E105: مستجد | F105: 596 | G105: 7 | H105: 8.5 | I105: 13.5 | J105: =SUM(G105:I105) -> 29 | K105: 9 | L105: 12.8 | M105: 11.6 | N105: 33.4 | O105: 5.5 | P105: 6 | Q105: 8 | R105: 19.5 | S105: 7.5 | T105: 6 | U105: 11.5 | V105: 25 | W105: 9 | X105: 12 | Y105: 6.5 | Z105: 27.5 | AA105: 8 | AB105: 10 | AC105: 9.5 | AD105: 27.5 | AE105: 8.5 | AF105: 10 | AG105: 13 | AH105: 31.5 | AI105: 8 | AJ105: 12 | AK105: 10 | AL105: 30 | AM105: 8.5 | AN105: 11 | AO105: 13 | AP105: =[1]ورقة2!AY105 -> 0 | AQ105: 8 | AR105: 7 | AS105: 12 | AT105: 27 | AU105: 7 | AV105: 14 | AW105: 14 | AX105: 35 | AY105: 2.5 | AZ105: 4.5 | BA105: 6 | BB105: 4 | BC105: 6 | BD105: 7 | BE105: =IF($C105="","",SUM(AY105,BA105,BC105)) -> 14.5 | BF105: 15.5 | BG105: 30 | BH105: 315.4 | BI105: 3.5 | BJ105: 5.5 | BK105: 3.5 | BL105: 12.5 | BM105: 3 | BN105: 5.5 | BO105: 8 | BP105: 16.5 | BQ105: دورثان | BR105: فى : قانون عقوبات - | BS105: 1 | CF105: قانون عقوبات - | CN105: 119.3
A106: 97 | B106: 797 | C106: محمد منير عبد الوهاب ابو العينين | D106: 6/2 | E106: مستجد | F106: 597 | G106: 7 | H106: 11 | I106: 14 | J106: 32 | K106: 8.5 | L106: 14.8 | M106: 15.2 | N106: 38.5 | O106: 5.5 | P106: 5.2 | Q106: 7.2 | R106: 17.9 | S106: 7.5 | T106: 9.5 | U106: 15 | V106: 32 | W106: 9 | X106: 12.5 | Y106: 5.5 | Z106: 27 | AA106: 8 | AB106: 7 | AC106: 10.5 | AD106: 25.5 | AE106: 8.5 | AF106: 10 | AG106: 12 | AH106: 30.5 | AI106: 7.5 | AJ106: 12 | AK106: 10 | AL106: 29.5 | AM106: 8.5 | AN106: 15 | AO106: 14 | AP106: =[1]ورقة2!AY106 -> 0 | AQ106: 8 | AR106: 7 | AS106: 10 | AT106: 25 | AU106: 7 | AV106: 12 | AW106: 14 | AX106: 33 | AY106: 2.5 | AZ106: 4 | BA106: 6 | BB106: 4 | BC106: 5 | BD106: 7 | BE106: 13.5 | BF106: 15 | BG106: 28.5 | BH106: 319.4 | BI106: 3 | BJ106: 4.5 | BK106: 4 | BL106: 11.5 | BM106: 3 | BN106: 5 | BO106: 7 | BP106: 15 | BQ106: دورثان | BR106: فى : قانون عقوبات - | BS106: 1 | CF106: قانون عقوبات - | CN106: 126
A107: 98 | B107: 798 | C107: محمد ناصر أحمد السيد | D107: 6/2 | E107: مستجد | F107: 598 | G107: 7 | H107: 4.5 | I107: 14 | J107: 25.5 | K107: 9 | L107: 12.8 | M107: 13.2 | N107: 35 | O107: 5.5 | P107: 5.2 | Q107: 7.2 | R107: 17.9 | S107: 7.5 | T107: 3.5 | U107: 15 | V107: 26 | W107: 9 | X107: 10.5 | Y107: 0 | Z107: 19.5 | AA107: 8 | AB107: 11.5 | AC107: 10 | AD107: 29.5 | AE107: 8 | AF107: 3 | AG107: 14 | AH107: 25 | AI107: 7.5 | AJ107: 12 | AK107: 8 | AL107: 27.5 | AM107: 8 | AN107: 14 | AO107: 15 | AP107: =[1]ورقة2!AY107 -> 0 | AQ107: 8 | AR107: 6 | AS107: 11 | AT107: 25 | AU107: 6.5 | AV107: 14 | AW107: 12 | AX107: 32.5 | AY107: 2.5 | AZ107: 4 | BA107: 5 | BB107: 4 | BC107: 5 | BD107: 7 | BE107: 12.5 | BF107: 15 | BG107: 27.5 | BH107: 290.9 | BI107: 3 | BJ107: 6 | BK107: 4 | BL107: 13 | BM107: 3 | BN107: 4 | BO107: 6.5 | BP107: 13.5 | BQ107: دورثان | BR107: فى : احصاء - قانون عقوبات - | BS107: 2 | CB107: احصاء - | CF107: قانون عقوبات - | CN107: 106
A108: 99 | B108: 799 | C108: محمد ياسر لبيب احمد طه | D108: 6/2 | E108: مستجد | F108: 599 | G108: 7 | H108: 11 | I108: 13.5 | J108: 31.5 | K108: 9.5 | L108: 16.8 | M108: 14.4 | N108: 40.7 | O108: 5.5 | P108: 4 | Q108: 8.4 | R108: 17.9 | S108: 7 | T108: 11.5 | U108: 15.5 | V108: 34 | W108: 9 | X108: 12.5 | Y108: 0 | Z108: 21.5 | AA108: 7.5 | AB108: 9 | AC108: 10.5 | AD108: 27 | AE108: 9 | AF108: 10 | AG108: 12 | AH108: 31 | AI108: 8.5 | AJ108: 11 | AK108: 12 | AL108: 31.5 | AM108: 9 | AN108: 12 | AO108: 15 | AP108: =[1]ورقة2!AY108 -> 0 | AQ108: 8 | AR108: 9 | AS108: 10 | AT108: 27 | AU108: 7 | AV108: 13 | AW108: 12 | AX108: 32 | AY108: 3 | AZ108: 4.5 | BA108: 6 | BB108: 4 | BC108: 6 | BD108: 7 | BE108: 15 | BF108: 15.5 | BG108: 30.5 | BH108: 324.6 | BI108: 3.5 | BJ108: 5 | BK108: 3.5 | BL108: 12 | BM108: 3 | BN108: 5 | BO108: 7 | BP108: 15 | BQ108: دورثان | BR108: فى : احصاء - قانون عقوبات - | BS108: 2 | CB108: احصاء - | CF108: قانون عقوبات - | CN108: 129.8
A109: 100 | B109: 800 | C109: محمد يوسف عبد المعطي يوسف | D109: 6/2 | E109: مستجد | F109: 600 | G109: 7 | H109: 11 | I109: 15 | J109: 33 | K109: 9.5 | L109: 18 | M109: 16.8 | N109: 44.3 | O109: 5.5 | P109: 5.2 | Q109: 8 | R109: 18.7 | S109: 8 | T109: 11.5 | U109: 15 | V109: 34.5 | W109: 9.5 | X109: 12.5 | Y109: 9 | Z109: 31 | AA109: 8 | AB109: 10 | AC109: 10.5 | AD109: 28.5 | AE109: 9 | AF109: 11 | AG109: 13 | AH109: 33 | AI109: 8.5 | AJ109: 12 | AK109: 12 | AL109: 32.5 | AM109: 9 | AN109: 12 | AO109: 14 | AP109: =[1]ورقة2!AY109 -> 0 | AQ109: 8 | AR109: 8 | AS109: 11 | AT109: 27 | AU109: 7 | AV109: 13 | AW109: 16 | AX109: 36 | AY109: 2.5 | AZ109: 4.5 | BA109: 5 | BB109: 4 | BC109: 5 | BD109: 7 | BE109: 12.5 | BF109: 15.5 | BG109: 28 | BH109: 346.5 | BI109: 3 | BJ109: 6.5 | BK109: 3.5 | BL109: 13 | BM109: 3 | BN109: 5 | BO109: 7.5 | BP109: 15.5 | BQ109: دورثان | BR109: فى : قانون عقوبات - | BS109: 1 | CF109: قانون عقوبات - | CN109: 133.2
A110: 101 | B110: 801 | C110: محمود السيد أحمد عبد العال | D110: 6/2 | E110: مستجد | F110: 601 | G110: 7 | H110: 7.5 | I110: 11 | J110: 25.5 | K110: 7 | L110: 12 | M110: 15.6 | N110: 34.6 | O110: 5.5 | P110: 5.2 | Q110: 8 | R110: 18.7 | S110: 7 | T110: 7.5 | U110: 10.5 | V110: 25 | W110: 9 | X110: 10.5 | Y110: 9 | Z110: 28.5 | AA110: 8 | AB110: 7.5 | AC110: 9.5 | AD110: 25 | AE110: 8.5 | AF110: 9 | AG110: 11 | AH110: 28.5 | AI110: 8 | AJ110: 12 | AK110: 10 | AL110: 30 | AM110: 8.5 | AN110: 12 | AO110: 13 | AP110: =[1]ورقة2!AY110 -> 0 | AQ110: 8 | AR110: 7 | AS110: 10 | AT110: 25 | AU110: 7 | AV110: 12 | AW110: 13 | AX110: 32 | AY110: 2.5 | AZ110: 4 | BA110: 5 | BB110: 4 | BC110: 5 | BD110: 7 | BE110: 12.5 | BF110: 15 | BG110: 27.5 | BH110: 300.3 | BI110: 3.5 | BJ110: 5.5 | BK110: 3 | BL110: 12 | BM110: 3 | BN110: 5 | BO110: 5 | BP110: 13 | BQ110: دورثان | BR110: فى : قانون عقوبات - | BS110: 1 | CF110: قانون عقوبات - | CN110: 111.2
A111: 102 | B111: 802 | C111: محمود أحمد شعبان عمارة | D111: 6/2 | E111: مستجد | F111: 602 | G111: 7 | H111: 10 | I111: 14.5 | J111: 31.5 | K111: 8.5 | L111: 15.2 | M111: 14.4 | N111: 38.1 | O111: 5.5 | P111: 3.6 | Q111: 8 | R111: 17.1 | S111: 7.5 | T111: 10.5 | U111: 14 | V111: 32 | W111: 9 | X111: 12 | Y111: 6.5 | Z111: 27.5 | AA111: 8 | AB111: 7 | AC111: 11.5 | AD111: 26.5 | AE111: 8 | AF111: 11 | AG111: 13 | AH111: 32 | AI111: 8 | AJ111: 12 | AK111: 10 | AL111: 30 | AM111: 8 | AN111: 12 | AO111: 16 | AP111: =[1]ورقة2!AY111 -> 0 | AQ111: 8 | AR111: 7 | AS111: 12 | AT111: 27 | AU111: 7 | AV111: 17 | AW111: 14 | AX111: 38 | AY111: 2.5 | AZ111: 4 | BA111: 5 | BB111: 5 | BC111: 6 | BD111: 7 | BE111: 13.5 | BF111: 16 | BG111: 29.5 | BH111: 329.2 | BI111: 3 | BJ111: 6.5 | BK111: 4 | BL111: 13.5 | BM111: 3 | BN111: 6 | BO111: 8 | BP111: 17 | BQ111: دورثان | BR111: فى : قانون عقوبات - | BS111: 1 | CF111: قانون عقوبات - | CN111: 127.3
A112: 103 | B112: 803 | C112: محمود جمال عبد الغني القطان | D112: 6/2 | E112: مستجد | F112: 603 | G112: 7 | H112: 12.5 | I112: 13 | J112: 32.5 | K112: 9 | L112: 14 | M112: 15.6 | N112: 38.6 | O112: 5.5 | P112: 4.4 | Q112: 7.6 | R112: 17.5 | S112: 7.5 | T112: 12 | U112: 15 | V112: 34.5 | W112: 9 | X112: 13 | Y112: 5 | Z112: 27 | AA112: 8 | AB112: 9.5 | AC112: 11.5 | AD112: 29 | AE112: 8 | AF112: 11 | AG112: 13 | AH112: 32 | AI112: 8 | AJ112: 12 | AK112: 7 | AL112: 27 | AM112: 8 | AN112: 12 | AO112: 15 | AP112: =[1]ورقة2!AY112 -> 0 | AQ112: 8 | AR112: 7 | AS112: 10 | AT112: 25 | AU112: 5.5 | AV112: 17 | AW112: 14 | AX112: 36.5 | AY112: 2.5 | AZ112: 4.5 | BA112: 5 | BB112: 5 | BC112: 5 | BD112: 7 | BE112: 12.5 | BF112: 16.5 | BG112: 29 | BH112: 328.6 | BI112: 3.5 | BJ112: 5 | BK112: 3.5 | BL112: 12 | BM112: 3 | BN112: 4 | BO112: 6 | BP112: 13 | BQ112: دورثان | BR112: فى : قانون عقوبات - | BS112: 1 | CF112: قانون عقوبات - | CN112: 134.4
A113: 104 | B113: 804 | C113: محمود حمدان محمد عبد العزيز | D113: 6/2 | E113: مستجد | F113: 604 | G113: 7 | H113: 13 | I113: 12.5 | J113: 32.5 | K113: 7.5 | L113: 10.4 | M113: 12.8 | N113: 30.7 | O113: 5.5 | P113: 3.2 | Q113: 7.6 | R113: 16.3 | S113: 7.5 | T113: 11 | U113: 13 | V113: 31.5 | W113: 9 | X113: 14 | Y113: 7.5 | Z113: 30.5 | AA113: 8 | AB113: 7.5 | AC113: 10.5 | AD113: 26 | AE113: 8.5 | AF113: 9 | AG113: 14 | AH113: 31.5 | AI113: 8 | AJ113: 12 | AK113: 12 | AL113: 32 | AM113: 8.5 | AN113: 14 | AO113: 12 | AP113: =[1]ورقة2!AY113 -> 0 | AQ113: 8 | AR113: 7 | AS113: 11 | AT113: 26 | AU113: 6.5 | AV113: 17 | AW113: 14 | AX113: 37.5 | AY113: 2.5 | AZ113: 4 | BA113: 6 | BB113: 4 | BC113: 6 | BD113: 7 | BE113: 14.5 | BF113: 15 | BG113: 29.5 | BH113: 324 | BI113: 3.5 | BJ113: 6 | BK113: 3.5 | BL113: 13 | BM113: 3 | BN113: 4 | BO113: 6.5 | BP113: 13.5 | BQ113: دورثان | BR113: فى : قانون عقوبات - | BS113: 1 | CF113: قانون عقوبات - | CN113: 128.1
A114: 105 | B114: 805 | C114: محمود رمضان عبد الرسول ابراهيم | D114: 6/2 | E114: مستجد | F114: 605 | G114: 7.5 | H114: 4 | I114: 13.5 | J114: 25 | K114: 7 | L114: 10.8 | M114: 14 | N114: 31.8 | O114: 5.5 | P114: 4.8 | Q114: 7.6 | R114: 17.9 | S114: 7.5 | T114: 11 | U114: 12 | V114: 30.5 | W114: 9 | X114: 10.5 | Y114: 9 | Z114: 28.5 | AA114: 8 | AB114: 9 | AC114: 10.5 | AD114: 27.5 | AE114: 8.5 | AF114: 8 | AG114: 13 | AH114: 29.5 | AI114: 8 | AJ114: 12 | AK114: 11 | AL114: 31 | AM114: 8.5 | AN114: 12 | AO114: 15 | AP114: =[1]ورقة2!AY114 -> 0 | AQ114: 8 | AR114: 8 | AS114: 10 | AT114: 26 | AU114: 7 | AV114: 11 | AW114: 15 | AX114: 33 | AY114: 2.5 | AZ114: 4.5 | BA114: 6 | BB114: 4 | BC114: 6 | BD114: 7 | BE114: 14.5 | BF114: 15.5 | BG114: 30 | BH114: 310.7 | BI114: 3 | BJ114: 5.5 | BK114: 2 | BL114: 10.5 | BM114: 3 | BN114: 1.5 | BO114: 6.5 | BP114: 11 | BQ114: دورثان | BR114: فى : قانون عقوبات - | BS114: 1 | CF114: قانون عقوبات - | CN114: 111.1
A115: 106 | B115: 806 | C115: محمود زكريا محمود كامل محمود | D115: 6/2 | E115: مستجد | F115: 606 | G115: 7.5 | H115: 7 | I115: 10.5 | J115: 25 | K115: 7 | L115: 11.6 | M115: 12 | N115: 30.6 | O115: 5.5 | P115: 2.8 | Q115: 7.2 | R115: 15.5 | S115: 7.5 | T115: 9 | U115: 15 | V115: 31.5 | W115: 9 | X115: 9.5 | Y115: 0 | Z115: 18.5 | AA115: 8 | AB115: 9 | AC115: 11.5 | AD115: 28.5 | AE115: 8.5 | AF115: 5 | AG115: 13 | AH115: 26.5 | AI115: 7.5 | AJ115: 12 | AK115: 7 | AL115: 26.5 | AM115: 8.5 | AN115: 12 | AO115: 14 | AP115: =[1]ورقة2!AY115 -> 0 | AQ115: 8.5 | AR115: 7 | AS115: 10 | AT115: 25.5 | AU115: 7 | AV115: 11 | AW115: 14 | AX115: 32 | AY115: 2.5 | AZ115: 4 | BA115: 5 | BB115: 4 | BC115: 5 | BD115: 7 | BE115: 12.5 | BF115: 15 | BG115: 27.5 | BH115: 287.6 | BI115: 3 | BJ115: 4.5 | BK115: 3 | BL115: 10.5 | BM115: 3 | BN115: 5 | BO115: 7.5 | BP115: 15.5 | BQ115: راسبة | BR115: فى : احصاء - قانون عقوبات - مجموع | BS115: 3 | CB115: احصاء - | CF115: قانون عقوبات - | CL115: مجموع | CN115: 104.9
A116: 107 | B116: 807 | C116: محمود عادل عمر محمود حسانين | D116: 6/2 | E116: مستجد | F116: 607 | G116: 7 | H116: 7.5 | I116: 13 | J116: 27.5 | K116: 7 | L116: 13.2 | M116: 14.4 | N116: 34.6 | O116: 5.5 | P116: 3.2 | Q116: 8.4 | R116: 17.1 | S116: 7.5 | T116: 7.5 | U116: 11.5 | V116: 26.5 | W116: 9 | X116: 12.5 | Y116: 0 | Z116: 21.5 | AA116: 8 | AB116: 8 | AC116: 11.5 | AD116: 27.5 | AE116: 8 | AF116: 3 | AG116: 14 | AH116: 25 | AI116: 7.5 | AJ116: 12 | AK116: 8 | AL116: 27.5 | AM116: 8 | AN116: 12 | AO116: 14 | AP116: =[1]ورقة2!AY116 -> 0 | AQ116: 8.5 | AR116: 9 | AS116: 10 | AT116: 27.5 | AU116: 6.5 | AV116: 10 | AW116: 12 | AX116: 28.5 | AY116: 2.5 | AZ116: 4 | BA116: 5 | BB116: 4 | BC116: 5 | BD116: 8 | BE116: 12.5 | BF116: 16 | BG116: 28.5 | BH116: 291.7 | BI116: 3 | BJ116: 5.5 | BK116: 2.5 | BL116: 11 | BM116: 3 | BN116: 4.5 | BO116: 6.5 | BP116: 14 | BQ116: دورثان | BR116: فى : احصاء - قانون عقوبات - | BS116: 2 | CB116: احصاء - | CF116: قانون عقوبات - | CN116: 106.9
A117: 108 | B117: 808 | C117: محمود عادل محمد علي السيد | D117: 6/2 | E117: مستجد | F117: 608 | G117: 7 | H117: 6.5 | I117: 14.5 | J117: 28 | K117: 7 | L117: 13.6 | M117: 15.2 | N117: 35.8 | O117: 5.5 | P117: 5.6 | Q117: 7.6 | R117: 18.7 | S117: 7 | T117: 10 | U117: 13.5 | V117: 30.5 | W117: 9 | X117: 8.5 | Y117: 0 | Z117: 17.5 | AA117: 8 | AB117: 7 | AC117: 11.5 | AD117: 26.5 | AE117: 8 | AF117: 10 | AG117: 12 | AH117: 30 | AI117: 7.5 | AJ117: 12 | AK117: 7 | AL117: 26.5 | AM117: 8 | AN117: 12 | AO117: 14 | AP117: =[1]ورقة2!AY117 -> 0 | AQ117: 8.5 | AR117: 7 | AS117: 10 | AT117: 25.5 | AU117: 7 | AV117: 10 | AW117: 13 | AX117: 30 | AY117: 3 | AZ117: 4 | BA117: 6 | BB117: 4 | BC117: 5 | BD117: 8 | BE117: 14 | BF117: 16 | BG117: 30 | BH117: 299 | BI117: 3 | BJ117: 5.5 | BK117: 2.5 | BL117: 11 | BM117: 3 | BN117: 3 | BO117: 6 | BP117: 12 | BQ117: دورثان | BR117: فى : احصاء - قانون عقوبات - | BS117: 2 | CB117: احصاء - | CF117: قانون عقوبات - | CN117: 112.2
A118: 109 | B118: 809 | C118: محمود عبد الفتاح ابراهيم الدسوقي | D118: 6/2 | E118: مستجد | F118: 609 | G118: 7.5 | H118: 6 | I118: 11.5 | J118: 25 | K118: 9.5 | L118: 12.8 | M118: 14 | N118: 36.3 | O118: 5.5 | P118: 6.8 | Q118: 8 | R118: 20.3 | S118: 7.5 | T118: 9 | U118: 14 | V118: 30.5 | W118: 9 | X118: 11 | Y118: 7 | Z118: 27 | AA118: 7.5 | AB118: 9 | AC118: 11.5 | AD118: 28 | AE118: 8 | AF118: 9 | AG118: 12 | AH118: 29 | AI118: 9 | AJ118: 13 | AK118: 6 | AL118: 28 | AM118: 8 | AN118: 12 | AO118: 14 | AP118: =[1]ورقة2!AY118 -> 0 | AQ118: 8 | AR118: 8 | AS118: 10 | AT118: 26 | AU118: 7 | AV118: 12 | AW118: 13 | AX118: 32 | AY118: 2.5 | AZ118: 4 | BA118: 6 | BB118: 4 | BC118: 6 | BD118: 8 | BE118: 14.5 | BF118: 16 | BG118: 30.5 | BH118: 312.6 | BI118: 3.5 | BJ118: 5.5 | BK118: 3.5 | BL118: 12.5 | BM118: 3 | BN118: 3 | BO118: 6 | BP118: 12 | BQ118: دورثان | BR118: فى : قانون عقوبات - | BS118: 1 | CF118: قانون عقوبات - | CN118: 118.6
A119: 110 | B119: 810 | C119: محمود عصام محمود محمد | D119: 6/2 | E119: مستجد | F119: 610 | G119: 7 | H119: 12 | I119: 11.5 | J119: 30.5 | K119: 7 | L119: 15.6 | M119: 14.4 | N119: 37 | O119: 5.5 | P119: 7.6 | Q119: 7.6 | R119: 20.7 | S119: 7.5 | T119: 6.5 | U119: 14 | V119: 28 | W119: 9.5 | X119: 8.5 | Y119: 0 | Z119: 18 | AA119: 8 | AB119: 7 | AC119: 11.5 | AD119: 26.5 | AE119: 8 | AF119: 7 | AG119: 13 | AH119: 28 | AI119: 8 | AJ119: 15 | AK119: 5 | AL119: 28 | AM119: 8 | AN119: 14 | AO119: 13 | AP119: =[1]ورقة2!AY119 -> 0 | AQ119: 8 | AR119: 8 | AS119: 10 | AT119: 26 | AU119: 6.5 | AV119: 9 | AW119: 11 | AX119: 26.5 | AY119: 2.5 | AZ119: 4 | BA119: 5 | BB119: 4 | BC119: 5 | BD119: 7 | BE119: 12.5 | BF119: 15 | BG119: 27.5 | BH119: 296.7 | BI119: 3 | BJ119: 5.5 | BK119: 4.5 | BL119: 13 | BM119: 3 | BN119: 6 | BO119: 7 | BP119: 16 | BQ119: دورثان | BR119: فى : احصاء - قانون عقوبات - | BS119: 2 | CB119: احصاء - | CF119: قانون عقوبات - | CN119: 119.2
